Workbook

Sheet Contents
B1: REGULATORY REPORTING STATEMENT
B2: ='1.0 Business & other details '!C14 -> Energex
B3: =RCP_1to5 -> 2015-16 to 2019-20
B4: CONTENTS
E7: 1. Business details | L7: 2. Expenditure | S7: 3. Economic benchmarking
E27: 4. Alternative control services | L27: 5. Network information | S27: 6. Service & quality
S28: 6.1 Telephone answering
S29: 6.2 Reliability & customer service performance
S30: 6.3 Sustained interruptions
S31: 6.4 Historical MEDs
E34: 7. Other templates

Sheet Instructions
B1: REGULATORY REPORTING STATEMENT
B2: ='1.0 Business & other details '!C14 -> Energex
B3: =RCP_1to5 -> 2015-16 to 2019-20
B4: INSTRUCTIONS
B6: INSTRUCTIONS FOR USE
B7: =CONCATENATE('1.0 Business & other details '!C14, " must fill out and submit the regulatory templates in this spreadsheet as part of its regulatory proposal.") -> Energex must fill out and submit the regulatory templates in this spreadsheet as part of its regulatory proposal.

Sheet 1.0 Business & other details
B1: REGULATORY REPORTING STATEMENT
B2: =TradingName -> Energex
B3: =RCP_1to5 -> 2015-16 to 2019-20
B5: 1.0 BUSINESS & OTHER DETAILS
B7: Instructions
B8: Complete the following business details regulatory template before entering data or values in any other regulatory template. This regulatory template is linked to other cells within the spreadsheet and automatically generates column headings.
B10: TABLE 1.2.1 - SUBMISSION PARTICULARS INPUT SHEET
B12: Entity details
B14: Trading name | C14: Energex
B15: ACN / ABN | C15: 40078849055
B18: Business address | C18: Address 1 | E18: 26 Reddacliff Street
D19: Address 2
C20: Suburb | E20: Newstead
D21: State | E21: QLD | F21: p/code | G21: 4006
B23: Postal address | C23: Address 1 | E23: 26 Reddacliff Street
D24: Address 2
C25: Suburb | E25: Newstead
D26: State | E26: Qld | F26: p/code | G26: 4006
B29: Contact name/s | C29: Neil Andersen | F29: Ben Moran
B30: Contact phone/s | C30: (07) 3664 4009 | F30: (07) 3664 5839
B31: Contact email address/s | C31: neilandersen@energex.com.au | F31: benmoran@energex.com.au
B33: Regulatory control period details
B35: Forthcoming regulatory control period | C35: 2015-16 | D35: 2016-17 | E35: 2017-18 | F35: 2018-19 | G35: 2019-20
B38: Current regulatory control period | C38: 2010-11 | D38: 2011-12 | E38: 2012-13 | F38: 2013-14 | G38: 2014-15
B41: Previous regulatory control period | C41: 2005-06 | D41: 2006-07 | E41: 2007-08 | F41: 2008-09 | G41: 2009-10
B44: Sector | C44: Electricity
B45: Segment | C45: Distribution
B46: Source | C46: Regulatory proposal
B47: Regulatory Year Ending | C47: 2020
B48: Reporting Period Type | C48: Financial Year
B49: RIN Type | C49: Reset
B50: Security Classification | C50: Public
B51: Estimated or actual | C51: Public
B52: RIN response - version no. | C52: 1
B53: RIN response - amendment reason | C53: <If this response is a resubmission because data has been amended, NSP to provide amendment reason> eg. corrected data errors in tables 3.1.1 & 3.5.1
B54: RIN template - version no. | C54: 2
B55: $ real | C55: June 2015

Sheet 2.1 Expenditure summary
C1: REGULATORY REPORTING STATEMENT
C2: =TradingName -> Energex
C3: =RCP_1to5 -> 2015-16 to 2019-20
C4: 2.1 EXPENDITURE SUMMARY & RECONCILIATION
C8: TABLE 2.1.1 - STANDARD CONTROL SERVICES CAPEX
D10: Previous regulatory period | F10: Current regulatory period | K10: Forthcoming regulatory period
D11: Actual ($000's) | J11: =CONCATENATE("Forecast ($000's real, ", DollarReal, ")") -> Forecast ($000's real, June 2015)
D12: =PRCP_y4 -> 2008-09 | E12: =PRCP_y5 -> 2009-10 | F12: =CRCP -> 2010-11 | G12: 2011-12 | H12: 2012-13 | I12: 2013-14 | J12: 2014-15 | K12: =FRCP -> 2015-16 | L12: 2016-17 | M12: 2017-18 | N12: 2018-19 | O12: 2019-20
A13: ED_EXP211_00001 | C13: Replacement expenditure | D13: 71060.97321 | E13: 98751.3634 | F13: 90719.54469 | G13: 124252.8211 | H13: 156797.4539 | I13: 161722.424 | J13: =SUM('2.2 Repex'!K11:K171) -> 220884.5429 | K13: =SUM('2.2 Repex'!L11:L171) -> 254213.3486 | L13: =SUM('2.2 Repex'!M11:M171) -> 263696.1679 | M13: =SUM('2.2 Repex'!N11:N171) -> 243691.309 | N13: =SUM('2.2 Repex'!O11:O171) -> 249470.2175 | O13: =SUM('2.2 Repex'!P11:P171) -> 238475.6519
A14: ED_EXP211_00002 | C14: Connections | D14: 140736.1514 | E14: 108654.0828 | F14: 94338.91033 | G14: 76647.91977 | H14: 73457.5505 | I14: 66969.13736 | J14: ='[2]Capital Expenditure SCS'!B$12/1000 -> 81189.81378 | K14: ='[2]Capital Expenditure SCS'!C$12/1000-[2]Connection!C$16/1000 -> 51462.23599 | L14: ='[2]Capital Expenditure SCS'!D$12/1000-[2]Connection!D$16/1000 -> 50989.75092 | M14: ='[2]Capital Expenditure SCS'!E$12/1000-[2]Connection!E$16/1000 -> 52346.05091 | N14: ='[2]Capital Expenditure SCS'!F$12/1000-[2]Connection!F$16/1000 -> 57889.10986 | O14: ='[2]Capital Expenditure SCS'!G$12/1000-[2]Connection!G$16/1000 -> 99173.39326
A15: ED_EXP211_00003 | C15: Augmentation expenditure | D15: 322406.8752 | E15: 370324.8438 | F15: 364930.2289 | G15: 329793.3882 | H15: 281248.065 | I15: 208235.043 | J15: =SUM('2.3 Augex'!E171:E179) -> 170787.0069 | K15: =SUM('2.3 Augex'!F171:F179) -> 117529.0814 | L15: =SUM('2.3 Augex'!G171:G179) -> 126746.4883 | M15: =SUM('2.3 Augex'!H171:H179) -> 109219.217 | N15: =SUM('2.3 Augex'!I171:I179) -> 84784.1164 | O15: =SUM('2.3 Augex'!J171:J179) -> 74423.49361
A16: ED_EXP211_00004 | C16: Non-network | D16: 53392.47066 | E16: 108494.5464 | F16: 91392.76246 | G16: 87322.13976 | H16: 79061.08477 | I16: 51052.17134 | J16: ='[2]Non-Network'!B$35/1000 -> 83801.7473 | K16: ='[2]Non-Network'!C$35/1000 -> 54504.07117 | L16: ='[2]Non-Network'!D$35/1000 -> 55972.42904 | M16: ='[2]Non-Network'!E$35/1000 -> 44121.16698 | N16: ='[2]Non-Network'!F$35/1000 -> 43051.82474 | O16: ='[2]Non-Network'!G$35/1000 -> 46450.07913
A17: ED_EXP211_00005 | C17: Capitalised network overheads | D17: 81053.12892 | E17: 100410.8414 | F17: 108542.1045 | G17: 115063.0139 | H17: 97551.08947 | I17: 91513.61132 | J17: =[2]Overheads!B$19/1000 -> 90445.41625 | K17: 88215.98629 | L17: 87396.72547 | M17: 83213.13927 | N17: 81663.26048 | O17: 83247.96522
A18: ED_EXP211_00006 | C18: Capitalised corporate overheads | D18: 90779.04629 | E18: 100734.09 | F18: 125325.6738 | G18: 132688.8804 | H18: 133490.5341 | I18: 124824.8075 | J18: =[2]Overheads!B$18/1000-[2]Overheads!B$24/1000 -> 123374.4765 | K18: 118748.4648 | L18: 116912.6701 | M18: 108984.2335 | N18: 108588.4459 | O18: 108838.1376
A19: ED_EXP211_00007 | C19: Metering | D19: 0 | E19: 0 | F19: 0 | G19: 0 | H19: 0 | I19: 0 | J19: 0 | K19: 0 | L19: 0 | M19: 0 | N19: 0 | O19: 0
A20: ED_EXP211_00008 | C20: Public lighting | D20: 0 | E20: 0 | F20: 0 | G20: 0 | H20: 0 | I20: 0 | J20: 0 | K20: 0 | L20: 0 | M20: 0 | N20: 0 | O20: 0
A21: ED_EXP211_00009 | C21: Other Expenditure - (Community Ammenity) | K21: =[2]Connection!C$16/1000 -> 4150.792741 | L21: =[2]Connection!D$16/1000 -> 4219.329295 | M21: =[2]Connection!E$16/1000 -> 4196.134783 | N21: =[2]Connection!F$16/1000 -> 4212.166034 | O21: =[2]Connection!G$16/1000 -> 4224.527665
A22: ED_EXP211_00010 | C22: Cap cons | K22: =+'[3]Standard Control Capex'!C115/1000 -> 29954.85029 | L22: =+'[3]Standard Control Capex'!D115/1000 -> 33211.24784 | M22: =+'[3]Standard Control Capex'!E115/1000 -> 34721.72174 | N22: =+'[3]Standard Control Capex'!F115/1000 -> 36846.23338 | O22: =+'[3]Standard Control Capex'!G115/1000 -> 37553.93843
A23: ED_EXP211_00011
A24: ED_EXP211_00012
A25: ED_EXP211_00013
A26: ED_EXP211_00014
A27: ED_EXP211_00015
A28: ED_EXP211_00016
A29: ED_EXP211_00017
A30: ED_EXP211_00018
A31: ED_EXP211_00019
A32: ED_EXP211_00020
A33: ED_EXP211_00021
A34: ED_EXP211_00022
A35: ED_EXP211_00023
A36: ED_EXP211_00050 | C36: balancing item | D36: 0 | E36: 0 | F36: -20294.06567 | G36: -23084.03027 | H36: -20698.75434 | I36: -20413.28419 | J36: =-'[2]Balancing Item'!B$20/1000 -> -18130.47313 | K36: =-'[2]Balancing Item'!C$20/1000 -> -18479.96839 | L36: =-'[2]Balancing Item'!D$20/1000 -> -17398.31043 | M36: =-'[2]Balancing Item'!E$20/1000 -> -16737.35565 | N36: =-'[2]Balancing Item'!F$20/1000 -> -16374.01448 | O36: =-'[2]Balancing Item'!G$20/1000 -> -16404.26058
C37: TOTAL GROSS CAPEX (includes capcons) | D37: =SUM(D13:D36) -> 759428.6457 | E37: 887369.7678 | F37: 854955.159 | G37: 842684.1329 | H37: 800907.0234 | I37: 683903.9104 | J37: 752352.5306 | K37: 700298.8629 | L37: 721746.4985 | M37: 663755.6175 | N37: 650131.3597 | O37: 675982.9262
A38: ED_EXP211_00009 | C38: capcons | D38: 45734.13786 | E38: 55549.29322 | F38: 64411.71407 | G38: 61363.04299 | H38: 46991.5 | I38: 35278 | J38: =+'[3]Standard Control Capex'!B115/1000 -> 28608.47154 | K38: =+'[3]Standard Control Capex'!C115/1000 -> 29954.85029 | L38: =+'[3]Standard Control Capex'!D115/1000 -> 33211.24784 | M38: =+'[3]Standard Control Capex'!E115/1000 -> 34721.72174 | N38: =+'[3]Standard Control Capex'!F115/1000 -> 36846.23338 | O38: =+'[3]Standard Control Capex'!G115/1000 -> 37553.93843
C40: TABLE 2.1.2 - STANDARD CONTROL SERVICES OPEX BY CATEGORY
D42: Previous regulatory period | F42: Current regulatory period
D43: Actual ($000's)
D44: =PRCP_y4 -> 2008-09 | E44: =PRCP_y5 -> 2009-10 | F44: =CRCP -> 2010-11 | G44: 2011-12 | H44: 2012-13 | I44: 2013-14
A45: ED_EXP212_00001 | C45: Vegetation management | D45: 44208.71272 | E45: 45237.99527 | F45: 50239.66274 | G45: 49582.64366 | H45: 50894.17179 | I45: 53842.91932
A46: ED_EXP212_00002 | C46: Maintenance | D46: 52034.06526 | E46: 54995.14714 | F46: 51478.31756 | G46: 76379.08647 | H46: 55993.35264 | I46: 60394.189
A47: ED_EXP212_00003 | C47: Emergency response | D47: 37061.437 | E47: 26886.748 | F47: 53445.643 | G47: 33077.38494 | H47: 44671.4 | I47: 36947.036
A48: ED_EXP212_00004 | C48: Non-network | D48: 117655.5835 | E48: 129557.518 | F48: 154621.8283 | G48: 172017.9938 | H48: 181560.671 | I48: 187570.1341
A49: ED_EXP212_00005 | C49: Network overheads | D49: 78289.13753 | E49: 81419.66419 | F49: 88573.86264 | G49: 106640.1593 | H49: 106912.1455 | I49: 102874.9119
A50: ED_EXP212_00006 | C50: Corporate overheads | D50: 91956.60064 | E50: 98416.99446 | F50: 103773.9677 | G50: 113741.5082 | H50: 147127.8416 | I50: 121703.4716
A51: ED_EXP212_00007 | C51: Metering | D51: 0 | E51: 0 | F51: 0 | G51: 0 | H51: 0 | I51: 0
A52: ED_EXP212_00008 | C52: Public Lighting | D52: 0 | E52: 0 | F52: 0 | G52: 0 | H52: 0 | I52: 0
A53: ED_EXP212_00009
A54: ED_EXP212_00010
A55: ED_EXP212_00011
A56: ED_EXP212_00012
A57: ED_EXP212_00013
A58: ED_EXP212_00014
A59: ED_EXP212_00015
A60: ED_EXP212_00016
A61: ED_EXP212_00017
A62: ED_EXP212_00018
A63: ED_EXP212_00019
A64: ED_EXP212_00020
A65: ED_EXP212_00021
A66: ED_EXP212_00022
A67: ED_EXP212_00023
A68: ED_EXP212_00050 | C68: balancing item | D68: -117655.5835 | E68: -129557.518 | F68: -161138.8911 | G68: -178273.9456 | H68: -188628.3709 | I68: -194565.2529
C69: TOTAL OPEX | D69: =SUM(D45:D68) -> 303549.9532 | E69: =SUM(E45:E68) -> 306956.5491 | F69: =SUM(F45:F68) -> 340994.3909 | G69: =SUM(G45:G68) -> 373164.8307 | H69: =SUM(H45:H53) -> 587159.5826 | I69: =SUM(I45:I68) -> 368767.409
C71: TABLE 2.1.3 - ALTERNATIVE CONTROL SERVICES CAPEX
D73: Previous regulatory period | F73: Current regulatory period | K73: Forthcoming regulatory period
D74: Actual ($000's) | J74: =CONCATENATE("Forecast ($000's real, ", DollarReal, ")") -> Forecast ($000's real, June 2015)
D75: =PRCP_y4 -> 2008-09 | E75: =PRCP_y5 -> 2009-10 | F75: =CRCP -> 2010-11 | G75: 2011-12 | H75: 2012-13 | I75: 2013-14 | J75: 2014-15 | K75: =FRCP -> 2015-16 | L75: 2016-17 | M75: 2017-18 | N75: 2018-19 | O75: 2019-20
A76: ED_EXP213_00001 | C76: Connections | D76: 0 | E76: 0 | F76: 734.06387 | G76: 6000.4181 | H76: 6728.560725 | I76: 3252.362263 | J76: =+'[2]Capital Expenditure SCS'!$B$18/1000 -> 1749.371383 | K76: 0 | L76: 0 | M76: 0 | N76: 0 | O76: 0
A77: ED_EXP213_00002 | C77: Capitalised network overheads | D77: 13360.36325 | E77: 7942.189613 | F77: 7564.947867 | G77: 10892.29597 | H77: 8860.850598 | I77: 8286.954237 | J77: =+'[2]Overhead Allocation ACS'!C20/1000 -> 8354.946602 | K77: =+'[2]Overhead Allocation ACS'!D20/1000 -> 5608.093476 | L77: =+'[2]Overhead Allocation ACS'!E20/1000 -> 5648.235132 | M77: =+'[2]Overhead Allocation ACS'!F20/1000 -> 6199.127113 | N77: =+'[2]Overhead Allocation ACS'!G20/1000 -> 6560.860376 | O77: =+'[2]Overhead Allocation ACS'!H20/1000 -> 6386.430072
A78: ED_EXP213_00003 | C78: Capitalised corporate overheads | D78: 6927.399481 | E78: 7311.673525 | F78: 8422.404946 | G78: 11877.80125 | H78: 11959.60079 | I78: 11019.39544 | J78: =+'[2]Overhead Allocation ACS'!C42/1000 -> 11448.13574 | K78: =+'[2]Overhead Allocation ACS'!D42/1000 -> 7459.901672 | L78: =+'[2]Overhead Allocation ACS'!E42/1000 -> 7498.646365 | M78: =+'[2]Overhead Allocation ACS'!F42/1000 -> 8051.247195 | N78: =+'[2]Overhead Allocation ACS'!G42/1000 -> 8558.385065 | O78: =+'[2]Overhead Allocation ACS'!H42/1000 -> 8275.990575
A79: ED_EXP213_00004 | C79: Metering | D79: 23778.26611 | E79: 23650.93741 | F79: 32183.94829 | G79: 32730.90465 | H79: 29811.08901 | I79: 25542.09916 | J79: =+'4.2 Metering'!X14+'4.2 Metering'!X29+'4.2 Metering'!X32 -> 28506.89195 | K79: =+'4.2 Metering'!Y29+'4.2 Metering'!Y32 -> 26877.479 | L79: =+'4.2 Metering'!Z29+'4.2 Metering'!Z32 -> 29797.29537 | M79: =+'4.2 Metering'!AA29+'4.2 Metering'!AA32 -> 32025.18844 | N79: =+'4.2 Metering'!AB29+'4.2 Metering'!AB32 -> 32880.79936 | O79: =+'4.2 Metering'!AC29+'4.2 Metering'!AC32 -> 32460.40204
A80: ED_EXP213_00005 | C80: Public lighting | D80: 5900.743 | E80: 6380.64 | F80: 4848.819 | G80: 5003.435 | H80: 5231.387 | I80: 4051.517 | J80: =+'[2]Sum of RIN Sheets ACS'!B11 -> 6822.445547 | K80: =+'[2]Sum of RIN Sheets ACS'!C11 -> 6516.976502 | L80: =+'[2]Sum of RIN Sheets ACS'!D11 -> 6850.892723 | M80: =+'[2]Sum of RIN Sheets ACS'!E11 -> 7210.447813 | N80: =+'[2]Sum of RIN Sheets ACS'!F11 -> 7556.716305 | O80: =+'[2]Sum of RIN Sheets ACS'!G11 -> 7911.608769
A81: ED_EXP213_00006 | C81: Fee and quoted | D81: 0 | E81: 0 | F81: 863.13957 | G81: 6644.16498 | H81: 9496.2 | I81: 6726.69 | J81: =+'[2]ACS Pivot'!$B$11/1000 -> 11606.04901 | K81: 0 | L81: 0 | M81: 0 | N81: 0 | O81: 0
A82: ED_EXP213_00007
A83: ED_EXP213_00008
A84: ED_EXP213_00009
A85: ED_EXP213_00010
A86: ED_EXP213_00011
A87: ED_EXP213_00012
A88: ED_EXP213_00013
A89: ED_EXP213_00014
A90: ED_EXP213_00015
A91: ED_EXP213_00016
A92: ED_EXP213_00017
A93: ED_EXP213_00018
A94: ED_EXP213_00019
A95: ED_EXP213_00020
A96: ED_EXP213_00021
A97: ED_EXP213_00050 | C97: balancing item | D97: -5649.09421 | E97: -5021.12642 | F97: -5082.158981 | G97: -10081.5327 | H97: -10848.56527 | I97: -7764.998941 | J97: =+'[2]Sum of RIN Sheets ACS'!$J$15 -> -8311.093924 | K97: =+'[2]Sum of RIN Sheets ACS'!K15 -> -8091.270417 | L97: =+'[2]Sum of RIN Sheets ACS'!L15 -> -9604.359264 | M97: =+'[2]Sum of RIN Sheets ACS'!M15 -> -10422.70763 | N97: =+'[2]Sum of RIN Sheets ACS'!N15 -> -10647.77163 | O97: =+'[2]Sum of RIN Sheets ACS'!O15 -> -10281.50123
C98: TOTAL CAPEX | D98: =SUM(D76:D97) -> 44317.67763 | E98: 40264.31413 | F98: 49535.16456 | G98: 63067.48726 | H98: 61239.12286 | I98: 51114.01916 | J98: =SUM(J76:J97) -> 60176.74632 | K98: 38371.18023 | L98: 40190.71033 | M98: 43063.30293 | N98: 44908.98947 | O98: 44752.93022
C100: TABLE 2.1.4 - ALTERNATIVE CONTROL SERVICES OPEX
D102: Previous regulatory period | F102: Current regulatory period | K102: Forthcoming regulatory period
D103: Actual ($000's) | J103: =CONCATENATE("Forecast ($000's real, ", DollarReal, ")") -> Forecast ($000's real, June 2015)
D104: =PRCP_y4 -> 2008-09 | E104: =PRCP_y5 -> 2009-10 | F104: =CRCP -> 2010-11 | G104: 2011-12 | H104: 2012-13 | I104: 2013-14 | J104: 2014-15 | K104: =FRCP -> 2015-16 | L104: 2016-17 | M104: 2017-18 | N104: 2018-19 | O104: 2019-20
A105: ED_EXP214_00001 | C105: Connections | D105: 0 | E105: 0 | F105: 0 | G105: 0 | H105: 0 | I105: 0 | J105: 0 | K105: ='[2]ACS Pivot'!C$11/1000+'[2]ACS Pivot'!C$15/1000 -> 9100.68053 | L105: ='[2]ACS Pivot'!D$11/1000+'[2]ACS Pivot'!D$15/1000 -> 9321.986824 | M105: ='[2]ACS Pivot'!E$11/1000+'[2]ACS Pivot'!E$15/1000 -> 9284.887401 | N105: ='[2]ACS Pivot'!F$11/1000+'[2]ACS Pivot'!F$15/1000 -> 9425.226289 | O105: ='[2]ACS Pivot'!G$11/1000+'[2]ACS Pivot'!G$15/1000 -> 9487.45933
A106: ED_EXP214_00002 | C106: Capitalised network overheads | D106: 12753.94986 | E106: 26809.23231 | F106: 20401.17669 | G106: 21533.79361 | H106: 18925.50488 | I106: 21800.35878 | J106: =+'[2]Overhead Allocation ACS'!C19/1000 -> 21758.04853 | K106: =+'[2]Overhead Allocation ACS'!D19/1000 -> 22720.5006 | L106: =+'[2]Overhead Allocation ACS'!E19/1000 -> 21809.44376 | M106: =+'[2]Overhead Allocation ACS'!F19/1000 -> 21948.59084 | N106: =+'[2]Overhead Allocation ACS'!G19/1000 -> 22171.49191 | O106: =+'[2]Overhead Allocation ACS'!H19/1000 -> 21954.85307
A107: ED_EXP214_00003 | C107: Capitalised corporate overheads | D107: 16823.98354 | E107: 22561.58372 | F107: 19135.80399 | G107: 21351.88902 | H107: 23507.30575 | I107: 22540.33135 | J107: =+'[2]Overhead Allocation ACS'!C41/1000 -> 23692.5239 | K107: =+'[2]Overhead Allocation ACS'!D41/1000 -> 18789.05725 | L107: =+'[2]Overhead Allocation ACS'!E41/1000 -> 17821.10426 | M107: =+'[2]Overhead Allocation ACS'!F41/1000 -> 18224.15902 | N107: =+'[2]Overhead Allocation ACS'!G41/1000 -> 19235.10992 | O107: =+'[2]Overhead Allocation ACS'!H41/1000 -> 18624.46906
A108: ED_EXP214_00004 | C108: Metering | D108: 10795.28188 | E108: 12620.2167 | F108: 11250.35206 | G108: 12482.72301 | H108: 12514.36803 | I108: 12523.82204 | J108: =+'[2]Sum of RIN Sheets ACS'!B4 -> 12728.42974 | K108: =+'[2]Sum of RIN Sheets ACS'!C4 -> 12489.85752 | L108: =+'[2]Sum of RIN Sheets ACS'!D4 -> 12225.59125 | M108: =+'[2]Sum of RIN Sheets ACS'!E4 -> 12071.02098 | N108: =+'[2]Sum of RIN Sheets ACS'!F4 -> 12081.40351 | O108: =+'[2]Sum of RIN Sheets ACS'!G4 -> 12106.1865
A109: ED_EXP214_00005 | C109: Public lighting | D109: 8959.095 | E109: 7910.587 | F109: 9362.492 | G109: 8877.446 | H109: 9793.762 | I109: 8656.16 | J109: =+'[2]Sum of RIN Sheets ACS'!B5 -> 10648.94985 | K109: =+'[2]Sum of RIN Sheets ACS'!C5 -> 11227.00146 | L109: =+'[2]Sum of RIN Sheets ACS'!D5 -> 11223.94546 | M109: =+'[2]Sum of RIN Sheets ACS'!E5 -> 11235.33588 | N109: =+'[2]Sum of RIN Sheets ACS'!F5 -> 11261.24142 | O109: =+'[2]Sum of RIN Sheets ACS'!G5 -> 11264.90794
A110: ED_EXP214_00006 | C110: Fee and quoted | D110: 37403.85644 | E110: 53384.84301 | F110: 35391.77188 | G110: 33892.26868 | H110: 28153.07903 | I110: 35489.65361 | J110: =+'[2]Sum of RIN Sheets ACS'!B6 -> 30635.8783 | K110: =+'[2]Sum of RIN Sheets ACS'!C6 -> 36967.265 | L110: =+'[2]Sum of RIN Sheets ACS'!D6 -> 36170.285 | M110: =+'[2]Sum of RIN Sheets ACS'!E6 -> 36238.183 | N110: =+'[2]Sum of RIN Sheets ACS'!F6 -> 36462.286 | O110: =+'[2]Sum of RIN Sheets ACS'!G6 -> 36665.647
A111: ED_EXP214_00007
A112: ED_EXP214_00008
A113: ED_EXP214_00009
A114: ED_EXP214_00010
A115: ED_EXP214_00011
A116: ED_EXP214_00012
A117: ED_EXP214_00013
A118: ED_EXP214_00014
A119: ED_EXP214_00015
A120: ED_EXP214_00016
A121: ED_EXP214_00017
A122: ED_EXP214_00018
A123: ED_EXP214_00019
A124: ED_EXP214_00020
A125: ED_EXP214_00021
A126: ED_EXP214_00050 | C126: balancing item | D126: -10795.28188 | E126: -12620.2167 | F126: -12442.21494 | G126: -13545.13611 | H126: -13089.00271 | I126: -13549.63201 | J126: =-J108-[4]Summary!$B$10/1000 -> -14091.72828 | K126: =(-[2]Metering!C$34-'[2]ACS opex Pivot Balance'!C$14-'[2]ACS Bal item'!C$23-'[2]ACS Bal item'!C$25-'[2]ACS Bal item'!C$27)/1000-K108 -> -23064.18889 | L126: =(-[2]Metering!D$34-'[2]ACS opex Pivot Balance'!D$14-'[2]ACS Bal item'!D$23-'[2]ACS Bal item'!D$25-'[2]ACS Bal item'!D$27)/1000-L108 -> -22997.44693 | M126: =(-[2]Metering!E$34-'[2]ACS opex Pivot Balance'!E$14-'[2]ACS Bal item'!E$23-'[2]ACS Bal item'!E$25-'[2]ACS Bal item'!E$27)/1000-M108 -> -22807.90616 | N126: =(-[2]Metering!F$34-'[2]ACS opex Pivot Balance'!F$14-'[2]ACS Bal item'!F$23-'[2]ACS Bal item'!F$25-'[2]ACS Bal item'!F$27)/1000-N108 -> -22978.11566 | O126: =(-[2]Metering!G$34-'[2]ACS opex Pivot Balance'!G$14-'[2]ACS Bal item'!G$23-'[2]ACS Bal item'!G$25-'[2]ACS Bal item'!G$27)/1000-O108 -> -23074.64466
C127: TOTAL OPEX | D127: =SUM(D105:D126) -> 75940.88484 | E127: 110666.246 | F127: 83099.38168 | G127: 84592.98421 | H127: 79805.01698 | I127: 87460.69377 | J127: =SUM(J105:J126) -> 85372.10204 | K127: 88230.17347 | L127: 85574.90963 | M127: 86194.27096 | N127: 87658.64338 | O127: 87028.87824
C129: TABLE 2.1.5 - DUAL FUNCTION ASSETS CAPEX
D131: Previous regulatory period | F131: Current regulatory period | K131: Forthcoming regulatory period
D132: Actual ($000's) | J132: =CONCATENATE("Forecast ($000's real, ", DollarReal, ")") -> Forecast ($000's real, June 2015)
D133: =PRCP_y4 -> 2008-09 | E133: =PRCP_y5 -> 2009-10 | F133: =CRCP -> 2010-11 | G133: 2011-12 | H133: 2012-13 | I133: 2013-14 | J133: 2014-15 | K133: =FRCP -> 2015-16 | L133: 2016-17 | M133: 2017-18 | N133: 2018-19 | O133: 2019-20
A134: ED_EXP215_00001 | C134: Replacement expenditure
A135: ED_EXP215_00002 | C135: Connections
A136: ED_EXP215_00003 | C136: Augmentation expenditure
A137: ED_EXP215_00004 | C137: Non-network
A138: ED_EXP215_00005 | C138: Capitalised network overheads
A139: ED_EXP215_00006
A140: ED_EXP215_00007
A141: ED_EXP215_00008
A142: ED_EXP215_00009
A143: ED_EXP215_00010
A144: ED_EXP215_00011
A145: ED_EXP215_00012
A146: ED_EXP215_00013
A147: ED_EXP215_00014
A148: ED_EXP215_00015
A149: ED_EXP215_00016
A150: ED_EXP215_00017
A151: ED_EXP215_00018
A152: ED_EXP215_00019
A153: ED_EXP215_00020
A154: ED_EXP215_00050 | C154: balancing item
C155: TOTAL GROSS CAPEX (includes capcons) | D155: =SUM(D134:D154) -> 0 | E155: 0 | F155: 0 | G155: 0 | H155: 0 | I155: 0 | J155: 0 | K155: 0 | L155: 0 | M155: 0 | N155: 0 | O155: 0
A156: ED_EXP215_00009 | C156: capcons
C158: TABLE 2.1.6 - DUAL FUNCTION ASSETS OPEX BY CATEGORY
D160: Previous regulatory period | F160: Current regulatory period
D161: Actual ($000's)
D162: =PRCP_y4 -> 2008-09 | E162: =PRCP_y5 -> 2009-10 | F162: =CRCP -> 2010-11 | G162: 2011-12 | H162: 2012-13 | I162: 2013-14
A163: ED_EXP216_00001 | C163: Vegetation management
A164: ED_EXP216_00002 | C164: Maintenance
A165: ED_EXP216_00003 | C165: Emergency response
A166: ED_EXP216_00004 | C166: Non-network
A167: ED_EXP216_00005 | C167: Network overheads
A168: ED_EXP216_00006 | C168: Corporate overheads
A169: ED_EXP216_00007
A170: ED_EXP216_00008
A171: ED_EXP216_00009
A172: ED_EXP216_00010
A173: ED_EXP216_00011
A174: ED_EXP216_00012
A175: ED_EXP216_00013
A176: ED_EXP216_00014
A177: ED_EXP216_00015
A178: ED_EXP216_00016
A179: ED_EXP216_00017
A180: ED_EXP216_00018
A181: ED_EXP216_00019
A182: ED_EXP216_00020
A183: ED_EXP216_00021
A184: ED_EXP216_00050 | C184: balancing item
C185: TOTAL OPEX | D185: =SUM(D163:D184) -> 0 | E185: 0 | F185: 0 | G185: 0 | H185: 0 | I185: 0

Sheet 2.2 Repex
C1: REGULATORY REPORTING STATEMENT
C2: =TradingName -> Energex
C3: =RCP_1to5 -> 2015-16 to 2019-20
C4: 2.2 REPEX
C6: TABLE 2.2.1 - REPLACEMENT EXPENDITURE, VOLUMES AND ASSET FAILURES BY ASSET CATEGORY | AF6: TABLE 2.2.2 - SELECTED ASSET CHARACTERISTICS
E9: EXPENDITURE Actual ($000's) | K9: =CONCATENATE("EXPENDITURE Forecast ($000's real, ", DollarReal, ")") -> EXPENDITURE Forecast ($000's real, June 2015) | Q9: ASSET REPLACEMENTS | S9: ASSET REPLACEMENTS Forthcoming Period | X9: ASSET FAILURES | Z9: ASSET FAILURES Forthcoming Period | AH9: ASSET VOLUMES CURRENTLY IN COMMISSION | AI9: ASSET REPLACEMENTS
C10: ASSET GROUP | D10: ASSET CATEGORY | E10: =PRCP_y4 -> 2008-09 | F10: =PRCP_y5 -> 2009-10 | G10: =CRCP -> 2010-11 | H10: 2011-12 | I10: 2012-13 | J10: 2013-14 | K10: 2014-15 | L10: =FRCP -> 2015-16 | M10: 2016-17 | N10: 2017-18 | O10: 2018-19 | P10: 2019-20 | Q10: =CRCP_y4 -> 2013-14 | R10: =CRCP_y5 -> 2014-15 | S10: =FRCP -> 2015-16 | T10: 2016-17 | U10: 2017-18 | V10: 2018-19 | W10: 2019-20 | X10: =CRCP_y4 -> 2013-14 | Y10: =CRCP_y5 -> 2014-15 | Z10: =FRCP -> 2015-16 | AA10: 2016-17 | AB10: 2017-18 | AC10: 2018-19 | AD10: 2019-20 | AF10: ASSET GROUP | AG10: METRIC | AH10: =CRCP_y4 -> 2013-14 | AI10: =CRCP_y4 -> 2013-14
A11: ED_REP221_00001 | C11: POLES BY: Highest operating voltage; Material type; Staking (if wood) | D11: Staking of a wooden pole | E11: 2658.843616 | F11: 1789.839294 | G11: 1286.007708 | H11: 2270.371378 | I11: 1815.931779 | J11: 1644.221806 | K11: 2714.615948 | L11: 3218.651865 | M11: 3368.736239 | N11: 3777.841126 | O11: 3316.519957 | P11: 3402.022183 | Q11: 2400 | R11: 2586 | S11: 3006 | T11: 3146 | U11: 3515 | V11: 3080 | W11: 3148 | X11: 0 | Y11: 0 | Z11: 0 | AA11: 0 | AB11: 0 | AC11: 0 | AD11: 0 | AE11: ED_REP222_00001 | AF11: TOTAL POLES by FEEDER TYPE | AG11: Total CBD poles | AH11: 38 | AI11: 0.6540012315
A12: ED_REP221_00002 | D12: ˂ = 1 kV; Wood | E12: 4373.524354 | F12: 5596.981659 | G12: 6005.871695 | H12: 7271.399623 | I12: 9254.352797 | J12: 8054.218605 | K12: 13634.80682 | L12: 12345.53602 | M12: 12624.64996 | N12: 13203.51467 | O12: 13658.53104 | P12: 13812.34282 | Q12: 2845 | R12: 2535 | S12: 2299 | T12: 2354 | U12: 2501 | V12: 2537 | W12: 2564 | X12: 2 | Y12: 1 | Z12: 1 | AA12: 1 | AB12: 1 | AC12: 1 | AD12: 1 | AE12: ED_REP222_00002 | AG12: Total urban poles | AH12: 207192 | AI12: 3565.890083
A13: ED_REP221_00003 | D13: > 1 kV & < = 11 kV; Wood | E13: 8391.361614 | F13: 10121.45342 | G13: 10057.0453 | H13: 11597.41322 | I13: 14831.96806 | J13: 14331.48599 | K13: 21184.64448 | L13: 27217.06546 | M13: 29690.41966 | N13: 32512.91974 | O13: 29367.43059 | P13: 29963.55092 | Q13: 3663 | R13: 4303 | S13: 4553 | T13: 5226 | U13: 5411 | V13: 4982 | W13: 5048 | X13: 3 | Y13: 5 | Z13: 5 | AA13: 5 | AB13: 5 | AC13: 5 | AD13: 5 | AE13: ED_REP222_00003 | AG13: Total rural long poles | AH13: 0 | AI13: 0
A14: ED_REP221_00004 | D14: ˃ 11 kV & < = 22 kV; Wood | AE14: ED_REP222_00004 | AG14: Total rural short poles | AH14: 195546 | AI14: 3365.455916
A15: ED_REP221_00005 | D15: > 22 kV & < = 66 kV; Wood | E15: 1257.324219 | F15: 1919.454573 | G15: 2010.672838 | H15: 2111.052294 | I15: 2552.749821 | J15: 2571.548408 | K15: 2609.897223 | L15: 3430.579974 | M15: 3637.184232 | N15: 4055.403732 | O15: 3553.621226 | P15: 3645.22003 | Q15: 291 | R15: 281 | S15: 364 | T15: 380 | U15: 424 | V15: 372 | W15: 380 | X15: 1 | Y15: 1 | Z15: 1 | AA15: 1 | AB15: 1 | AC15: 1 | AD15: 1 | AE15: ED_REP222_00005 | AF15: OVERHEAD CONDUCTORS LENGTH by FEEDER TYPE | AG15: Conductors CBD (KM) | AH15: 19 | AI15: 0.5462988817
A16: ED_REP221_00006 | D16: > 66 kV & < = 132 kV; Wood | E16: 427.7396942 | F16: 207.3611747 | G16: 672.4286252 | H16: 214.70703 | I16: 285.751352 | J16: 594.8268594 | K16: 728.4016006 | L16: 725.4482767 | M16: 725.0181489 | N16: 726.6825581 | O16: 729.2796748 | P16: 731.7255051 | Q16: 49 | R16: 45 | S16: 44 | T16: 44 | U16: 44 | V16: 44 | W16: 44 | X16: 0 | Y16: 0 | Z16: 0 | AA16: 0 | AB16: 0 | AC16: 0 | AD16: 0 | AE16: ED_REP222_00006 | AG16: Conductors urban (KM) | AH16: 13357 | AI16: 384.0481138
A17: ED_REP221_00007 | D17: > 132 kV; Wood | AE17: ED_REP222_00007 | AG17: Conductors rural long (KM) | AH17: 0 | AI17: 0
A18: ED_REP221_00008 | D18: ˂ = 1 kV; Concrete | AE18: ED_REP222_00008 | AG18: Conductors rural short (KM) | AH18: 21736 | AI18: 624.9659206
A19: ED_REP221_00009 | D19: > 1 kV & < = 11 kV; Concrete | E19: 273.0347998 | F19: 513.9999735 | G19: 477.9618083 | H19: 791.4403711 | I19: 842.0958426 | J19: 644.5348501 | Q19: 84 | R19: 0 | S19: 0 | T19: 0 | U19: 0 | V19: 0 | W19: 0 | X19: 0 | Y19: 0 | Z19: 0 | AA19: 0 | AB19: 0 | AC19: 0 | AD19: 0 | AE19: ED_REP222_00009 | AF19: OVERHEAD CONDUCTORS LENGTH by MATERIAL TYPE | AG19: OH conductor LV ABC | AH19: 2987 | AI19: 85.88393471
A20: ED_REP221_00010 | D20: ˃ 11 kV & < = 22 kV; Concrete | R20: 0 | S20: 0 | T20: 0 | U20: 0 | V20: 0 | W20: 0 | X20: 0 | Y20: 0 | Z20: 0 | AA20: 0 | AB20: 0 | AC20: 0 | AD20: 0 | AE20: ED_REP222_00010 | AG20: OH conductor steel | AH20: 924 | AI20: 26.56737719
A21: ED_REP221_00011 | D21: > 22 kV & < = 66 kV; Concrete | X21: 0 | Y21: 0 | Z21: 0 | AA21: 0 | AB21: 0 | AC21: 0 | AD21: 0 | AE21: ED_REP222_00011 | AG21: OH conductor ACSR | AH21: 7358 | AI21: 211.5614301
A22: ED_REP221_00012 | D22: > 66 kV & < = 132 kV; Concrete | X22: 0 | Y22: 0 | Z22: 0 | AA22: 0 | AB22: 0 | AC22: 0 | AD22: 0 | AE22: ED_REP222_00012 | AG22: OH conductor AAAC | AH22: 152 | AI22: 4.370391053
A23: ED_REP221_00013 | D23: > 132 kV; Concrete | X23: 0 | Y23: 0 | Z23: 0 | AA23: 0 | AB23: 0 | AC23: 0 | AD23: 0 | AE23: ED_REP222_00013 | AG23: OH conductor AAC | AH23: 16599 | AI23: 477.2639546
A24: ED_REP221_00014 | D24: ˂ = 1 kV; Steel | W24: 0 | X24: 0 | Y24: 1 | Z24: 1 | AA24: 1 | AB24: 1 | AC24: 1 | AD24: 1 | AE24: ED_REP222_00014 | AG24: OH conductor HDBC | AH24: 7092 | AI24: 203.9132457
A25: ED_REP221_00015 | D25: > 1 kV & < = 11 kV; Steel | X25: 0 | Y25: 0 | Z25: 0 | AA25: 0 | AB25: 0 | AC25: 0 | AD25: 0 | AE25: ED_REP222_00015 | AF25: UNDERGROUND CABLES LENGTH by FEEDER TYPE | AG25: Cable CBD (km) | AH25: 210 | AI25: 1.527790794
A26: ED_REP221_00016 | D26: ˃ 11 kV & < = 22 kV; Steel | X26: 0 | Y26: 0 | Z26: 0 | AA26: 0 | AB26: 0 | AC26: 0 | AD26: 0 | AE26: ED_REP222_00016 | AG26: Cable urban (km) | AH26: 11876 | AI26: 86.40020697
A27: ED_REP221_00017 | D27: > 22 kV & < = 66 kV; Steel | X27: 0 | Y27: 0 | Z27: 0 | AA27: 0 | AB27: 0 | AC27: 0 | AD27: 0 | AE27: ED_REP222_00017 | AG27: Cable rural long (km) | AH27: 0 | AI27: 0
A28: ED_REP221_00018 | D28: > 66 kV & < = 132 kV; Steel | X28: 0 | Y28: 0 | Z28: 0 | AA28: 0 | AB28: 0 | AC28: 0 | AD28: 0 | AE28: ED_REP222_00018 | AG28: Cable rural short (km) | AH28: 4902 | AI28: 35.66300224
A29: ED_REP221_00019 | D29: > 132 kV; Steel | X29: 0 | Y29: 0 | Z29: 0 | AA29: 0 | AB29: 0 | AC29: 0 | AD29: 0 | AE29: ED_REP222_00019 | AF29: TRANSFORMERS by TOTAL MVA | AG29: Total MVA replaced | AH29: 29751 | AI29: 94
A30: ED_REP221_00020 | D30: Other | AE30: ED_REP222_00020 | AG30: Total MVA disposed of | AH30: 29751 | AI30: 74
A31: ED_REP221_00033 | C31: POLE TOP STRUCTURES BY: Highest operating voltage | D31: ˂ = 1 kV | E31: 1113.280619 | F31: 2238.131041 | G31: 2741.957569 | H31: 3986.153535 | I31: 5014.877241 | J31: 6548.094977 | K31: 2184.599066 | L31: 1852.225462 | M31: 1943.060908 | N31: 2123.88141 | O31: 1908.932057 | P31: 1949.953642 | Q31: 8544.254596 | R31: 1588 | S31: 1367 | T31: 1422 | U31: 1569 | V31: 1395 | W31: 1422 | X31: 114 | Y31: 117 | Z31: 117 | AA31: 117 | AB31: 117 | AC31: 117 | AD31: 117
A32: ED_REP221_00034 | D32: > 1 kV & < = 11 kV | E32: 3957.611769 | F32: 5199.834023 | G32: 5220.149733 | H32: 7236.377686 | I32: 10605.39045 | J32: 7078.692091 | K32: 11122.22747 | L32: 12680.53806 | M32: 13555.25511 | N32: 14512.58814 | O32: 13476.82694 | P32: 13687.69714 | Q32: 8632.910575 | R32: 7008 | S32: 9001 | T32: 9641 | U32: 10150 | V32: 9392 | W32: 9509 | X32: 77 | Y32: 122 | Z32: 122 | AA32: 122 | AB32: 122 | AC32: 122 | AD32: 122
A33: ED_REP221_00035 | D33: ˃ 11 kV & < = 22 kV
A34: ED_REP221_00036 | D34: > 22 kV & < = 66 kV | E34: 171.9852923 | F34: 348.5138215 | G34: 395.4191735 | H34: 48.74358661 | I34: 509.2907372 | J34: 1166.044344 | K34: 380.4536042 | L34: 522.211473 | M34: 556.1186437 | N34: 624.6133985 | O34: 542.177186 | P34: 557.0633599 | Q34: 501.8348287 | R34: 346 | S34: 479 | T34: 502 | U34: 567 | V34: 491 | W34: 502 | X34: 9 | Y34: 12 | Z34: 12 | AA34: 12 | AB34: 12 | AC34: 12 | AD34: 12
A35: ED_REP221_00037 | D35: > 66 kV & < = 132 kV
A36: ED_REP221_00038 | D36: > 132 kV
A37: ED_REP221_00039 | D37: Other
A38: ED_REP221_00040 | C38: OVERHEAD CONDUCTORS BY: Highest operating voltage; Number of phases (at HV) | D38: ˂ = 1 kV | E38: 3882.398763 | F38: 5048.275664 | G38: 7418.295238 | H38: 9703.289324 | I38: 11557.75348 | J38: 16265.47641 | K38: 11398.19857 | L38: 12077.86785 | M38: 12189.33924 | N38: 12443.40163 | O38: 14552.04465 | P38: 14644.94397 | Q38: 533.177 | R38: 273 | S38: 285 | T38: 291 | U38: 308 | V38: 319 | W38: 321 | X38: 121 | Y38: 49 | Z38: 49 | AA38: 49 | AB38: 49 | AC38: 49 | AD38: 49
A39: ED_REP221_00041 | D39: > 1 kV & < = 11 kV | E39: 4398.547644 | F39: 5202.48289 | G39: 2606.918338 | H39: 3824.142539 | I39: 4584.66368 | J39: 10969.29622 | K39: 8053.776805 | L39: 8396.523022 | M39: 11546.15693 | N39: 12417.21229 | O39: 11948.25631 | P39: 12052.4667 | Q39: 459.3993333 | R39: 233 | S39: 206 | T39: 258 | U39: 242 | V39: 241 | W39: 241 | X39: 129 | Y39: 89 | Z39: 89 | AA39: 89 | AB39: 89 | AC39: 89 | AD39: 89
A40: ED_REP221_00042 | D40: ˃ 11 kV & < = 22 kV ; SWER
A41: ED_REP221_00043 | D41: ˃ 11 kV & < = 22 kV ; Single-Phase | Q41: 0
A42: ED_REP221_00044 | D42: ˃ 11 kV & < = 22 kV ; Multiple-Phase | Q42: 0
A43: ED_REP221_00045 | D43: > 22 kV & < = 66 kV | E43: 572.553354 | F43: 691.5064199 | G43: 861.1863048 | H43: 1994.147601 | I43: 3081.349205 | J43: 762.340411 | K43: 334.3451485 | L43: 365.5302869 | M43: 382.4299254 | N43: 415.9308471 | O43: 376.2905506 | P43: 383.9084464 | Q43: 16.349 | R43: 2 | S43: 2 | T43: 2 | U43: 3 | V43: 2 | W43: 2 | X43: 4 | Y43: 4 | Z43: 4 | AA43: 4 | AB43: 4 | AC43: 4 | AD43: 4
A44: ED_REP221_00046 | D44: > 66 kV & < = 132 kV | E44: 2.765999639 | F44: 35.35676889 | G44: 6.175552698 | H44: 14.91560963 | I44: 11.88304675 | J44: 188.0542863 | Q44: 0.635 | R44: 0 | S44: 0 | T44: 0 | U44: 0 | V44: 0 | W44: 0 | X44: 1 | Y44: 0 | Z44: 0 | AA44: 0 | AB44: 1 | AC44: 0 | AD44: 0
A45: ED_REP221_00047 | D45: > 132 kV | Q45: 0
A46: ED_REP221_00048 | D46: Other | Q46: 0
A47: ED_REP221_00049 | C47: UNDERGROUND CABLES BY: Highest operating voltage | D47: ˂ = 1 kV | E47: 2386.853056 | F47: 7624.625964 | G47: 10539.94052 | H47: 18713.13616 | I47: 10934.22439 | J47: 3369.873556 | K47: 14022.07683 | L47: 310.0066002 | M47: 325.6921387 | N47: 356.6378377 | O47: 319.830869 | P47: 326.799113 | Q47: 119.982 | R47: 55 | S47: 15 | T47: 16 | U47: 18 | V47: 16 | W47: 16 | X47: 81 | Y47: 53 | Z47: 53 | AA47: 53 | AB47: 53 | AC47: 53 | AD47: 53
A48: ED_REP221_00050 | D48: > 1 kV & < = 11 kV | E48: 1287.31116 | F48: 561.3036765 | G48: 718.5217212 | H48: 2322.082651 | I48: 3658.195691 | J48: 332.7238846 | Q48: 3.587333333 | R48: 0 | S48: 0 | T48: 0 | U48: 0 | V48: 0 | W48: 0 | X48: 44 | Y48: 28 | Z48: 28 | AA48: 28 | AB48: 28 | AC48: 28 | AD48: 28
A49: ED_REP221_00051 | D49: > 11 kV & < = 22 kV | Q49: 0
A50: ED_REP221_00052 | D50: > 22 kV & < = 33 kV | E50: 6408.625307 | F50: 13837.00957 | G50: 8759.663459 | H50: 5814.279754 | I50: 8589.637053 | J50: 2912.434417 | K50: 10308.00393 | L50: 8571.922739 | M50: 8231.217937 | N50: 12853.7544 | O50: 3105.526999 | P50: 1694.684821 | Q50: 0.02166666667 | R50: 15 | S50: 11 | T50: 11 | U50: 15 | V50: 2 | W50: 0 | X50: 0 | Y50: 5 | Z50: 5 | AA50: 5 | AB50: 5 | AC50: 5 | AD50: 5
A51: ED_REP221_00053 | D51: > 33 kV & < = 66 kV | Q51: 0
A52: ED_REP221_00054 | D52: > 66 kV & < = 132 kV | H52: 246.35189 | Q52: 0 | X52: 0 | Y52: 0 | Z52: 0 | AA52: 0 | AB52: 1 | AC52: 0 | AD52: 0
A53: ED_REP221_00055 | D53: > 132 kV | Q53: 0
A54: ED_REP221_00056 | D54: Other | Q54: 0
A55: ED_REP221_00057 | C55: SERVICE LINES BY: Connection voltage; Customer type; Connection complexity | D55: ˂ = 11 kV ; Residential ; Simple Type | K55: 2102.758091 | L55: 12960.90732 | M55: 12953.24575 | N55: 12983.04149 | O55: 8214.001615 | P55: 8241.536742 | R55: 20519.136 | S55: 20673.36 | T55: 20673.36 | U55: 20673.36 | V55: 12071.7 | W55: 12071.7 | X55: 1506.438 | Y55: 2097 | Z55: 2097 | AA55: 2097 | AB55: 2097 | AC55: 2097 | AD55: 2097
A56: ED_REP221_00058 | D56: ˂ = 11 kV ; Commercial & Industrial ; Simple Type | K56: 187.8280647 | L56: 1157.728105 | M56: 1157.043738 | N56: 1159.705231 | O56: 733.7125626 | P56: 736.1721273 | R56: 1832.864 | S56: 1846.64 | T56: 1846.64 | U56: 1846.64 | V56: 1078.3 | W56: 1078.3 | X56: 134.562 | Y56: 197 | Z56: 197 | AA56: 197 | AB56: 197 | AC56: 197 | AD56: 197
A57: ED_REP221_00059 | D57: ˂ = 11 kV ; Residential ; Complex Type
A58: ED_REP221_00060 | D58: ˂ = 11 kV ; Commercial & Industrial ; Complex Type
A59: ED_REP221_00061 | D59: ˂ = 11 kV ; Subdivision ; Complex Type
A60: ED_REP221_00062 | D60: > 11 kV & < = 22 kV ; Commercial & Industrial
A61: ED_REP221_00063 | D61: > 11 kV & < = 22 kV ; Subdivision
A62: ED_REP221_00064 | D62: > 22 kV & < = 33 kV ; Commercial & Industrial
A63: ED_REP221_00065 | D63: > 22 kV & < = 33 kV ; Subdivision
A64: ED_REP221_00066 | D64: > 33 kV & < = 66 kV ; Commercial & Industrial
A65: ED_REP221_00067 | D65: > 33 kV & < = 66 kV ; Subdivision
A66: ED_REP221_00068 | D66: > 66 kV & < = 132 kV ; Commercial & Industrial
A67: ED_REP221_00069 | D67: > 66 kV & < = 132 kV ; Subdivision
A68: ED_REP221_00070 | D68: > 132 kV ; Commercial & Industrial
A69: ED_REP221_00071 | D69: > 132 kV ; Subdivision
A70: ED_REP221_00072 | D70: Other
A71: ED_REP221_00073 | C71: TRANSFORMERS BY: Mounting type; Highest operating voltage; Ampere rating; Number of phases (at LV) | D71: Pole Mounted ; < = 22kV ; < = 60 kVA ; Single Phase | X71: 9 | Y71: 3 | Z71: 3 | AA71: 3 | AB71: 3 | AC71: 3 | AD71: 3
A72: ED_REP221_00074 | D72: Pole Mounted ; < = 22kV ; > 60 kVA and < = 600 kVA ; Single Phase
A73: ED_REP221_00075 | D73: Pole Mounted ; < = 22kV ; > 600 kVA ; Single Phase
A74: ED_REP221_00076 | D74: Pole Mounted ; < = 22kV ; < = 60 kVA ; Multiple Phase | E74: 483.4498161 | F74: 1148.870568 | G74: 1024.555943 | H74: 1114.93314 | I74: 1527.977628 | J74: 1882.690993 | K74: 4399.040506 | L74: 5142.199016 | M74: 5222.578971 | N74: 5244.054397 | O74: 5211.662898 | P74: 5236.993821 | Q74: 275 | R74: 362 | S74: 435 | T74: 438 | U74: 444 | V74: 436 | W74: 438 | X74: 13 | Y74: 17 | Z74: 17 | AA74: 17 | AB74: 17 | AC74: 17 | AD74: 17
A75: ED_REP221_00077 | D75: Pole Mounted ; < = 22kV ; > 60 kVA and < = 600 kVA ; Multiple Phase | E75: -3192.312216 | F75: 5109.630647 | G75: 6032.146623 | H75: 8140.399664 | I75: 8152.66083 | J75: 8438.447918 | K75: 535.1862771 | L75: 717.3283574 | M75: 762.5343945 | N75: 850.843506 | O75: 744.7750672 | P75: 764.1124124 | Q75: 537 | R75: 65 | S75: 88 | T75: 92 | U75: 103 | V75: 90 | W75: 92 | X75: 25 | Y75: 41 | Z75: 41 | AA75: 41 | AB75: 41 | AC75: 41 | AD75: 41
A76: ED_REP221_00078 | D76: Pole Mounted ; < = 22kV ; > 600 kVA ; Multiple Phase | Q76: 0
A77: ED_REP221_00079 | D77: Kiosk Mounted ; < = 22kV ; < = 60 kVA ; Single Phase | Q77: 0
A78: ED_REP221_00080 | D78: Kiosk Mounted ; < = 22kV ; > 60 kVA and < = 600 kVA ; Single Phase | Q78: 0
A79: ED_REP221_00081 | D79: Kiosk Mounted ; < = 22kV ; > 600 kVA ; Single Phase | Q79: 0
A80: ED_REP221_00082 | D80: Kiosk Mounted ; < = 22kV ; < = 60 kVA ; Multiple Phase | Q80: 0
A81: ED_REP221_00083 | D81: Kiosk Mounted ; < = 22kV ; > 60 kVA and < = 600 kVA ; Multiple Phase | E81: 101.8007638 | F81: 178.445285 | G81: 57.59527177 | H81: 1.091251698 | I81: -0.001379893724 | J81: 0 | K81: 1255.832214 | L81: 1256.332234 | M81: 1255.586227 | N81: 1258.484457 | O81: 1262.97687 | P81: 1267.210352 | Q81: 0 | R81: 59 | S81: 59 | T81: 59 | U81: 59 | V81: 59 | W81: 59 | X81: 8 | Y81: 4 | Z81: 4 | AA81: 4 | AB81: 4 | AC81: 4 | AD81: 4
A82: ED_REP221_00084 | D82: Kiosk Mounted ; < = 22kV ; > 600 kVA ; Multiple Phase | E82: 1304.596944 | F82: 544.4598568 | G82: 204.4039123 | H82: 517.068146 | I82: 727.2554429 | J82: 172.489889 | Q82: 6 | X82: 0 | Y82: 0 | Z82: 0 | AA82: 0 | AB82: 1 | AC82: 1 | AD82: 0
A83: ED_REP221_00085 | D83: Ground Outdoor / Indoor Chamber Mounted; ˂ 22 kV ; < = 60 kVA ; Single Phase | Q83: 0
A84: ED_REP221_00086 | D84: Ground Outdoor / Indoor Chamber Mounted; ˂ 22 kV ; > 60 kVA and < = 600 kVA ; Single Phase | Q84: 0
A85: ED_REP221_00087 | D85: Ground Outdoor / Indoor Chamber Mounted; ˂ 22 kV ; > 600 kVA ; Single Phase | Q85: 0
A86: ED_REP221_00088 | D86: Ground Outdoor / Indoor Chamber Mounted; ˂ 22 kV ; < = 60 kVA ; Multiple Phase | E86: 3973.192129 | F86: 7.741244818 | G86: 32.75591589 | H86: 113.5405891 | I86: 348.4024004 | J86: 6.511433882 | Q86: 2
A87: ED_REP221_00089 | D87: Ground Outdoor / Indoor Chamber Mounted; ˂ 22 kV ; > 60 kVA and < = 600 kVA ; Multiple Phase | Q87: 0 | X87: 1 | Y87: 0 | Z87: 0 | AA87: 0 | AB87: 1 | AC87: 0 | AD87: 0
A88: ED_REP221_00090 | D88: Ground Outdoor / Indoor Chamber Mounted; ˂ 22 kV ; > 600 kVA ; Multiple Phase | E88: 6239.474347 | F88: 2830.574639 | G88: 1681.623603 | H88: 2778.685896 | I88: 1312.995231 | J88: 1899.878234 | Q88: 49
A89: ED_REP221_00091 | D89: Ground Outdoor / Indoor Chamber Mounted; > = 22 kV & < = 33 kV ; < = 15 MVA | E89: 0 | F89: 86.71283304 | G89: 426.9145598 | H89: 3052.102058 | I89: 2773.202189 | J89: 1936.141464 | K89: 1047.742406 | L89: 3069.51758 | M89: 8598.66288 | N89: 3452.031967 | O89: 1870.643588 | P89: 2497.109241 | Q89: 2 | R89: 2 | S89: 1 | T89: 6 | U89: 4 | V89: 1 | W89: 3 | X89: 1 | Y89: 1 | Z89: 1 | AA89: 1 | AB89: 1 | AC89: 1 | AD89: 1
A90: ED_REP221_00092 | D90: Ground Outdoor / Indoor Chamber Mounted; > = 22 kV & < = 33 kV ; > 15 MVA and < = 40 MVA | E90: 2626.606307 | F90: 89.95963901 | G90: 673.4800996 | H90: 1538.353783 | I90: 3491.247348 | J90: 8859.2431 | K90: 11854.75067 | L90: 20446.3274 | M90: 16891.86173 | N90: 5353.956737 | O90: 8926.079654 | P90: 10443.08073 | Q90: 0 | R90: 12 | S90: 6 | T90: 18 | U90: 6 | V90: 6 | W90: 5 | X90: 1 | Y90: 1 | Z90: 1 | AA90: 1 | AB90: 1 | AC90: 1 | AD90: 1
A91: ED_REP221_00093 | D91: Ground Outdoor / Indoor Chamber Mounted; > = 22 kV & < = 33 kV ; > 40 MVA | Q91: 0
A92: ED_REP221_00094 | D92: Ground Outdoor / Indoor Chamber Mounted; > 33 kV & < = 66 kV ; < = 15 MVA | Q92: 0
A93: ED_REP221_00095 | D93: Ground Outdoor / Indoor Chamber Mounted; > 33 kV & < = 66 kV ; > 15 MVA and < = 40 MVA | Q93: 0
A94: ED_REP221_00096 | D94: Ground Outdoor / Indoor Chamber Mounted; > 33 kV & < = 66 kV ; > 40 MVA | Q94: 0
A95: ED_REP221_00097 | D95: Ground Outdoor / Indoor Chamber Mounted; > 66 kV & < = 132 kV ; < = 100 MVA | E95: 55.6871145 | F95: 1626.385062 | G95: 101.4721166 | H95: 1580.306687 | I95: 6795.519644 | J95: 4730.646689 | K95: 1423.073733 | L95: 1616.914139 | M95: 2328.981766 | N95: 2268.336203 | O95: 1964.15975 | P95: 5.959955279 | Q95: 1 | R95: 4 | S95: 2 | T95: 1 | U95: 1 | V95: 1 | W95: 0 | X95: 0 | Y95: 0 | Z95: 0 | AA95: 0 | AB95: 1 | AC95: 0 | AD95: 0
A96: ED_REP221_00098 | D96: Ground Outdoor / Indoor Chamber Mounted; > 66 kV & < = 132 kV ; > 100 MVA | Q96: 0 | X96: 0 | Y96: 0 | Z96: 0 | AA96: 0 | AB96: 0 | AC96: 1 | AD96: 0
A97: ED_REP221_00099 | D97: Ground Outdoor / Indoor Chamber Mounted; > 132 kV ; < = 100 MVA | Q97: 0
A98: ED_REP221_00100 | D98: Ground Outdoor / Indoor Chamber Mounted; > 132 kV ; > 100 MVA | Q98: 0
A99: ED_REP221_00101 | D99: Other | Q99: 0
A100: ED_REP221_00102 | C100: SWITCHGEAR BY: Highest operating voltage; Switch function | D100: ˂ = 11 kV ; Fuse | Q100: 0
A101: ED_REP221_00103 | D101: ˂ = 11 kV ; Switch | E101: 8970.829803 | F101: 13856.2236 | G101: 14442.55325 | H101: 16795.94102 | I101: 24345.27967 | J101: 14776.70228 | K101: 18546.63801 | L101: 14844.42306 | M101: 14975.4964 | N101: 15080.97998 | O101: 14993.9409 | P101: 15065.93404 | Q101: 1545 | R101: 1367 | S101: 829 | T101: 835 | U101: 850 | V101: 832 | W101: 835 | X101: 107 | Y101: 101 | Z101: 101 | AA101: 101 | AB101: 101 | AC101: 101 | AD101: 101
A102: ED_REP221_00104 | D102: ˂ = 11 kV ; Circuit Breaker | E102: 1257.379503 | F102: 599.4961737 | G102: 1016.400295 | H102: 2979.626745 | I102: 9597.57954 | J102: 17906.56948 | K102: 24451.10665 | L102: 15300.12872 | M102: 12352.48839 | N102: 3527.16695 | O102: 2103.657541 | P102: 768.2764139 | Q102: 77 | R102: 239 | S102: 123 | T102: 157 | U102: 57 | V102: 29 | W102: 9 | X102: 4 | Y102: 3 | Z102: 3 | AA102: 3 | AB102: 3 | AC102: 3 | AD102: 3
A103: ED_REP221_00107 | D103: > 11 kV & < = 22 kV ; Switch | Q103: 0
A104: ED_REP221_00108 | D104: > 11 kV & < = 22 kV ; Circuit Breaker | Q104: 0
A105: ED_REP221_00111 | D105: > 22 kV & < = 33 kV ; Switch | E105: 42.7667228 | F105: 88.03381643 | G105: 135.317373 | H105: 107.94754 | I105: 158.5754924 | J105: 272.3965916 | Q105: 27 | X105: 2 | Y105: 1 | Z105: 1 | AA105: 1 | AB105: 1 | AC105: 1 | AD105: 1
A106: ED_REP221_00112 | D106: > 22 kV & < = 33 kV ; Circuit Breaker | E106: 1710.203132 | F106: 595.6283656 | G106: 410.6250344 | H106: 323.6532315 | I106: 356.1413284 | J106: 2128.711311 | K106: 2223.262558 | L106: 6161.838613 | M106: 6783.206745 | N106: 4616.753012 | O106: 12628.65783 | P106: 13962.48576 | Q106: 1 | R106: 14 | S106: 24 | T106: 56 | U106: 27 | V106: 69 | W106: 91 | X106: 0 | Y106: 1 | Z106: 1 | AA106: 1 | AB106: 1 | AC106: 1 | AD106: 1
A107: ED_REP221_00115 | D107: > 33 kV & < = 66 kV ; Switch | Q107: 0
A108: ED_REP221_00116 | D108: > 33 kV & < = 66 kV ; Circuit Breaker | Q108: 0 | Y108: 0 | Z108: 0 | AA108: 0 | AB108: 1 | AC108: 0 | AD108: 0
A109: ED_REP221_00118 | D109: > 66 kV & < = 132 kV ; Switch | E109: 0 | F109: 0.468213398 | G109: 1.414080802 | H109: 22.02261491 | I109: 94.70004369 | J109: 0 | Q109: 0 | X109: 0 | Y109: 0 | Z109: 0 | AA109: 0 | AB109: 0 | AC109: 1 | AD109: 0
A110: ED_REP221_00119 | D110: > 66 kV & < = 132 kV ; Circuit Breaker | E110: 126.4168011 | F110: 225.4820266 | G110: 4.317427352 | H110: 67.23876021 | I110: 289.1352165 | J110: 3397.738153 | K110: 977.6351616 | L110: 23.71355525 | M110: 0 | N110: 0 | O110: 0 | P110: 0 | Q110: 4 | R110: 10 | S110: 0 | T110: 0 | U110: 0 | V110: 0 | W110: 0 | X110: 0 | Y110: 0 | Z110: 0 | AA110: 0 | AB110: 0 | AC110: 0 | AD110: 0
A111: ED_REP221_00120 | D111: > 132 kV ; Switch | Q111: 0
A112: ED_REP221_00121 | D112: > 132 kV ; Circuit Breaker | Q112: 0
A113: ED_REP221_00122 | D113: Other | Q113: 0
A114: ED_REP221_00123 | C114: PUBLIC LIGHTING BY: Asset type ; Lighting obligation | D114: Luminaires ; Major Road | E114: 102.90609 | F114: 168.0364693 | G114: 218.7516599 | H114: 428.1815732 | I114: 503.464868 | J114: 27.18545387 | K114: 252.618739 | L114: 289.1811722 | M114: 305.9229722 | N114: 338.806337 | O114: 299.4418405 | P114: 306.7199509 | Q114: 68 | R114: 163 | S114: 188 | T114: 196 | U114: 218 | V114: 192 | W114: 196 | X114: 945 | Y114: 1027 | Z114: 1027 | AA114: 1027 | AB114: 1027 | AC114: 1027 | AD114: 1027
A115: ED_REP221_00124 | D115: Luminaires ; Minor Road | E115: 482.93101 | F115: 645.6322494 | G115: 769.6773997 | H115: 1378.494101 | I115: 2146.081082 | J115: 146.5094259 | K115: 929.7703778 | L115: 914.108062 | M115: 953.9768839 | N115: 1033.165038 | O115: 939.7497808 | P115: 957.9430771 | Q115: 605 | R115: 1051 | S115: 1040 | T115: 1078 | U115: 1178 | V115: 1060 | W115: 1078 | X115: 1325 | Y115: 1325 | Z115: 1325 | AA115: 1325 | AB115: 1325 | AC115: 1325 | AD115: 1325
A116: ED_REP221_00125 | D116: Brackets ; Major Road | E116: 90.99172021 | F116: 64.23487667 | G116: 96.07357921 | H116: 108.5747261 | I116: 147.4557808 | J116: 37.01008509 | K116: 82.35920833 | L116: 94.20825009 | M116: 99.84962661 | N116: 110.9150416 | O116: 97.64834643 | P116: 100.0885108 | Q116: 74 | R116: 91 | S116: 98 | T116: 103 | U116: 114 | V116: 101 | W116: 103 | X116: 0 | Y116: 0 | Z116: 0 | AA116: 0 | AB116: 0 | AC116: 0 | AD116: 0
A117: ED_REP221_00126 | D117: Brackets ; Minor Road | E117: 529.7443036 | F117: 448.6239257 | G117: 531.1394334 | H117: 624.8395212 | I117: 897.4504913 | J117: 245.8050746 | K117: 655.4104198 | L117: 636.7217534 | M117: 660.6381433 | N117: 708.4273763 | O117: 652.6048559 | P117: 663.8291659 | Q117: 832 | R117: 895 | S117: 893 | T117: 926 | U117: 1013 | V117: 910 | W117: 926 | X117: 0 | Y117: 0 | Z117: 0 | AA117: 0 | AB117: 0 | AC117: 0 | AD117: 0
A118: ED_REP221_00127 | D118: Lamps ; Major Road | E118: 0 | F118: 0 | G118: 0 | H118: 0 | I118: 0 | J118: 470.2981704 | Q118: 154 | R118: 0 | X118: 20037 | Y118: 18613 | Z118: 18613 | AA118: 18613 | AB118: 18613 | AC118: 18613 | AD118: 18613
A119: ED_REP221_00128 | D119: Lamps ; Minor Road | E119: 0 | F119: 0 | G119: 0 | H119: 0 | I119: 0 | J119: 918.4833711 | Q119: 906 | R119: 0 | X119: 50251 | Y119: 47055 | Z119: 47055 | AA119: 47055 | AB119: 47055 | AC119: 47055 | AD119: 47055
A120: ED_REP221_00129 | D120: Poles / Columns ; Major Road | E120: 167.4793478 | F120: 39.29949521 | G120: 51.07593115 | H120: 95.35537936 | I120: 58.33118675 | J120: 35.79608775 | Q120: 10 | R120: 0 | X120: 0 | Y120: 1 | AA120: 1 | AC120: 1
A121: ED_REP221_00130 | D121: Poles / Columns ; Minor Road | E121: 11.8113896 | F121: 22.05260333 | G121: 117.9907504 | H121: 159.4042436 | I121: 340.6261071 | J121: 10.36572806 | Q121: 16 | R121: 0 | X121: 0 | Z121: 1 | AB121: 1 | AD121: 1
A122: ED_REP221_00131 | D122: Other | Q122: 0 | R122: 0
A123: ED_REP221_00132 | C123: SCADA, NETWORK CONTROL AND PROTECTION SYSTEMS BY: Function | D123: Field Devices | E123: 1188.683905 | F123: 999.7467408 | G123: 417.6120557 | H123: 768.4098401 | I123: 691.4474483 | J123: 4037.815181 | K123: 1474.14607 | L123: 8697.219883 | M123: 9180.868149 | N123: 9066.005328 | O123: 9270.858101 | P123: 9195.760571 | Q123: 353 | R123: 94 | S123: 451 | T123: 462 | U123: 451 | V123: 461 | W123: 451 | X123: 312 | Y123: 280 | Z123: 280 | AA123: 280 | AB123: 280 | AC123: 280 | AD123: 280
A124: ED_REP221_00133 | D124: Local Network Wiring Assets | E124: 27.38887647 | F124: 4.882861153 | G124: 4.874240766 | H124: 10.95823574 | I124: 18.52261508 | J124: 3.26479053 | Q124: 69 | R124: 0 | S124: 355 | T124: 385 | U124: 366 | V124: 350 | W124: 352 | X124: 1 | Y124: 1 | Z124: 1 | AA124: 1 | AB124: 1 | AC124: 1 | AD124: 1
A125: ED_REP221_00134 | D125: Communications Network Assets | E125: 1571.317942 | F125: 2435.186714 | G125: 619.449586 | H125: 71.36704072 | I125: -0.1773 | J125: 2409.244697 | K125: 8423.825074 | L125: 9777.682021 | M125: 8959.894785 | N125: 8860.619683 | O125: 4872.997089 | P125: 1008.26082 | Q125: 51 | R125: 5 | S125: 140 | T125: 64 | U125: 58 | V125: 39 | W125: 13 | X125: 44 | Y125: 9 | Z125: 9 | AA125: 9 | AB125: 9 | AC125: 9 | AD125: 9
A126: ED_REP221_00135 | D126: Master Station Assets | R126: 0 | S126: 0 | T126: 0 | U126: 0 | V126: 0 | W126: 83 | X126: 0 | Y126: 0 | Z126: 0 | AA126: 0 | AB126: 0 | AC126: 0 | AD126: 0
A127: ED_REP221_00136 | D127: Communications Site Infrastructure | J127: 6.796 | K127: 561.9393 | L127: 371.5288021 | M127: 366.0740748 | N127: 371.3360225 | O127: 492.0609193 | P127: 374.8129532 | R127: 15 | S127: 9 | T127: 9 | U127: 9 | V127: 15 | W127: 9 | X127: 0 | Y127: 0 | Z127: 0 | AA127: 0 | AB127: 0 | AC127: 0 | AD127: 0
A128: ED_REP221_00137 | D128: Communications Linear Assets | E128: 1623.866198 | F128: 5999.425558 | G128: 1869.10897 | H128: 3314.321035 | I128: 3893.466384 | J128: 3477.076145 | K128: 4284.563334 | L128: 7041.465319 | M128: 5359.359062 | N128: 8513.191785 | O128: 7897.649026 | P128: 6439.731856 | Q128: 33.115 | R128: 64 | S128: 72 | T128: 43 | U128: 78 | V128: 66 | W128: 54 | X128: 20 | Y128: 20 | Z128: 20 | AA128: 20 | AB128: 20 | AC128: 20 | AD128: 20
A129: ED_REP221_00138 | D129: AFLC | J129: 32.67857 | K129: 4436.742428 | L129: 1844.955293 | M129: 277.2371657 | N129: 1990.466709 | O129: 2602.910999 | P129: 1658.49301 | R129: 9 | S129: 11 | T129: 1 | U129: 6 | V129: 8 | W129: 5 | X129: 1 | Y129: 1 | Z129: 1 | AA129: 1 | AB129: 1 | AC129: 1 | AD129: 1
A130: ED_REP221_00139 | D130: Other
A131: ED_REP221_00140 | C131: OTHER BY: DNSP defined | D131: Instrument Transformer | J131: 19.70496 | K131: 469.8903249 | L131: 605.1379935 | M131: 227.4252566 | N131: 9.905869895 | O131: 296.4387697 | P131: 883.7856968 | R131: 9 | S131: 11 | T131: 1 | U131: 6 | V131: 8 | W131: 5
A132: ED_REP221_00141 | D132: 11kV CB (Non age related repl) | K132: 0 | L132: 0 | M132: 1986.744373 | N132: 2024.803683 | O132: 2044.807372 | P132: 2077.247881 | R132: 0 | S132: 0 | T132: 26 | U132: 26 | V132: 26 | W132: 26 | Y132: 5 | Z132: 5 | AA132: 5 | AB132: 5 | AC132: 5 | AD132: 5
A133: ED_REP221_00142 | D133: ABB R Series ABS | K133: 0 | L133: 112.2191696 | M133: 113.5654677 | N133: 113.259925 | O133: 116.1940101 | P133: 115.0760602 | R133: 0 | S133: 18 | T133: 18 | U133: 18 | V133: 18 | W133: 18
A134: ED_REP221_00143 | D134: 11kV RMU (Andelect) | K134: 0 | L134: 0 | M134: 171.7828776 | N134: 173.9225498 | O134: 174.4000705 | P134: 176.734278 | R134: 0 | S134: 0 | T134: 6 | U134: 6 | V134: 6 | W134: 6
A135: ED_REP221_00144 | D135: 33 kV CB (Non age related repl) | K135: 0 | L135: 0 | M135: 395.9817917 | N135: 407.9283349 | O135: 407.8888689 | P135: 414.471796 | R135: 0 | S135: 0 | T135: 2 | U135: 2 | V135: 2 | W135: 2
A136: ED_REP221_00145 | D136: 33kV UG termination | K136: 0 | L136: 32.16546267 | M136: 32.5532705 | N136: 32.59543083 | O136: 33.02902549 | P136: 33.12953277 | R136: 0 | S136: 15 | T136: 15 | U136: 15 | V136: 15 | W136: 15
A137: ED_REP221_00146 | D137: Air Con | K137: 129.4635786 | L137: 52.84681458 | M137: 54.37220944 | N137: 52.9764347 | O137: 53.49395736 | P137: 53.82591756 | R137: 6 | S137: 4 | T137: 4 | U137: 4 | V137: 4 | W137: 4
A138: ED_REP221_00147 | D138: Condition monitoring | K138: 0 | L138: 0 | M138: 0 | N138: 683.0223859 | O138: 12295.86839 | P138: 12593.31349 | R138: 0 | S138: 0 | T138: 0 | U138: 0 | V138: 0 | W138: 0
A139: ED_REP221_00148 | D139: Transformer Moisture Rectification | K139: 0 | L139: 1391.92067 | M139: 1343.439867 | N139: 1433.979576 | O139: 0 | P139: 0 | R139: 0 | S139: 23 | T139: 22 | U139: 23 | V139: 0 | W139: 0
A140: ED_REP221_00149 | D140: Insulators | K140: 28.56531843 | L140: 5732.569519 | M140: 2637.965337 | N140: 1696.170683 | O140: 1153.224755 | P140: 1125.384498 | R140: 0 | S140: 2981 | T140: 1310 | U140: 810 | V140: 529 | W140: 522
A141: ED_REP221_00150 | D141: NER | J141: 95.47612 | K141: 95.20153587 | L141: 0 | M141: 0 | N141: 0 | O141: 602.5084965 | P141: 708.7523036 | R141: 1 | S141: 0 | T141: 0 | U141: 0 | V141: 7 | W141: 8
A142: ED_REP221_00151 | D142: OHEW | J142: 1777.39308 | K142: 2882.334913 | L142: 1006.235905 | M142: 1145.723149 | N142: 352.9032246 | O142: 48.67166284 | P142: 0 | R142: 60 | S142: 0 | T142: 15 | U142: 32 | V142: 26 | W142: 0
A143: ED_REP221_00152 | D143: Planned Batteries | K143: 494.6931557 | L143: 519.8193995 | M143: 465.8411169 | N143: 448.2065807 | O143: 469.2552646 | P143: 472.1772855 | R143: 94 | S143: 39 | T143: 113 | U143: 113 | V143: 130 | W143: 175
A144: ED_REP221_00153 | D144: Protection Scheme (CB's, Relays & CTs) | K144: 750.5809559 | L144: 15212.26339 | M144: 13349.22793 | N144: 11636.2943 | O144: 11749.76654 | P144: 11823.01156 | R144: 0 | S144: 308 | T144: 308 | U144: 308 | V144: 308 | W144: 308
A145: ED_REP221_00154 | D145: Regenerative breather | K145: 251.6550016 | L145: 146.2225324 | M145: 63.61814848 | N145: 63.95558113 | O145: 64.57898679 | P145: 64.97882965 | R145: 33 | S145: 12 | T145: 12 | U145: 12 | V145: 12 | W145: 12
A146: ED_REP221_00155 | D146: Reactive work (Various Subtransmission Plant) | J146: 729.71515 | K146: 6663.581999 | L146: 6106.865275 | M146: 5678.116712 | N146: 5182.728629 | O146: 5604.218501 | P146: 5758.904521 | R146: 164 | S146: 164 | T146: 164 | U146: 164 | V146: 164 | W146: 164
A147: ED_REP221_00156 | D147: Replace Ageing Cable Terminations (CA47) | K147: 0 | L147: 2500.150991 | M147: 2498.677155 | N147: 2504.413088 | O147: 12570.10283 | P147: 12612.23673 | R147: 0 | S147: 228 | T147: 228 | U147: 228 | V147: 1140 | W147: 1140
A148: ED_REP221_00157 | D148: Refurbishment (REF) | K148: 4275.268512 | L148: 4243.193447 | M148: 4308.253032 | N148: 4284.315307 | O148: 4299.58185 | P148: 4314.015174 | R148: 11163 | S148: 11163 | T148: 11163 | U148: 11163 | V148: 11163 | W148: 11163
A149: ED_REP221_00158 | D149: OTE Environment and Services Migration | K149: 1175.828885 | L149: 3989.283564 | M149: 1026.131536 | N149: 1038.732433 | O149: 1608.805135 | P149: 1626.39783 | R149: 2 | S149: 2 | T149: 1 | U149: 1 | V149: 1 | W149: 1
A150: ED_REP221_00159 | D150: SCADA Development | K150: 1561.817621 | L150: 2626.631829 | M150: 1445.739304 | N150: 6303.755046 | O150: 9334.093672 | P150: 3114.578839 | R150: 4 | S150: 3 | T150: 2 | U150: 1 | V150: 2 | W150: 1
A151: ED_REP221_00160 | D151: SCADA feature implementation | K151: 83.56922802 | L151: 3812.980742 | M151: 3887.656033 | N151: 4208.610835 | O151: 3907.832029 | P151: 3960.739483 | R151: 0 | S151: 32 | T151: 32 | U151: 33 | V151: 32 | W151: 32
A152: ED_REP221_00161 | D152: TMR Replacement | K152: 742.2719131 | L152: 817.7754682 | M152: 14642.5664 | N152: 4226.160038 | O152: 0 | P152: 0 | R152: 0 | S152: 0 | T152: 0 | U152: 1 | V152: 0 | W152: 0
A153: ED_REP221_00162 | D153: Fuse Protection | J153: 162.49605 | K153: 2180.905868 | L153: 2.713722467 | M153: 0 | N153: 0 | O153: 0 | P153: 0 | R153: 78 | S153: 0 | T153: 0 | U153: 0 | V153: 0 | W153: 0
A154: ED_REP221_00163 | D154: 11kV Falcon RMU | J154: 217.9644 | K154: 1312.488834 | L154: 0 | M154: 0 | N154: 0 | O154: 0 | P154: 0 | R154: 8 | S154: 0 | T154: 0 | U154: 0 | V154: 0 | W154: 0
A155: ED_REP221_00164 | D155: Fire System | K155: 1696.826725 | L155: 227.8631145 | M155: 0 | N155: 0 | O155: 0 | P155: 0 | R155: 8 | S155: 0 | T155: 0 | U155: 0 | V155: 0 | W155: 0
A156: ED_REP221_00165 | D156: Obsolete relays | J156: 2997.722168 | K156: 6877.381385 | L156: 407.1612129 | M156: 0 | N156: 0 | O156: 0 | P156: 0 | R156: 367 | S156: 17 | T156: 0 | U156: 0 | V156: 0 | W156: 0
A157: ED_REP221_00166 | D157: Security Fence | K157: 11.34376776 | L157: 0 | M157: 0 | N157: 0 | O157: 0 | P157: 0 | R157: 1 | S157: 0 | T157: 0 | U157: 0 | V157: 0 | W157: 0
A158: ED_REP221_00167 | D158: Surge Arrestor | J158: 18.28248 | K158: 118.1893638 | L158: 106.8956733 | M158: 0 | N158: 0 | O158: 0 | P158: 0 | R158: 2 | S158: 5 | T158: 0 | U158: 0 | V158: 0 | W158: 0
A159: ED_REP221_00168 | D159: Swipe Card Access | J159: 3.3062 | K159: 300.4072585 | L159: 481.8969527 | M159: 0 | N159: 0 | O159: 0 | P159: 0 | R159: 2 | S159: 9 | T159: 0 | U159: 0 | V159: 0 | W159: 0
A160: ED_REP221_00169
A161: ED_REP221_00170
A162: ED_REP221_00171
A163: ED_REP221_00172
A164: ED_REP221_00173
A165: ED_REP221_00174
A166: ED_REP221_00175
A167: ED_REP221_00176
A168: ED_REP221_00177
A169: ED_REP221_00178
A170: ED_REP221_00179
A171: ED_REP221_00180

Sheet 2.3 Augex
C1: REGULATORY REPORTING STATEMENT | G1: Worksheet navigation
C2: =TradingName -> Energex
C3: =RCP_1to5 -> 2015-16 to 2019-20
C4: 2.3 AUGEX PROJECT DATA
C7: TABLE 2.3.1 - AUGEX ASSET DATA - SUBTRANSMISSION SUBSTATIONS, SWITCHING STATIONS AND ZONE SUBSTATIONS
C8: NOTE: DNSP MUST PROVIDE EXPENDITURE INFORMATION ON A PROJECT CLOSE BASIS.
A9: AUG231 | C9: AUG231_1 | D9: AUG231_2 | E9: AUG231_3 | F9: AUG231_4 | G9: AUG231_5 | H9: AUG231_6 | I9: ED_AUG231_00001 | J9: ED_AUG231_00002 | K9: ED_AUG231_00003 | L9: ED_AUG231_00004 | M9: ED_AUG231_00005 | N9: ED_AUG231_00006 | O9: ED_AUG231_00007 | P9: ED_AUG231_00008 | Q9: ED_AUG231_00009 | R9: ED_AUG231_00010 | S9: ED_AUG231_00011 | T9: ED_AUG231_00012 | U9: ED_AUG231_00013 | V9: ED_AUG231_00014 | W9: ED_AUG231_00015 | X9: ED_AUG231_00016 | Y9: ED_AUG231_00017 | Z9: ED_AUG231_00018 | AA9: ED_AUG231_00019 | AB9: ED_AUG231_00020 | AC9: ED_AUG231_00021 | AD9: ED_AUG231_00022 | AE9: ED_AUG231_00023
C10: PROJECT DESCRIPTION AND CHANGES | M10: PLANT AND EQUIPMENT EXPENDITURE AND VOLUME | W10: OTHER EXPENDITURE | Y10: TOTAL DIRECT EXPENDITURE ($000'S) | Z10: YEARS INCURRED | AA10: ALL RELATED PARTY CONTRACTS | AC10: ALL NON RELATED PARTYCONTRACTS | AD10: LAND AND EASEMENTS
C11: SUBSTATION ID | D11: SUBSTATION TYPE | E11: PROJECT ID | F11: PROJECT TYPE | G11: PROJECT TRIGGER | H11: VOLTAGE (KV) | I11: SUBSTATION RATING NORMAL CYCLIC (MVA) | K11: SUBSTATION RATING N-1 EMERGENCY (MVA) | M11: TRANSFORMERS | P11: SWITCHGEAR | R11: CAPACITORS | T11: OTHER PLANT ITEM | U11: INSTALLATION (LABOUR) | W11: CIVIL WORKS | X11: OTHER DIRECT | AA11: RELATED PARTY MARGINS | AB11: TOTAL | AD11: LAND PURCHASE | AE11: EASEMENTS
I12: PRE | J12: POST | K12: PRE | L12: POST | M12: UNITS ADDED | N12: MVA ADDED | O12: EXPENDITURE ($000's) | P12: UNITS ADDED | Q12: EXPENDITURE ($000's) | R12: MVAR ADDED | S12: EXPENDITURE ($000's) | T12: EXPENDITURE ($000's) | U12: VOLUME | V12: EXPENDITURE ($000's) | W12: EXPENDITURE ($000's) | AA12: EXPENDITURE ($000's) | AD12: EXPENDITURE ($000's)
A13: AUG231_1 | C13: SPO | D13: Zone substation | E13: C0016779 | F13: Substation upgrade - capacity | G13: Demand growth | H13: 110/11 | I13: 132 | J13: 172.7 | K13: 75 | L13: 143.3 | M13: 1 | N13: 60 | O13: 1322.24101 | P13: 23 | Q13: 3296.09736 | R13: 10.8 | S13: 244.59437 | T13: 1668.65782 | U13: 22631.6001 | V13: 2657.69488 | W13: 1525.42934 | X13: 777.66739 | Y13: =SUM(O13,Q13,S13,T13,V13,W13,X13) -> 11492.38217 | Z13: 2005 - 2015 | AA13: 0 | AB13: 0 | AC13: 2636.70582 | AD13: 0 | AE13: 0
A14: AUG231_2 | C14: CPR | D14: Subtransmission substation | E14: C0037017 | F14: New substation establishment | G14: Demand growth | H14: 110/33 | I14: 0 | J14: 175.5 | K14: 0 | L14: 100 | M14: 2 | N14: 160 | O14: 2889.25902 | P14: 14 | Q14: 4118.78808 | R14: 20 | S14: 104.26562 | T14: 9685.24103 | U14: 35371.13636 | V14: 4221.76058 | W14: 6368.51443 | X14: 10376.65722 | Y14: 37764.48598 | Z14: 2008 - 2015 | AA14: 0 | AB14: 0 | AC14: 13996.26475 | AD14: 0 | AE14: 0
A15: AUG231_3 | C15: SBH | D15: Zone substation | E15: C0062258 | F15: Substation upgrade - capacity | G15: Demand growth | H15: 33/11 | I15: 22.5 | J15: 45.5 | K15: 16.7 | L15: 33.4 | M15: 3 | N15: 45 | O15: 1588.57161 | P15: 8 | Q15: 368.0809 | R15: 0 | S15: 0 | T15: 1091.39636 | U15: 10964.5833 | V15: 1258.6936 | W15: 493.00528 | X15: 1021.24418 | Y15: 5820.99193 | Z15: 2008 - 2015 | AA15: 0 | AB15: 3.21249 | AC15: 1246.03261 | AD15: 0 | AE15: 0
A16: AUG231_4 | C16: TRG | D16: Zone substation | E16: C0062273 | F16: Substation upgrade - capacity | G16: Demand growth | H16: 33/11 | I16: 18 | J16: 36 | K16: 0 | L16: 21.8 | M16: 1 | N16: 25 | O16: 635.50404 | P16: 27 | Q16: 1343.99188 | R16: 0 | S16: 0 | T16: 2255.13673 | U16: 36123.18913 | V16: 4349.16159 | W16: 4294.0876 | X16: 3115.98139 | Y16: 15993.86323 | Z16: 2006 - 2015 | AA16: 0 | AB16: 0.52447 | AC16: 6712.2947 | AD16: 0 | AE16: 0
A17: AUG231_5 | C17: RCN | D17: Zone substation | E17: C0065191 | F17: Substation upgrade - capacity | G17: Demand growth | H17: 33/11 | I17: 28.8 | J17: 60 | K17: 19.2 | L17: 33.75 | M17: 2 | N17: 50 | O17: 1236.65501 | P17: 4 | Q17: 240.54255 | R17: 0 | S17: 0 | T17: 664.28422 | U17: 13063.27263 | V17: 1311.09324 | W17: 1160.42994 | X17: 1586.89984 | Y17: 6199.9048 | Z17: 2005 - 2015 | AA17: 0 | AB17: 0 | AC17: 1674.85137 | AD17: 0 | AE17: 0
A18: AUG231_6 | C18: HTN | D18: Zone substation | E18: C0065200 | F18: Substation upgrade - capacity | G18: Demand growth | H18: 33/11 | I18: 35.2 | J18: 54.9 | K18: 20 | L18: 31.25 | M18: 2 | N18: 50 | O18: 1218.1166 | P18: 6 | Q18: 329.48873 | R18: 5.4 | S18: 114.4237 | T18: 1548.35923 | U18: 20205.7502 | V18: 1843.02217 | W18: 949.15155 | X18: 1127.48315 | Y18: 7130.04513 | Z18: 2006 - 2015 | AA18: 0 | AB18: 1.67494 | AC18: 1513.08595 | AD18: 0 | AE18: 0
A19: AUG231_7 | C19: T78 | D19: Subtransmission substation | E19: C0065317 | F19: Substation upgrade - capacity | G19: Demand growth | H19: 110/33 | I19: 66 | J19: 139.2 | K19: 48 | L19: 81 | M19: 0 | N19: 0 | O19: 0 | P19: 18 | Q19: 939.01054 | R19: 0 | S19: 0 | T19: 1324.81579 | U19: 52939.78933 | V19: 4105.77278 | W19: 948.19405 | X19: 1194.26142 | Y19: 8512.05458 | Z19: 2006 - 2015 | AA19: 0 | AB19: 0 | AC19: 1994.4288 | AD19: 0 | AE19: 0
A20: AUG231_8 | C20: WSE | D20: Zone substation | E20: C0076665 | F20: New substation establishment | G20: Demand growth | H20: 33/11 | I20: 0 | J20: 16.5 | K20: 0 | L20: 0 | M20: 1 | N20: 15 | O20: 515.15215 | P20: 11 | Q20: 1003.01954 | R20: 0 | S20: 0 | T20: 2606.65113 | U20: 27997.3833 | V20: 7158.79266 | W20: 1172.82926 | X20: 3938.6436 | Y20: 16395.08834 | Z20: 2006 - 2015 | AA20: 0 | AB20: 7.86297 | AC20: 7486.30992 | AD20: 0 | AE20: 0
A21: AUG231_9 | C21: GBN | D21: Zone substation | E21: C0076900 | F21: New substation establishment | G21: Other - specify | H21: 33/11 | I21: 0 | J21: 8.8 | K21: 0 | L21: 0 | M21: 1 | N21: 8 | O21: 348.79602 | P21: 0 | Q21: 34.71916 | R21: 0 | S21: 0 | T21: 898.41651 | U21: 7534.5 | V21: 1391.065807 | W21: 591.4698967 | X21: 1567.495657 | Y21: 4831.96305 | Z21: 2008 - 2015 | AA21: 0 | AB21: 0 | AC21: 2210.36687 | AD21: 0 | AE21: 0
A22: AUG231_10 | C22: BTY | D22: Zone substation | E22: C0077440 | F22: New substation establishment | G22: Demand growth | H22: 132/11 | I22: 0 | J22: 66 | K22: 0 | L22: 37.5 | M22: 2 | N22: 60 | O22: 1935.688 | P22: 7 | Q22: 2595 | R22: 0 | S22: 0 | T22: 4020.557 | U22: 15761.43636 | V22: 6138.824 | W22: 203.6398933 | X22: 476.218 | Y22: 15369.92689 | Z22: 2006 - 2015 | AA22: 0 | AB22: 0 | AC22: 5558.242 | AD22: 0 | AE22: 0
A23: AUG231_11 | C23: BLB | D23: Zone substation | E23: C0077783 | F23: Substation upgrade - capacity | G23: Demand growth | H23: 33/11 | I23: 37.4 | J23: 54.7 | K23: 23.8 | L23: 31.25 | M23: 2 | N23: 50 | O23: 1214.5136 | P23: 0 | Q23: 18.99513 | R23: 5.4 | S23: 114.00364 | T23: 885.30878 | U23: 10359.4168 | V23: 1688.74363 | W23: 667.07294 | X23: 1570.8783 | Y23: 6159.51602 | Z23: 2008 - 2015 | AA23: 0 | AB23: 0 | AC23: 1856.15135 | AD23: 0 | AE23: 0
A24: AUG231_12 | C24: KVG | D24: Zone substation | E24: C0077846 | F24: New substation establishment | G24: Demand growth | H24: 110/11 | I24: 0 | J24: 132 | K24: 0 | L24: 75 | M24: 2 | N24: 120 | O24: 2813.34904 | P24: 36 | Q24: 4097.25065 | R24: 30 | S24: 548.21333 | T24: 6470.9817 | U24: 23732.71181 | V24: 8711.42045 | W24: 9053.35002 | X24: 8212.92409 | Y24: 39907.48928 | Z24: 2007 - 2015 | AA24: 0 | AB24: 0 | AC24: 19184.08423 | AD24: 0 | AE24: 0
A25: AUG231_13 | C25: T8 | D25: Subtransmission substation | E25: C0078038 | F25: Substation upgrade - capacity | G25: Demand growth | H25: 132/33 | I25: 92.44 | J25: 135.2 | K25: 50 | L25: 75 | M25: 1 | N25: 80 | O25: 1560.84651 | P25: 2 | Q25: 128.22461 | R25: 0 | S25: 0 | T25: 424.56272 | U25: 4717.8333 | V25: 672.31103 | W25: 697.94236 | X25: 476.91514 | Y25: 3960.80237 | Z25: 2008 - 2015 | AA25: 0 | AB25: 0 | AC25: 1055.58502 | AD25: 0 | AE25: 0
A26: AUG231_14 | C26: T11 | D26: Subtransmission substation | E26: C0078041 | F26: Substation upgrade - capacity | G26: Demand growth | H26: 110/33 | I26: 176 | J26: 259.4 | K26: 144 | L26: 197.3 | M26: 1 | N26: 80 | O26: 1427.30097 | P26: 11 | Q26: 328.92236 | R26: 0 | S26: 0 | T26: 953.49096 | U26: 8966.1501 | V26: 963.47348 | W26: 211.8535 | X26: 1023.49059 | Y26: 4908.53186 | Z26: 2009 - 2015 | AA26: 0 | AB26: 0 | AC26: 906.94341 | AD26: 0 | AE26: 0
A27: AUG231_15 | C27: GNA | D27: Zone substation | E27: C0078045 | F27: New substation establishment | G27: Demand growth | H27: 33/11 | I27: 0 | J27: 27.5 | K27: 0 | L27: 0 | M27: 1 | N27: 25 | O27: 603.15862 | P27: 17 | Q27: 1125.18374 | R27: 5.4 | S27: 113.40884 | T27: 1490.61074 | U27: 5090.4167 | V27: 872.19009 | W27: 1021.77733 | X27: 2615.39815 | Y27: 7841.72751 | Z27: 2009 - 2015 | AA27: 0 | AB27: 0 | AC27: 3242.55531 | AD27: 0 | AE27: 0
A28: AUG231_16 | C28: YMT | D28: Zone substation | E28: C0078158 | F28: New substation establishment | G28: Demand growth | H28: 33/11 | I28: 0 | J28: 27.5 | K28: 0 | L28: 0 | M28: 1 | N28: 25 | O28: 593.20326 | P28: 11 | Q28: 955.6703 | R28: 5.4 | S28: 111.68941 | T28: 2071.55312 | U28: 5189.019764 | V28: 2664.072473 | W28: 1754.493143 | X28: 2125.800463 | Y28: 10276.48217 | Z28: 2006 - 2015 | AA28: 0 | AB28: 0 | AC28: 5285.49071 | AD28: 0 | AE28: 0
A29: AUG231_17 | C29: SFC | D29: Zone substation | E29: C0101112 | F29: New substation establishment | G29: Demand growth | H29: 33/11 | I29: 0 | J29: 55 | K29: 0 | L29: 31.25 | M29: 2 | N29: 50 | O29: 1264.9805 | P29: 16 | Q29: 601.93267 | R29: 15 | S29: 357.7779 | T29: 5818.54709 | U29: 12651.57501 | V29: 5327.72747 | W29: 9504.60123 | X29: 5758.42507 | Y29: 28633.99193 | Z29: 2008 - 2015 | AA29: 0 | AB29: 0 | AC29: 15518.53045 | AD29: 0 | AE29: 0
A30: AUG231_18 | C30: BLN | D30: Zone substation | E30: C0107213 | F30: Substation upgrade - capacity | G30: Demand growth | H30: 33/11 | I30: 27.5 | J30: 52.9 | K30: 0 | L30: 35 | M30: 1 | N30: 25 | O30: 578.84829 | P30: 11 | Q30: 949.99029 | R30: 0 | S30: 0 | T30: 982.06253 | U30: 3857.036464 | V30: 1756.503547 | W30: 300.7917067 | X30: 926.6126667 | Y30: 5494.80903 | Z30: 2008 - 2015 | AA30: 0 | AB30: 0 | AC30: 2137.09994 | AD30: 0 | AE30: 0
A31: AUG231_19 | C31: TWG | D31: Zone substation | E31: C0107382 | F31: Other - specify | G31: Fault level issues | H31: 33/11 | I31: 43.9 | J31: 43.9 | K31: 25.15 | L31: 25.15 | M31: 0 | N31: 0 | O31: 0 | P31: 8 | Q31: 369.01352 | R31: 0 | S31: 0 | T31: 795.70957 | U31: 14631.8334 | V31: 1984.15794 | W31: 96.28129 | X31: 3399.42573 | Y31: 6644.58805 | Z31: 2008 - 2017 | AA31: 0 | AB31: 0 | AC31: 1641.43252 | AD31: 0 | AE31: 0
A32: AUG231_20 | C32: WSS | D32: Zone substation | E32: C0112508 | F32: New substation establishment | G32: Demand growth | H32: 33/11 | I32: 0 | J32: 52.5 | K32: 0 | L32: 31.25 | M32: 2 | N32: 50 | O32: 1199.82578 | P32: 17 | Q32: 847.72971 | R32: 5.4 | S32: 112.56867 | T32: 1422.47277 | U32: 6955.552164 | V32: 4956.633737 | W32: 17.49141667 | X32: 1266.548857 | Y32: 9823.27094 | Z32: 2008 - 2015 | AA32: 0 | AB32: 0 | AC32: 4634.35558 | AD32: 0 | AE32: 0
A33: AUG231_21 | C33: VPK | D33: Zone substation | E33: C0121634 | F33: Substation upgrade - capacity | G33: Demand growth | H33: 110/11 | I33: 57.03 | J33: 126 | K33: 50 | L33: 75 | M33: 2 | N33: 120 | O33: 2654.13832 | P33: 56 | Q33: 7029.25989 | R33: 21.6 | S33: 454.0128 | T33: 4369.51569 | U33: 28205.7332 | V33: 4352.05918 | W33: 12685.51454 | X33: 11802.891 | Y33: 43347.39142 | Z33: 2009 - 2016 | AA33: 0 | AB33: 0.8546 | AC33: 22829.50555 | AD33: 0 | AE33: 0
A34: AUG231_22 | C34: MLB | D34: Subtransmission substation | E34: C0124994 | F34: Other - specify | G34: Reactive power issue | H34: 132/11 | I34: 67.75 | J34: 67.75 | K34: 40.5 | L34: 40.5 | M34: 0 | N34: 0 | O34: 0 | P34: 10 | Q34: 3204.28082 | R34: 125 | S34: 703.37128 | T34: 999.59281 | U34: 15084.2332 | V34: 3035.86157 | W34: 44.69638 | X34: 1644.20802 | Y34: 9632.01088 | Z34: 2009 - 2015 | AA34: 0 | AB34: 0 | AC34: 2079.45305 | AD34: 0 | AE34: 0
A35: AUG231_23 | C35: CVL | D35: Subtransmission substation | E35: C0131186 | F35: Substation upgrade - capacity | G35: Other - specify | H35: 110/33 | I35: 230.6 | J35: 286.6 | K35: 161.1 | L35: 162 | M35: 1 | N35: 120 | O35: 1915.212 | P35: 0 | Q35: 0 | R35: 0 | S35: 0 | T35: 2290.03 | U35: 19772.67273 | V35: 1087.497 | W35: 13.3456 | X35: 169.973 | Y35: 5476.0576 | Z35: 2009 - 2015 | AA35: 0 | AB35: 0 | AC35: 111.04079 | AD35: 0 | AE35: 0
A36: AUG231_24 | C36: GBG | D36: Zone substation | E36: C0131194 | F36: Substation upgrade - capacity | G36: Demand growth | H36: 33/11 | I36: 52.5 | J36: 78.1 | K36: 31.25 | L36: 62.1 | M36: 1 | N36: 25 | O36: 603.13878 | P36: 11 | Q36: 1387.11856 | R36: 0 | S36: 0 | T36: 1205.85495 | U36: 9864.060373 | V36: 1852.16807 | W36: 824.23381 | X36: 885.6368 | Y36: 6758.15097 | Z36: 2011 - 2015 | AA36: 0 | AB36: 0 | AC36: 2091.37992 | AD36: 0 | AE36: 0
A37: AUG231_25 | C37: STT | D37: Zone substation | E37: C0132114 | F37: Substation upgrade - capacity | G37: Demand growth | H37: 33/11 | I37: 27.5 | J37: 52.8 | K37: 0 | L37: 31.25 | M37: 1 | N37: 25 | O37: 586.3633 | P37: 11 | Q37: 970.32765 | R37: 5.4 | S37: 112.37288 | T37: 591.63365 | U37: 13165.34239 | V37: 1328.95733 | W37: 399.84269 | X37: 844.672 | Y37: 4834.1695 | Z37: 2003 - 2015 | AA37: 0 | AB37: 0 | AC37: 1264.46786 | AD37: 0 | AE37: 0
A38: AUG231_26 | C38: YTA | D38: Zone substation | E38: C0138982 | F38: Substation upgrade - capacity | G38: Demand growth | H38: 110/11 | I38: 52.5 | J38: 66 | K38: 31.25 | L38: 62.5 | M38: 1 | N38: 60 | O38: 1411.13398 | P38: 24 | Q38: 4209.50444 | R38: 0 | S38: 0 | T38: 2493.51118 | U38: 16146.9166 | V38: 3914.939907 | W38: 1767.226497 | X38: 2941.136137 | Y38: 16737.45214 | Z38: 2011 - 2015 | AA38: 0 | AB38: 0 | AC38: 6350.03627 | AD38: 0 | AE38: 0
A39: AUG231_27 | C39: CST | D39: Zone substation | E39: C0152828 | F39: Other - specify | G39: Fault level issues | H39: 110/11 | I39: 186.9 | J39: 186.9 | K39: 147.5 | L39: 147.5 | M39: 0 | N39: 0 | O39: 0 | P39: 1 | Q39: 4653.7332 | R39: 0 | S39: 0 | T39: 895.82379 | U39: 19268.2165 | V39: 2708.33907 | W39: 29.06699 | X39: 498.85957 | Y39: 8785.82262 | Z39: 2011 - 2015 | AA39: 0 | AB39: 0 | AC39: 1318.99657 | AD39: 0 | AE39: 0
A40: AUG231_28 | C40: JDL | D40: Zone substation | E40: C0230644 | F40: Other - specify | G40: Other - specify | H40: 33/11 | I40: 35.6 | J40: 35.6 | K40: 20.3 | L40: 20.3 | M40: 0 | N40: 0 | O40: 0 | P40: 16 | Q40: 816.091 | R40: 0 | S40: 0 | T40: 640.107 | U40: 10312.63636 | V40: 1884.975 | W40: 1993.786 | X40: 982.78 | Y40: 6317.739 | Z40: 2012 - 2016 | AA40: 0 | AB40: 0 | AC40: 3311.566 | AD40: 0 | AE40: 0
A41: AUG231_29 | C41: SMF | D41: Zone substation | E41: C0239208 | F41: Substation upgrade - capacity | G41: Demand growth | H41: 33/11 | I41: 30 | J41: 57.4 | K41: 0 | L41: 33.75 | M41: 1 | N41: 25 | O41: 603.77105 | P41: 0 | Q41: 527.86775 | R41: 5.4 | S41: 113.59807 | T41: 912.84448 | U41: 8896 | V41: 2170.016 | W41: 312.283 | X41: 550.812 | Y41: 5191.19235 | Z41: 2012 - 2016 | AA41: 0 | AB41: 0 | AC41: 1993.02 | AD41: 0 | AE41: 0
A42: AUG231_30 | C42: WED | D42: Zone substation | E42: DJ90946 | F42: Substation upgrade - capacity | G42: Demand growth | H42: 110/11 | I42: 126 | J42: 189 | K42: 84 | L42: 168 | M42: 1 | N42: 60 | O42: 1336.017 | P42: 23 | Q42: 3126.536 | R42: 0 | S42: 0 | T42: 1079.51 | U42: 18247 | V42: 5613.86 | W42: 0 | X42: 2201.035 | Y42: 13356.958 | Z42: 2017 - 2021 | AA42: 0 | AB42: 0 | AC42: 4738.735 | AD42: 0 | AE42: 0
A43: AUG231_31 | C43: MTN | D43: Subtransmission substation | E43: C0065138 | F43: New substation establishment | G43: Demand growth | H43: 110/33 | I43: 0 | J43: 252 | K43: 0 | L43: 150 | M43: 2 | N43: 240 | O43: 3960.409546 | P43: 16 | Q43: 2140.441655 | R43: 20 | S43: 127.1918735 | T43: 20489.71962 | U43: 66368.10799 | V43: 4999.123202 | W43: 11808.77401 | X43: 4996.283986 | Y43: 48521.94389 | Z43: 2006 - 2014 | AA43: 0 | AB43: 0.3421113513 | AC43: 14613.19049 | AD43: 0 | AE43: 0
A44: AUG231_32 | C44: MMC | D44: Zone substation | E44: C0017124 | F44: New substation establishment | G44: Demand growth | H44: 110/11 | I44: 0 | J44: 63.41 | K44: 0 | L44: 37.5 | M44: 0 | N44: 0 | O44: 0 | P44: 24 | Q44: 3984.624657 | R44: 10.8 | S44: 235.576296 | T44: 3555.659942 | U44: 45825.30569 | V44: 3451.408774 | W44: 9370.108013 | X44: 3132.722306 | Y44: 23730.09999 | Z44: 2003 - 2014 | AA44: 0 | AB44: 14.11323353 | AC44: 11627.04718 | AD44: 0 | AE44: 0
A45: AUG231_33 | C45: BWH | D45: Subtransmission substation | E45: C0061514 | F45: Substation upgrade - capacity | G45: Demand growth | H45: 110/33 | I45: 66 | J45: 132 | K45: 0 | L45: 75 | M45: 3 | N45: 110 | O45: 2613.453042 | P45: 30 | Q45: 2550.029284 | R45: 30.8 | S45: 357.0219684 | T45: 3128.667528 | U45: 44901.35164 | V45: 3287.509529 | W45: 2066.150441 | X45: 2155.58013 | Y45: =SUM(O45,Q45,S45,T45,V45,W45,X45) -> 16158.41192 | Z45: 2006 -2014 | AA45: 0 | AB45: 0 | AC45: 3971.941071 | AD45: 0 | AE45: 0
A46: AUG231_34 | C46: BWH | D46: Zone substation | E46: C0061514 | F46: Substation upgrade - capacity | G46: Demand growth | H46: 33/11 | I46: 20.64 | J46: 55 | K46: 15.64 | L46: 31.25 | M46: 3 | N46: 110 | O46: 2613.453042 | P46: 30 | Q46: 2550.029284 | R46: 30.8 | S46: 357.0219684 | T46: 3128.667528 | U46: 44901.35164 | V46: 3287.509529 | W46: 2066.150441 | X46: 2155.58013 | Y46: 16158.41192 | Z46: 2006 - 2014 | AA46: 0 | AB46: 0 | AC46: 3971.941071 | AD46: 0 | AE46: 0
A47: AUG231_35 | C47: PKW | D47: Zone substation | E47: C0078163 | F47: New substation establishment | G47: Demand growth | H47: 33/11 | I47: 0 | J47: 55 | K47: 0 | L47: 31.25 | M47: 2 | N47: 50 | O47: 1217.887318 | P47: 24 | Q47: 2086.250874 | R47: 5.4 | S47: 113.3061729 | T47: 3173.598027 | U47: 32650.89093 | V47: 2398.570519 | W47: 3660.277291 | X47: 1840.482085 | Y47: 14490.37229 | Z47: 2009 - 2014 | AA47: 0 | AB47: 0 | AC47: 5667.120873 | AD47: 0 | AE47: 0
A48: AUG231_36 | C48: WRG | D48: Zone substation | E48: C0117468 | F48: Substation upgrade - capacity | G48: Demand growth | H48: 33/11 | I48: 41.25 | J48: 82.5 | K48: 31.25 | L48: 62.5 | M48: 3 | N48: 75 | O48: 1865.597764 | P48: 29 | Q48: 2897.7803 | R48: 5.4 | S48: 115.2224467 | T48: 2421.732982 | U48: 28025.44836 | V48: 1958.959476 | W48: 2219.849269 | X48: 2325.529444 | Y48: 13804.67168 | Z48: 2009 - 2014 | AA48: 0 | AB48: 2.434137436 | AC48: 3782.884678 | AD48: 0 | AE48: 1.371670141
A49: AUG231_37 | C49: COR | D49: Zone substation | E49: C0076327 | F49: New substation establishment | G49: Demand growth | H49: 132/11 | I49: 0 | J49: 33 | K49: 0 | L49: 0 | M49: 0 | N49: 0 | O49: 0 | P49: 10 | Q49: 2604.803884 | R49: 0 | S49: 0 | T49: 1785.554354 | U49: 43253.91555 | V49: 2920.043684 | W49: 2913.238243 | X49: 2620.868182 | Y49: 12844.50835 | Z49: 2007 - 2014 | AA49: 0 | AB49: 2.768794534 | AC49: 5148.875455 | AD49: 0 | AE49: 0
A50: AUG231_38 | C50: CPS | D50: Zone substation | E50: C0065141 | F50: New substation establishment | G50: Demand growth | H50: 33/11 | I50: 0 | J50: 54.81 | K50: 0 | L50: 31.25 | M50: 2 | N50: 50 | O50: 1209.691947 | P50: 22 | Q50: 1946.299879 | R50: 5.4 | S50: 112.0381707 | T50: 2269.099703 | U50: 42377.84005 | V50: 2976.612573 | W50: 2211.163538 | X50: 1933.165494 | Y50: 12658.0713 | Z50: 2005 - 2014 | AA50: 0 | AB50: 0 | AC50: 4725.492901 | AD50: 0 | AE50: 35.6931872
A51: AUG231_39 | C51: GLY | D51: Zone substation | E51: C0062104 | F51: Substation upgrade - capacity | G51: Demand growth | H51: 33/11 | I51: 28.05 | J51: 60 | K51: 16.77 | L51: 33.75 | M51: 2 | N51: 50 | O51: 1263.085762 | P51: 16 | Q51: 614.5164025 | R51: 5.4 | S51: 111.0486243 | T51: 1808.055995 | U51: 24291.85647 | V51: 1751.364819 | W51: 2673.837019 | X51: 2490.066787 | Y51: 10711.97541 | Z51: 2006 - 2014 | AA51: 0 | AB51: 0 | AC51: 3738.913538 | AD51: 0 | AE51: 0
A52: AUG231_40 | C52: JBB | D52: Subtransmission substation | E52: C0076312 | F52: New substation establishment | G52: Demand growth | H52: 110/33 | I52: 0 | J52: 88 | K52: 0 | L52: 100 | M52: 1 | N52: 80 | O52: 1683.323868 | P52: 5 | Q52: 2167.006951 | R52: 0 | S52: 0 | T52: 1011.077062 | U52: 28342.24758 | V52: 2049.060697 | W52: 2915.599027 | X52: 1401.918108 | Y52: 11227.98571 | Z52: 2006 - 2014 | AA52: 0 | AB52: 21.02301284 | AC52: 4413.588444 | AD52: 0 | AE52: 0
A53: AUG231_41 | C53: RIS | D53: Zone substation | E53: C0078162 | F53: New substation establishment | G53: Demand growth | H53: 110/11 | I53: 0 | J53: 20.63 | K53: 0 | L53: 0 | M53: 0 | N53: 0 | O53: 0 | P53: 2 | Q53: 383.2563391 | R53: 0 | S53: 0 | T53: 901.9329158 | U53: 29890.69856 | V53: 2210.20355 | W53: 1238.659593 | X53: 1270.803515 | Y53: 6004.855912 | Z53: 2009 - 2014 | AA53: 0 | AB53: 0 | AC53: 3121.008155 | AD53: 0 | AE53: 0
A54: AUG231_42 | C54: MTB | D54: Zone substation | E54: C0076904 | F54: Substation upgrade - capacity | G54: Demand growth | H54: 33/11 | I54: 21.6 | J54: 39.6 | K54: 0 | L54: 20.3 | M54: 1 | N54: 15 | O54: 557.721858 | P54: 11 | Q54: 981.5924 | R54: 5.4 | S54: 118.1570042 | T54: 1367.917442 | U54: 10281.69795 | V54: 711.3162522 | W54: 2416.627478 | X54: 647.8134684 | Y54: 6801.145902 | Z54: 2006 - 2014 | AA54: 0 | AB54: 0 | AC54: 2707.701962 | AD54: 0 | AE54: 0
A55: AUG231_43 | C55: BVL | D55: Zone substation | E55: C0065166 | F55: Substation upgrade - capacity | G55: Demand growth | H55: 33/11 | I55: 52.89 | J55: 37.18 | K55: 16.67 | L55: 30.1 | M55: 0 | N55: 0 | O55: 0 | P55: 15 | Q55: 541.1216612 | R55: 10.8 | S55: 229.9445896 | T55: 686.262734 | U55: 13584.45844 | V55: 896.995795 | W55: 1448.843708 | X55: 1196.886212 | Y55: 5000.054699 | Z55: 2006 - 2014 | AA55: 0 | AB55: 3.198731821 | AC55: 2243.807201 | AD55: 0 | AE55: 0
A56: AUG231_44 | C56: FBS | D56: Subtransmission substation | E56: DJ20133 | F56: New substation establishment | G56: Demand growth | H56: 110/33 | I56: 0 | J56: 168 | K56: 0 | L56: 100 | M56: 1 | N56: 80 | O56: 1383.19893 | P56: 6 | Q56: 209.88528 | R56: 0 | S56: 0 | T56: 1177.78 | U56: 12919 | V56: 2242.218 | W56: 962.593 | X56: 680.261 | Y56: 6655.93621 | Z56: 2018 - 2022 | AA56: 0 | AB56: 0 | AC56: 2293.821 | AD56: 0 | AE56: 0
A57: AUG231_45 | C57: MST | D57: Zone substation | E57: C0125186 | F57: Substation upgrade - capacity | G57: Demand growth | H57: 110/11 | I57: 157.268 | J57: 157.268 | K57: 124.176 | L57: 124.176 | M57: 0 | N57: 0 | O57: 0 | P57: 13 | Q57: 4084.1 | R57: 0 | S57: 0 | T57: 1742.911 | U57: 22009 | V57: 2028.48 | W57: 3887.38 | X57: 1540.014 | Y57: 13282.885 | Z57: 2017 - 2024 | AA57: 0 | AB57: 0 | AC57: 4364.571 | AD57: 0 | AE57: 0
A58: AUG231_46 | C58: AFD | D58: Subtransmission substation | E58: C0230608 | F58: Other | G58: Safety | H58: 110/33 | I58: 175.5 | J58: 175.5 | K58: 100 | L58: 100 | M58: 0 | N58: 0 | O58: 0 | P58: 14 | Q58: 682.172 | R58: 0 | S58: 0 | T58: 1739.02 | U58: 18652 | V58: 4802.287 | W58: 317.099 | X58: 1524.465 | Y58: 9065.043 | Z58: 2012 - 2016 | AA58: 0 | AB58: 0 | AC58: 3901.25 | AD58: 0 | AE58: 0
A59: AUG231_47 | C59: AFD | D59: Zone substation | E59: C0230608 | F59: Other | G59: Safety | H59: 33/11 | I59: 54.8 | J59: 54.8 | K59: 31.2 | L59: 31.2 | M59: 0 | N59: 0 | O59: 0 | P59: 14 | Q59: 682.172 | R59: 0 | S59: 0 | T59: 1739.02 | U59: 18652 | V59: 4802.287 | W59: 317.099 | X59: 1524.465 | Y59: 9065.043 | Z59: 2012 - 2016 | AA59: 0 | AB59: 0 | AC59: 3901.25 | AD59: 0 | AE59: 0
A60: AUG231_48 | C60: NBR | D60: Zone substation | E60: C0065092 | F60: Substation upgrade - capacity | G60: Other | H60: 33/11 | I60: 68.75 | J60: 54.4 | K60: 46.89 | L60: 49.16 | M60: 1 | N60: 25 | O60: 611.2620049 | P60: 17 | Q60: 1128.226226 | R60: 10.8 | S60: 227.7555447 | T60: 1560.494644 | U60: 25895 | V60: 1788.6642 | W60: 1151.577069 | X60: 1773.826204 | Y60: 8241.805894 | Z60: 2006 - 2015 | AA60: 0 | AB60: 0 | AC60: 2198.091455 | AD60: 0 | AE60: 0
A61: AUG231_49 | C61: MGP | D61: Zone substation | E61: C0062187 | F61: Substation upgrade - capacity | G61: Demand growth | H61: 33/11 | I61: 22.85 | J61: 31.86 | K61: 10.8 | L61: 16.88 | M61: 1 | N61: 25 | O61: 601.7 | P61: 11 | Q61: 934.8882753 | R61: 5.4 | S61: 113.949 | T61: 1864.085156 | U61: 66639 | V61: 5038.69 | W61: 1857.545076 | X61: 1311.951626 | Y61: 11722.80913 | Z61: 2006 - 2015 | AA61: 0 | AB61: 0 | AC61: 6415.367197 | AD61: 0 | AE61: 1.60727403
A62: AUG231_50 | Y62: 0
A63: AUG231_51 | Y63: 0
A64: AUG231_52 | Y64: 0
A65: AUG231_53 | E65: Non material projects - [actual] | Y65: 8216.02934 | Z65: FY 2013-14
A66: AUG231_54 | E66: Non material projects - [forecast] | Y66: 59783.248 | Z66: FY 2015-20
A68: AUG232 | C68: AUG232_1 | D68: AUG232_2 | E68: AUG232_3 | F68: AUG232_4 | G68: AUG232_5 | H68: AUG232_6 | I68: ED_AUG232_00001 | J68: ED_AUG232_00002 | K68: ED_AUG232_00003 | L68: ED_AUG232_00004 | M68: ED_AUG232_00005 | N68: ED_AUG232_00006 | O68: ED_AUG232_00007 | P68: ED_AUG232_00008 | Q68: ED_AUG232_00009 | R68: ED_AUG232_00010 | S68: ED_AUG232_00011 | T68: ED_AUG232_00012 | U68: ED_AUG232_00013 | V68: ED_AUG232_00014 | W68: ED_AUG232_00015 | X68: ED_AUG232_00016 | Y68: ED_AUG232_00017 | Z68: ED_AUG232_00018 | AA68: ED_AUG232_00019 | AB68: ED_AUG232_00020 | AC68: ED_AUG232_00021
C69: TABLE 2.3.2 - AUGEX ASSET DATA - SUBTRANSMISSION LINES
C70: NOTE: DNSP MUST PROVIDE EXPENDITURE INFORMATION ON A PROJECT CLOSE BASIS.
C71: PROJECT DESCRIPTION AND CHANGES | I71: PLANT AND EQUIPMENT EXPENDITURE AND VOLUME | U71: OTHER EXPENDITURE | W71: TOTAL DIRECT EXPENDITURE ($000'S) | X71: YEARS INCURRED | Y71: ALL RELATED PARTY CONTRACTS | AA71: ALL NON RELATED PARTY CONTRACTS | AB71: LAND AND EASEMENTS
C72: LINE ID | D72: PROJECT ID | E72: PROJECT TYPE | F72: PROJECT TRIGGER | G72: VOLTAGE (KV) | H72: ROUTE LINE LENGTH ADDED | I72: POLES/TOWERS (INCLUDING STRUCTURES, AND CIVIL WORKS) | L72: OVERHEAD LINES | O72: UNDERGROUND CABLES | R72: OTHER PLANT ITEM | S72: INSTALLATION (LABOUR) | U72: CIVIL WORKS | V72: OTHER DIRECT | Y72: RELATED PARTY MARGINS | Z72: TOTAL | AB72: LAND PURCHASE | AC72: EASEMENTS
H73: KM ADDED | I73: POLES/TOWERS ADDED | J73: POLES/TOWERS UPGRADED | K73: EXPENDITURE ($000's) | L73: CIRCUIT KM ADDED | M73: CIRCUIT KM UPGRADED | N73: EXPENDITURE ($000's) | O73: CIRCUIT KM ADDED | P73: CIRCUIT KM UPGRADED | Q73: EXPENDITURE ($000's) | R73: EXPENDITURE ($000's) | S73: VOLUME | T73: EXPENDITURE ($000's) | U73: EXPENDITURE ($000's) | Y73: EXPENDITURE ($000's) | AB73: EXPENDITURE ($000's)
A74: AUG232_1 | C74: F671,F3290 | D74: C0065198 | E74: New line on new route - dual circuit | F74: Demand growth | G74: Other | H74: 3.7 | I74: 2 | J74: 0 | K74: 2.615 | N74: 0 | O74: 7.4 | Q74: 748.80125 | R74: 2079.0141 | S74: 5966.704645 | T74: 525.68386 | U74: 90.82087 | V74: 3502.55995 | W74: =SUM(K74,N74,Q74,R74,T74,U74,V74) -> 6949.49503 | X74: 2006 - 2015 | Y74: 0 | Z74: 0 | AA74: 2789.24345 | AB74: 0 | AC74: 0
A75: AUG232_2 | C75: F527,F459A | D75: C0065293 | E75: New line on new route - dual circuit | F75: Demand growth | G75: Other | H75: 1.4 | I75: 12 | J75: 0 | K75: 4.7136 | N75: 0.01899 | O75: 2.8 | Q75: 1195.70764 | R75: 3098.41097 | S75: 11587.5 | T75: 2567.12275 | U75: 524.86696 | V75: 869.01846 | W75: 8259.85937 | X75: 2005 - 2015 | Y75: 0 | Z75: 1.81315 | AA75: 2579.84291 | AB75: 0 | AC75: 0
A76: AUG232_3 | C76: F3429,F3430 | D76: C0077211 | E76: New line on new route - dual circuit | F76: Demand growth | G76: Other | H76: 3.4 | I76: 0 | J76: 0 | K76: 0 | N76: 0 | O76: 6.8 | Q76: 2861.98431 | R76: 2498.08141 | S76: 6436.9166 | T76: 2576.91594 | U76: -159.24778 | V76: 1866.11111 | W76: 9643.84499 | X76: 2006 - 2015 | Y76: 0 | Z76: 0 | AA76: 2140.65973 | AB76: 0 | AC76: 0
A77: AUG232_4 | C77: F845,F846 | D77: C0077634 | E77: New line on new route - dual circuit | F77: Demand growth | G77: 132 | H77: 17 | I77: 0 | J77: 0 | K77: 0 | L77: 34 | N77: 24.193 | Q77: 0 | R77: 13317.09923 | S77: 49654.7496 | T77: 39231.36464 | U77: 468.10864 | V77: 2427.43542 | W77: 55468.20093 | X77: 2005 - 2018 | Y77: 0 | Z77: 0 | AA77: 36831.59519 | AB77: 0 | AC77: 0
A78: AUG232_5 | C78: F916,F917 | D78: C0099183 | E78: New line on new route - dual circuit | F78: Demand growth | G78: Other | H78: 6.8 | I78: 0 | J78: 0 | K78: 0 | N78: 0 | O78: 13.6 | Q78: 11446.82867 | R78: 4616.30433 | S78: 14440.9999 | T78: 1955.4693 | U78: 6568.9295 | V78: 3751.14041 | W78: 28338.67221 | X78: 2008 - 2015 | Y78: 0 | Z78: 0 | AA78: 8061.86816 | AB78: 0 | AC78: 0
A79: AUG232_6 | C79: F7354 | D79: C0100550 | E79: New line on new route - single circuit | F79: Demand growth | G79: Other | H79: 17 | I79: 14 | J79: 0 | K79: 41.232 | L79: 18.2 | M79: 7 | N79: 3.055 | O79: 5.8 | Q79: 0 | R79: 12143.242 | S79: 43064 | T79: 13540.035 | U79: 110 | V79: 3000.663 | W79: 28838.227 | X79: 2008 - 2016 | Y79: 0 | Z79: 0 | AA79: 12053.992 | AB79: 0 | AC79: 0
A80: AUG232_7 | C80: F3870 | D80: C0112451 | E80: Line rebuild over existing route - single circuit | F80: Demand growth | G80: Other | H80: 1.4 | I80: 398 | J80: 0 | K80: 633.97541 | L80: 26 | N80: 213.68705 | O80: 1.4 | Q80: 325.70934 | R80: 2432.03766 | S80: 47636.8335 | T80: 4844.68302 | U80: 716.13287 | V80: 2622.45889 | W80: 11788.68424 | X80: 2008 - 2015 | Y80: 0 | Z80: 0 | AA80: 2814.81509 | AB80: 0 | AC80: 0
A81: AUG232_8 | C81: F7297 | D81: C0112576 | E81: Line rebuild over existing route - single circuit | F81: Demand growth | G81: Other | H81: 0 | I81: 44 | J81: 0 | K81: 64.2352 | L81: 0.5 | N81: 39.4825 | Q81: 549.71364 | R81: 3180.9165 | S81: 23070.2665 | T81: 3789.21559 | U81: 267.61669 | V81: 1811.69477 | W81: 9702.87489 | X81: 2008 - 2015 | Y81: 0 | Z81: 0 | AA81: 2953.20652 | AB81: 0 | AC81: 0
A82: AUG232_9 | C82: F392,F473 | D82: C0112576 | E82: Line rebuild over existing route - dual circuit | F82: Demand growth | G82: Other | H82: 0 | I82: 44 | J82: 0 | K82: 64.2352 | L82: 2.7 | M82: 2.7 | N82: 39.4825 | O82: 0.5 | P82: 0.2 | Q82: 549.71364 | R82: 3180.9165 | S82: 23070.2665 | T82: 3789.21559 | U82: 267.61669 | V82: 1811.69477 | W82: 9702.87489 | X82: 2008 - 2015 | Y82: 0 | Z82: 0 | AA82: 2953.20652 | AB82: 0 | AC82: 0
A83: AUG232_10 | C83: F560,F569,F414,F558 | D83: C0112635 | E83: New line on new route - single circuit | F83: Demand growth | G83: Other | H83: 2.4 | I83: 97 | J83: 0 | K83: 132.28648 | L83: 1.41 | M83: 18.6 | N83: 13.26857 | O83: 4 | Q83: 1596.27781 | R83: 1652.83906 | S83: 22577.4835 | T83: 3242.25137 | U83: 700.17926 | V83: 1750.28104 | W83: 9087.38359 | X83: 2008 - 2015 | Y83: 0 | Z83: 8.12511 | AA83: 2985.61552 | AB83: 0 | AC83: 0
A84: AUG232_11 | C84: F366 | D84: C0125039 | E84: Line rebuild over existing route - single circuit | F84: Demand growth | G84: Other | H84: 0 | I84: 112 | J84: 0 | K84: 188.78 | L84: 3.8 | N84: 45.924 | O84: 0.8 | Q84: 516.373 | R84: 2868.45636 | S84: 37926 | T84: 6404.23939 | U84: 0 | V84: 1647.55094 | W84: 11671.32369 | X84: 2009 - 2016 | Y84: 0 | Z84: 0 | AA84: 4058.03913 | AB84: 0 | AC84: 0
A85: AUG232_12 | C85: F7259 | D85: C0125039 | E85: Line rebuild over existing route - single circuit | F85: Demand growth | G85: Other | H85: 0 | I85: 112 | J85: 0 | K85: 188.78 | L85: 14 | N85: 45.924 | Q85: 516.373 | R85: 2868.45636 | S85: 37926 | T85: 6404.23939 | U85: 0 | V85: 1647.55194 | W85: 11671.32469 | X85: 2009 - 2016 | Y85: 0 | Z85: 0 | AA85: 4058.04013 | AB85: 0 | AC85: 0
A86: AUG232_13 | C86: F3972 | D86: C0132124 | E86: New line on new route - single circuit | F86: Demand growth | G86: Other | H86: 8.5 | I86: 184 | J86: 0 | K86: 298.0185 | L86: 20 | M86: 0.6 | N86: 137.28805 | Q86: 331.76761 | R86: 1028.20862 | S86: 20050.0332 | T86: 1900.6649 | U86: 1557.29062 | V86: 1498.55138 | W86: 6751.78968 | X86: 2011 - 2015 | Y86: 0 | Z86: 0 | AA86: 2223.63114 | AB86: 0 | AC86: 0
A87: AUG232_14 | C87: F363 | D87: DJ23039 | E87: New line on new route - single circuit | F87: Voltage issues | G87: Other | H87: 21 | I87: 260 | J87: 0 | K87: 465.219 | L87: 21 | N87: 135.163 | R87: 918.26817 | S87: 26291 | T87: 2482.678 | U87: 0 | V87: 0 | W87: 4001.32817 | X87: 2016 - 2018 | Y87: 0 | Z87: 0 | AA87: 519.748 | AB87: 0 | AC87: 0
A88: AUG232_15 | C88: F7230, F7362 | D88: C0037017 | E88: New line on new route - dual circuit | F88: Demand growth | G88: Other | H88: 3.1 | I88: 41 | J88: 0 | K88: 56.82124 | N88: 50.20305 | O88: 6.2 | Q88: 5337.2781 | R88: 11353.25136 | S88: 35371.13636 | T88: 3921.75958 | U88: 6368.51443 | V88: 10676.65722 | W88: 37764.48498 | X88: 2008 - 2015 | Y88: 0 | Z88: 0 | AA88: 13996.26475 | AB88: 0 | AC88: 0
A89: AUG232_16 | C89: F648 | D89: C0037017 | E89: Reconductor - Single circuit | F89: Demand growth | G89: Other | H89: 0 | I89: 41 | J89: 0 | K89: 56.82124 | M89: 4.2 | N89: 50.20305 | Q89: 5337.2781 | R89: 11353.25136 | S89: 35371.13636 | T89: 3921.76058 | U89: 6368.51443 | V89: 10676.65722 | W89: 37764.48598 | X89: 2008 - 2015 | Y89: 0 | Z89: 0 | AA89: 13996.26475 | AB89: 0 | AC89: 0
A90: AUG232_17 | C90: F334,F335 | D90: C0076665 | E90: New line on new route - dual circuit | F90: Demand growth | G90: Other | H90: 8.8 | I90: 165 | J90: 0 | K90: 233.31109 | L90: 16 | N90: 96.55665 | O90: 1.6 | Q90: 99.44502 | R90: 3695.51006 | S90: 27997.3833 | T90: 7158.79266 | U90: 1172.82926 | V90: 3938.6436 | W90: 16395.08834 | X90: 2006 - 2015 | Y90: 0 | Z90: 7.86297 | AA90: 7486.30992 | AB90: 0 | AC90: 0
A91: AUG232_18 | C91: F782,F7365 | D91: C0077846 | E91: New line on new route - dual circuit | F91: Demand growth | G91: Other | H91: 1.5 | I91: 37 | J91: 0 | K91: 26.84886 | N91: 0 | O91: 3 | Q91: 1738.67613 | R91: 12164.26973 | S91: 17680.4168 | T91: 8374.54971 | U91: 9022.94702 | V91: 5791.91665 | W91: 37119.2081 | X91: 2007 - 2015 | Y91: 0 | Z91: 0 | AA91: 17875.79768 | AB91: 0 | AC91: 0
A92: AUG232_19 | C92: F3960 | D92: C0078158 | E92: New line on new route - dual circuit | F92: Demand growth | G92: Other | H92: 0.9 | I92: 19 | J92: 0 | K92: 14.02077 | N92: 0 | O92: 0.9 | Q92: 255.817 | R92: 3462.27832 | S92: 5189.019764 | T92: 2664.072473 | U92: 1754.493143 | V92: 2125.800463 | W92: 10276.48217 | X92: 2006 - 2015 | Y92: 0 | Z92: 0 | AA92: 5285.49071 | AB92: 0 | AC92: 0
A93: AUG232_20 | C93: F704,F7377 | D93: C0138982 | E93: New line on new route - dual circuit | F93: Demand growth | G93: Other | H93: 0.7 | I93: 5 | J93: 0 | K93: 8.27952 | L93: 1.4 | N93: 2.51367 | Q93: 0 | R93: 8103.35641 | S93: 16146.9166 | T93: 4014.939907 | U93: 1767.226497 | V93: 2941.136137 | W93: 16837.45214 | X93: 2011 - 2015 | Y93: 0 | Z93: 0 | AA93: 6350.03627 | AB93: 0 | AC93: 0
A94: AUG232_21 | C94: F7337,F7338 | D94: C0065138 | E94: New line on new route - dual circuit | F94: Demand growth | G94: Other | H94: 7.9 | I94: 8 | J94: 0 | K94: 8.56805602 | L94: 1.7 | M94: 0 | N94: 12.26606301 | O94: 6.2 | P94: 0 | Q94: 668.1047768 | R94: 26028.8238 | S94: 66368.10799 | T94: 4999.123202 | U94: 11808.77401 | V94: 4996.283986 | W94: 48521.94389 | X94: 2006 - 2014 | Y94: 0 | Z94: 0.3421113513 | AA94: 14613.19049 | AB94: 0 | AC94: 0
A95: AUG232_22 | C95: F746 | D95: C0061514 | E95: New line on new route - single circuit | F95: Demand growth | G95: Other | H95: 0.6 | I95: 16 | J95: 0 | K95: 16.49549588 | L95: 0 | M95: 0 | N95: 14.22776389 | O95: 0.6 | P95: 0 | Q95: 231.6936155 | R95: 8386.754948 | S95: 44901.35164 | T95: 3287.509529 | U95: 2066.150441 | V95: 2155.58013 | W95: 16158.41192 | X95: 2006 - 2014 | Y95: 0 | Z95: 0 | AA95: 3971.941071 | AB95: 0 | AC95: 0
A96: AUG232_23 | C96: F3670,F3671 | D96: C0078163 | E96: Line rebuild over existing route - dual circuit | F96: Demand growth | G96: Other | H96: 1.4 | I96: 10 | J96: 0 | K96: 20.73662952 | L96: 1.2 | M96: 1.2 | N96: 23.14895664 | O96: 3 | P96: 0 | Q96: 1062.322394 | R96: 5484.834412 | S96: 32650.89093 | T96: 2398.570519 | U96: 3660.277291 | V96: 1840.482085 | W96: 14490.37229 | X96: 2009 - 2014 | Y96: 0 | Z96: 0 | AA96: 5667.120873 | AB96: 0 | AC96: 0
A97: AUG232_24 | C97: F374,F3570 | D97: C0065141 | E97: New line on new route - dual circuit | F97: Demand growth | G97: Other | H97: 0.6 | I97: 34 | J97: 0 | K97: 28.77668686 | L97: 0 | M97: 0 | N97: 28.01187276 | O97: 1.2 | P97: 0 | Q97: 647.8234311 | R97: 4832.517709 | S97: 42377.84005 | T97: 2976.612573 | U97: 2211.163538 | V97: 1933.165494 | W97: 12658.0713 | X97: 2005 - 2014 | Y97: 0 | Z97: 0 | AA97: 4725.492901 | AB97: 0 | AC97: 35.6931872
A98: AUG232_25 | C98: F3379,F3380 | D98: C0095413 | E98: New line on new route - dual circuit | F98: Demand growth | G98: Other | H98: 7.1 | I98: 0 | J98: 0 | K98: 0 | L98: 0 | M98: 0 | N98: 0.1562807265 | O98: 7.3 | P98: 0 | Q98: 2692.149765 | R98: 1677.15201 | S98: 8122.774737 | T98: 608.6863222 | U98: 3043.091302 | V98: 973.4292984 | W98: 8994.664978 | X98: 2008 - 2014 | Y98: 0 | Z98: 0 | AA98: 3321.931471 | AB98: 0 | AC98: 6.96856686
A99: AUG232_26 | C99: F3980 | D99: C0112414 | E99: Line rebuild over existing route - single circuit | F99: Demand growth | G99: Other | H99: 4.1 | I99: 159 | J99: 0 | K99: 316.7310216 | L99: 11.2 | M99: 0 | N99: 192.7875588 | O99: 2.35 | P99: 0 | Q99: 1190.858696 | R99: 1088.522483 | S99: 31397.13453 | T99: 2368.462705 | U99: 1854.199081 | V99: 564.5215124 | W99: 7576.083058 | X99: 2008 - 2014 | Y99: 0 | Z99: 0 | AA99: 4117.021304 | AB99: 0 | AC99: 1.105082213
A100: AUG232_27 | C100: F349, F333, F3340 | D100: C0113238 | E100: Line rebuild over existing route - single circuit | F100: Demand growth | G100: Other | H100: 5.505 | I100: 74 | J100: 0 | K100: 117.057 | L100: 5.505 | M100: 1.3 | N100: 79.123 | O100: 0.96 | P100: 0 | Q100: 1137.042644 | R100: 1509.481733 | S100: 47383 | T100: 3477.199721 | U100: 587.3979556 | V100: 2720.056013 | W100: 9627.358066 | X100: 2008 - 2015 | Y100: 0 | Z100: 0 | AA100: 4055.958229 | AB100: 0 | AC100: 0
A101: AUG232_28 | C101: F3850, F378 | D101: C0117380 | E101: New line on new route - single circuit | F101: Voltage issues | G101: Other | H101: 14.591 | I101: 253 | J101: 0 | K101: 401.1865193 | L101: 14.5 | M101: 8.011 | N101: 331.7408925 | O101: 0 | P101: 0 | Q101: 0 | R101: 992.5656339 | S101: 56356 | T101: 3968.837781 | U101: 52.858 | V101: 1240.311261 | W101: 6987.500088 | X101: 2008 - 2015 | Y101: 0 | Z101: 0 | AA101: 3676.820901 | AB101: 0 | AC101: 16.38908175
A102: AUG232_29 | W102: 0
A103: AUG232_30 | W103: 0
A104: AUG232_31 | W104: 0
A105: AUG232_32 | W105: 0
A106: AUG232_33 | W106: =SUM(K106,N106,Q106,R106,T106,U106,V106) -> 0
A107: AUG232_34 | W107: 0
A108: AUG232_35 | W108: 0
A109: AUG232_36 | W109: 0
A110: AUG232_37 | W110: 0
A111: AUG232_38 | W111: 0
A112: AUG232_39 | W112: 0
A113: AUG232_40 | W113: 0
A114: AUG232_41 | W114: 0
A115: AUG232_42 | W115: 0
A116: AUG232_43 | W116: 0
A117: AUG232_44 | W117: 0
A118: AUG232_45 | W118: 0
A119: AUG232_46 | W119: 0
A120: AUG232_47 | W120: 0
A121: AUG232_48 | W121: 0
A122: AUG232_49 | W122: 0
A123: AUG232_50 | W123: 0
A124: AUG232_51 | W124: 0
A125: AUG232_52 | W125: 0
A126: AUG232_53 | W126: 0
A127: AUG232_54 | W127: 0
A128: AUG232_55 | D128: Non material projects - [actual] | W128: 4084.06074 | X128: FY 2013-14
A129: AUG232_56 | D129: Non material projects - [forecast] | W129: 14567.847 | X129: FY2015-20
C132: TABLE 2.3.3 - AUGEX DATA - HV/LV FEEDERS AND DISTRIBUTION SUBSTATIONS
C133: NOTE: DNSP MUST PROVIDE EXPENDITURE INFORMATION ON AN AS INCURRED BASIS.
C134: Table 2.3.3.1 Descriptor metrics
D137: UNITS ADDED | L137: UNITS UPGRADED
A138: AUG2331 | C138: PROJECT TYPE | D138: =CRCP_y4 -> 2013-14 | E138: =CRCP_y5 -> 2014-15 | F138: =FRCP -> 2015-16 | G138: 2016-17 | H138: 2017-18 | I138: 2018-19 | J138: 2019-20 | L138: =CRCP_y4 -> 2013-14 | M138: =CRCP_y5 -> 2014-15 | N138: =FRCP -> 2015-16 | O138: 2016-17 | P138: 2017-18 | Q138: 2018-19 | R138: 2019-20
A139: ED_AUG2331_00001 | C139: HV Feeder Augmentations - Overhead Lines (Circuit Line Length in KM) | D139: 72.156 | E139: 73.4 | F139: 4.422162275 | G139: 6.7189722 | H139: 5.489910801 | I139: 7.172400203 | J139: 5.489768279 | K139: ED_AUG2333_00001 | L139: 131.0683333 | M139: 114.7126667 | N139: 118.849303 | O139: 54.96828999 | P139: 53.18935659 | Q139: 54.87177571 | R139: 53.1891289
A140: ED_AUG2331_00002 | C140: HV Feeder Augmentations - Underground Cables (Circuit Line Length in KM) | D140: 193.499 | E140: 42.412 | F140: 17.46335396 | G140: 31.4735315 | H140: 29.5068724 | I140: 31.02107766 | J140: 29.50679155 | K140: ED_AUG2333_00002 | L140: 15.51 | M140: 3.824 | N140: 0 | O140: 0 | P140: 0 | Q140: 0 | R140: 0
A141: ED_AUG2331_00003 | C141: LV Feeder Augmentations - Overhead Lines (Circuit Line Length in KM) | D141: 0.436 | E141: 0 | F141: 0 | G141: 0 | H141: 0 | I141: 0 | J141: 0 | K141: ED_AUG2333_00003 | L141: 6.252333333 | M141: 0 | N141: 0 | O141: 0 | P141: 0 | Q141: 0 | R141: 0
A142: ED_AUG2331_00004 | C142: LV Feeder Augmentations - Underground Cables (Circuit Line Length in KM) | D142: 0.03866666667 | E142: 0 | F142: 0 | G142: 0 | H142: 0 | I142: 0 | J142: 0 | K142: ED_AUG2333_00004 | L142: 3.374 | M142: 0 | N142: 0 | O142: 0 | P142: 0 | Q142: 0 | R142: 0
A143: ED_AUG2331_00005 | C143: Distribution Substation Augmentations - Pole Mounted | D143: 72 | E143: 120 | F143: 120 | G143: 120 | H143: 120 | I143: 180 | J143: 180 | K143: ED_AUG2333_00005 | L143: 327 | M143: 236 | N143: 235 | O143: 238 | P143: 236 | Q143: 236 | R143: 236
A144: ED_AUG2331_00006 | C144: Distribution Substation Augmentations - Ground Mounted | D144: 3 | E144: 20 | F144: 20 | G144: 20 | H144: 20 | I144: 30 | J144: 30 | K144: ED_AUG2333_00006 | L144: 256 | M144: 14 | N144: 14 | O144: 14 | P144: 14 | Q144: 14 | R144: 14
A145: ED_AUG2331_00007 | C145: Distribution Substation Augmentations - Indoor | D145: 1 | E145: 0 | F145: 0 | G145: 0 | H145: 0 | I145: 0 | J145: 0 | K145: ED_AUG2333_00007 | L145: 8 | M145: 0 | N145: 0 | O145: 0 | P145: 0 | Q145: 0 | R145: 0
C147: Table 2.3.3.2 Cost metrics
D150: =CONCATENATE("TOTAL DIRECT EXPENDITURE ($000's, real ", DollarReal,")") -> TOTAL DIRECT EXPENDITURE ($000's, real June 2015)
A151: AUG2332 | C151: PROJECT TYPE | D151: =CRCP_y4 -> 2013-14 | E151: =CRCP_y5 -> 2014-15 | F151: =FRCP -> 2015-16 | G151: 2016-17 | H151: 2017-18 | I151: 2018-19 | J151: 2019-20
A152: ED_AUG2332_00001 | C152: HV Feeder Augmentations - Overhead Lines | D152: 5953.207336 | E152: 20318.77242 | F152: 22733.75277 | G152: 16386.457 | H152: 17498.48368 | I152: 16638.30974 | J152: 15728.55671
A153: ED_AUG2332_00002 | C153: HV Feeder Augmentations - Underground Cables | D153: 7836.203949 | E153: 2382.37552 | F153: 5245.339898 | G153: 12110.58393 | H153: 12526.46392 | I153: 12633.13166 | J153: 12725.91688
A154: ED_AUG2332_00003 | C154: HV Feeder Non-Material Projects | D154: 29040.03811 | E154: 15501.58812 | F154: 11973.70772 | G154: 11321.24368 | H154: 10963.4105 | I154: 11045.20851 | J154: 10676.58501
A155: ED_AUG2332_00004 | C155: LV Feeder Augmentations - Overhead Lines | D155: 2685.19448 | E155: 0 | F155: 0 | G155: 0 | H155: 0 | I155: 0 | J155: 0
A156: ED_AUG2332_00005 | C156: LV Feeder Augmentations - Underground Cables | D156: 355.7594108 | E156: 0 | F156: 0 | G156: 0 | H156: 0 | I156: 0 | J156: 0
A157: ED_AUG2332_00006 | C157: LV Feeder Non-Material Projects | D157: 1431.843281 | E157: 2391.937469 | F157: 3763.61031 | G157: 3788.151529 | H157: 3778.002082 | I157: 6917.418363 | J157: 6925.797045
A158: ED_AUG2332_00007 | C158: Distribution Substation Augmentations - Pole Mounted | D158: 15581.10454 | E158: 29725.4424 | F158: 32179.86744 | G158: 31978.51475 | H158: 32020.03131 | I158: 8323.963055 | J158: 8334.46985
A159: ED_AUG2332_00008 | C159: Distribution Substation Augmentations - Ground Mounted | D159: 2584.387478 | E159: 435.7630975 | F159: 2244.755902 | G159: 2250.678366 | H159: 2253.554734 | I159: 6555.219113 | J159: 6563.594162
A160: ED_AUG2332_00009 | C160: Distribution Substation Augmentations - Indoor | D160: 490.40294 | E160: 0 | F160: 0 | G160: 0 | H160: 0 | I160: 0 | J160: 0
C168: TABLE 2.3.4 - AUGEX DATA - TOTAL EXPENDITURE
C169: AUGMENTATION CAPEX | D169: =CONCATENATE("TOTAL DIRECT EXPENDITURE ($000's, real ", DollarReal,")") -> TOTAL DIRECT EXPENDITURE ($000's, real June 2015)
A170: AUG234 | D170: =CRCP_y4 -> 2013-14 | E170: =CRCP_y5 -> 2014-15 | F170: =FRCP -> 2015-16 | G170: 2016-17 | H170: 2017-18 | I170: 2018-19 | J170: 2019-20
A171: ED_AUG234_00001 | C171: Subtransmission Substations, Switching Stations, Zone Substations | D171: 124152.6798 | E171: 57002.36241 | F171: 12897.83853 | G171: 8827.768942 | H171: 4916.360596 | I171: 11382.30983 | J171: 4147.592819
A172: ED_AUG234_00002 | C172: Subtransmission Lines | D172: 13715.09923 | E172: 38094.61985 | F172: 22247.96755 | G172: 33467.1684 | H172: 18621.05905 | I172: 2411.814857 | J172: 567.8793054
A173: ED_AUG234_00003 | C173: HV Feeders | D173: 42829.44939 | E173: 38202.73607 | F173: 39952.80038 | G173: 39818.28461 | H173: 40988.3581 | I173: 40316.64992 | J173: 39131.0586
A174: ED_AUG234_00004 | C174: HV Feeders - Land Purchases and Easements | D174: 28.1278 | E174: 0 | F174: 0 | G174: 0 | H174: 0 | I174: 0 | J174: 0
A175: ED_AUG234_00005 | C175: Distribution Substations | D175: 18655.89496 | E175: 30161.2055 | F175: 34424.62334 | G175: 34229.19311 | H175: 34273.58605 | I175: 14879.18217 | J175: 14898.06401
A176: ED_AUG234_00006 | C176: Distribution Substations - Land Purchases and Easements | D176: 0 | E176: 0 | F176: 0 | G176: 0 | H176: 0 | I176: 0 | J176: 0
A177: ED_AUG234_00007 | C177: LV Feeders | D177: 4472.797172 | E177: 2391.937469 | F177: 3763.61031 | G177: 3788.151529 | H177: 3778.002082 | I177: 6917.418363 | J177: 6925.797045
A178: ED_AUG234_00008 | C178: LV Feeders - Land Purchases and Easements | D178: 0 | E178: 0 | F178: 0 | G178: 0 | H178: 0 | I178: 0 | J178: 0
A179: ED_AUG234_00009 | C179: Other Assets | D179: 4380.99459 | E179: 4934.145632 | F179: 4242.241302 | G179: 6615.921748 | H179: 6641.851112 | I179: 8876.741257 | J179: 8753.101828
A184: PROJECT TYPE FOR TBL 2.3.2
A185: New line on new route - single circuit
A186: New line on new route - dual circuit
A187: New line on new route - other
A188: Line rebuild over existing route - single circuit
A189: Line rebuild over existing route - dual circuit
A190: Reconductor - Single circuit
A191: Reconductor - Dual circuit
A192: Reconductor - Other
A193: Line upgrade - raising/retensoring
A194: Line upgrade - voltage upgrade
A195: Line upgrade - capacity
A196: String spare circuit
A197: Other

Sheet 2.4 Augex model
C1: REGULATORY REPORTING STATEMENT | J1: Worksheet navigation
C2: =TradingName -> Energex
C3: =RCP_1to5 -> 2015-16 to 2019-20
C4: 2.4 AUGEX MODEL
A6: ED_AUG241 | H6: ED_AUG241_00001 | I6: ED_AUG241_00002 | J6: ED_AUG241_00003 | K6: ED_AUG241_00004 | L6: ED_AUG241_00005 | M6: ED_AUG241_00006 | N6: ED_AUG241_00007 | O6: ED_AUG241_00008 | P6: ED_AUG241_00009 | Q6: ED_AUG241_00010 | R6: ED_AUG241_00011 | S6: ED_AUG241_00012
C7: TABLE 2.4.1 - AUGEX MODEL INPUTS - ASSET STATUS - SUBTRANSMISSION LINES
C9: Line ID | D9: Primary type of area supplied by line | E9: Line voltage | F9: Originating substation | G9: Terminating substation | H9: =CRCP_y4 -> 2013-14 | M9: =PRCP_y5 -> 2009-10 | R9: =CONCATENATE("Average per annum growth rate in annual line maximum demand (50% PoE) from ", CRCP_y4, " to ", FRCP_y5) -> Average per annum growth rate in annual line maximum demand (50% PoE) from 2013-14 to 2019-20 | S9: Network Segment ID
H10: Route line length as at 30 June of year | I10: Maximum demand (weather corrected at 50% PoE) | K10: Line rating | M10: Route line length as at 30 June of year | N10: Maximum demand (weather corrected at 50% PoE) | P10: Line rating
K11: Thermal | L11: N-1 emergency | P11: Thermal | Q11: N-1 emergency
D12: CBD, urban, long rural, or short rural | E12: kV | F12: name | G12: name | H12: km | I12: MVA | J12: MW | K12: MVA | L12: MVA | M12: km | N12: MVA | O12: MW | P12: MVA | Q12: MVA | R12: %
A13: AUG241_1 | C13: F3004 | D13: Short Rural | E13: 33 kV | F13: Coondoo Ck Reg | G13: Tin Can Bay | H13: 19.533 | I13: 4.08 | J13: 4.04 | K13: 7.26 | L13: 9.259543617 | R13: -0.007068171214 | S13: 22
A14: AUG241_2 | C14: F3005 | D14: Short Rural | E14: 33 kV | F14: Coondoo Ck Reg | G14: Tin Can Bay | H14: 19.5458 | I14: 3.9 | J14: 3.88 | K14: 33.27 | L14: 33.27 | R14: 0.002969323327 | S14: 10
A15: AUG241_3 | C15: F3009 | D15: Short Rural | E15: 33 kV | F15: Gympie BS | G15: Gympie Nth | H15: 4.85263 | I15: 7.6 | J15: 7.52 | K15: 40.01 | L15: 110.7144197 | R15: -0.0006589794181 | S15: 21
A16: AUG241_4 | C16: F3011 | D16: Short Rural | E16: 33 kV | F16: Gympie BS | G16: Gympie Nth | H16: 4.85143 | I16: 7.6 | J16: 7.52 | K16: 40.01 | L16: 110.7144197 | R16: -0.0006589794181 | S16: 21
A17: AUG241_5 | C17: F303 | D17: Urban | E17: 33 kV | F17: Brendale BS | G17: Albany Ck | H17: 3.2898 | I17: 13.48 | J17: 12.56 | K17: 41.44 | L17: 80.70663943 | M17: 3.2898 | N17: 14.42 | O17: 13 | P17: 41.44 | Q17: 80.70663943 | R17: -0.006535121694 | S17: 21
A18: AUG241_6 | C18: F305 | D18: Urban | E18: 33 kV | F18: Hays Inlet BS | G18: Deception Bay | H18: 5.3006 | I18: 31.43 | J18: 31.03 | K18: 46.87 | L18: 77.8487556 | M18: 5.3006 | N18: 22.17 | O18: 21.73 | P18: 46.87 | Q18: 77.8487556 | R18: -0.01543099173 | S18: 23
A19: AUG241_7 | C19: F307 | D19: Short Rural | E19: 33 kV | F19: Yandina Tee | G19: Yandina | H19: 26.346 | I19: 3.5 | J19: 3.11 | K19: 43.16 | L19: 44.58 | M19: 20.855 | N19: 0 | O19: 0 | P19: 44.58 | Q19: 44.58 | R19: -0.007768362672 | S19: 22
A20: AUG241_8 | C20: F308 | D20: Urban | E20: 33 kV | F20: Coolum | G20: Perigian | H20: 7.783 | I20: 20.31 | J20: 18.58 | K20: 44.3 | L20: 44.3 | M20: 7.747 | N20: 23.25 | O20: 22.73 | P20: 44.58 | Q20: 44.3 | R20: -0.01650400148 | S20: 20
A21: AUG241_9 | C21: F309 | D21: Short Rural | E21: 33 kV | F21: Brendale BS | G21: Arana Hills/Samford | H21: 22.9504 | I21: 13.74 | J21: 13.72 | K21: 35.84 | L21: 40.6391081 | M21: 15.2864 | N21: 15.6 | O21: 15.02 | P21: 35.84 | Q21: 40.6391081 | R21: -0.01342149965 | S21: 24
A22: AUG241_10 | C22: F310 | D22: Urban | E22: 33 kV | F22: Brendale BS | G22: Arana Hills/Samford/Grovely | H22: 10.9634 | I22: 20.79 | J22: 20.74 | K22: 35.84 | L22: 42.2 | M22: 10.9394 | N22: 18.34 | O22: 17.4 | P22: 35.84 | Q22: 42.2 | R22: -0.01385926277 | S22: 24
A23: AUG241_11 | C23: F3100 | D23: Urban | E23: 33 kV | F23: Sunrise Hills BS | G23: Perigian | H23: 8.641 | I23: 29.01 | J23: 27.01 | K23: 44.3 | L23: 44.2971994 | M23: 8.64 | N23: 30.9 | O23: 29.64 | P23: 44.58 | Q23: 44.2971994 | R23: 0.004319397973 | S23: 8
A24: AUG241_12 | C24: F311 | D24: Urban | E24: 33 kV | F24: Hays Inlet BS | G24: Deception Bay | H24: 5.011 | I24: 10.18 | J24: 9.79 | K24: 35.61 | L24: 36.58091306 | M24: 5.011 | N24: 7.17 | O24: 7.14 | P24: 35.61 | Q24: 36.58091306 | R24: -0.01530885372 | S24: 24
A25: AUG241_13 | C25: F312 | D25: Short Rural | E25: 33 kV | F25: Kallangur | G25: Narangba | H25: 5.707 | I25: 0 | J25: 0 | K25: 24.12 | L25: 36.237967 | M25: 5.707 | N25: 2.32 | O25: 0.87 | P25: 24.12 | Q25: 36.237967 | R25: 0 | S25: 8
A26: AUG241_14 | C26: F3120 | D26: Short Rural | E26: 33 kV | F26: Yandina | G26: Eumundi Tee | H26: 8.522 | I26: 0 | J26: 0 | K26: 16.75 | L26: 16.74719926 | R26: 0 | S26: 8
A27: AUG241_15 | C27: F313 | D27: Urban | E27: 33 kV | F27: Loganlea BS | G27: Kingston | H27: 3.113 | I27: 0 | J27: 0 | K27: 33.27 | L27: 33.27 | M27: 7.474 | N27: 0 | O27: 0 | P27: 23.04 | Q27: 27.54 | R27: 0 | S27: 8
A28: AUG241_16 | C28: F314 | D28: Short Rural | E28: 33 kV | F28: Beaudesert BS | G28: Jimboomba | H28: 21.144 | I28: 0 | J28: 0 | K28: 29.26 | L28: 29.26473044 | M28: 21.139 | N28: 0 | O28: 0 | P28: 29.27 | Q28: 29.26473044 | R28: 0 | S28: 8
A29: AUG241_17
A30: AUG241_18
A31: AUG241_19
A32: AUG241_20 | C32: F320 | D32: Urban | E32: 33 kV | F32: Griffin BS | G32: Mango Hill/Kallangur | H32: 8.17722 | I32: 16.76 | J32: 16.61 | K32: 28.29 | L32: 28.29304994 | M32: 3.981 | N32: 17.63 | O32: 17.43 | P32: 28.29 | Q32: 28.29304994 | R32: -0.02018400957 | S32: 24
A33: AUG241_21 | C33: F321 | D33: Short Rural | E33: 33 kV | F33: Caboolture BS | G33: Caboolture West | H33: 4.782 | I33: 13.23 | J33: 13.1 | K33: 29.09 | L33: 31.95114125 | M33: 4.769 | N33: 15.3 | O33: 14.79 | P33: 29.09 | Q33: 31.95 | R33: -0.01140626876 | S33: 22
A34: AUG241_22 | C34: F322 | D34: Short Rural | E34: 33 kV | F34: Caboolture BS | G34: Caboolture West | H34: 5.093 | I34: 13.75 | J34: 13.68 | K34: 29.09 | L34: 31.95114125 | M34: 5.067 | N34: 15.67 | O34: 15.17 | P34: 29.09 | Q34: 31.95 | R34: -0.01134738155 | S34: 22
A35: AUG241_23 | C35: F323 | D35: Short Rural | E35: 33 kV | F35: Caboolture West | G35: Wamuran/Woodford | H35: 21.328 | I35: 3.25 | J35: 3.22 | K35: 14.29 | L35: 17.03298764 | M35: 21.184 | N35: 0 | O35: 0 | P35: 14.35 | Q35: 17.03 | R35: -0.008914263468 | S35: 20
A36: AUG241_24 | C36: F324 | D36: Short Rural | E36: 33 kV | F36: Woodford | G36: Kilcoy | H36: 25.796 | I36: 9.96 | J36: 9.94 | K36: 14.29 | L36: 17.03298764 | M36: 25.822 | N36: 11.75 | O36: 10.83 | P36: 14.35 | Q36: 17.03298764 | R36: 0.00979704769 | S36: 8
A37: AUG241_25 | C37: F325 | D37: Urban | E37: 33 kV | F37: Hays Inlet BS | G37: Scarborough | H37: 6.696 | I37: 15.16 | J37: 15.09 | K37: 30.24 | L37: 36.29512467 | M37: 6.642 | N37: 16.21 | O37: 14.7 | P37: 30.24 | Q37: 36.29512467 | R37: -0.001988753491 | S37: 22
A38: AUG241_26 | C38: F3250 | D38: Urban | E38: 33 kV | F38: Deception Bay | G38: Burpengary | H38: 6.247 | I38: 18.69 | J38: 18.52 | K38: 40.75 | L38: 47.78381768 | R38: -0.03868927747 | S38: 22
A39: AUG241_27 | C39: F3251 | D39: Short Rural | E39: 33 kV | F39: Burpengary | G39: Morayfield | H39: 4.37764 | I39: 0 | J39: 0 | K39: 26.52 | L39: 37.9526973 | R39: 0 | S39: 8
A40: AUG241_28 | C40: F326 | D40: Urban | E40: 33 kV | F40: Redcliffe | G40: Scarborough | H40: 2.286 | I40: 3.38 | J40: 0.68 | K40: 18.4 | L40: 25.43516611 | M40: 2.285 | N40: 2.84 | O40: 2.52 | P40: 18.41 | Q40: 25.43516611 | R40: -0.07334904247 | S40: 22
A41: AUG241_29 | C41: F327 | D41: Urban | E41: 33 kV | F41: Hays Inlet BS | G41: Mango Hill | H41: 3.232 | I41: 11.91 | J41: 11.79 | K41: 46.75 | L41: 46.7549795 | M41: 3.232 | N41: 35.29 | O41: 33.23 | P41: 46.76 | Q41: 46.7549795 | R41: -0.03479605653 | S41: 20
A42: AUG241_30 | C42: F329 | D42: Urban | E42: 33 kV | F42: Redcliffe | G42: Duffield Rd | H42: 3.988 | I42: 5.58 | J42: 5.56 | K42: 16.92 | L42: 23.32033207 | M42: 3.985 | N42: 14.92 | O42: 13.23 | P42: 16.92 | Q42: 23.32033207 | R42: 0.002670282428 | S42: 12
A43: AUG241_31 | C43: F3290 | D43: Urban | E43: 33 kV | F43: Sandgate BS | G43: Bald Hills | H43: 3.77463 | I43: 10.62 | J43: 10.17 | K43: 48.76 | L43: 93.28132829 | R43: -0.003962460914 | S43: 21
A44: AUG241_32 | C44: F330 | D44: Urban | E44: 33 kV | F44: Hays Inlet BS | G44: Duffield Rd | H44: 5.892 | I44: 12.99 | J44: 12.98 | K44: 31.04 | L44: 39.66742759 | M44: 5.855 | N44: 7.46 | O44: 6.6 | P44: 31.04 | Q44: 39.66742759 | R44: -0.003103268058 | S44: 24
A45: AUG241_33 | C45: F331 | D45: Urban | E45: 33 kV | F45: Hays Inlet BS | G45: Duffield Rd | H45: 5.832 | I45: 13.03 | J45: 13.02 | K45: 31.04 | L45: 39.66742759 | M45: 5.861 | N45: 7.48 | O45: 6.61 | P45: 31.04 | Q45: 39.66742759 | R45: -0.002963802608 | S45: 24
A46: AUG241_34 | C46: F332 | D46: Urban | E46: 33 kV | F46: Hays Inlet BS | G46: Redcliffe | H46: 6.99 | I46: 14.58 | J46: 14.48 | K46: 29.95 | L46: 36.12365164 | M46: 6.968 | N46: 15.14 | O46: 13.13 | P46: 29.95 | Q46: 36.12365164 | R46: -0.001722074491 | S46: 24
A47: AUG241_35 | C47: F3329 | D47: Urban | E47: 33 kV | F47: Griffin BS | G47: Kalangur | H47: 4.88158 | I47: 19.59 | J47: 19.41 | K47: 40.01 | L47: 42.75394213 | R47: -0.01529116066 | S47: 23
A48: AUG241_36 | C48: F333 | D48: Urban | E48: 33 kV | F48: Brendale BS | G48: Lawnton | H48: 6.84098 | I48: 15.15 | J48: 15.14 | K48: 41.84 | L48: 49.09844424 | M48: 6.726 | N48: 29.91 | O48: 28.79 | P48: 41.84 | Q48: 49.09844424 | R48: 0.007450594318 | S48: 12
A49: AUG241_37 | C49: F3330 | D49: Urban | E49: 33 kV | F49: Griffin BS | G49: Australian Paper Mills | H49: 5.34667 | I49: 9.04 | J49: 8.63 | K49: 40.98 | L49: 48.01 | R49: -0.01772912647 | S49: 22
A50: AUG241_38 | C50: F3331 | D50: Urban | E50: 33 kV | F50: Australian Paper Mills | G50: Kallangur | H50: 2.108 | I50: 8.61 | J50: 8.58 | K50: 40.98 | L50: 48.01244839 | R50: -0.007695918496 | S50: 22
A51: AUG241_39 | C51: F334 | D51: Short Rural | E51: 33 kV | F51: Nth Pine Dam | G51: Whiteside | H51: 13.15158 | I51: 3.82 | J51: 3.5 | K51: 33.04 | L51: 39.66742759 | M51: 5.219 | N51: 8.87 | O51: 8.85 | P51: 31.61 | Q51: 39.66742759 | R51: -0.02261993122 | S51: 24
A52: AUG241_40 | C52: F3340 | D52: Urban | E52: 33 kV | F52: Brendale Bs | G52: Strathpine | H52: 3.891 | I52: 7.41 | J52: 7.36 | K52: 19.89 | L52: 19.89087147 | R52: 0.002681021277 | S52: 11
A53: AUG241_41
A54: AUG241_42 | C54: F335 | D54: Short Rural | E54: 33 kV | F54: Brendale BS | G54: Whiteside | H54: 18.23673 | I54: 10.35 | J54: 10.07 | K54: 27.72 | L54: 39.66742759 | M54: 10.157 | N54: 15.52 | O54: 14.54 | P54: 27.72 | Q54: 39.66742759 | R54: 0.01947746344 | S54: 12
A55: AUG241_43
A56: AUG241_44
A57: AUG241_45 | C57: F3359 | D57: Urban | E57: 33 kV | F57: Mango Hill Tee | G57: Mango Hill | H57: 9.958 | I57: 12.08 | J57: 11.92 | K57: 40.01 | L57: 46.93 | M57: 5.8719 | N57: 0 | O57: 0 | P57: 40.01 | Q57: 46.93 | R57: 0.03006959032 | S57: 12
A58: AUG241_46 | C58: F336 | D58: Urban | E58: 33 kV | F58: Brendale BS | G58: Strathpine | H58: 3.125 | I58: 8.99 | J58: 8.96 | K58: 26.01 | L58: 43.49699193 | M58: 3.124 | N58: 24.45 | O58: 20.13 | P58: 27.09 | Q58: 43.49699193 | R58: 0.002395691027 | S58: 11
A59: AUG241_47 | C59: F3364 | D59: Urban | E59: 33 kV | F59: Brendale BS | G59: Albany Ck | H59: 3.2514 | I59: 13.82 | J59: 12.87 | K59: 41.44 | L59: 80.70663943 | M59: 3.2514 | N59: 14.79 | O59: 13.33 | P59: 41.44 | Q59: 80.70663943 | R59: -0.006496298158 | S59: 21
A60: AUG241_48 | C60: F337 | D60: Urban | E60: 33 kV | F60: Brendale BS | G60: Strathpine | H60: 3.243 | I60: 7.46 | J60: 7.46 | K60: 28.01 | L60: 45.0402492 | M60: 3.28545 | N60: 23.37 | O60: 18.55 | P60: 31.61 | Q60: 37.88 | R60: 0.002663170862 | S60: 12
A61: AUG241_49
A62: AUG241_50
A63: AUG241_51
A64: AUG241_52
A65: AUG241_53
A66: AUG241_54
A67: AUG241_55
A68: AUG241_56 | C68: F339 | D68: Short Rural | E68: 33 kV | F68: Gympie BS | G68: Amamoor/Imbil/Murrumba | H68: 42.087 | I68: 6.69 | J68: 6.63 | K68: 12 | L68: 14.51804987 | M68: 43.1 | N68: 9.99 | O68: 8.07 | P68: 12 | Q68: 14.51804987 | R68: 0.01278792147 | S68: 8
A69: AUG241_57 | C69: F3393 | D69: Urban | E69: 33 kV | F69: Tennyson BS | G69: St Lucia | H69: 4.258 | I69: 11.79 | J69: 11.78 | K69: 34.87 | L69: 87.96566436 | M69: 4.258 | N69: 6.56 | O69: 5.83 | P69: 34.87 | Q69: 87.96566436 | R69: -0.0005662519453 | S69: 23
A70: AUG241_58 | C70: F3394 | D70: Urban | E70: 33 kV | F70: Tennyson BS | G70: St Lucia | H70: 4.251 | I70: 6.01 | J70: 5.64 | K70: 34.87 | L70: 88.88018719 | M70: 4.251 | N70: 12.9 | O70: 12.18 | P70: 34.87 | Q70: 88.88018719 | R70: 0.03128168317 | S70: 11
A71: AUG241_59 | C71: F340 | D71: Short Rural | E71: 33 kV | F71: Gumpie BS | G71: Gympie Sth/Black Mountain | H71: 62.11 | I71: 3.36 | J71: 3.08 | K71: 19.95 | L71: 23.83 | M71: 62.247 | N71: 3.6 | O71: 2.92 | P71: 20.06 | Q71: 23.83 | R71: 0.02732920955 | S71: 10
A72: AUG241_60 | C72: F3400 | D72: Urban | E72: 33 kV | F72: Algester BS | G72: Calamvale | H72: 3.33738 | I72: 18.39 | J72: 18.39 | K72: 39.67 | L72: 89.56607931 | M72: 3.33738 | N72: 20.36 | O72: 19.35 | P72: 39.67 | Q72: 89.56607931 | R72: -0.01417812176 | S72: 21
A73: AUG241_61 | C73: F3402 | D73: Urban | E73: 33 kV | F73: Algester BS | G73: Acacia Ridge | H73: 2.8424 | I73: 8.91 | J73: 8.51 | K73: 39.27 | L73: 96.31068515 | M73: 2.8424 | N73: 11.07 | O73: 10.81 | P73: 39.27 | Q73: 96.31068515 | R73: -0.01738638502 | S73: 21
A74: AUG241_62 | C74: F3403 | D74: Urban | E74: 33 kV | F74: Algester BS | G74: Acacia Ridge | H74: 2.83413 | I74: 8.93 | J74: 8.53 | K74: 39.27 | L74: 96.31068515 | M74: 2.83413 | N74: 11.1 | O74: 10.84 | P74: 39.27 | Q74: 96.31068515 | R74: -0.01714209064 | S74: 21
A75: AUG241_63 | C75: F3405 | D75: Urban | E75: 33 kV | F75: Algester BS | G75: Calamvale | H75: 3.3338 | I75: 18.41 | J75: 18.41 | K75: 39.67 | L75: 89.56607931 | M75: 3.3338 | N75: 20.38 | O75: 19.37 | P75: 39.67 | Q75: 89.56607931 | R75: -0.01416215524 | S75: 21
A76: AUG241_64 | C76: F341 | D76: Short Rural | E76: 33 kV | F76: Gympie BS | G76: Toolara Forest/Coondoo Creek | H76: 30.892 | I76: 10.23 | J76: 10.16 | K76: 12.06 | L76: 14.29 | M76: 50.262 | N76: 8.16 | O76: 7.86 | P76: 7.26 | Q76: 9.26 | R76: 0.007984873189 | S76: 10
A77: AUG241_65 | C77: F342 | D77: Urban | E77: 33 kV | F77: Brendale BS | G77: Bald Hills | H77: 5.403 | I77: 13 | J77: 12.07 | K77: 31.61 | L77: 37.9526973 | M77: 5.42 | N77: 19.16 | O77: 16.67 | P77: 31.61 | Q77: 37.9526973 | R77: 0.00242119458 | S77: 8
A78: AUG241_66 | C78: F3429 | D78: Urban | E78: 33 kV | F78: Coorparoo BS | G78: Holland Park | H78: 2.927 | I78: 10.42 | J78: 9.45 | K78: 42 | L78: 84.59 | R78: 0.0006387743147 | S78: 9
A79: AUG241_67 | C79: F343 | D79: Short Rural | E79: 33 kV | F79: Sunrise Hills BS | G79: Tewantin/Cooroy | H79: 15.158 | I79: 21.2 | J79: 20.94 | K79: 44.58 | L79: 44.58 | M79: 15.208 | N79: 19.58 | O79: 18.34 | P79: 28.29 | Q79: 28.29 | R79: -0.005176595134 | S79: 22
A80: AUG241_68 | C80: F3430 | D80: Urban | E80: 33 kV | F80: Coorparoo BS | G80: Holland Park | H80: 2.927 | I80: 10.5 | J80: 9.57 | K80: 42 | L80: 84.59 | R80: 0.001265828697 | S80: 9
A81: AUG241_69 | C81: F344 | D81: Short Rural | E81: 33 kV | F81: Nambour BS | G81: Maleny | H81: 21.34 | I81: 5.93 | J81: 5.49 | K81: 8.86 | L81: 11.14574695 | M81: 21.305 | N81: 6.06 | O81: 6 | P81: 8.86 | Q81: 11.14574695 | R81: -0.02291465074 | S81: 20
A82: AUG241_70 | C82: F3440 | D82: Urban | E82: 33 kV | F82: Runcorn BS | G82: Sunnybank | H82: 4.00115 | I82: 19.48 | J82: 19.45 | K82: 31.09 | L82: 51.04180525 | R82: -0.01798680024 | S82: 21
A83: AUG241_71 | C83: F345 | D83: Short Rural | E83: 33 kV | F83: Nambour BS | G83: Kenilworth | H83: 24.037 | I83: 5.04 | J83: 4.57 | K83: 11.89 | L83: 15.20394199 | M83: 23.877 | N83: 4.77 | O83: 4.38 | P83: 11.89 | Q83: 15.20394199 | R83: -0.01582463433 | S83: 20
A84: AUG241_72 | C84: F346 | D84: Urban | E84: 33 kV | F84: Sunrise Hills BS | G84: Tewantin | H84: 3.072 | I84: 15.09 | J84: 15.03 | K84: 44.58 | L84: 44.58 | M84: 2.991 | N84: 21.68 | O84: 20.48 | P84: 44.58 | Q84: 44.58 | R84: -0.008575854252 | S84: 22
A85: AUG241_73 | C85: F3460 | D85: Urban | E85: 33 kV | F85: Annerley | G85: Buranda | H85: 2.0877 | I85: 8.83 | J85: 8.81 | K85: 45.84 | L85: 84.70767679 | R85: -0.004775411478 | S85: 21
A86: AUG241_74 | C86: F3461 | D86: Urban | E86: 33 kV | F86: Annerley | G86: Buranda | H86: 2.08499 | I86: 8.84 | J86: 8.82 | K86: 45.84 | L86: 84.70767679 | R86: -0.004769944286 | S86: 21
A87: AUG241_75 | C87: F347 | D87: Urban | E87: 33 kV | F87: Nambour BS | G87: Palmwoods Central/Landsborough | H87: 26.6 | I87: 8.61 | J87: 8 | K87: 20.41 | L87: 23.54896278 | M87: 27.57 | N87: 8.88 | O87: 7.88 | P87: 20.41 | Q87: 23.54896278 | R87: 0.0007727988727 | S87: 10
A88: AUG241_76 | C88: F348 | D88: Short Rural | E88: 33 kV | F88: Nambour BS | G88: Palmwoods Central | H88: 11.143 | I88: 10.82 | J88: 10 | K88: 22.86 | L88: 27.37852712 | M88: 11.155 | N88: 11.29 | O88: 9.98 | P88: 23.04 | Q88: 27.37852712 | R88: 0.0007686999176 | S88: 10
A89: AUG241_77 | C89: F349 | D89: Urban | E89: 33 kV | F89: Brendale BS | G89: Lawnton | H89: 6.93645 | I89: 16.28 | J89: 16.25 | K89: 40.98 | L89: 46.7549795 | M89: 9.552 | N89: 13.1 | O89: 9.89 | P89: 20.06 | Q89: 23.83 | R89: 0.007436138872 | S89: 12
A90: AUG241_78 | C90: F350 | D90: Short Rural | E90: 33 kV | F90: Caboolture BS | G90: Ningi | H90: 12.49667 | I90: 18.09 | J90: 17.45 | K90: 46.75 | L90: 46.75 | M90: 12.50067 | N90: 18.82 | O90: 17.97 | P90: 46.75 | Q90: 46.75 | R90: -0.0100133302 | S90: 22
A91: AUG241_79 | C91: F351 | D91: Short Rural | E91: 33 kV | F91: Gympie BS | G91: Gympie Sth | H91: 3.387 | I91: 3.89 | J91: 3.53 | K91: 20.29 | L91: 24.29201258 | M91: 3.377 | N91: 4.4 | O91: 3.49 | P91: 20.29 | Q91: 24.29201258 | R91: 0.02758868327 | S91: 10
A92: AUG241_80 | C92: F354 | D92: Urban | E92: 33 kV | F92: Raceview BS | G92: Roderick St | H92: 3.863 | I92: 17.45 | J92: 17.31 | K92: 28.41 | L92: 36.237967 | M92: 3.867 | N92: 22.6 | O92: 21.13 | P92: 28.41 | Q92: 36.237967 | R92: -0.00249884422 | S92: 24
A93: AUG241_81 | C93: F355 | D93: Urban | E93: 33 kV | F93: Roderick St | G93: Booval | H93: 3.87 | I93: 10.23 | J93: 9.83 | K93: 28.29 | L93: 28.29304994 | M93: 3.873 | N93: 11.09 | O93: 10.87 | P93: 28.29 | Q93: 28.29304994 | R93: -0.005785212205 | S93: 24
A94: AUG241_82 | C94: F3550 | D94: Urban | E94: 33 kV | F94: Cleveland BS | G94: Victoria Pt | H94: 6.75 | I94: 23.14 | J94: 22.94 | K94: 47.16 | L94: 52.8708509 | M94: 7.089 | N94: 30.35 | O94: 26.92 | P94: 47.16 | Q94: 52.8708509 | R94: -0.01019588259 | S94: 23
A95: AUG241_83 | C95: F356 | D95: Short Rural | E95: 33 kV | F95: Abermain BS | G95: Ebbw Vale | H95: 8.088 | I95: 3.47 | J95: 3.31 | K95: 28.87 | L95: 36.00933629 | M95: 7.404 | N95: 9.56 | O95: 9.41 | P95: 28.87 | Q95: 36.01 | R95: -0.0004808851525 | S95: 24
A96: AUG241_84 | C96: F357 | D96: Urban | E96: 33 kV | F96: Moggill | G96: Redbank | H96: 16.6726 | I96: 7.25 | J96: 6.93 | K96: 40.58 | L96: 46.7549795 | M96: 6.886 | N96: 0 | O96: 0 | P96: 30.58 | Q96: 30.58 | R96: -0.0002300172868 | S96: 24
A97: AUG241_85 | C97: F3570 | D97: Urban | E97: 33 kV | F97: Capalaba South | G97: Capalaba | H97: 1.7645 | I97: 6.08 | J97: 4.8 | K97: 31.61 | L97: 37.9526973 | R97: -0.04997728222 | S97: 21
A98: AUG241_86 | C98: F358 | D98: Short Rural | E98: 33 kV | F98: Abermain BS | G98: Ebbw Vale | H98: 7.524 | I98: 3.83 | J98: 3.7 | K98: 27.04 | L98: 43.03973052 | M98: 7.525 | N98: 9.86 | O98: 9.59 | P98: 27.04 | Q98: 43.04 | R98: -0.0004356351791 | S98: 24
A99: AUG241_87 | C99: F3580 | D99: Urban | E99: 33 kV | F99: Vleveland BS | G99: Mt Cotton/Redland Bay/Cornubia | H99: 13.59033 | I99: 2.29 | J99: 1.67 | K99: 30.12 | L99: 48.01244839 | M99: 15.239 | N99: 2.33 | O99: 2.28 | P99: 20.29 | Q99: 24.29 | R99: -0.01433204967 | S99: 22
A100: AUG241_88 | C100: F3590 | D100: Urban | E100: 33 kV | F100: Beenleigh BS | G100: Loganholme | H100: 7.306 | I100: 21.51 | J100: 21.34 | K100: 43.78 | L100: 46.7549795 | M100: 7.309 | N100: 25.1 | O100: 23.75 | P100: 43.78 | Q100: 46.75 | R100: -0.01033627834 | S100: 22
A101: AUG241_89 | C101: F3591 | D101: Urban | E101: 33 kV | F101: Cornubia | G101: Loganholme | H101: 3.7883 | I101: 4.31 | J101: 4.3 | K101: 46.13 | L101: 53.55674302 | M101: 3.75761 | N101: 13.6 | O101: 12.93 | P101: 46.13 | Q101: 53.56 | R101: -0.001163471728 | S101: 22
A102: AUG241_90 | C102: F3600 | D102: Short Rural | E102: 33 kV | F102: Yatala | G102: Stapylton | H102: 3.65132 | I102: 5 | J102: 4.99 | K102: 40.75 | L102: 47.78381768 | M102: 3.65132 | N102: 9.74 | O102: 9.12 | P102: 40.75 | Q102: 47.78 | R102: 0.01815570359 | S102: 10
A103: AUG241_91 | C103: F3601 | D103: Short Rural | E103: 33 kV | F103: Yatala | G103: Stapylton | H103: 3.76401 | I103: 4.84 | J103: 4.83 | K103: 40.75 | L103: 47.78381768 | M103: 3.76501 | N103: 9.43 | O103: 8.83 | P103: 40.75 | Q103: 47.78 | R103: 0.01810030431 | S103: 10
A104: AUG241_92 | C104: F361 | D104: Urban | E104: 33 kV | F104: Raceview BS | G104: Booval | H104: 2.569 | I104: 18.43 | J104: 18.34 | K104: 36.01 | L104: 43.26836122 | M104: 2.569 | N104: 23.67 | O104: 21.8 | P104: 36.07 | Q104: 43.26836122 | R104: -0.005687046242 | S104: 23
A105: AUG241_93 | C105: F362 | D105: Short Rural | E105: 33 kV | F105: Raceview BS | G105: Flinders/Kalbar | H105: 41.3502 | I105: 8 | J105: 7.98 | K105: 20.41 | L105: 24.40632793 | M105: 60.6905 | N105: 10.12 | O105: 8.39 | P105: 20.41 | Q105: 24.40632793 | R105: 0.06464787042 | S105: 10
A106: AUG241_94 | C106: F3620 | D106: Short Rural | E106: 33 kV | F106: Beenleigh BS | G106: Logan Village | H106: 13.52 | I106: 0 | J106: 0 | K106: 28.01 | L106: 28.00726156 | M106: 12.607 | N106: 0 | O106: 0 | P106: 29.27 | Q106: 29.27 | R106: 0 | S106: 8
A107: AUG241_95 | C107: F363 | D107: Short Rural | E107: 33 kV | F107: Raceview BS | G107: Flinders/Kalbar | H107: 42.5939 | I107: 9.05 | J107: 8.89 | K107: 19.95 | L107: 23.83475116 | M107: 42.781 | N107: 12 | O107: 10.9 | P107: 20.06 | Q107: 23.83475116 | R107: 0.05031914823 | S107: 10
A108: AUG241_96 | C108: F364 | D108: Short Rural | E108: 33 kV | F108: Marburg | G108: Rosewood | H108: 14.392 | I108: 4.1 | J108: 3.92 | K108: 8.8 | L108: 11.08858927 | M108: 14.448 | N108: 3.39 | O108: 3.38 | P108: 8.8 | Q108: 11.09 | R108: 0.0241090736 | S108: 10
A109: AUG241_97 | C109: F3640 | D109: Urban | E109: 33 kV | F109: Coomera BS | G109: Hope Is/Gavin | H109: 10.90745 | I109: 14.17 | J109: 14.12 | K109: 40.75 | L109: 47.78381768 | M109: 18.3342 | N109: 0.63 | O109: 0 | P109: 40.75 | Q109: 47.78 | R109: -0.006090576708 | S109: 21
A110: AUG241_98 | C110: F3641 | D110: Short Rural | E110: 33 kV | F110: Coomera BS | G110: Pimpama East | H110: 9.1088 | I110: 7.05 | J110: 6.15 | K110: 40.75 | L110: 47.78381768 | R110: 0.005824686456 | S110: 10
A111: AUG241_99 | C111: F3642 | D111: Short Rural | E111: 33 kV | F111: Coomera BS | G111: Pimpama East | H111: 9.09908 | I111: 7.11 | J111: 6.2 | K111: 40.75 | L111: 47.78381768 | R111: 0.005776233292 | S111: 10
A112: AUG241_100 | C112: F365 | D112: Short Rural | E112: 33 kV | F112: Abermain BS | G112: Karrabin | H112: 11.336 | I112: 17.91 | J112: 17.09 | K112: 42.64 | L112: 46.7549795 | M112: 11.335 | N112: 18.81 | O112: 17.31 | P112: 42.64 | Q112: 46.75 | R112: 0.02508133596 | S112: 10
A113: AUG241_101 | C113: F366 | D113: Short Rural | E113: 33 kV | F113: Abermain BS | G113: Karrabin | H113: 10.405 | I113: 19.61 | J113: 18.68 | K113: 43.33 | L113: 46.7549795 | M113: 10.417 | N113: 20.58 | O113: 18.9 | P113: 43.33 | Q113: 46.75 | R113: 0.02513826363 | S113: 10
A114: AUG241_102
A115: AUG241_103 | C115: F3670 | D115: Urban | E115: 33 kV | F115: Molendinar BS | G115: Parkwood | H115: 4.14114 | I115: 17.44 | J115: 17.31 | K115: 40.58 | L115: 46.7549795 | R115: 0.0317707438 | S115: 9
A116: AUG241_104 | C116: F3671 | D116: Urban | E116: 33 kV | F116: Molendinar BS | G116: Parkwood | H116: 4.20843 | I116: 13.52 | J116: 13.35 | K116: 40.47 | L116: 46.7549795 | R116: 0.03176203855 | S116: 9
A117: AUG241_105 | C117: F368 | D117: Urban | E117: 33 kV | F117: Abermain BS | G117: Mt Crosby | H117: 6.655 | I117: 9.84 | J117: 9.18 | K117: 30.24 | L117: 32.57987569 | M117: 6.654 | N117: 11.84 | O117: 10.13 | P117: 30.24 | Q117: 32.58 | R117: 0.0001693050171 | S117: 10
A118: AUG241_106 | C118: F369 | D118: Urban | E118: 33 kV | F118: Abermain BS | G118: Nth Ipswich | H118: 2.974 | I118: 12.34 | J118: 11.35 | K118: 28.52 | L118: 36.237967 | M118: 3.068 | N118: 15.67 | O118: 14.78 | P118: 28.52 | Q118: 36.24 | R118: -0.01413119454 | S118: 22
A119: AUG241_107 | C119: F370 | D119: Urban | E119: 33 kV | F119: Abermain BS | G119: Nth Ipswich | H119: 3.199 | I119: 12.57 | J119: 11.54 | K119: 28.52 | L119: 40.98205416 | M119: 3.319 | N119: 15.94 | O119: 15.05 | P119: 28.52 | Q119: 40.98 | R119: -0.01429035758 | S119: 22
A120: AUG241_108 | C120: F3700 | D120: Short Rural | E120: 33 kV | F120: Mudgeeraba BS | G120: Mudgeeraba Pkg | H120: 6.2271 | I120: 9.92 | J120: 9.89 | K120: 45.73 | L120: 45.73 | M120: 19.965 | N120: 2.3 | O120: 1.89 | P120: 15.49 | Q120: 18.46 | R120: -0.008407263728 | S120: 22
A121: AUG241_109 | C121: F3701 | D121: Short Rural | E121: 33 kV | F121: Mudgeeraba BS | G121: Mudgeeraba Pkg | H121: 5.63 | I121: 10.66 | J121: 9.9 | K121: 30.24 | L121: 33.26576781 | M121: 5.628 | N121: 17.56 | O121: 16.16 | P121: 30.24 | Q121: 33.26576781 | R121: -0.008463497973 | S121: 22
A122: AUG241_110
A123: AUG241_111 | C123: F371 | D123: Urban | E123: 33 kV | F123: Cleveland BS | G123: Birkdale | H123: 7.681 | I123: 22.52 | J123: 22.51 | K123: 31.61 | L123: 37.9526973 | M123: 7.681 | N123: 23.53 | O123: 22.9 | P123: 31.61 | Q123: 37.9526973 | R123: -0.01212921856 | S123: 22
A124: AUG241_112 | C124: F372 | D124: Urban | E124: 33 kV | F124: Cleveland BS | G124: Raby Bay | H124: 3.0041 | I124: 21.19 | J124: 20.79 | K124: 34.92 | L124: 78.0773863 | M124: 3.0041 | N124: 24.3 | O124: 24.08 | P124: 34.92 | Q124: 78.0773863 | R124: -0.0193137949 | S124: 23
A125: AUG241_113 | C125: F373 | D125: Urban | E125: 33 kV | F125: Raby Bay | G125: Capalaba | H125: 7.184 | I125: 18.45 | J125: 18.19 | K125: 26.75 | L125: 33.26576781 | M125: 7.184 | N125: 18.99 | O125: 18.72 | P125: 26.75 | Q125: 33.26576781 | R125: -0.01393643281 | S125: 22
A126: AUG241_114 | C126: F374 | D126: Urban | E126: 33 kV | F126: Cleveland BS | G126: Capalaba South | H126: 7.799 | I126: 20.81 | J126: 20.71 | K126: 30.98 | L126: 37.9526973 | M126: 8.4135 | N126: 20.54 | O126: 20.08 | P126: 30.98 | Q126: 37.9526973 | R126: -0.01384546659 | S126: 24
A127: AUG241_115 | C127: F375 | D127: Short Rural | E127: 33 kV | F127: Cleveland BS | G127: Mt Cotton | H127: 9.9645 | I127: 8.32 | J127: 8.2 | K127: 29.78 | L127: 37.9526973 | M127: 9.9645 | N127: 10.68 | O127: 9.65 | P127: 29.78 | Q127: 37.9526973 | R127: -0.00568928299 | S127: 24
A128: AUG241_116 | C128: F3751 | D128: Urban | E128: 33 kV | F128: Burleigh Hds BS | G128: Currumbin | H128: 7.463 | I128: 27.95 | J128: 27.95 | K128: 41.1 | L128: 111.5717848 | M128: 7.463 | N128: 37.08 | O128: 35.96 | P128: 41.1 | Q128: 111.5717848 | R128: 0.004423073569 | S128: 9
A129: AUG241_117
A130: AUG241_118 | C130: F3755 | D130: Urban | E130: 33 kV | F130: Burleigh Hds BS | G130: Currumbin | H130: 7.467 | I130: 27.93 | J130: 27.93 | K130: 41.1 | L130: 111.5717848 | M130: 7.467 | N130: 37.06 | O130: 35.95 | P130: 41.1 | Q130: 111.5717848 | R130: 0.004484567382 | S130: 9
A131: AUG241_119 | C131: F3756 | D131: Urban | E131: 33 kV | F131: Burleigh Heads BS | G131: Palm Beach/Currumbin | H131: 8.486 | I131: 6.54 | J131: 5.91 | K131: 27.72 | L131: 33.27 | R131: 0.04871364176 | S131: 10
A132: AUG241_120
A133: AUG241_121 | C133: F376 | D133: Short Rural | E133: 33 kV | F133: Postmans Ridge BS | G133: Helidon | H133: 6.921 | I133: 6.41 | J133: 6.3 | K133: 16.52 | L133: 16.57572623 | M133: 6.915 | N133: 6.86 | O133: 6.58 | P133: 16.52 | Q133: 16.57572623 | R133: -0.01233463885 | S133: 20
A134: AUG241_122 | C134: F377 | D134: Short Rural | E134: 33 kV | F134: Gattom BS | G134: Gatton/Glenmore Grove | H134: 19.138 | I134: 12.75 | J134: 12.69 | K134: 31.61 | L134: 37.95 | M134: 19.239 | N134: 15.8 | O134: 14.54 | P134: 31.61 | Q134: 37.95 | R134: 0.008447047613 | S134: 10
A135: AUG241_123 | C135: F378 | D135: Short Rural | E135: 33 kV | F135: Lockrose BS | G135: Glenmore Grove/Laidley | H135: 24.968 | I135: 9.8 | J135: 9.76 | K135: 24.69 | L135: 24.69 | M135: 6.597 | N135: 7.79 | O135: 7.62 | P135: 21.38 | Q135: 25.61 | R135: -0.009580286196 | S135: 22
A136: AUG241_124 | C136: F379 | D136: Short Rural | E136: 33 kV | F136: Postmans Ridge BS | G136: Carpendale/Tenthill | H136: 21.745 | I136: 1.71 | J136: 1.65 | K136: 11.43 | L136: 11.08858927 | M136: 21.656 | N136: 0.86 | O136: 0.82 | P136: 11.43 | Q136: 11.08858927 | R136: -0.003937186226 | S136: 20
A137: AUG241_125 | C137: F380 | D137: Short Rural | E137: 33 kV | F137: Murrumba | G137: Toogoolawah/Somerset Dam | H137: 37.213 | I137: 3.04 | J137: 3.03 | K137: 8.86 | L137: 11.14574695 | M137: 37.204 | N137: 6.03 | O137: 5.47 | P137: 8.86 | Q137: 11.14574695 | R137: 0.08610336773 | S137: 10
A138: AUG241_126 | C138: F3800 | D138: Short Rural | E138: 33 kV | F138: Goodna BS | G138: Cooneana | H138: 8.577 | I138: 1.17 | J138: 1.07 | K138: 31.61 | L138: 37.9526973 | R138: 0.3402134498 | S138: 10
A139: AUG241_127 | C139: F3801 | D139: Urban | E139: 33 kV | F139: Goodna BS | G139: Carol Pk Central | H139: 6.8933 | I139: 12.92 | J139: 12.91 | K139: 41.15 | L139: 81.2782162 | M139: 6.8933 | N139: 18.12 | O139: 15.92 | P139: 41.15 | Q139: 81.2782162 | R139: 0.007345712864 | S139: 11
A140: AUG241_128 | C140: F3802 | D140: Urban | E140: 33 kV | F140: Goodna BS | G140: Springfield | H140: 7.4797 | I140: 16.93 | J140: 16.89 | K140: 33.84 | L140: 81.62116226 | M140: 7.4797 | N140: 14.46 | O140: 14.22 | P140: 33.84 | Q140: 81.62116226 | R140: -0.04075110798 | S140: 21
A141: AUG241_129 | C141: F3803 | D141: Urban | E141: 33 kV | F141: Goodna BS | G141: Carol Park | H141: 5.253 | I141: 10.31 | J141: 8.83 | K141: 28.69 | L141: 37.9526973 | M141: 5.24673 | N141: 11.97 | O141: 11.59 | P141: 28.69 | Q141: 37.9526973 | R141: -0.01862838099 | S141: 22
A142: AUG241_130 | C142: F3805 | D142: Urban | E142: 33 kV | F142: Goodna BS | G142: Carol Park | H142: 5.792 | I142: 9.43 | J142: 8.15 | K142: 28.69 | L142: 37.9526973 | M142: 5.7748 | N142: 11.03 | O142: 10.63 | P142: 28.69 | Q142: 37.9526973 | R142: -0.01850977128 | S142: 22
A143: AUG241_131 | C143: F3806 | D143: Urban | E143: 33 kV | F143: Goodna BS | G143: Springfield | H143: 7.5082 | I143: 16.87 | J143: 16.83 | K143: 33.84 | L143: 81.62116226 | M143: 7.5082 | N143: 14.41 | O143: 14.17 | P143: 33.84 | Q143: 81.62116226 | R143: -0.04066907407 | S143: 21
A144: AUG241_132 | C144: F3807 | D144: Urban | E144: 33 kV | F144: Goodna BS | G144: Redbank | H144: 3.285 | I144: 13.59 | J144: 11.23 | K144: 42.75 | L144: 45.26887991 | M144: 3.50066 | N144: 19.08 | O144: 17.5 | P144: 23.78 | Q144: 23.78 | R144: 0.06634074638 | S144: 7
A145: AUG241_133 | C145: F3808 | D145: Urban | E145: 33 kV | F145: Goodna BS | G145: Carol Pk Central | H145: 6.8763 | I145: 12.95 | J145: 12.94 | K145: 40.01 | L145: 81.2782162 | M145: 6.8763 | N145: 18.17 | O145: 15.96 | P145: 40.01 | Q145: 81.2782162 | R145: 0.007329002303 | S145: 11
A146: AUG241_134 | C146: F3809 | D146: Short Rural | E146: 33 kV | F146: Goodna BS | G146: Cooneana | H146: 7.596 | I146: 1.32 | J146: 1.21 | K146: 31.61 | L146: 37.9526973 | R146: 0.3408192572 | S146: 10
A147: AUG241_135 | C147: F381 | D147: Short Rural | E147: 33 kV | F147: Lockrose BS | G147: Coominya/Paddys Gully | H147: 34.1115 | I147: 8.02 | J147: 7.58 | K147: 16.75 | L147: 16.75 | M147: 41.924 | N147: 14.79 | O147: 13.25 | P147: 16.75 | Q147: 16.75 | R147: 0.02790456474 | S147: 10
A148: AUG241_136 | C148: F382 | D148: Short Rural | E148: 33 kV | F148: Lockrose BS | G148: Paddys Gully | H148: 27.356 | I148: 8.06 | J148: 8.03 | K148: 24.81 | L148: 24.80643167 | M148: 30.643 | N148: 8.06 | O148: 7.35 | P148: 8.86 | Q148: 11.15 | R148: 0.04933188996 | S148: 10
A149: AUG241_137 | C149: F3828 | D149: Short Rural | E149: 33 kV | F149: Paddy's Gully | G149: Esk | H149: 7.946 | I149: 5.12 | J149: 5.06 | K149: 8.8 | L149: 11.08858927 | R149: 0.05450938606 | S149: 10
A150: AUG241_138 | C150: F3829 | D150: Short Rural | E150: 33 kV | F150: Paddy's Gully | G150: Murrumba | H150: 3.267 | I150: 4.89 | J150: 4.66 | K150: 8.86 | L150: 11.14574695 | R150: 0.05283640848 | S150: 10
A151: AUG241_139
A152: AUG241_140 | C152: F3831 | D152: Short Rural | E152: 33 kV | F152: Lockrose BS | G152: Tarampa | H152: 11.165 | I152: 5.25 | J152: 4.66 | K152: 20.41 | L152: 24.40632793 | R152: 0.002836945931 | S152: 8
A153: AUG241_141 | C153: F3832 | D153: Short Rural | E153: 33 kV | F153: Tarampa | G153: Lowood | H153: 6.835 | I153: 0 | J153: 0 | K153: 24.81 | L153: 24.81 | R153: 0 | S153: 7
A154: AUG241_142 | C154: F384 | D154: Short Rural | E154: 33 kV | F154: Lockrose BS | G154: Laidley | H154: 22.099 | I154: 10.17 | J154: 10.13 | K154: 25.78 | L154: 25.78 | M154: 22.117 | N154: 9.57 | O154: 9.27 | P154: 25.78 | Q154: 25.78 | R154: -0.009567126308 | S154: 22
A155: AUG241_143 | C155: F3840 | D155: Short Rural | E155: 33 kV | F155: Esk | G155: Toogoolawah | H155: 20.426 | I155: 2.09 | J155: 2.05 | K155: 8.8 | L155: 11.08858927 | M155: 20.416 | N155: 0.67 | O155: 0 | P155: 8.86 | Q155: 11.08858927 | R155: 0.1105121048 | S155: 10
A156: AUG241_144 | C156: F3859 | D156: Short Rural | E156: 33 kV | F156: Gatton BS | G156: Springfield Central | H156: 10.14093 | I156: 2.12 | J156: 1.89 | K156: 43.67 | L156: 46.7549795 | R156: 0.04431810066 | S156: 10
A157: AUG241_145 | C157: F3860 | D157: Short Rural | E157: 33 kV | F157: Gatton BS | G157: Springfield Central | H157: 10.14777 | I157: 2.11 | J157: 1.88 | K157: 43.67 | L157: 46.7549795 | R157: 0.04514137223 | S157: 10
A158: AUG241_146 | C158: F387 | D158: Short Rural | E158: 33 kV | F158: Abermain BS | G158: Marburg | H158: 19.383 | I158: 8.48 | J158: 8.36 | K158: 16.58 | L158: 16.57572623 | M158: 19.361 | N158: 9.47 | O158: 9.22 | P158: 46.58 | Q158: 16.58 | R158: 0.0144080489 | S158: 10
A159: AUG241_147 | C159: F3870 | D159: Short Rural | E159: 33 kV | F159: Lockrose BS | G159: Lowood | H159: 19.441 | I159: 8.3 | J159: 7.77 | K159: 40.18 | L159: 47.15508324 | R159: 0.02649504247 | S159: 8
A160: AUG241_148 | C160: F3871 | D160: Short Rural | E160: 33 kV | F160: Lowood | G160: Wivenhoe | H160: 9.077 | I160: 5.55 | J160: 5.32 | K160: 24.81 | L160: 24.80643167 | R160: 0.03695366586 | S160: 8
A161: AUG241_149 | C161: F389 | D161: Urban | E161: 33 kV | F161: Parkwood | G161: Hollywell/Labrador | H161: 7.85377 | I161: 16.76 | J161: 16.41 | K161: 44.58 | L161: 44.58298779 | M161: 6.231 | N161: 18.25 | O161: 17.9 | P161: 44.58 | Q161: 44.58298779 | R161: -0.04593306837 | S161: 21
A162: AUG241_150 | C162: F390 | D162: Urban | E162: 33 kV | F162: Molendinar BS | G162: Bundall/Maimi | H162: 21.262 | I162: 5.71 | J162: 5.63 | K162: 36.41 | L162: 38.3 | M162: 21.37382 | N162: 8.02 | O162: 7.38 | P162: 35.61 | Q162: 36.58091306 | R162: -0.0117217125 | S162: 22
A163: AUG241_151 | C163: F3901 | D163: Short Rural | E163: 33 kV | F163: Abermain BS | G163: Amberley/Karrabin | H163: 6.007 | I163: 10.9 | J163: 9.83 | K163: 31.61 | L163: 37.9526973 | R163: 0.02048178957 | S163: 10
A164: AUG241_152 | C164: F391 | D164: Urban | E164: 33 kV | F164: Molendinar BS | G164: Bundall | H164: 6.324 | I164: 14.91 | J164: 14.73 | K164: 35.61 | L164: 36.58091306 | M164: 6.21008 | N164: 21.67 | O164: 19.81 | P164: 35.61 | Q164: 36.58091306 | R164: -0.01114900458 | S164: 22
A165: AUG241_153 | C165: F392 | D165: Urban | E165: 33 kV | F165: Molendinar BS | G165: Gaven | H165: 3.9381 | I165: 11.15 | J165: 10.43 | K165: 40.47 | L165: 48.01244839 | M165: 3.871 | N165: 0 | O165: 0 | P165: 18.75 | Q165: 18.75 | R165: -0.01570068863 | S165: 22
A166: AUG241_154 | C166: F393 | D166: Urban | E166: 33 kV | F166: Currumbin | G166: Kirra | H166: 10.6945 | I166: 16.32 | J166: 16.02 | K166: 25.44 | L166: 30.3507263 | M166: 10.6925 | N166: 19.43 | O166: 18.62 | P166: 25.44 | Q166: 30.3507263 | R166: 0.04538574771 | S166: 7
A167: AUG241_155 | C167: F394 | D167: Urban | E167: 33 kV | F167: Coomera BS | G167: Hope Is | H167: 9.9747 | I167: 15.08 | J167: 14.96 | K167: 40.92 | L167: 46.46919112 | M167: 9.9747 | N167: 36.27 | O167: 34.86 | P167: 40.93 | Q167: 46.46919112 | R167: -0.005604011283 | S167: 21
A168: AUG241_156
A169: AUG241_157
A170: AUG241_158 | C170: F395 | D170: Urban | E170: 33 kV | F170: Burleigh Hds BS | G170: Miami | H170: 6.309 | I170: 21.86 | J170: 20.8 | K170: 37.38 | L170: 43.95425334 | M170: 6.309 | N170: 25.83 | O170: 24.86 | P170: 37.38 | Q170: 43.95425334 | R170: -0.01553453329 | S170: 20
A171: AUG241_159 | C171: F396 | D171: Urban | E171: 33 kV | F171: Burleigh Hds BS | G171: Palm Beach | H171: 6.731 | I171: 9.89 | J171: 9.79 | K171: 45.73 | L171: 45.73 | M171: 6.732 | N171: 12.92 | O171: 12.77 | P171: 50.13 | Q171: 46.07 | R171: -0.0001685914327 | S171: 22
A172: AUG241_160 | C172: F397 | D172: Urban | E172: 33 kV | F172: Burleigh Hds BS | G172: Mudgeeraba | H172: 5.07218 | I172: 0 | J172: 0 | K172: 30.24 | L172: 36.24 | M172: 5.19718 | N172: 0 | O172: 0 | P172: 34.41 | Q172: 36.24 | R172: 0 | S172: 7
A173: AUG241_161 | C173: F3980 | D173: Short Rural | E173: 33 kV | F173: Kalbar | G173: Boonah | H173: 13.088 | I173: 3.54 | J173: 3.53 | K173: 40.75 | L173: 47.78381768 | R173: 0.03964254455 | S173: 10
A174: AUG241_162
A175: AUG241_163
A176: AUG241_164 | C176: F401 | D176: Short Rural | E176: 33 kV | F176: Kalbar | G176: Boonah | H176: 11.9444 | I176: 3.42 | J176: 3.42 | K176: 31.61 | L176: 37.9526973 | M176: 12.0911 | N176: 9.65 | O176: 8.63 | P176: 31.61 | Q176: 37.9526973 | R176: 0.0397037414 | S176: 10
A177: AUG241_165 | C177: F402 | D177: Urban | E177: 33 kV | F177: Beenleigh BS | G177: Tamborine Village | H177: 38.091 | I177: 11.39 | J177: 11.01 | K177: 33.09 | L177: 33.09429478 | M177: 38.095 | N177: 18.67 | O177: 16.95 | P177: 33.09 | Q177: 33.09 | R177: -0.003841205651 | S177: 20
A178: AUG241_166 | C178: F403 | D178: Short Rural | E178: 33 kV | F178: Beaudesert | G178: Mt Tamborine | H178: 26.79 | I178: 7.18 | J178: 6.6 | K178: 29.26 | L178: 29.26473044 | M178: 26.797 | N178: 0 | O178: 0 | P178: 33.27 | Q178: 29.26473044 | R178: 0.002307905648 | S178: 8
A179: AUG241_167 | C179: F404 | D179: Short Rural | E179: 33 kV | F179: Beaudesert | G179: Innisplain | H179: 25.313 | I179: 5.09 | J179: 5.05 | K179: 8.8 | L179: 11.08858927 | M179: 25.293 | N179: 4.22 | O179: 4.01 | P179: 8.86 | Q179: 11.08858927 | R179: 0.003247907495 | S179: 8
A180: AUG241_168 | C180: F405 | D180: Urban | E180: 33 kV | F180: Beenleigh BS | G180: Cornubia | H180: 9.29331 | I180: 14.44 | J180: 14.31 | K180: 44.24 | L180: 53.56 | M180: 9.31031 | N180: 13.58 | O180: 12.84 | P180: 44.24 | Q180: 53.56 | R180: -0.009333274052 | S180: 22
A181: AUG241_169 | C181: F406A | D181: Urban | E181: 33 kV | F181: Bethania | G181: Kingston | H181: 5.423 | I181: 0 | J181: 0 | K181: 30.24 | L181: 36.237967 | M181: 5.417 | N181: 0 | O181: 0 | P181: 34.47 | Q181: 36.237967 | R181: 0 | S181: 8
A182: AUG241_170 | C182: F406B | D182: Urban | E182: 33 kV | F182: Crestmead | G182: Kingston | H182: 4.51 | I182: 0 | J182: 0 | K182: 44.58 | L182: 46.7549795 | M182: 2.15 | N182: 0 | O182: 0 | P182: 31.61 | Q182: 37.88 | R182: 0 | S182: 8
A183: AUG241_171 | C183: F407 | D183: Urban | E183: 33 kV | F183: Loganlea BS | G183: Woodridge | H183: 4.965 | I183: 18.25 | J183: 18.19 | K183: 40.35 | L183: 44.52583011 | M183: 4.971 | N183: 21.93 | O183: 20.5 | P183: 22.12 | Q183: 22.12 | R183: -0.006969631854 | S183: 22
A184: AUG241_172 | C184: F408A | D184: Urban | E184: 33 kV | F184: Loganlea BS | G184: Kingston | H184: 3.303 | I184: 15.78 | J184: 15.59 | K184: 30.24 | L184: 36.24 | M184: 3.302 | N184: 16.27 | O184: 16.14 | P184: 31.32 | Q184: 36.24 | R184: -0.01975002597 | S184: 21
A185: AUG241_173 | C185: F408B | D185: Urban | E185: 33 kV | F185: Bethania | G185: Kingston | H185: 0.264 | I185: 0 | J185: 0 | K185: 33.1 | L185: 33.1 | M185: 0.264 | N185: 0 | O185: 0 | P185: 40.24 | Q185: 40.24 | R185: 0 | S185: 7
A186: AUG241_174 | C186: F409 | D186: Urban | E186: 33 kV | F186: Loganlea BS | G186: Woodridge | H186: 5.323 | I186: 15.94 | J186: 15.86 | K186: 44.53 | L186: 44.52583011 | M186: 5.323 | N186: 19.09 | O186: 17.92 | P186: 25.21 | Q186: 31.32 | R186: -0.00691475785 | S186: 22
A187: AUG241_175 | C187: F410 | D187: Urban | E187: 33 kV | F187: Sherwood | G187: Indooroopilly | H187: 3.932 | I187: 13.34 | J187: 13.04 | K187: 22.86 | L187: 23.09170137 | M187: 3.932 | N187: 16.88 | O187: 16.4 | P187: 22.86 | Q187: 23.09170137 | R187: -0.006346730916 | S187: 23
A188: AUG241_176 | C188: F411 | D188: Urban | E188: 33 kV | F188: Raceview BS | G188: Booval | H188: 2.764 | I188: 15.76 | J188: 15.59 | K188: 31.89 | L188: 43.26836122 | M188: 2.761 | N188: 20.32 | O188: 19.03 | P188: 31.89 | Q188: 43.26836122 | R188: -0.005576316666 | S188: 23
A189: AUG241_177 | C189: F412 | D189: Short Rural | E189: 33 kV | F189: Caboolture BS | G189: Toorbul Pt | H189: 19.96059 | I189: 15.81 | J189: 15.22 | K189: 33.04 | L189: 39.66742759 | M189: 19.952 | N189: 16.29 | O189: 15.63 | P189: 33.04 | Q189: 39.67 | R189: -0.01105368317 | S189: 22
A190: AUG241_178 | C190: F413 | D190: Urban | E190: 33 kV | F190: Cleveland BS | G190: Raby Bay | H190: 2.968 | I190: 21.45 | J190: 21.05 | K190: 34.92 | L190: 78.0773863 | M190: 2.968 | N190: 24.59 | O190: 24.37 | P190: 34.92 | Q190: 78.0773863 | R190: -0.01932483099 | S190: 23
A191: AUG241_179 | C191: F414 | D191: Urban | E191: 33 kV | F191: Doboy BS | G191: Tingalpa | H191: 9.51629 | I191: 10.05 | J191: 9.72 | K191: 28.29 | L191: 28.29304994 | M191: 15.656 | N191: 10.42 | O191: 9.94 | P191: 20.06 | Q191: 23.8 | R191: -0.01319732277 | S191: 22
A192: AUG241_180
A193: AUG241_181 | C193: F416 | D193: Urban | E193: 33 kV | F193: Doboy BS | G193: Murarrie | H193: 1.7349 | I193: 11.05 | J193: 10.45 | K193: 20.29 | L193: 32.00829892 | M193: 1.7349 | N193: 15.72 | O193: 14.56 | P193: 20.29 | Q193: 32.00829892 | R193: 0.000602410276 | S193: 9
A194: AUG241_182 | C194: F417 | D194: Short Rural | E194: 33 kV | F194: Ningi | G194: Toorbul Pt | H194: 8.137 | I194: 10.32 | J194: 9.95 | K194: 46.75 | L194: 46.7549795 | M194: 8.12 | N194: 10.74 | O194: 10.63 | P194: 46.75 | Q194: 46.75 | R194: -0.01405026788 | S194: 22
A195: AUG241_183 | C195: F418 | D195: Urban | E195: 33 kV | F195: Loganlea BS | G195: Tanah Merah | H195: 6.219 | I195: 16.34 | J195: 15.66 | K195: 36.07 | L195: 47.55518697 | M195: 6.256 | N195: 19.66 | O195: 19.44 | P195: 36.07 | Q195: 47.55518697 | R195: -0.03579633267 | S195: 19
A196: AUG241_184 | C196: F419 | D196: Urban | E196: 33 kV | F196: Loganholme | G196: Tanah Merah | H196: 3.025 | I196: 0 | J196: 0 | K196: 40.75 | L196: 47.56 | M196: 3.025 | N196: 0 | O196: 0 | P196: 40.75 | Q196: 47.56 | R196: 0 | S196: 8
A197: AUG241_185 | C197: F420 | D197: Urban | E197: 33 kV | F197: Mt Crosby West | G197: Mt Crosby | H197: 1.16 | I197: 3.78 | J197: 1.23 | K197: 19.95 | L197: 23.83475116 | M197: 1.25 | N197: 1.22 | O197: 0.22 | P197: 19.95 | Q197: 23.83 | R197: 0.01239603337 | S197: 10
A198: AUG241_186 | C198: F421 | D198: Urban | E198: 33 kV | F198: Molendinar BS | G198: Arundel | H198: 4.911 | I198: 24.54 | J198: 24.33 | K198: 38.47 | L198: 46.7549795 | M198: 5.112 | N198: 29.09 | O198: 27.84 | P198: 38.47 | Q198: 46.7549795 | R198: -0.005927964747 | S198: 21
A199: AUG241_187 | C199: F425 | D199: Urban | E199: 33 kV | F199: Cleveland BS | G199: Victoria Pt | H199: 6.996 | I199: 9.83 | J199: 9.82 | K199: 31.61 | L199: 37.89553962 | M199: 7.1 | N199: 12.8 | O199: 11.82 | P199: 31.61 | Q199: 37.89553962 | R199: -0.01044175005 | S199: 23
A200: AUG241_188 | C200: F426 | D200: Short Rural | E200: 33 kV | F200: Beenleigh BS | G200: Yatala | H200: 5.077 | I200: 5 | J200: 5 | K200: 42.3 | L200: 49.78433636 | M200: 5.048 | N200: 38.41 | O200: 33.29 | P200: 42.3 | Q200: 49.78 | R200: 0.01785082084 | S200: 10
A201: AUG241_189 | C201: F427 | D201: Short Rural | E201: 33 kV | F201: Beenleigh BS | G201: Yatala | H201: 5.069 | I201: 4.83 | J201: 4.82 | K201: 42.3 | L201: 49.78433636 | M201: 5.077 | N201: 38.27 | O201: 33.17 | P201: 42.3 | Q201: 49.78 | R201: 0.01782049697 | S201: 10
A202: AUG241_190 | C202: F428 | D202: Short Rural | E202: 33 kV | F202: Beerwah BS | G202: Woodford | H202: 20.601 | I202: 10.82 | J202: 10.78 | K202: 19.95 | L202: 23.83 | M202: 20.515 | N202: 12.91 | O202: 11.51 | P202: 19.89 | Q202: 23.83 | R202: 0.001228506633 | S202: 10
... 7642 more rows

Sheet 2.5 Connections
C1: REGULATORY REPORTING STATEMENT
C2: =TradingName -> Energex
C3: =RCP_1to5 -> 2015-16 to 2019-20
C4: 2.5 CONNECTIONS
C9: 2.5.1 DESCRIPTOR METRICS | R9: 2.5.2 COST METRICS BY CONNECTION CLASSIFICATION
C10: <<<GROUP-ROW>>>
E12: VOLUMES & EXPENDITURE | G12: VOLUMES & EXPENDITURE Current Period | L12: VOLUMES & EXPENDITURE Forthcoming Period | T12: EXPENDITURE | V12: EXPENDITURE Current Period | AA12: EXPENDITURE Forthcoming Period | AI12: VOLUMES | AK12: VOLUMES Current Period | AP12: VOLUMES Forthcoming Period
C13: CONNECTION SUBCATEGORY | D13: DESCRIPTOR METRIC | E13: =PRCP_y4 -> 2008-09 | F13: =PRCP_y5 -> 2009-10 | G13: =+CRCP -> 2010-11 | H13: 2011-12 | I13: 2012-13 | J13: 2013-14 | K13: =CRCP_y5 -> 2014-15 | L13: =FRCP -> 2015-16 | M13: 2016-17 | N13: 2017-18 | O13: 2018-19 | P13: 2019-20 | R13: CONNECTION SUBCATEGORY | S13: CONNECTION CLASSICIATION | T13: =PRCP_y4 -> 2008-09 | U13: =PRCP_y5 -> 2009-10 | V13: =CRCP -> 2010-11 | W13: 2011-12 | X13: 2012-13 | Y13: 2013-14 | Z13: 2014-15 | AA13: =FRCP -> 2015-16 | AB13: 2016-17 | AC13: 2017-18 | AD13: 2018-19 | AE13: 2019-20 | AG13: CONNECTION SUBCATEGORY | AH13: CONNECTION CLASSICIATION | AI13: =PRCP_y4 -> 2008-09 | AJ13: =PRCP_y5 -> 2009-10 | AK13: =CRCP -> 2010-11 | AL13: 2011-12 | AM13: 2012-13 | AN13: 2013-14 | AO13: 2014-15 | AP13: =FRCP -> 2015-16 | AQ13: 2016-17 | AR13: 2017-18 | AS13: 2018-19 | AT13: 2019-20
A14: ED_CON251_00001 | C14: RESIDENTIAL | D14: Underground connections (000's) | E14: 25.854 | F14: 22.933 | G14: 20.019 | H14: 20.528 | I14: 17.812 | J14: 20.04 | K14: 23.7390982 | L14: 21.20138429 | M14: 20.02453934 | N14: 19.93139138 | O14: 19.97228561 | P14: 20.11655135 | Q14: ED_CON252_00001 | R14: RESIDENTIAL | S14: Simple connection LV | T14: 18714.31273 | U14: 16694.69224 | V14: 20363.52271 | W14: 21544.9616 | X14: 20952.0276 | Y14: 23389.82115 | Z14: 19832.91128 | AA14: 9307.68575 | AB14: 10678.60694 | AC14: 11551.76208 | AD14: 12710.84241 | AE14: 13015.41603 | AF14: ED_CON252_00001 | AG14: RESIDENTIAL | AH14: Simple connection LV | AI14: 38.654 | AJ14: 36.283 | AK14: 34.994 | AL14: 35.902 | AM14: 31.654 | AN14: 33.035 | AO14: 39.47947257 | AP14: 35.19431045 | AQ14: 33.20710008 | AR14: 33.04981123 | AS14: 33.11886487 | AT14: 33.36247077
A15: ED_CON251_00002 | D15: Overhead connections (000's) | E15: 13.673 | F15: 14.085 | G15: 15.73 | H15: 15.962 | I15: 14.243 | J15: 13.28 | K15: 16.34654103 | L15: 14.59909282 | M15: 13.78872741 | N15: 13.72458651 | O15: 13.75274593 | P15: 13.85208609 | Q15: ED_CON252_00002 | S15: Complex connection LV | T15: 1658.075728 | U15: 1461.514705 | V15: 1427.617742 | W15: 928.649055 | X15: 725.7608922 | Y15: 1263.7144 | Z15: 2723.663649 | AA15: 1471.564098 | AB15: 1688.309534 | AC15: 1826.357142 | AD15: 2009.610106 | AE15: 2057.763817 | AF15: ED_CON252_00002 | AH15: Complex connection LV | AI15: 0.217 | AJ15: 0.197 | AK15: 0.187 | AL15: 0.145 | AM15: 0.089 | AN15: 0.057 | AO15: 0.1486666667 | AP15: 0.1486666667 | AQ15: 0.1486666667 | AR15: 0.1486666667 | AS15: 0.1486666667 | AT15: 0.1486666667
A16: ED_CON251_00003 | D16: Distribution substation installed (MVA added) | E16: 39.34 | F16: 33.189 | G16: 21.74 | H16: 19.977 | I16: 9.487 | J16: 10.043 | K16: 15.74128149 | L16: 13.27545705 | M16: 15.23078794 | N16: 16.47616019 | O16: 18.12934462 | P16: 18.56375486 | Q16: ED_CON252_00003 | S16: Complex connection HV | T16: 7948.547218 | U16: 7574.210647 | V16: 6346.469261 | W16: 4875.184361 | X16: 3349.369065 | Y16: 1986.620547 | Z16: 3500.019367 | AA16: 3298.827928 | AB16: 3784.709515 | AC16: 4094.172966 | AD16: 4504.973961 | AE16: 4612.920876 | AF16: ED_CON252_00003 | AH16: Complex connection HV | AI16: 0.656 | AJ16: 0.538 | AK16: 0.568 | AL16: 0.443 | AM16: 0.312 | AN16: 0.228 | AO16: 0.4575 | AP16: 0.4575 | AQ16: 0.4575 | AR16: 0.4575 | AS16: 0.4575 | AT16: 0.4575
A17: ED_CON251_00004 | D17: Distribution substations installed (000's) | E17: 0.326 | F17: 0.265 | G17: 0.172 | H17: 0.124 | I17: 0.084 | J17: 0.097 | K17: 0.1285332235 | L17: 0.1083988803 | M17: 0.1243648601 | N17: 0.1345337723 | O17: 0.1480326176 | P17: 0.1515797334 | Q17: ED_CON252_00004 | R17: COMMERCIAL/INDUSTRIAL | S17: Simple connection LV | T17: 3348.06847 | U17: 3177.950086 | V17: 4277.414942 | W17: 3774.395973 | X17: 3970.253403 | Y17: 2141.025046 | Z17: 2608.660661 | AA17: 2099.00867 | AB17: 1983.190551 | AC17: 1982.238438 | AD17: =2163.40691942877 -> 2163.406919 | AE17: =4104.45061370569-2000 -> 2104.450614 | AF17: ED_CON252_00004 | AG17: COMMERCIAL/INDUSTRIAL | AH17: Simple connection LV | AI17: 0.461 | AJ17: 1.586 | AK17: 1.594 | AL17: 1.367 | AM17: 2.007 | AN17: 1.757 | AO17: 1.842877173 | AP17: 1.927296925 | AQ17: 1.997646718 | AR17: 1.955436842 | AS17: 2.021096649 | AT17: 2.067996511
A18: ED_CON251_00005 | D18: Distribution substation installed (total spend $000's) | E18: 7352.949607 | F18: 7038.011292 | G18: 5890.661841 | H18: 4514.528561 | I18: 2934.793245 | J18: 1978.848717 | K18: 3565.501339 | L18: 3006.97627 | M18: 3449.871271 | N18: 3731.956082 | O18: 4106.412971 | P18: 4204.809681 | Q18: ED_CON252_00005 | S18: Complex connection HV (customer connected at LV, minor HV works) | T18: 64118.10758 | U18: 43143.5967 | V18: 43856.12585 | W18: 38724.44918 | X18: 37816.65882 | Y18: 32964.15066 | Z18: 36194.16473 | AA18: 29122.9391 | AB18: 27516.00718 | AC18: 27502.79699 | AD18: =30016.4400859848-3000 -> 27016.44009 | AE18: =56947.6758282304-30000 -> 26947.67583 | AF18: ED_CON252_00005 | AH18: Complex connection HV (customer connected at LV, minor HV works) | AI18: 1.51 | AJ18: 1.25 | AK18: 1.489 | AL18: 1.372 | AM18: 1.021 | AN18: 1.237 | AO18: 1.313166667 | AP18: 1.313166667 | AQ18: 1.313166667 | AR18: 1.313166667 | AS18: 1.313166667 | AT18: 1.313166667
A19: ED_CON251_00006 | D19: Augmentation HV (net circuit KM added) | E19: 0.387 | F19: 0.801 | G19: 0 | H19: 0.02 | I19: 0.037 | J19: 0 | K19: 0.1845975755 | L19: 0.09973594386 | M19: 0.114425967 | N19: 0.1237822081 | O19: 0.1362022633 | P19: 0.1394659035 | Q19: ED_CON252_00006 | S19: Complex connection HV (customer connected at LV, upstream asset works) | T19: 14142.55389 | U19: 11298.84956 | V19: 6872.79411 | W19: 4598.19481 | X19: 5644.71599 | Y19: 1965.27381 | Z19: 7674.989804 | AA19: 6175.533055 | AB19: 5834.782379 | AC19: 5831.98115 | AD19: 6365.000362 | AE19: =12075.7816787821-6000 -> 6075.781679 | AF19: ED_CON252_00006 | AH19: Complex connection HV (customer connected at LV, upstream asset works) | AI19: 0.046 | AJ19: 0.052 | AK19: 0.045 | AL19: 0.046 | AM19: 0.038 | AN19: 0.046 | AO19: 0.04883333333 | AP19: 0.04883333333 | AQ19: 0.04883333333 | AR19: 0.04883333333 | AS19: 0.04883333333 | AT19: 0.04883333333
A20: ED_CON251_00007 | D20: Augmentation HV (total spend $000's) | E20: 464.8897039 | F20: 486.8352095 | G20: 310.63148 | H20: 324.28785 | I20: 347.97685 | J20: 343.27862 | K20: 418.6236286 | L20: 226.1775248 | M20: 259.4910219 | N20: 280.7087631 | O20: 308.8745099 | P20: 316.2756738 | Q20: ED_CON252_00007 | S20: Complex connection HV (customer connected at HV) | T20: 475.1852401 | U20: 154.5311494 | V20: 148.2351 | W20: 1367.34428 | X20: 2144.14007 | Y20: 596.58465 | Z20: 1651.411013 | AA20: 1328.776136 | AB20: 1255.457548 | AC20: 1254.854813 | AD20: 1369.543408 | AE20: 2598.319914 | AF20: ED_CON252_00007 | AH20: Complex connection HV (customer connected at HV) | AI20: 0.003 | AJ20: 0.003 | AK20: 0.005 | AL20: 0.01 | AM20: 0.011 | AN20: 0.006 | AO20: 0.006333333333 | AP20: 0.006333333333 | AQ20: 0.006333333333 | AR20: 0.006333333333 | AS20: 0.006333333333 | AT20: 0.006333333333
A21: ED_CON251_00008 | D21: Augmentation LV (net circuit KM added) | E21: 170.8355311 | F21: 148.6617469 | G21: 123.8763452 | H21: 136.9949332 | I21: 77.30805244 | J21: 158.3833393 | K21: 182.3343132 | L21: 89.58679417 | M21: 102.7819576 | N21: 111.1861057 | O21: 122.3422936 | P21: 125.2738251 | Q21: ED_CON252_00008 | S21: Complex connection sub-transmission | T21: 5571.223972 | U21: 10908.58981 | V21: 6494.34176 | W21: 1343.92735 | X21: 1781.18376 | Y21: 3090.29324 | Z21: 6725.01908 | AA21: 5411.157367 | AB21: 5112.583056 | AC21: 5110.128548 | AD21: =5577.17338642751+3000 -> 8577.173386 | AE21: =10581.1035931741+38000 -> 48581.10359 | AF21: ED_CON252_00008 | AH21: Complex connection sub-transmission | AI21: 0.023 | AJ21: 0.023 | AK21: 0.015 | AL21: 0.016 | AM21: 0.012 | AN21: 0.004 | AO21: 0.0155 | AP21: 0.0155 | AQ21: 0.0155 | AR21: 0.0155 | AS21: 0.0155 | AT21: 0.0155
A22: ED_CON251_00009 | D22: Augmentation LV (total spend $000's) | E22: 20503.09637 | F22: 18205.57093 | G22: 21936.31636 | H22: 22509.97861 | I22: 21744.38774 | J22: 24318.02876 | K22: 22072.46933 | L22: 10844.92398 | M22: 12442.2637 | N22: 13459.62734 | O22: 14810.139 | P22: 15165.01537 | Q22: ED_CON252_00009 | R22: SUBDIVISION | S22: Complex connection LV | T22: 2140.404686 | U22: 1494.674384 | V22: 369.0613492 | W22: 101.8255449 | X22: 384.5718343 | Y22: 156.54805 | Z22: 167.1141828 | AA22: 193.4028978 | AB22: 202.5206555 | AC22: 204.0494031 | AD22: 213.9937483 | AE22: 219.7671632 | AF22: ED_CON252_00009 | AG22: SUBDIVISION | AH22: Complex connection LV | AI22: 6.020286056 | AJ22: 4.76255918 | AK22: 1.704316577 | AL22: 0.1338616176 | AM22: 0.3566730352 | AN22: 0.027 | AO22: 1.818967987 | AP22: 1.982508962 | AQ22: 2.142847177 | AR22: 2.162864432 | AS22: 2.324403682 | AT22: 2.415482194
A23: ED_CON251_00010 | D23: Mean days to connect residential customer with LV single phase connection (0's) | E23: 7 | F23: 5 | G23: 9 | H23: 13 | I23: 7 | J23: 6 | K23: 7 | L23: 7 | M23: 7 | N23: 7 | O23: 7 | P23: 7 | Q23: ED_CON252_00010 | S23: Complex connection HV (no upstream asset works) | T23: 20480.01451 | U23: 11660.15584 | V23: 4314.034658 | W23: 5086.100094 | X23: 3175.057081 | Y23: 2355.74098 | Z23: 1692.727269 | AA23: 1959.010022 | AB23: 2051.365302 | AC23: 2066.85024 | AD23: 2167.578161 | AE23: 2226.058038 | AF23: ED_CON252_00010 | AH23: Complex connection HV (no upstream asset works) | AI23: 14.5790613 | AJ23: 13.19676917 | AK23: 12.58503241 | AL23: 12.88113838 | AM23: 10.13317238 | AN23: 10.07 | AO23: 8.987722012 | AP23: 9.795796061 | AQ23: 10.58804491 | AR23: 10.68695239 | AS23: 11.48513569 | AT23: 11.93516469
A24: ED_CON251_00011 | D24: Volume of GSL breaches for residential customers (0's) | E24: 3445 | F24: 138 | G24: 240 | H24: 62 | I24: 21 | J24: 28 | K24: 40 | L24: 43 | M24: 45 | N24: 47 | O24: 45 | P24: 45 | Q24: ED_CON252_00011 | S24: Complex connection HV (with upstream asset works) | T24: 2139.656826 | U24: 1085.317541 | V24: 603.3567074 | W24: 303.305619 | X24: 242.372779 | Y24: 311.72759 | Z24: 168.5041218 | AA24: 195.0114879 | AB24: 204.2050808 | AC24: 205.7465434 | AD24: 215.7735987 | AE24: 221.5950329 | AF24: ED_CON252_00011 | AH24: Complex connection HV (with upstream asset works) | AI24: 0.1326526418 | AJ24: 0.007671648164 | AK24: 0.1046510179 | AL24: 0 | AM24: 0.04115458098 | AN24: 0.273 | AO24: 0.0406085954 | AP24: 0.04425965982 | AQ24: 0.04783922237 | AR24: 0.04828610909 | AS24: 0.05189248484 | AT24: 0.05392581937
A25: ED_CON251_00012 | D25: Volume of customer complaints relating to connection services (0's) | E25: 572 | F25: 653 | G25: 440 | H25: 494 | I25: 202 | J25: 282 | K25: 301 | L25: 269 | M25: 254 | N25: 252 | O25: 253 | P25: 255 | Q25: ED_CON252_00012 | R25: EMBEDDED GENERATION | S25: Simple connection LV | T25: 0 | U25: 0 | V25: 0 | W25: 0 | X25: 0 | Y25: 0 | Z25: 0 | AA25: 0 | AB25: 0 | AC25: 0 | AD25: 0 | AE25: 0 | AF25: ED_CON252_00012 | AG25: EMBEDDED GENERATION | AH25: Simple connection LV | AI25: 1.959 | AJ25: 19.154 | AK25: 51.668 | AL25: 72.652 | AM25: 74.565 | AN25: 38.179 | AO25: 42.99466667 | AP25: 34.99466667 | AQ25: 29.99466667 | AR25: 28.99466667 | AS25: 26.99466667 | AT25: 24.99466667
A26: ED_CON251_00013 | D26: GSL payments ($000's) | E26: 684.28 | F26: 22.8 | G26: 31.404 | H26: 9.516 | I26: 2.08 | J26: 3.02 | K26: 4.08 | L26: 4.732 | M26: 4.721 | N26: 4.733 | O26: 4.722 | P26: 4.724 | Q26: ED_CON252_00013 | S26: Complex connection HV (small capacity) | T26: 0 | U26: 0 | V26: 0 | W26: 0 | X26: 0 | Y26: 0 | Z26: 0 | AA26: 0 | AB26: 0 | AC26: 0 | AD26: 0 | AE26: 0 | AF26: ED_CON252_00013 | AH26: Complex connection HV (small capacity) | AI26: 0.006 | AJ26: 0.003 | AK26: 0.005 | AL26: 0.007 | AM26: 0.005 | AN26: 0.005 | AO26: 0.005166666667 | AP26: 0.005166666667 | AQ26: 0.005166666667 | AR26: 0.005166666667 | AS26: 0.005166666667 | AT26: 0.005166666667
A27: ED_CON251_00014 | C27: COMMERCIAL/INDUSTRIAL | D27: Underground connections (000's) | E27: 0.608 | F27: 0.854 | G27: 0.912 | H27: 0.865 | I27: 1.063 | J27: 0.93 | K27: 0.9879861042 | L27: 1.013834578 | M27: 1.035374973 | N27: 1.022450736 | O27: 1.042555104 | P27: 1.056915367 | Q27: ED_CON252_00014 | S27: Complex connection HV (large capacity) | T27: 0 | U27: 0 | V27: 0 | W27: 0 | X27: 0 | Y27: 0 | Z27: 0 | AA27: 0 | AB27: 0 | AC27: 0 | AD27: 0 | AE27: 0 | AF27: ED_CON252_00014 | AH27: Complex connection HV (large capacity) | AI27: 0 | AJ27: 0.001 | AK27: 0 | AL27: 0 | AM27: 0 | AN27: 0 | AO27: 0.0001666666667 | AP27: 0.0001666666667 | AQ27: 0.0001666666667 | AR27: 0.0001666666667 | AS27: 0.0001666666667 | AT27: 0.0001666666667
A28: ED_CON251_00015 | D28: Overhead connections (000's) | E28: 1.435 | F28: 2.06 | G28: 2.236 | H28: 1.946 | I28: 2.026 | J28: 2.12 | K28: 2.238724402 | L28: 2.29729568 | M28: 2.346105078 | N28: 2.316819439 | O28: 2.362374878 | P28: 2.394914477
A29: ED_CON251_00016 | D29: Distribution substation installed (MVA added) | E29: 565.619 | F29: 330.656 | G29: 303.519 | H29: 194.591 | I29: 142.671 | J29: 259.476 | K29: 253.7730994 | L29: 204.1936477 | M29: 192.926746 | N29: 192.8341236 | O29: 210.4583734 | P29: 250.0356873
A30: ED_CON251_00017 | D30: Distribution substations installed (000's) | E30: 0.627 | F30: 0.466 | G30: 0.423 | H30: 0.305 | I30: 0.24 | J30: 0.353 | K30: 0.3380702971 | L30: 0.2720217678 | M30: 0.2570122779 | N30: 0.2568888885 | O30: 0.2803674817 | P30: 0.3330914083
A31: ED_CON251_00018 | D31: Distribution substation installed total spend ($000's) | E31: 61363.8857 | F31: 51205.91227 | G31: 44283.09782 | H31: 34822.19249 | I31: 26000.3329 | J31: 25965.892 | K31: 34006.59494 | L31: 27362.75311 | M31: 25852.94391 | N31: 25840.53213 | O31: 28202.25103 | P31: 33505.76699
A32: ED_CON251_00019 | D32: Augmentation HV (net circuit KM added) | E32: 51.39566667 | F32: 16.465 | G32: 14.16458333 | H32: 21.33866667 | I32: 28.60866667 | J32: 15.664 | K32: 22.67065553 | L32: 18.24150731 | M32: 17.23498595 | N32: 17.22671158 | O32: 18.80116252 | P32: 61.89673992
A33: ED_CON251_00020 | D33: Augmentation HV (total spend $000's) | E33: 22117.36282 | F33: 14429.72671 | G33: 12671.2215 | H33: 10770.96726 | I33: 20132.54833 | J33: 11194.875 | K33: 17288.1136 | L33: 13910.54838 | M33: 13142.99864 | N33: 13136.6888 | O33: 14337.3284 | P33: 47201.01143
A34: ED_CON251_00021 | D34: Augmentation LV (net circuit KM added) | E34: 21.69313559 | F34: 19.47958641 | G34: 21.19032144 | H34: 17.80106679 | I34: 19.18379578 | J34: 10.46733333 | K34: 17.19123011 | L34: 13.83259294 | M34: 13.06934459 | N34: 13.06307011 | O34: 14.25698127 | P34: 27.04857555
A35: ED_CON251_00022 | D35: Augmentation LV (total spend $000's) | E35: 4173.890635 | F35: 3047.878332 | G35: 4694.592452 | H35: 4215.151843 | I35: 5224.070816 | J35: 3596.560636 | K35: 3559.536755 | L35: 2864.112846 | M35: 2706.078166 | N35: 2704.779001 | O35: 2951.984734 | P35: 5600.553203
A36: ED_CON251_00023 | C36: SUBDIVISION | D36: Underground connections (000's) | E36: 20.22 | F36: 17.739 | G36: 14.082 | H36: 12.833 | I36: 10.328 | J36: 10.17654121 | K36: 10.64649289 | L36: 11.60370481 | M36: 12.54217084 | N36: 12.65933264 | O36: 13.60482837 | P36: 14.13791457
A37: ED_CON251_00024 | D37: Overhead connections (000's) | E37: 0.512 | F37: 0.228 | G37: 0.312 | H37: 0.182 | I37: 0.203 | J37: 0.1944587873 | K37: 0.2008057034 | L37: 0.2188598752 | M37: 0.236560477 | N37: 0.23877029 | O37: 0.2566034805 | P37: 0.2666581295
A38: ED_CON251_00025 | D38: Distribution substation installed (MVA added) | E38: 119.375 | F38: 56.28 | G38: 12.171 | H38: 3.663 | I38: 5.165 | J38: 2.905 | K38: 2.788746076 | L38: 3.227443436 | M38: 3.379597554 | N38: 3.405108787 | O38: 3.571056723 | P38: 3.667401556
A39: ED_CON251_00026 | D39: Distribution substations installed (000's) | E39: 0.308 | F39: 0.151 | G39: 0.029 | H39: 0.01 | I39: 0.01 | J39: 0.006 | K39: 0.006463583613 | L39: 0.00748036929 | M39: 0.007833022717 | N39: 0.00789215108 | O39: 0.008276774967 | P39: 0.008500077079
A40: ED_CON251_00027 | D40: Distribution substation installed (total spend $000's) | E40: 20704.93871 | F40: 11477.68285 | G40: 2183.612422 | H40: 984.9517099 | I40: 751.135228 | J40: 284.67738 | K40: 451.7101241 | L40: 522.7685974 | M40: 547.4139231 | N40: 551.5461324 | O40: 578.4257265 | P40: 594.0312838
A41: ED_CON251_00028 | D41: Augmentation HV (net circuit KM added) | E41: 0.01934466667 | F41: 0.01270766667 | G41: 0.006007333333 | H41: 0.008810333333 | I41: 0.007431 | J41: 9.163666667 | K41: 8.431740664 | L41: 9.758136924 | M41: 10.21817309 | N41: 10.295306 | O41: 10.79704762 | P41: 11.08834508
A42: ED_CON251_00029 | D42: Augmentation HV (total spend $000's) | E42: 1627.512619 | F42: 1255.692286 | G42: 2657.991425 | H42: 4380.304426 | I42: 2757.983842 | J42: 2382.79119 | K42: 1455.158687 | L42: 1684.069551 | M42: 1763.463078 | N42: 1776.774757 | O42: 1863.365853 | P42: 1913.638276
A43: ED_CON251_00030 | D43: Augmentation LV (net circuit KM added) | E43: 0.109404 | F43: 0.022429 | G43: 0 | H43: 0 | I43: 0 | J43: 0.668 | K43: 2.464617517 | L43: 2.852326246 | M43: 2.986795894 | N43: 3.009342025 | O43: 3.156002272 | P43: 3.241149201
A44: ED_CON251_00031 | D44: Augmentation LV (total spend $000's) | E44: 2427.624693 | F44: 1506.772626 | G44: 444.8488678 | H44: 125.9751214 | I44: 292.8826243 | J44: 156.54805 | K44: 121.4767623 | L44: 140.5862594 | M44: 147.2140373 | N44: 148.3252973 | O44: 155.5539289 | P44: 159.7506747
A45: ED_CON251_00032 | D45: Cost per lot ($) | E45: 1194.292689 | F45: 792.5723694 | G45: 367.2678001 | H45: 421.9155788 | I45: 361.0295028 | J45: =(J44+J42+J40)/(J37+J36) -> 272.2993559 | K45: 186.990849 | L45: 198.5545836 | M45: 192.3579875 | N45: 192.0163144 | O45: 187.379308 | P45: 185.178713
A46: ED_CON251_00033 | C46: EMBEDDED GENERATION | D46: Underground connections (000's) | E46: 0.727 | F46: 8.673 | G46: 26.927 | H46: 36.045 | I46: 35.585 | J46: 18.802 | K46: 21.10939975 | L46: 17.18206956 | M46: 14.7274882 | N46: 14.23657192 | O46: 13.25473938 | P46: 12.27290683
A47: ED_CON251_00034 | D47: Overhead connections (000's) | E47: 1.238 | F47: 10.485 | G47: 24.746 | H47: 36.614 | I47: 38.985 | J47: 19.382 | K47: 21.89060025 | L47: 17.81793044 | M47: 15.2725118 | N47: 14.76342808 | O47: 13.74526062 | P47: 12.72709317
A48: ED_CON251_00035 | D48: Distribution substation installed (MVA added) | E48: 0 | F48: 0 | G48: 0 | H48: 0 | I48: 0 | J48: 0 | K48: 0 | L48: 0 | M48: 0 | N48: 0 | O48: 0 | P48: 0
A49: ED_CON251_00036 | D49: Distribution substations installed (000's) | E49: 0 | F49: 0 | G49: 0 | H49: 0 | I49: 0 | J49: 0 | K49: 0 | L49: 0 | M49: 0 | N49: 0 | O49: 0 | P49: 0
A50: ED_CON251_00037 | D50: Distribution substation installed (total spend $000's) | E50: 0 | F50: 0 | G50: 0 | H50: 0 | I50: 0 | J50: 0 | K50: 0 | L50: 0 | M50: 0 | N50: 0 | O50: 0 | P50: 0
A51: ED_CON251_00038 | D51: Augmentation HV (net circuit KM added) | E51: 0 | F51: 0 | G51: 0 | H51: 0 | I51: 0 | J51: 0 | K51: 0 | L51: 0 | M51: 0 | N51: 0 | O51: 0 | P51: 0
A52: ED_CON251_00039 | D52: Augmentation HV (total spend $000's) | E52: 0 | F52: 0 | G52: 0 | H52: 0 | I52: 0 | J52: 0 | K52: 0 | L52: 0 | M52: 0 | N52: 0 | O52: 0 | P52: 0
A53: ED_CON251_00040 | D53: Augmentation LV (net circuit KM added) | E53: 0 | F53: 0 | G53: 0 | H53: 0 | I53: 0 | J53: 0 | K53: 0 | L53: 0 | M53: 0 | N53: 0 | O53: 0 | P53: 0
A54: ED_CON251_00041 | D54: Augmentation LV (total spend $000's) | E54: 0 | F54: 0 | G54: 0 | H54: 0 | I54: 0 | J54: 0 | K54: 0 | L54: 0 | M54: 0 | N54: 0 | O54: 0 | P54: 0

Sheet 2.6 Non-network
C1: REGULATORY REPORTING STATEMENT
C2: =TradingName -> Energex
C3: =RCP_1to5 -> 2015-16 to 2019-20
C4: 2.6 NON NETWORK EXPENDITURE
C9: TABLE 2.6.1 NON-NETWORK EXPENDITURE | S9: TABLE 2.6.2 ANNUAL DESCRIPTOR METRICS - IT & COMMUNICATIONS EXPENDITURE | AH9: TABLE 2.6.3 ANNUAL DESCRIPTOR METRICS - MOTOR VEHICLES
F11: EXPENDITURE ($000's) | H11: EXPENDITURE ($000's) Current Period | M11: EXPENDITURE ($000's) Forthcoming Period | U11: VOLUMES | W11: VOLUMES Current Period | AB11: VOLUMES Forthcoming Period | AI11: ASSET REPORTING CATEGORY | AK11: VOLUMES / % | AM11: VOLUMES / % Current Period | AR11: VOLUMES / % Forthcoming Period
C12: SERVICE SUBCATEGORY | D12: ASSET CATEGORY | E12: ASSET REPORTING CATEGORY | F12: =PRCP_y4 -> 2008-09 | G12: =PRCP_y5 -> 2009-10 | H12: =CRCP -> 2010-11 | I12: 2011-12 | J12: 2012-13 | K12: 2013-14 | L12: 2014-15 | M12: =FRCP -> 2015-16 | N12: 2016-17 | O12: 2017-18 | P12: 2018-19 | Q12: 2019-20 | S12: NON-NETWORK CATEGORY | T12: DESCRIPTOR METRIC | U12: =PRCP_y4 -> 2008-09 | V12: =PRCP_y5 -> 2009-10 | W12: =CRCP -> 2010-11 | X12: 2011-12 | Y12: 2012-13 | Z12: 2013-14 | AA12: 2014-15 | AB12: =FRCP -> 2015-16 | AC12: 2016-17 | AD12: 2017-18 | AE12: 2018-19 | AF12: 2019-20 | AH12: NON-NETWORK CATEGORY | AI12: ASSET CATEGORY | AJ12: DESCRIPTOR METRIC | AK12: =PRCP_y4 -> 2008-09 | AL12: =PRCP_y5 -> 2009-10 | AM12: =CRCP -> 2010-11 | AN12: 2011-12 | AO12: 2012-13 | AP12: 2013-14 | AQ12: 2014-15 | AR12: =FRCP -> 2015-16 | AS12: 2016-17 | AT12: 2017-18 | AU12: 2018-19 | AV12: 2019-20
A13: ED_NON261_00001 | C13: IT & COMMUNICATIONS | D13: Client device expenditure | E13: Opex | F13: 1134.560338 | G13: 1210.930295 | H13: 1591.88326 | I13: 1177.50128 | J13: 1103.24145 | K13: 949.14 | L13: 951.78475 | M13: 951.78475 | N13: 951.78475 | O13: 951.78475 | P13: 951.78475 | Q13: 951.78475 | R13: ED_NON262_00001 | S13: IT & COMMUNICATIONS | T13: Employee numbers | U13: 3744 | V13: 3849 | W13: 3892 | X13: 3804 | Y13: 3433 | Z13: 3141 | AA13: 2989.5 | AB13: 2989.5 | AC13: 2989.5 | AD13: 2989.5 | AE13: 2989.5 | AF13: 2989.5 | AG13: ED_NON263_00001 | AH13: MOTOR VEHICLES | AI13: CAR | AJ13: Average kilometres travelled (000's) | AK13: 29.11104787 | AL13: 29.83996128 | AM13: 29.26988034 | AN13: 29.12190105 | AO13: 28.60437378 | AP13: 27.78086696 | AQ13: 27 | AR13: 27 | AS13: 27 | AT13: 27 | AU13: 27 | AV13: 27
A14: ED_NON261_00002 | E14: Capex | F14: 1851.14263 | G14: 2706.95761 | H14: 2384.53373 | I14: 5409.1893 | J14: 3134.55769 | K14: 1522.75 | L14: 5000 | M14: 2250 | N14: 6840 | O14: 7250 | P14: 2660 | Q14: 3250 | R14: ED_NON262_00002 | T14: User numbers | U14: 3639 | V14: 3715 | W14: 3991 | X14: 4124 | Y14: 4263 | Z14: 4487 | AA14: 4421 | AB14: 4421 | AC14: 4421 | AD14: 4421 | AE14: 4421 | AF14: 4421 | AG14: ED_NON263_00002 | AJ14: Number purchased | AK14: 275 | AL14: 195 | AM14: 300 | AN14: 141 | AO14: 256 | AP14: 174 | AQ14: 101 | AR14: 164 | AS14: 108 | AT14: 239 | AU14: 169 | AV14: 131
A15: ED_NON261_00003 | D15: Recurrent expenditure | E15: Opex | F15: 54725.6014 | G15: 61794.95473 | H15: 75042.59285 | I15: 86534.68346 | J15: 102379.2008 | K15: 112274.9218 | L15: 114053.3382 | M15: 105540.0102 | N15: 99715.84921 | O15: 95693.2858 | P15: 101653.3638 | Q15: 102928.6421 | R15: ED_NON262_00003 | T15: Number of devices | U15: 4699 | V15: 4998 | W15: 5537 | X15: 5474 | Y15: 5639 | Z15: 5607 | AA15: 4842 | AB15: 4865 | AC15: 4888 | AD15: 4911 | AE15: 4935 | AF15: 4959 | AG15: ED_NON263_00003 | AJ15: Number leased | AK15: 0 | AL15: 0 | AM15: 0 | AN15: 0 | AO15: 0 | AP15: 0 | AQ15: 0 | AR15: 0 | AS15: 0 | AT15: 0 | AU15: 0 | AV15: 0
A16: ED_NON261_00004 | E16: Capex | F16: 2348.171641 | G16: 9329.096917 | H16: 5040.237201 | I16: 3489.545196 | J16: 1262.39981 | K16: 444.11 | L16: 0 | M16: 0 | N16: 0 | O16: 0 | P16: 0 | Q16: 0 | AG16: ED_NON263_00004 | AJ16: Number in fleet | AK16: 748.5 | AL16: 763 | AM16: 755.5 | AN16: 746.5 | AO16: 708 | AP16: 661.5 | AQ16: 644 | AR16: 641 | AS16: 635.5 | AT16: 630.5 | AU16: 628 | AV16: 628
A17: ED_NON261_00005 | D17: Non-recurrent expenditure | E17: Opex | F17: 3596.18536 | G17: 2393.18378 | H17: 1865.7937 | I17: 8539.46755 | J17: 3435.52228 | K17: 2821.96 | L17: 2700 | M17: 4360 | N17: 7843 | O17: 7335 | P17: 4952 | Q17: 1830 | AG17: ED_NON263_00005 | AJ17: Proportion of total fleet expenditure allocated as regulatory expenditure (%) | AK17: 1 | AL17: 1 | AM17: 1 | AN17: 1 | AO17: 1 | AP17: 1 | AQ17: 1 | AR17: 0.998 | AS17: 0.998 | AT17: 0.998 | AU17: 0.998 | AV17: 0.998
A18: ED_NON261_00006 | E18: Capex | F18: 0 | G18: 0 | H18: 0 | I18: 0 | J18: 0 | K18: 0 | L18: 0 | M18: 0 | N18: 0 | O18: 0 | P18: 0 | Q18: 0 | AG18: ED_NON263_00006 | AI18: LIGHT COMMERCIAL VEHICLE | AJ18: Average kilometres travelled (000's) | AK18: 29.11104787 | AL18: 29.83996128 | AM18: 29.26988034 | AN18: 29.12190105 | AO18: 28.60437378 | AP18: 25.31314674 | AQ18: 25 | AR18: 25 | AS18: 25 | AT18: 25 | AU18: 25 | AV18: 25
A19: ED_NON261_00007 | C19: MOTOR VEHICLES | D19: Car | E19: Opex | F19: 6707.854449 | G19: 6793.446216 | H19: 5430.564027 | I19: 5128.137784 | J19: 4314.238126 | K19: 4657.914295 | L19: 5011.885734 | M19: 4928.985357 | N19: 4792.678008 | O19: 4732.694803 | P19: 4745.249427 | Q19: 4757.604772 | AG19: ED_NON263_00007 | AJ19: Number purchased | AK19: 29 | AL19: 13 | AM19: 40 | AN19: 46 | AO19: 28 | AP19: 53 | AQ19: 58 | AR19: 22 | AS19: 23 | AT19: 19 | AU19: 62 | AV19: 47
A20: ED_NON261_00008 | E20: Capex | F20: 7823.746373 | G20: 9347.312348 | H20: 7591.390724 | I20: 5750.991255 | J20: 9441.706492 | K20: 5423.38989 | L20: 4182 | M20: 7222.94 | N20: 4718.8375 | O20: 9485.7325 | P20: 7066.4975 | Q20: 5607.39 | AG20: ED_NON263_00008 | AJ20: Number leased | AK20: 0 | AL20: 0 | AM20: 0 | AN20: 0 | AO20: 0 | AP20: 0 | AQ20: 0 | AR20: 0 | AS20: 0 | AT20: 0 | AU20: 0 | AV20: 0
A21: ED_NON261_00009 | D21: Light commercial vehicle | E21: Opex | F21: 2048.088938 | G21: 2015.698689 | H21: 2264.670151 | I21: 2270.485937 | J21: 2015.015759 | K21: 1987.737787 | L21: 2138.793037 | M21: 2103.415784 | N21: 2045.247417 | O21: 2019.649933 | P21: 2025.007546 | Q21: 2030.280117 | AG21: ED_NON263_00009 | AJ21: Number in fleet | AK21: 182.5 | AL21: 193.5 | AM21: 196 | AN21: 198.5 | AO21: 194 | AP21: 186 | AQ21: 184 | AR21: 183.5 | AS21: 180.5 | AT21: 175.5 | AU21: 173 | AV21: 173
A22: ED_NON261_00010 | E22: Capex | F22: 1406.515581 | G22: 2586.793021 | H22: 936.0928351 | I22: 2886.084805 | J22: 2287.971287 | K22: 2072.06425 | L22: 4081.02 | M22: 1574.65 | N22: 1671.7875 | O22: 1331.295 | P22: 4386.525 | Q22: 3289.3825 | AG22: ED_NON263_00010 | AJ22: Proportion of total fleet expenditure allocated as regulatory expenditure (%) | AK22: 1 | AL22: 1 | AM22: 1 | AN22: 1 | AO22: 1 | AP22: 1 | AQ22: 1 | AR22: 0.998 | AS22: 0.998 | AT22: 0.998 | AU22: 0.998 | AV22: 0.998
A23: ED_NON261_00011 | D23: Elevated work platform (LCV) | E23: Opex | F23: 0 | G23: 0 | H23: 0 | I23: 0 | J23: 0 | K23: 0 | L23: 0 | M23: 0 | N23: 0 | O23: 0 | P23: 0 | Q23: 0 | AG23: ED_NON263_00011 | AI23: ELEVATED WORK PLATFORM (LCV) | AJ23: Average kilometres travelled (000's) | AK23: 0 | AL23: 0 | AM23: 0 | AN23: 0 | AO23: 0 | AP23: 0 | AQ23: 0 | AR23: 0 | AS23: 0 | AT23: 0 | AU23: 0 | AV23: 0
A24: ED_NON261_00012 | E24: Capex | F24: 0 | G24: 0 | H24: 0 | I24: 0 | J24: 0 | K24: 0 | L24: 0 | M24: 0 | N24: 0 | O24: 0 | P24: 0 | Q24: 0 | AG24: ED_NON263_00012 | AJ24: Number purchased | AK24: 0 | AL24: 0 | AM24: 0 | AN24: 0 | AO24: 0 | AP24: 0 | AQ24: 0 | AR24: 0 | AS24: 0 | AT24: 0 | AU24: 0 | AV24: 0
A25: ED_NON261_00013 | D25: Elevated work platform (HCV) | E25: Opex | F25: 8122.660494 | G25: 8592.858111 | H25: 9279.328675 | I25: 10437.37909 | J25: 9963.569504 | K25: 9823.906853 | L25: 10570.4604 | M25: 10395.617 | N25: 10108.1341 | O25: 9981.624814 | P25: 10008.1035 | Q25: 10034.16189 | AG25: ED_NON263_00013 | AJ25: Number leased | AK25: 0 | AL25: 0 | AM25: 0 | AN25: 0 | AO25: 0 | AP25: 0 | AQ25: 0 | AR25: 0 | AS25: 0 | AT25: 0 | AU25: 0 | AV25: 0
A26: ED_NON261_00014 | E26: Capex | F26: 4256.963371 | G26: 2192.921154 | H26: 9688.067528 | I26: 1308.2377 | J26: 5555.6921 | K26: 12266.80119 | L26: 18990.16078 | M26: 14116.68937 | N26: 12744.25867 | O26: 3981.680994 | P26: 11370.96331 | Q26: 13004.42337 | AG26: ED_NON263_00014 | AJ26: Number in fleet | AK26: 0 | AL26: 0 | AM26: 0 | AN26: 0 | AO26: 0 | AP26: 0 | AQ26: 0 | AR26: 0 | AS26: 0 | AT26: 0 | AU26: 0 | AV26: 0
A27: ED_NON261_00015 | D27: Heavy commercial vehicle | E27: Opex | F27: 6753.789803 | G27: 7285.953956 | H27: 7441.021124 | I27: 7477.80852 | J27: 6710.906282 | K27: 6701.04252 | L27: 7210.278524 | M27: 7091.01507 | N27: 6894.918429 | O27: 6808.62444 | P27: 6826.685972 | Q27: 6844.460814 | AG27: ED_NON263_00015 | AJ27: Proportion of total fleet expenditure allocated as regulatory expenditure (%) | AK27: 0 | AL27: 0 | AM27: 0 | AN27: 0 | AO27: 0 | AP27: 1 | AQ27: 1 | AR27: 0.998 | AS27: 0.998 | AT27: 0.998 | AU27: 0.998 | AV27: 0.998
A28: ED_NON261_00016 | E28: Capex | F28: 3481.442908 | G28: 4289.45565 | H28: 8051.847745 | I28: 9579.717542 | J28: 3829.589922 | K28: 3572.8643 | L28: 4007.07 | M28: 6423.85625 | N28: 6151.36 | O28: 6509.74625 | P28: 6654.94125 | Q28: 5760.765 | AG28: ED_NON263_00016 | AI28: ELEVATED WORK PLATFORM (HCV) | AJ28: Average kilometres travelled (000's) | AK28: 22.67081102 | AL28: 23.12440909 | AM28: 24.44661089 | AN28: 23.42501563 | AO28: 21.67332341 | AP28: 19.69534016 | AQ28: 19 | AR28: 19 | AS28: 19 | AT28: 19 | AU28: 19 | AV28: 19
A29: ED_NON261_00017 | C29: BUILDINGS AND PROPERTY | D29: Total buildings and property expenditure | E29: Opex | F29: 27020.5298 | G29: 30837.31651 | H29: 43630.7329 | I29: 42199.87147 | J29: 43941.74578 | K29: 40769.10934 | L29: 41034 | M29: 40223 | N29: 38671 | O29: 37921 | P29: 37826 | Q29: 37732 | AG29: ED_NON263_00017 | AJ29: Number purchased | AK29: 26 | AL29: 11 | AM29: 13 | AN29: 10 | AO29: 0 | AP29: 48 | AQ29: 48 | AR29: 37 | AS29: 27 | AT29: 8 | AU29: 25 | AV29: 0.029
A30: ED_NON261_00018 | E30: Capex | F30: 14987.30977 | G30: 55026.70906 | H30: 35719.98292 | I30: 43405.20526 | J30: 36258.27531 | K30: 16983.88733 | L30: 34051.21373 | M30: 20616.58775 | N30: 21117.24669 | O30: 12632.9413 | P30: 7656.441407 | Q30: 12351.68363 | AG30: ED_NON263_00018 | AJ30: Number leased | AK30: 0 | AL30: 0 | AM30: 0 | AN30: 0 | AO30: 0 | AP30: 0 | AQ30: 0 | AR30: 0 | AS30: 0 | AT30: 0 | AU30: 0 | AV30: 0
A31: ED_NON261_00019 | C31: OTHER | D31: Other expenditure | E31: Opex | F31: 8291.934756 | G31: 9304.831124 | H31: 8824.586578 | I31: 9069.708458 | J31: 8557.050975 | K31: 7584.401515 | L31: 8193.388844 | M31: 8050.149918 | N31: 7850.653611 | O31: 7784.730996 | P31: 7845.022088 | Q31: 7912.852672 | AG31: ED_NON263_00019 | AJ31: Number in fleet | AK31: 235.5 | AL31: 239.5 | AM31: 244 | AN31: 251.5 | AO31: 249.5 | AP31: 245 | AQ31: 244 | AR31: 243.5 | AS31: 238.5 | AT31: 229.5 | AU31: 225 | AV31: 225
A32: ED_NON261_00020 | E32: Capex | F32: 13123.49206 | G32: 20270.85033 | H32: 18736.44806 | I32: 12228.24848 | J32: 14738.78146 | K32: 8766.304379 | L32: 23514.41437 | M32: 8793.91942 | N32: 9600.324504 | O32: 8401.998913 | P32: 8356.11135 | Q32: 8701.896698 | AG32: ED_NON263_00020 | AJ32: Proportion of total fleet expenditure allocated as regulatory expenditure (%) | AK32: 1 | AL32: 1 | AM32: 1 | AN32: 1 | AO32: 1 | AP32: 1 | AQ32: 1 | AR32: 0.998 | AS32: 0.998 | AT32: 0.998 | AU32: 0.998 | AV32: 0.998
A33: ED_NON261_00021 | C33: OTHER - DNSP nominated | D33: OTHER FLEET - Mobile Generators | E33: Opex | F33: 946.1029368 | G33: 1404.530305 | H33: 2271.951005 | I33: 1537.740623 | J33: 1655.135823 | K33: 1546.478169 | L33: 1730.545869 | M33: 1699.517056 | N33: 1653.226927 | O33: 1635.117433 | P33: 1643.398368 | Q33: 1653.05856 | AG33: ED_NON263_00021 | AI33: HEAVY COMMERCIAL VEHICLE | AJ33: Average kilometres travelled (000's) | AK33: 25.80364776 | AL33: 26.09104573 | AM33: 25.75626511 | AN33: 26.08312404 | AO33: 26.37064503 | AP33: 22.674165 | AQ33: 22 | AR33: 22 | AS33: 22 | AT33: 22 | AU33: 22 | AV33: 22
A34: ED_NON261_00022 | E34: Capex | F34: 0 | G34: 0 | H34: 132.3957329 | I34: 1118.784927 | J34: 969.2976103 | K34: 219.66048 | L34: 13428.3 | M34: 0 | N34: 598.1625 | O34: 0 | P34: 0 | Q34: 766.875 | AG34: ED_NON263_00022 | AJ34: Number purchased | AK34: 31 | AL34: 16 | AM34: 54 | AN34: 82 | AO34: 56 | AP34: 39 | AQ34: 24 | AR34: 0.046 | AS34: 49 | AT34: 49 | AU34: 55 | AV34: 49
A35: ED_NON261_00023 | D35: OTHER FLEET - Trailers | E35: Opex | F35: 0 | G35: 0 | H35: 0 | I35: 0 | J35: 0 | K35: 0 | L35: 0 | M35: 0 | N35: 0 | O35: 0 | P35: 0 | Q35: 0 | AG35: ED_NON263_00023 | AJ35: Number leased | AK35: 0 | AL35: 0 | AM35: 0 | AN35: 0 | AO35: 0 | AP35: 0 | AQ35: 0 | AR35: 0 | AS35: 0 | AT35: 0 | AU35: 0 | AV35: 0
A36: ED_NON261_00024 | E36: Capex | F36: 163.5874769 | G36: 1036.101144 | H36: 1218.750625 | I36: 310.9382264 | J36: 237.0868792 | K36: 205.75448 | L36: 310.08 | M36: 761.7625 | N36: 456.035 | O36: 500.0025 | P36: 427.405 | Q36: 680.985 | AG36: ED_NON263_00024 | AJ36: Number in fleet | AK36: 320.5 | AL36: 320.5 | AM36: 319 | AN36: 316 | AO36: 306 | AP36: 291 | AQ36: 282 | AR36: 277 | AS36: 267.5 | AT36: 258.5 | AU36: 254 | AV36: 254
A37: ED_NON261_00025 | D37: OTHER - Tools & Equipment | E37: Opex | F37: 7345.831819 | G37: 7900.300819 | H37: 6552.635573 | I37: 7531.967835 | J37: 6901.915152 | K37: 6037.923346 | L37: 6462.842976 | M37: 6350.632862 | N37: 6197.426684 | O37: 6149.613563 | P37: 6201.62372 | Q37: 6259.794113 | AG37: ED_NON263_00025 | AJ37: Proportion of total fleet expenditure allocated as regulatory expenditure (%) | AK37: 1 | AL37: 1 | AM37: 1 | AN37: 1 | AO37: 1 | AP37: 1 | AQ37: 1 | AR37: 0.998 | AS37: 0.998 | AT37: 0.998 | AU37: 0.998 | AV37: 0.998
A38: ED_NON261_00026 | E38: Capex | F38: 10496.00153 | G38: 11943.62968 | H38: 9498.87706 | I38: 9276.07468 | J38: 7984.0225 | K38: 7068.090189 | L38: 7748.314378 | M38: 7476.265836 | N38: 7160.385387 | O38: 6949.968764 | P38: 6950.14113 | Q38: 6950.321478
A39: ED_NON261_00027 | D39: OTHER | E39: Opex | F39: 0 | G39: 0 | H39: 0 | I39: 0 | J39: 0 | K39: 0 | L39: 0 | M39: 0 | N39: 0 | O39: 0 | P39: 0 | Q39: 0
A40: ED_NON261_00028 | E40: Capex | F40: 842.6292403 | G40: 328.2911948 | H40: 84.40638863 | I40: 1387.350356 | J40: 330.7836844 | K40: 585.38333 | L40: 606.9 | M40: 0 | N40: 603.275 | O40: 506.1375 | P40: 725.975 | Q40: 51.125
A41: ED_NON261_00029 | E41: Opex | F41: 0 | G41: 0 | H41: 0 | I41: 0 | J41: 0 | K41: 0 | L41: 0 | M41: 0 | N41: 0 | O41: 0 | P41: 0 | Q41: 0
A42: ED_NON261_00030 | E42: Capex | F42: 0 | G42: 0 | H42: 0 | I42: 0 | J42: 0 | K42: 0 | L42: 0 | M42: 0 | N42: 0 | O42: 0 | P42: 0 | Q42: 0
A43: ED_NON261_00031 | E43: Opex | F43: 0 | G43: 0 | H43: 0 | I43: 0 | J43: 0 | K43: 0 | L43: 0 | M43: 0 | N43: 0 | O43: 0 | P43: 0 | Q43: 0
A44: ED_NON261_00032 | E44: Capex | F44: 0 | G44: 0 | H44: 0 | I44: 0 | J44: 0 | K44: 0 | L44: 0 | M44: 0 | N44: 0 | O44: 0 | P44: 0 | Q44: 0
A45: ED_NON261_00033 | D45: OFFICE FURNITURE CAPEX | E45: Opex | F45: 0 | G45: 0 | H45: 0 | I45: 0 | J45: 0 | K45: 0 | L45: 0 | M45: 0 | N45: 0 | O45: 0 | P45: 0 | Q45: 0
A46: ED_NON261_00034 | E46: Capex | F46: 1621.273807 | G46: 6962.828314 | H46: 7802.018255 | I46: 135.10029 | J46: 846.36679 | K46: 393.8147923 | L46: 1420.819988 | M46: 555.891084 | N46: 782.4666163 | O46: 445.8901482 | P46: 252.59022 | Q46: 252.59022
A47: ED_NON261_00035 | D47: PLANT & EQUIPMENT CAPEX | E47: Opex | F47: 0 | G47: 0 | H47: 0 | I47: 0 | J47: 0 | K47: 0 | L47: 0 | M47: 0 | N47: 0 | O47: 0 | P47: 0 | Q47: 0
A48: ED_NON261_00036 | E48: Capex | F48: 0 | G48: 0 | H48: 0 | I48: 0 | J48: 4371.224 | K48: 293.6011077 | L48: 0 | M48: 0 | N48: 0 | O48: 0 | P48: 0 | Q48: 0
A49: ED_NON261_00037 | E49: Opex
A50: ED_NON261_00038 | E50: Capex
A51: ED_NON261_00039 | E51: Opex
A52: ED_NON261_00040 | E52: Capex
A53: ED_NON261_00041 | E53: Opex
A54: ED_NON261_00042 | E54: Capex

Sheet 2.7 Vegetation management
C1: REGULATORY REPORTING STATEMENT
C2: =TradingName -> Energex
C3: =RCP_1to5 -> 2015-16 to 2019-20
C4: 2.7 VEGETATION MANAGEMENT
C6: TABLE 2.7.3 - DESCRIPTOR METRICS ACROSS ALL ZONES - UNPLANNED VEGETATION EVENTS | J6: TABLE 2.7.1 - DESCRIPTOR METRICS BY ZONE | S6: TABLE 2.7.2 - EXPENDITURE METRICS BY ZONE
D8: VOLUMES | M8: VOLUMES | U8: EXPENDITURE ($000's)
C9: DESCRIPTOR METRIC | D9: =PRCP_y5 -> 2009-10 | E9: =CRCP -> 2010-11 | F9: 2011-12 | G9: 2012-13 | H9: 2013-14 | J9: ZONES | K9: ASSET | L9: ASSET SUBCATEGORY | M9: =PRCP_y5 -> 2009-10 | N9: =CRCP -> 2010-11 | O9: 2011-12 | P9: 2012-13 | Q9: 2013-14 | S9: ZONES | T9: SERVICE SUBCATEGORY | U9: =PRCP_y5 -> 2009-10 | V9: =CRCP -> 2010-11 | W9: 2011-12 | X9: 2012-13 | Y9: 2013-14
A10: ED_VEG273_00001 | C10: Number of fire starts caused by vegetation grow-ins (NSP responsibility) (0's) | D10: 0 | E10: 0 | F10: 0 | G10: 0 | H10: 0 | I10: ED_VEG271_00001 | J10: ZONE 1 (DNSP to nominate) | K10: Route line length within zone (KM) | L10: Urban and CBD | M10: 7415.39 | N10: 7397.194 | O10: 7398.511 | P10: 7382.209 | Q10: 8841.4 | R10: ED_VEG272_00001 | S10: ZONE 1 (DNSP to nominate) | T10: Tree trimming (excluding hazard trees) | U10: 32085.26672 | V10: 30212.99512 | W10: 35887.96149 | X10: 40367.01646 | Y10: 50640.50699
A11: ED_VEG273_00002 | C11: Number of fire starts caused by vegetation blow-ins and fall-ins (NSP responsibility) (0's) | D11: 7 | E11: 5 | F11: 2 | G11: 44 | H11: 15 | I11: ED_VEG271_00002 | L11: Rural | M11: 7147.225 | N11: 7129.688 | O11: 7130.957 | P11: 7115.244 | Q11: 17047.6 | R11: ED_VEG272_00002 | T11: Hazard tree cutting | U11: 674.424515 | V11: 1281.15793 | W11: 1225.10427 | X11: 262.831285 | Y11: 182.38398
A12: ED_VEG273_00003 | C12: Number of fire starts caused by vegetation grow-ins (other party responsibility) (0's) | D12: 0 | E12: 0 | F12: 0 | G12: 0 | H12: 0 | I12: ED_VEG271_00003 | K12: Number of maintenance spans (0's) | L12: Urban and CBD | M12: 103955.899 | N12: 103733.728 | O12: 103739.034 | P12: 103526.415 | Q12: 115928 | R12: ED_VEG272_00003 | T12: Ground clearance
A13: ED_VEG273_00004 | C13: Number of fire starts caused by vegetation blow-ins and fall-ins (other party responsibility) (0's) | D13: 0 | E13: 0 | F13: 0 | G13: 0 | H13: 0 | I13: ED_VEG271_00004 | L13: Rural | M13: 55276.854 | N13: 55158.718 | O13: 55161.54 | P13: 55048.483 | Q13: 101101 | R13: ED_VEG272_00004 | T13: Vegetation corridor clearance | U13: 2868.77442 | V13: 2730.57961 | W13: 2412.22017 | X13: 1607.16145 | Y13: 2854.81836
I14: ED_VEG271_00005 | K14: Total length of maintenance spans (KM) | L14: Urban and CBD | M14: 4150.928 | N14: 4140.742 | O14: 4141.479 | P14: 4132.354 | Q14: 4894 | R14: ED_VEG272_00005 | T14: Inspection
I15: ED_VEG271_00006 | L15: Rural | M15: 3646.624 | N15: 3637.676 | O15: 3638.324 | P15: 3630.307 | Q15: 101101 | R15: ED_VEG272_00006 | T15: Audit
I16: ED_VEG271_00007 | K16: Length of vegetation corridors (KM) | L16: Urban and CBD | M16: 0 | N16: 0 | O16: 0 | P16: 0 | Q16: 0 | R16: ED_VEG272_00007 | T16: Contractor liaison expenditure
I17: ED_VEG271_00008 | L17: Rural | M17: 1236 | N17: 1092 | O17: 1051 | P17: 1054 | Q17: 1493 | R17: ED_VEG272_00008 | T17: Tree replacement program costs | U17: 77.93766 | V17: 1983.235 | W17: 422.80431 | X17: 163.73556 | Y17: 165.20999
I18: ED_VEG271_00009 | K18: Average number of trees per maintenance span (0's) | L18: Urban and CBD | M18: 2.9 | N18: 2.9 | O18: 2.9 | P18: 2.9 | Q18: 2.89 | R18: ED_VEG272_00009 | T18: Other vegetation management expenditure
I19: ED_VEG271_00010 | L19: Rural | M19: 4.01 | N19: 4.01 | O19: 4.01 | P19: 4.01 | Q19: 4.69 | R19: ED_VEG272_00010 | S19: ZONE 2 (DNSP to nominate) | T19: Tree trimming (excluding hazard trees) | U19: 6551.085352 | V19: 9875.37276 | W19: 6378.478624 | X19: 5484.49927
I20: ED_VEG271_00011 | K20: Average frequency of cutting cycle (years) | L20: Urban and CBD | M20: 1 | N20: 1 | O20: 1 | P20: 1 | Q20: 1.23 | R20: ED_VEG272_00011 | T20: Hazard tree cutting | U20: 539.539612 | V20: 1024.926344 | W20: 980.083416 | X20: 210.265028
I21: ED_VEG271_00012 | L21: Rural | M21: 1 | N21: 1 | O21: 1 | P21: 1 | Q21: 2.05 | R21: ED_VEG272_00012 | T21: Ground clearance
I22: ED_VEG271_00013 | J22: ZONE 2 (DNSP to nominate) | K22: Route line length within zone (KM) | L22: Urban and CBD | M22: 1152.92 | N22: 1156.954 | O22: 1158.359 | P22: 1158.469 | R22: ED_VEG272_00013 | T22: Vegetation corridor clearance | U22: 0 | V22: 0 | W22: 0 | X22: 0
I23: ED_VEG271_00014 | L23: Rural | M23: 5914.817 | N23: 5935.513 | O23: 5942.722 | P23: 5943.285 | R23: ED_VEG272_00014 | T23: Inspection
I24: ED_VEG271_00015 | K24: Number of maintenance spans (0's) | L24: Urban and CBD | M24: 11271.445 | N24: 11330.626 | O24: 11354.568 | P24: 11384.427 | R24: ED_VEG272_00015 | T24: Audit
I25: ED_VEG271_00016 | L25: Rural | M25: 34036.042 | N25: 34214.749 | O25: 34287.044 | P25: 34377.21 | R25: ED_VEG272_00016 | T25: Contractor liaison expenditure
I26: ED_VEG271_00017 | K26: Total length of maintenance spans (KM) | L26: Urban and CBD | M26: 660.12 | N26: 662.429 | O26: 663.234 | P26: 663.297 | R26: ED_VEG272_00017 | T26: Tree replacement program costs
I27: ED_VEG271_00018 | L27: Rural | M27: 3137.481 | N27: 3148.459 | O27: 3152.283 | P27: 3152.582 | R27: ED_VEG272_00018 | T27: Other vegetation management expenditure
I28: ED_VEG271_00019 | K28: Length of vegetation corridors (KM) | L28: Urban and CBD | M28: 0 | N28: 0 | O28: 0 | P28: 0 | R28: ED_VEG272_00019 | S28: ZONE 3 (DNSP to nominate) | T28: Tree trimming (excluding hazard trees) | U28: 2306.082088 | V28: 2875.16439 | W28: 2030.970531 | X28: 2746.096484
I29: ED_VEG271_00020 | L29: Rural | M29: 313.748 | N29: 314.846 | O29: 315.228 | P29: 315.258 | R29: ED_VEG272_00020 | T29: Hazard tree cutting | U29: 134.884903 | V29: 256.231586 | W29: 245.020854 | X29: 52.566257
I30: ED_VEG271_00021 | K30: Average number of trees per maintenance span (0's) | L30: Urban and CBD | M30: 2.81 | N30: 2.81 | O30: 2.81 | P30: 2.81 | R30: ED_VEG272_00021 | T30: Ground clearance
I31: ED_VEG271_00022 | L31: Rural | M31: 5.28 | N31: 5.28 | O31: 5.28 | P31: 5.28 | R31: ED_VEG272_00022 | T31: Vegetation corridor clearance | U31: 0 | V31: 0 | W31: 0 | X31: 0
I32: ED_VEG271_00023 | K32: Average frequency of cutting cycle (years) | L32: Urban and CBD | M32: 2 | N32: 2 | O32: 2 | P32: 2 | R32: ED_VEG272_00023 | T32: Inspection
I33: ED_VEG271_00024 | L33: Rural | M33: 2 | N33: 2 | O33: 2 | P33: 2 | R33: ED_VEG272_00024 | T33: Audit
I34: ED_VEG271_00025 | J34: ZONE 3 (DNSP to nominate) | K34: Route line length within zone (KM) | L34: Urban and CBD | M34: 279.087 | N34: 281.496 | O34: 281.4 | P34: 284.198 | R34: ED_VEG272_00025 | T34: Contractor liaison expenditure
I35: ED_VEG271_00026 | L35: Rural | M35: 3884.72 | N35: 3918.259 | O35: 3916.918 | P35: 3955.858 | R35: ED_VEG272_00026 | T35: Tree replacement program costs
I36: ED_VEG271_00027 | K36: Number of maintenance spans (0's) | L36: Urban and CBD | M36: 771.284 | N36: 778.028 | O36: 780.585 | P36: 789.281 | R36: ED_VEG272_00027 | T36: Other vegetation management expenditure
I37: ED_VEG271_00028 | L37: Rural | M37: 11214.959 | N37: 11313.015 | O37: 11350.188 | P37: 11476.636 | R37: ED_VEG272_00028 | S37: ZONE 4 (DNSP to nominate) | T37: Tree trimming (excluding hazard trees)
I38: ED_VEG271_00029 | K38: Total length of maintenance spans (KM) | L38: Urban and CBD | M38: 87.319 | N38: 88.073 | O38: 88.043 | P38: 88.918 | R38: ED_VEG272_00029 | T38: Hazard tree cutting
I39: ED_VEG271_00030 | L39: Rural | M39: 1215.952 | N39: 1226.45 | O39: 1226.031 | P39: 1238.219 | R39: ED_VEG272_00030 | T39: Ground clearance
I40: ED_VEG271_00031 | K40: Length of vegetation corridors (KM) | L40: Urban and CBD | M40: 0 | N40: 0 | O40: 0 | P40: 0 | R40: ED_VEG272_00031 | T40: Vegetation corridor clearance
I41: ED_VEG271_00032 | L41: Rural | M41: 121.595 | N41: 122.645 | O41: 122.603 | P41: 123.822 | R41: ED_VEG272_00032 | T41: Inspection
I42: ED_VEG271_00033 | K42: Average number of trees per maintenance span (0's) | L42: Urban and CBD | M42: 3.24 | N42: 3.24 | O42: 3.24 | P42: 3.24 | R42: ED_VEG272_00033 | T42: Audit
I43: ED_VEG271_00034 | L43: Rural | M43: 3.24 | N43: 3.24 | O43: 3.24 | P43: 3.24 | R43: ED_VEG272_00034 | T43: Contractor liaison expenditure
I44: ED_VEG271_00035 | K44: Average frequency of cutting cycle (years) | L44: Urban and CBD | M44: 4 | N44: 4 | O44: 4 | P44: 4 | R44: ED_VEG272_00035 | T44: Tree replacement program costs
I45: ED_VEG271_00036 | L45: Rural | M45: 4 | N45: 4 | O45: 4 | P45: 4 | R45: ED_VEG272_00036 | T45: Other vegetation management expenditure
I46: ED_VEG271_00037 | J46: ZONE 4 (DNSP to nominate) | K46: Route line length within zone (KM) | L46: Urban and CBD | R46: ED_VEG272_00037 | S46: ZONE 5 (DNSP to nominate) | T46: Tree trimming (excluding hazard trees)
I47: ED_VEG271_00038 | L47: Rural | R47: ED_VEG272_00038 | T47: Hazard tree cutting
I48: ED_VEG271_00039 | K48: Number of maintenance spans (0's) | L48: Urban and CBD | R48: ED_VEG272_00039 | T48: Ground clearance
I49: ED_VEG271_00040 | L49: Rural | R49: ED_VEG272_00040 | T49: Vegetation corridor clearance
I50: ED_VEG271_00041 | K50: Total length of maintenance spans (KM) | L50: Urban and CBD | R50: ED_VEG272_00041 | T50: Inspection
I51: ED_VEG271_00042 | L51: Rural | R51: ED_VEG272_00042 | T51: Audit
I52: ED_VEG271_00043 | K52: Length of vegetation corridors (KM) | L52: Urban and CBD | R52: ED_VEG272_00043 | T52: Contractor liaison expenditure
I53: ED_VEG271_00044 | L53: Rural | R53: ED_VEG272_00044 | T53: Tree replacement program costs
I54: ED_VEG271_00045 | K54: Average number of trees per maintenance span (0's) | L54: Urban and CBD | R54: ED_VEG272_00045 | T54: Other vegetation management expenditure
I55: ED_VEG271_00046 | L55: Rural | R55: ED_VEG272_00046 | S55: ZONE 6 (DNSP to nominate) | T55: Tree trimming (excluding hazard trees)
I56: ED_VEG271_00047 | K56: Average frequency of cutting cycle (years) | L56: Urban and CBD | R56: ED_VEG272_00047 | T56: Hazard tree cutting
I57: ED_VEG271_00048 | L57: Rural | R57: ED_VEG272_00048 | T57: Ground clearance
I58: ED_VEG271_00049 | J58: ZONE 5 (DNSP to nominate) | K58: Route line length within zone (KM) | L58: Urban and CBD | R58: ED_VEG272_00049 | T58: Vegetation corridor clearance
I59: ED_VEG271_00050 | L59: Rural | R59: ED_VEG272_00050 | T59: Inspection
I60: ED_VEG271_00051 | K60: Number of maintenance spans (0's) | L60: Urban and CBD | R60: ED_VEG272_00051 | T60: Audit
I61: ED_VEG271_00052 | L61: Rural | R61: ED_VEG272_00052 | T61: Contractor liaison expenditure
I62: ED_VEG271_00053 | K62: Total length of maintenance spans (KM) | L62: Urban and CBD | R62: ED_VEG272_00053 | T62: Tree replacement program costs
I63: ED_VEG271_00054 | L63: Rural | R63: ED_VEG272_00054 | T63: Other vegetation management expenditure
I64: ED_VEG271_00055 | K64: Length of vegetation corridors (KM) | L64: Urban and CBD | R64: ED_VEG272_00055 | S64: ZONE 7 (DNSP to nominate) | T64: Tree trimming (excluding hazard trees)
I65: ED_VEG271_00056 | L65: Rural | R65: ED_VEG272_00056 | T65: Hazard tree cutting
I66: ED_VEG271_00057 | K66: Average number of trees per maintenance span (0's) | L66: Urban and CBD | R66: ED_VEG272_00057 | T66: Ground clearance
I67: ED_VEG271_00058 | L67: Rural | R67: ED_VEG272_00058 | T67: Vegetation corridor clearance
I68: ED_VEG271_00059 | K68: Average frequency of cutting cycle (years) | L68: Urban and CBD | R68: ED_VEG272_00059 | T68: Inspection
I69: ED_VEG271_00060 | L69: Rural | R69: ED_VEG272_00060 | T69: Audit
I70: ED_VEG271_00061 | J70: ZONE 6 (DNSP to nominate) | K70: Route line length within zone (KM) | L70: Urban and CBD | R70: ED_VEG272_00061 | T70: Contractor liaison expenditure
I71: ED_VEG271_00062 | L71: Rural | R71: ED_VEG272_00062 | T71: Tree replacement program costs
I72: ED_VEG271_00063 | K72: Number of maintenance spans (0's) | L72: Urban and CBD | R72: ED_VEG272_00063 | T72: Other vegetation management expenditure
I73: ED_VEG271_00064 | L73: Rural | R73: ED_VEG272_00064 | S73: ZONE 8 (DNSP to nominate) | T73: Tree trimming (excluding hazard trees)
I74: ED_VEG271_00065 | K74: Total length of maintenance spans (KM) | L74: Urban and CBD | R74: ED_VEG272_00065 | T74: Hazard tree cutting
I75: ED_VEG271_00066 | L75: Rural | R75: ED_VEG272_00066 | T75: Ground clearance
I76: ED_VEG271_00067 | K76: Length of vegetation corridors (KM) | L76: Urban and CBD | R76: ED_VEG272_00067 | T76: Vegetation corridor clearance
I77: ED_VEG271_00068 | L77: Rural | R77: ED_VEG272_00068 | T77: Inspection
I78: ED_VEG271_00069 | K78: Average number of trees per maintenance span (0's) | L78: Urban and CBD | R78: ED_VEG272_00069 | T78: Audit
I79: ED_VEG271_00070 | L79: Rural | R79: ED_VEG272_00070 | T79: Contractor liaison expenditure
I80: ED_VEG271_00071 | K80: Average frequency of cutting cycle (years) | L80: Urban and CBD | R80: ED_VEG272_00071 | T80: Tree replacement program costs
I81: ED_VEG271_00072 | L81: Rural | R81: ED_VEG272_00072 | T81: Other vegetation management expenditure
I82: ED_VEG271_00073 | J82: ZONE 7 (DNSP to nominate) | K82: Route line length within zone (KM) | L82: Urban and CBD | R82: ED_VEG272_00073 | S82: ZONE 9 (DNSP to nominate) | T82: Tree trimming (excluding hazard trees)
I83: ED_VEG271_00074 | L83: Rural | R83: ED_VEG272_00074 | T83: Hazard tree cutting
I84: ED_VEG271_00075 | K84: Number of maintenance spans (0's) | L84: Urban and CBD | R84: ED_VEG272_00075 | T84: Ground clearance
I85: ED_VEG271_00076 | L85: Rural | R85: ED_VEG272_00076 | T85: Vegetation corridor clearance
I86: ED_VEG271_00077 | K86: Total length of maintenance spans (KM) | L86: Urban and CBD | R86: ED_VEG272_00077 | T86: Inspection
I87: ED_VEG271_00078 | L87: Rural | R87: ED_VEG272_00078 | T87: Audit
I88: ED_VEG271_00079 | K88: Length of vegetation corridors (KM) | L88: Urban and CBD | R88: ED_VEG272_00079 | T88: Contractor liaison expenditure
I89: ED_VEG271_00080 | L89: Rural | R89: ED_VEG272_00080 | T89: Tree replacement program costs
I90: ED_VEG271_00081 | K90: Average number of trees per maintenance span (0's) | L90: Urban and CBD | R90: ED_VEG272_00081 | T90: Other vegetation management expenditure
I91: ED_VEG271_00082 | L91: Rural | R91: ED_VEG272_00082 | S91: ZONE 10 (DNSP to nominate) | T91: Tree trimming (excluding hazard trees)
I92: ED_VEG271_00083 | K92: Average frequency of cutting cycle (years) | L92: Urban and CBD | R92: ED_VEG272_00083 | T92: Hazard tree cutting
I93: ED_VEG271_00084 | L93: Rural | R93: ED_VEG272_00084 | T93: Ground clearance
I94: ED_VEG271_00085 | J94: ZONE 8 (DNSP to nominate) | K94: Route line length within zone (KM) | L94: Urban and CBD | R94: ED_VEG272_00085 | T94: Vegetation corridor clearance
I95: ED_VEG271_00086 | L95: Rural | R95: ED_VEG272_00086 | T95: Inspection
I96: ED_VEG271_00087 | K96: Number of maintenance spans (0's) | L96: Urban and CBD | R96: ED_VEG272_00087 | T96: Audit
I97: ED_VEG271_00088 | L97: Rural | R97: ED_VEG272_00088 | T97: Contractor liaison expenditure
I98: ED_VEG271_00089 | K98: Total length of maintenance spans (KM) | L98: Urban and CBD | R98: ED_VEG272_00089 | T98: Tree replacement program costs
I99: ED_VEG271_00090 | L99: Rural | R99: ED_VEG272_00090 | T99: Other vegetation management expenditure
I100: ED_VEG271_00091 | K100: Length of vegetation corridors (KM) | L100: Urban and CBD | R100: ED_VEG272_00091 | S100: ZONE 11 (DNSP to nominate) | T100: Tree trimming (excluding hazard trees)
I101: ED_VEG271_00092 | L101: Rural | R101: ED_VEG272_00092 | T101: Hazard tree cutting
I102: ED_VEG271_00093 | K102: Average number of trees per maintenance span (0's) | L102: Urban and CBD | R102: ED_VEG272_00093 | T102: Ground clearance
I103: ED_VEG271_00094 | L103: Rural | R103: ED_VEG272_00094 | T103: Vegetation corridor clearance
I104: ED_VEG271_00095 | K104: Average frequency of cutting cycle (years) | L104: Urban and CBD | R104: ED_VEG272_00095 | T104: Inspection
I105: ED_VEG271_00096 | L105: Rural | R105: ED_VEG272_00096 | T105: Audit
I106: ED_VEG271_00097 | J106: ZONE 9 (DNSP to nominate) | K106: Route line length within zone (KM) | L106: Urban and CBD | R106: ED_VEG272_00097 | T106: Contractor liaison expenditure
I107: ED_VEG271_00098 | L107: Rural | R107: ED_VEG272_00098 | T107: Tree replacement program costs
I108: ED_VEG271_00099 | K108: Number of maintenance spans (0's) | L108: Urban and CBD | R108: ED_VEG272_00099 | T108: Other vegetation management expenditure
I109: ED_VEG271_00100 | L109: Rural | R109: ED_VEG272_00100 | S109: ZONE 12 (DNSP to nominate) | T109: Tree trimming (excluding hazard trees)
I110: ED_VEG271_00101 | K110: Total length of maintenance spans (KM) | L110: Urban and CBD | R110: ED_VEG272_00101 | T110: Hazard tree cutting
I111: ED_VEG271_00102 | L111: Rural | R111: ED_VEG272_00102 | T111: Ground clearance
I112: ED_VEG271_00103 | K112: Length of vegetation corridors (KM) | L112: Urban and CBD | R112: ED_VEG272_00103 | T112: Vegetation corridor clearance
I113: ED_VEG271_00104 | L113: Rural | R113: ED_VEG272_00104 | T113: Inspection
I114: ED_VEG271_00105 | K114: Average number of trees per maintenance span (0's) | L114: Urban and CBD | R114: ED_VEG272_00105 | T114: Audit
I115: ED_VEG271_00106 | L115: Rural | R115: ED_VEG272_00106 | T115: Contractor liaison expenditure
I116: ED_VEG271_00107 | K116: Average frequency of cutting cycle (years) | L116: Urban and CBD | R116: ED_VEG272_00107 | T116: Tree replacement program costs
I117: ED_VEG271_00108 | L117: Rural | R117: ED_VEG272_00108 | T117: Other vegetation management expenditure
I118: ED_VEG271_00109 | J118: ZONE 10 (DNSP to nominate) | K118: Route line length within zone (KM) | L118: Urban and CBD | R118: ED_VEG272_00109 | S118: ZONE 13 (DNSP to nominate) | T118: Tree trimming (excluding hazard trees)
I119: ED_VEG271_00110 | L119: Rural | R119: ED_VEG272_00110 | T119: Hazard tree cutting
I120: ED_VEG271_00111 | K120: Number of maintenance spans (0's) | L120: Urban and CBD | R120: ED_VEG272_00111 | T120: Ground clearance
I121: ED_VEG271_00112 | L121: Rural | R121: ED_VEG272_00112 | T121: Vegetation corridor clearance
I122: ED_VEG271_00113 | K122: Total length of maintenance spans (KM) | L122: Urban and CBD | R122: ED_VEG272_00113 | T122: Inspection
I123: ED_VEG271_00114 | L123: Rural | R123: ED_VEG272_00114 | T123: Audit
I124: ED_VEG271_00115 | K124: Length of vegetation corridors (KM) | L124: Urban and CBD | R124: ED_VEG272_00115 | T124: Contractor liaison expenditure
I125: ED_VEG271_00116 | L125: Rural | R125: ED_VEG272_00116 | T125: Tree replacement program costs
I126: ED_VEG271_00117 | K126: Average number of trees per maintenance span (0's) | L126: Urban and CBD | R126: ED_VEG272_00117 | T126: Other vegetation management expenditure
I127: ED_VEG271_00118 | L127: Rural | R127: ED_VEG272_00118 | S127: ZONE 14 (DNSP to nominate) | T127: Tree trimming (excluding hazard trees)
I128: ED_VEG271_00119 | K128: Average frequency of cutting cycle (years) | L128: Urban and CBD | R128: ED_VEG272_00119 | T128: Hazard tree cutting
I129: ED_VEG271_00120 | L129: Rural | R129: ED_VEG272_00120 | T129: Ground clearance
I130: ED_VEG271_00121 | J130: ZONE 11 (DNSP to nominate) | K130: Route line length within zone (KM) | L130: Urban and CBD | R130: ED_VEG272_00121 | T130: Vegetation corridor clearance
I131: ED_VEG271_00122 | L131: Rural | R131: ED_VEG272_00122 | T131: Inspection
I132: ED_VEG271_00123 | K132: Number of maintenance spans (0's) | L132: Urban and CBD | R132: ED_VEG272_00123 | T132: Audit
I133: ED_VEG271_00124 | L133: Rural | R133: ED_VEG272_00124 | T133: Contractor liaison expenditure
I134: ED_VEG271_00125 | K134: Total length of maintenance spans (KM) | L134: Urban and CBD | R134: ED_VEG272_00125 | T134: Tree replacement program costs
I135: ED_VEG271_00126 | L135: Rural | R135: ED_VEG272_00126 | T135: Other vegetation management expenditure
I136: ED_VEG271_00127 | K136: Length of vegetation corridors (KM) | L136: Urban and CBD | R136: ED_VEG272_00127 | S136: ZONE 15 (DNSP to nominate) | T136: Tree trimming (excluding hazard trees)
I137: ED_VEG271_00128 | L137: Rural | R137: ED_VEG272_00128 | T137: Hazard tree cutting
I138: ED_VEG271_00129 | K138: Average number of trees per maintenance span (0's) | L138: Urban and CBD | R138: ED_VEG272_00129 | T138: Ground clearance
I139: ED_VEG271_00130 | L139: Rural | R139: ED_VEG272_00130 | T139: Vegetation corridor clearance
I140: ED_VEG271_00131 | K140: Average frequency of cutting cycle (years) | L140: Urban and CBD | R140: ED_VEG272_00131 | T140: Inspection
I141: ED_VEG271_00132 | L141: Rural | R141: ED_VEG272_00132 | T141: Audit
I142: ED_VEG271_00133 | J142: ZONE 12 (DNSP to nominate) | K142: Route line length within zone (KM) | L142: Urban and CBD | R142: ED_VEG272_00133 | T142: Contractor liaison expenditure
I143: ED_VEG271_00134 | L143: Rural | R143: ED_VEG272_00134 | T143: Tree replacement program costs
I144: ED_VEG271_00135 | K144: Number of maintenance spans (0's) | L144: Urban and CBD | R144: ED_VEG272_00135 | T144: Other vegetation management expenditure
I145: ED_VEG271_00136 | L145: Rural | R145: ED_VEG272_00136 | S145: ZONE 16 (DNSP to nominate) | T145: Tree trimming (excluding hazard trees)
I146: ED_VEG271_00137 | K146: Total length of maintenance spans (KM) | L146: Urban and CBD | R146: ED_VEG272_00137 | T146: Hazard tree cutting
I147: ED_VEG271_00138 | L147: Rural | R147: ED_VEG272_00138 | T147: Ground clearance
I148: ED_VEG271_00139 | K148: Length of vegetation corridors (KM) | L148: Urban and CBD | R148: ED_VEG272_00139 | T148: Vegetation corridor clearance
I149: ED_VEG271_00140 | L149: Rural | R149: ED_VEG272_00140 | T149: Inspection
I150: ED_VEG271_00141 | K150: Average number of trees per maintenance span (0's) | L150: Urban and CBD | R150: ED_VEG272_00141 | T150: Audit
I151: ED_VEG271_00142 | L151: Rural | R151: ED_VEG272_00142 | T151: Contractor liaison expenditure
I152: ED_VEG271_00143 | K152: Average frequency of cutting cycle (years) | L152: Urban and CBD | R152: ED_VEG272_00143 | T152: Tree replacement program costs
I153: ED_VEG271_00144 | L153: Rural | R153: ED_VEG272_00144 | T153: Other vegetation management expenditure
I154: ED_VEG271_00145 | J154: ZONE 13 (DNSP to nominate) | K154: Route line length within zone (KM) | L154: Urban and CBD | R154: ED_VEG272_00145 | S154: ZONE 17 (DNSP to nominate) | T154: Tree trimming (excluding hazard trees)
I155: ED_VEG271_00146 | L155: Rural | R155: ED_VEG272_00146 | T155: Hazard tree cutting
I156: ED_VEG271_00147 | K156: Number of maintenance spans (0's) | L156: Urban and CBD | R156: ED_VEG272_00147 | T156: Ground clearance
I157: ED_VEG271_00148 | L157: Rural | R157: ED_VEG272_00148 | T157: Vegetation corridor clearance
I158: ED_VEG271_00149 | K158: Total length of maintenance spans (KM) | L158: Urban and CBD | R158: ED_VEG272_00149 | T158: Inspection
I159: ED_VEG271_00150 | L159: Rural | R159: ED_VEG272_00150 | T159: Audit
I160: ED_VEG271_00151 | K160: Length of vegetation corridors (KM) | L160: Urban and CBD | R160: ED_VEG272_00151 | T160: Contractor liaison expenditure
I161: ED_VEG271_00152 | L161: Rural | R161: ED_VEG272_00152 | T161: Tree replacement program costs
I162: ED_VEG271_00153 | K162: Average number of trees per maintenance span (0's) | L162: Urban and CBD | R162: ED_VEG272_00153 | T162: Other vegetation management expenditure
I163: ED_VEG271_00154 | L163: Rural | R163: ED_VEG272_00154 | S163: ZONE 18 (DNSP to nominate) | T163: Tree trimming (excluding hazard trees)
I164: ED_VEG271_00155 | K164: Average frequency of cutting cycle (years) | L164: Urban and CBD | R164: ED_VEG272_00155 | T164: Hazard tree cutting
I165: ED_VEG271_00156 | L165: Rural | R165: ED_VEG272_00156 | T165: Ground clearance
I166: ED_VEG271_00157 | J166: ZONE 14 (DNSP to nominate) | K166: Route line length within zone (KM) | L166: Urban and CBD | R166: ED_VEG272_00157 | T166: Vegetation corridor clearance
I167: ED_VEG271_00158 | L167: Rural | R167: ED_VEG272_00158 | T167: Inspection
I168: ED_VEG271_00159 | K168: Number of maintenance spans (0's) | L168: Urban and CBD | R168: ED_VEG272_00159 | T168: Audit
I169: ED_VEG271_00160 | L169: Rural | R169: ED_VEG272_00160 | T169: Contractor liaison expenditure
I170: ED_VEG271_00161 | K170: Total length of maintenance spans (KM) | L170: Urban and CBD | R170: ED_VEG272_00161 | T170: Tree replacement program costs
I171: ED_VEG271_00162 | L171: Rural | R171: ED_VEG272_00162 | T171: Other vegetation management expenditure
I172: ED_VEG271_00163 | K172: Length of vegetation corridors (KM) | L172: Urban and CBD
I173: ED_VEG271_00164 | L173: Rural
I174: ED_VEG271_00165 | K174: Average number of trees per maintenance span (0's) | L174: Urban and CBD
I175: ED_VEG271_00166 | L175: Rural
I176: ED_VEG271_00167 | K176: Average frequency of cutting cycle (years) | L176: Urban and CBD
I177: ED_VEG271_00168 | L177: Rural
I178: ED_VEG271_00169 | J178: ZONE 15 (DNSP to nominate) | K178: Route line length within zone (KM) | L178: Urban and CBD
I179: ED_VEG271_00170 | L179: Rural
I180: ED_VEG271_00171 | K180: Number of maintenance spans (0's) | L180: Urban and CBD
I181: ED_VEG271_00172 | L181: Rural
I182: ED_VEG271_00173 | K182: Total length of maintenance spans (KM) | L182: Urban and CBD
I183: ED_VEG271_00174 | L183: Rural
I184: ED_VEG271_00175 | K184: Length of vegetation corridors (KM) | L184: Urban and CBD
I185: ED_VEG271_00176 | L185: Rural
I186: ED_VEG271_00177 | K186: Average number of trees per maintenance span (0's) | L186: Urban and CBD
I187: ED_VEG271_00178 | L187: Rural
I188: ED_VEG271_00179 | K188: Average frequency of cutting cycle (years) | L188: Urban and CBD
I189: ED_VEG271_00180 | L189: Rural
I190: ED_VEG271_00181 | J190: ZONE 16 (DNSP to nominate) | K190: Route line length within zone (KM) | L190: Urban and CBD
I191: ED_VEG271_00182 | L191: Rural
I192: ED_VEG271_00183 | K192: Number of maintenance spans (0's) | L192: Urban and CBD
I193: ED_VEG271_00184 | L193: Rural
I194: ED_VEG271_00185 | K194: Total length of maintenance spans (KM) | L194: Urban and CBD
I195: ED_VEG271_00186 | L195: Rural
I196: ED_VEG271_00187 | K196: Length of vegetation corridors (KM) | L196: Urban and CBD
I197: ED_VEG271_00188 | L197: Rural
I198: ED_VEG271_00189 | K198: Average number of trees per maintenance span (0's) | L198: Urban and CBD
I199: ED_VEG271_00190 | L199: Rural
I200: ED_VEG271_00191 | K200: Average frequency of cutting cycle (years) | L200: Urban and CBD
I201: ED_VEG271_00192 | L201: Rural
I202: ED_VEG271_00193 | J202: ZONE 17 (DNSP to nominate) | K202: Route line length within zone (KM) | L202: Urban and CBD
... 23 more rows

Sheet 2.8 Maintenance
C1: REGULATORY REPORTING STATEMENT
C2: =TradingName -> Energex
C3: =RCP_1to5 -> 2015-16 to 2019-20
C4: 2.8 MAINTENANCE
C8: TABLE 2.8.1 - DESCRIPTOR METRICS FOR ROUTINE AND NON-ROUTINE MAINTENANCE | X8: TABLE 2.8.2 - COST METRICS FOR ROUTINE AND NON-ROUTINE MAINTENANCE
F10: ASSET QUANTITY - AT YEAR END | K10: ASSET QUANTITY - INSPECTED/ MAINTAINED | P10: AVERAGE AGE OF ASSET GROUP | U10: INSPECTION CYCLE (YEARS) | V10: MAINTENANCE CYCLE (YEARS) | Z10: ROUTINE MAINTENANCE EXPENDITURE ($000'S) | AE10: NON-ROUTINE MAINTENANCE EXPENDITURE ($000'S)
C11: MAINTENANCE ACTIVITY | D11: MAINTENANCE ASSET CATEGORY | E11: UNIT OF MEASURE - ASSET QUANTITY | F11: =PRCP_y5 -> 2009-10 | G11: =CRCP -> 2010-11 | H11: 2011-12 | I11: 2012-13 | J11: 2013-14 | K11: =PRCP_y5 -> 2009-10 | L11: =CRCP -> 2010-11 | M11: 2011-12 | N11: 2012-13 | O11: 2013-14 | P11: =PRCP_y5 -> 2009-10 | Q11: =CRCP -> 2010-11 | R11: 2011-12 | S11: 2012-13 | T11: 2013-14 | X11: MAINTENANCE ACTIVITY | Y11: MAINTENANCE ASSET CATEGORY | Z11: =CRCP -> 2010-11 | AA11: 2011-12 | AB11: 2012-13 | AC11: 2013-14 | AD11: 2014-15 | AE11: =CRCP -> 2010-11 | AF11: 2011-12 | AG11: 2012-13 | AH11: 2013-14 | AI11: 2014-15
A12: ED_MAI281_00001 | C12: Pole top, overhead line & service line maintenance | D12: Pole tops and overhead lines | E12: Number of poles | F12: 576.25 | G12: 582.71 | H12: 589.25 | I12: 594.64 | J12: 598.77 | K12: 115.25 | L12: 116.542 | M12: 117.85 | N12: 118.928 | O12: 119.754 | P12: 26 | Q12: 26 | R12: 26 | S12: 26 | T12: 26 | U12: 5 | V12: 5 | W12: ED_MAI282_00001 | X12: Pole top, overhead line & service line maintenance | Y12: Pole tops and overhead lines | Z12: 144.166 | AA12: 186.25111 | AB12: 213.87179 | AC12: 839.59603 | AD12: =[5]Sheet5!E50 -> 228.4349693 | AE12: =17215.9766100001-AE35 -> 15791.18961 | AF12: =22904.2338399993-AF35 -> 21221.46684 | AG12: =23266.6605300009-AG35 -> 22604.69853 | AH12: 21853.19973 | AI12: =[5]Sheet5!F50 -> 24143.92106
A13: ED_MAI281_00002 | D13: Service lines | E13: Number of customers | F13: 574.633 | G13: 577.772 | H13: 580.432 | I13: 582.969 | J13: 587.193 | K13: 114.9266 | L13: 115.5544 | M13: 116.0864 | N13: 116.5938 | O13: 117.4386 | P13: 14.40256426 | Q13: 14.76461296 | R13: 15.18218544 | S13: 15.56776432 | T13: 16.63 | U13: 5 | V13: 5 | W13: ED_MAI282_00002 | Y13: Service lines | Z13: 0 | AA13: 0 | AB13: 0 | AC13: 0 | AD13: =[5]Sheet5!E51 -> 0 | AE13: 531.30752 | AF13: 439.48038 | AG13: 56.66364 | AH13: 1222.56312 | AI13: =[5]Sheet5!F51 -> 60.52203922
A14: ED_MAI281_00003 | C14: Pole inspection and treatment | D14: All poles | E14: Number of poles | F14: 576.25 | G14: 582.71 | H14: 589.25 | I14: 594.64 | J14: 598.77 | K14: 130.952 | L14: 132.804 | M14: 123.566 | N14: 140.231 | O14: 122.828 | P14: 26 | Q14: 26 | R14: 26 | S14: 26 | T14: 26 | U14: 5 | V14: 5 | W14: ED_MAI282_00003 | X14: Pole inspection and treatment | Y14: All poles | Z14: 6784.04407 | AA14: 6167.6378 | AB14: 6145.78301 | AC14: 5878.2855 | AD14: =[5]Sheet5!E52 -> 6564.268028 | AE14: -0.4474 | AF14: 18382.04348 | AG14: -5214.01537 | AH14: 9.90162 | AI14: =[5]Sheet5!F52 -> 1878.964306
A15: ED_MAI281_00004 | C15: Overhead asset inspection | D15: All overhead assets | E15: Line patrolled (route KM) | F15: 34.8 | G15: 34.92 | H15: 35.01 | I15: 35.05 | J15: 35.11 | K15: 34.8 | L15: 34.92 | M15: 35.01 | N15: 35.05 | O15: 35.11 | P15: 34 | Q15: 35 | R15: 35 | S15: 36 | T15: 36 | U15: 1 | V15: 1 | W15: ED_MAI282_00004 | X15: Overhead asset inspection | Y15: All overhead assets | Z15: 1338.10936 | AA15: 1352.81367 | AB15: 1646.04024 | AC15: 2790.2447 | AD15: =[5]Sheet5!E53 -> 1758.124116 | AE15: 463.41503 | AF15: 548.30614 | AG15: 373.36119 | AH15: 520.44094 | AI15: =[5]Sheet5!F53 -> 398.7844866
A16: ED_MAI281_00005 | C16: Network underground cable maintenance: by voltage | D16: LV - 11 to 22 KV | E16: Length (KM) | F16: 14.37 | G16: 14.86 | H16: 15.31 | I16: 15.68 | J16: 15.95 | K16: 2.874 | L16: 2.972 | M16: 3.062 | N16: 3.136 | O16: 3.19 | P16: 14 | Q16: 15 | R16: 15 | S16: 16 | T16: 17 | U16: 5 | V16: 5 | W16: ED_MAI282_00005 | X16: Network underground cable maintenance: by voltage | Y16: LV - 11 to 22 KV | Z16: 158.16554 | AA16: 505.66889 | AB16: 283.6598 | AC16: 308.95181 | AD16: =[5]Sheet5!E54 -> 302.9750567 | AE16: 2877.32435 | AF16: 1943.75044 | AG16: 2274.53935 | AH16: 1890.51167 | AI16: =[5]Sheet5!F54 -> 2429.419638
A17: ED_MAI281_00006 | D17: 33 KV and above | E17: Length (KM) | F17: 0.93 | G17: 0.97 | H17: 1 | I17: 1.04 | J17: 1.04 | K17: 0.186 | L17: 0.194 | M17: 0.2 | N17: 0.208 | O17: 0.208 | P17: 21 | Q17: 22 | R17: 22 | S17: 23 | T17: 24 | U17: 5 | V17: 5 | W17: ED_MAI282_00006 | Y17: 33 KV and above | Z17: 0 | AA17: 0 | AB17: 0 | AC17: 0 | AD17: =[5]Sheet5!E55 -> 0 | AE17: 2514.80306 | AF17: 2208.12959 | AG17: 2749.53336 | AH17: 1476.79836 | AI17: =[5]Sheet5!F55 -> 2936.757431
A18: ED_MAI281_00007 | C18: Network underground cable maintenance: by location | D18: Cbd | E18: Length (KM) | F18: 0.21 | G18: 0.21 | H18: 0.21 | I18: 0.21 | J18: 0.21 | K18: 0.05202 | L18: 0.053822 | M18: 0.055454 | N18: 0.056848 | O18: 0.057766 | P18: 21 | Q18: 22 | R18: 23 | S18: 24 | T18: 26 | U18: 5 | V18: 5 | W18: ED_MAI282_00007 | X18: Network underground cable maintenance: by location | Y18: CBD | Z18: 2.68881418 | AA18: 8.59637113 | AB18: 4.8222166 | AC18: 5.25218077 | AD18: =[5]Sheet5!E56 -> 5.150575964 | AE18: 91.66616597 | AF18: 70.58196051 | AG18: 85.40923607 | AH18: 57.24427051 | AI18: =[5]Sheet5!F56 -> 91.22501017
A19: ED_MAI281_00008 | D19: Non-CBD | E19: Length (KM) | F19: 15.09 | G19: 15.63 | H19: 16.1 | I19: 16.51 | J19: 16.78 | K19: 3.00798 | L19: 3.112178 | M19: 3.206546 | N19: 3.287152 | O19: 3.340234 | P19: 14 | Q19: 15 | R19: 16 | S19: 17 | T19: 17 | U19: 5 | V19: 5 | W19: ED_MAI282_00008 | Y19: Non-CBD | Z19: 155.4767258 | AA19: 497.0725189 | AB19: 278.8375834 | AC19: 303.6996292 | AD19: =[5]Sheet5!E57 -> 297.8244807 | AE19: 5300.461244 | AF19: 4081.298069 | AG19: 4938.663474 | AH19: 3310.065759 | AI19: =[5]Sheet5!F57 -> 5274.952059
A20: ED_MAI281_00009 | C20: Distribution substation equipment & property maintenance | D20: Distribution substation transformers | E20: Number of installed transformers | F20: 45.1 | G20: 45.84 | H20: 46.43 | I20: 46.97 | J20: 47.47 | K20: 0.856 | L20: 0.994 | M20: 0.76 | N20: 0.84 | O20: 0.822 | P20: 16 | Q20: 16 | R20: 16 | S20: 17 | T20: 16 | U20: 5 | V20: 12 | W20: ED_MAI282_00009 | X20: Distribution substation equipment & property maintenance | Y20: Distribution substation transformers | Z20: 2295.1923 | AA20: 1810.31856 | AB20: 1391.46256 | AC20: 1224.96453 | AD20: =[5]Sheet5!E58 -> 1486.211469 | AE20: 0 | AF20: 2.02389 | AG20: 1144.20806 | AH20: 979.14613 | AI20: =[5]Sheet5!F58 -> 1222.120659
A21: ED_MAI281_00010 | D21: Distribution substation switchgear (within-substations and stand-alone switchgear) | E21: Number of switches | F21: 6.08 | G21: 6.33 | H21: 6.67 | I21: 7.08 | J21: 7.32 | K21: 0 | L21: 0 | M21: 0.375 | N21: 0.501 | O21: 0.218 | P21: 18 | Q21: 18 | R21: 17 | S21: 16 | T21: 17 | U21: 5 | V21: 12 | W21: ED_MAI282_00010 | Y21: Distribution substation switchgear (within-substations and stand-alone switchgear) | Z21: 0 | AA21: 0 | AB21: 0 | AC21: 1022.50986 | AD21: =[5]Sheet5!E59 -> 0 | AE21: 0 | AF21: 1227.70345 | AG21: 1991.68406 | AH21: 0 | AI21: =[5]Sheet5!F59 -> 2127.303872
A22: ED_MAI281_00011 | D22: Distribution substation - other equipment | E22: Earth mat | F22: 0.03 | G22: 0.03 | H22: 0.03 | I22: 0.03 | J22: 0.03 | K22: 0.002 | L22: 0.034 | M22: 0.015 | N22: 0 | O22: 0.002 | P22: 11 | Q22: 12 | R22: 13 | S22: 14 | T22: 15 | U22: 5 | V22: 12 | W22: ED_MAI282_00011 | Y22: Distribution substation - other equipment | Z22: 26.32833 | AA22: 15.90252 | AB22: -0.03808 | AC22: 0 | AD22: =[5]Sheet5!E60 -> 0 | AE22: 0 | AF22: 0 | AG22: 0 | AH22: 1.38104 | AI22: =[5]Sheet5!F60 -> 0
A23: ED_MAI281_00012 | D23: Distribution substation - property | E23: Number of distribution substation properties maintained | F23: 43.99 | G23: 44.62 | H23: 45.1 | I23: 45.48 | J23: 45.84 | K23: 0.588 | L23: 0.409 | M23: 0.394 | N23: 0.247 | O23: 0.2 | P23: 27 | Q23: 28 | R23: 28 | S23: 29 | T23: 30 | U23: 5 | V23: 5 | W23: ED_MAI282_00012 | Y23: Distribution substation - property | Z23: 0 | AA23: 0 | AB23: 0 | AC23: 0 | AD23: =[5]Sheet5!E61 -> 0 | AE23: 408.37021 | AF23: 488.55995 | AG23: 303.34912 | AH23: 612.02285 | AI23: =[5]Sheet5!F61 -> 324.0050822
A24: ED_MAI281_00013 | C24: Zone substation equipment maintenance | D24: Transformers - zone substation | E24: Number of zone substation transformers | F24: 0.57 | G24: 0.59 | H24: 0.6 | I24: 0.6 | J24: 0.62 | K24: 1.446 | L24: 1.85 | M24: 1.668 | N24: 2.108 | O24: 1.805 | P24: 19 | Q24: 19 | R24: 20 | S24: 21 | T24: 20 | U24: 1 | V24: 6 | W24: ED_MAI282_00013 | X24: Zone substation equipment maintenance | Y24: Transformers - zone substation | Z24: 709.96825 | AA24: 794.44737 | AB24: 921.4761 | AC24: 705.61908 | AD24: =[5]Sheet5!E62 -> 984.2222043 | AE24: 686.74057 | AF24: 1294.56389 | AG24: 2051.13601 | AH24: 1855.44798 | AI24: =[5]Sheet5!F62 -> 2190.804086
A25: ED_MAI281_00014 | D25: Transformers - distribution | E25: Number of distribution transformers within zone substations | F25: 0.04 | G25: 0.04 | H25: 0.04 | I25: 0.04 | J25: 0.03 | K25: 0 | L25: 0 | M25: 0 | N25: 0 | O25: 0 | P25: 34 | Q25: 33 | R25: 33 | S25: 31 | T25: 32 | U25: 5 | V25: 5 | W25: ED_MAI282_00014 | Y25: Transformers - distribution | Z25: 0 | AA25: 0 | AB25: 0 | AC25: 0 | AD25: =[5]Sheet5!E63 -> 0 | AE25: 0 | AF25: 0 | AG25: 0 | AH25: 0 | AI25: =[5]Sheet5!F63 -> 0
A26: ED_MAI281_00015 | D26: Transformers - HV | E26: Number of HV transformers | F26: 0.37 | G26: 0.39 | H26: 0.4 | I26: 0.42 | J26: 0.44 | K26: 0 | L26: 0 | M26: 0 | N26: 0 | O26: 0 | P26: 22 | Q26: 21 | R26: 21 | S26: 19 | T26: 20 | U26: 5 | V26: 6 | W26: ED_MAI282_00015 | Y26: Transformers - HV | Z26: 0 | AA26: 0 | AB26: 0 | AC26: 0 | AD26: =[5]Sheet5!E64 -> 0 | AE26: 0 | AF26: 0 | AG26: 0 | AH26: 0 | AI26: =[5]Sheet5!F64 -> 0
A27: ED_MAI281_00016 | D27: Zone substation - other equipment | E27: DNSP to nominate | F27: 14.19 | G27: 15.07 | H27: 16.11 | I27: 16.64 | J27: 15.7 | K27: 3.719 | L27: 4.005 | M27: 4.451 | N27: 4.123 | O27: 4.34 | P27: 12 | Q27: 12 | R27: 12 | S27: 12 | T27: 13 | U27: 5 | V27: 6 | W27: ED_MAI282_00016 | Y27: Zone substation - other equipment | Z27: 745.50966 | AA27: 815.23303 | AB27: 787.18519 | AC27: 1536.57019 | AD27: =[5]Sheet5!E65 -> 840.7870187 | AE27: 5602.88087 | AF27: 5918.38427 | AG27: 5720.48967 | AH27: 4327.57141 | AI27: =[5]Sheet5!F65 -> 6110.015173
A28: ED_MAI281_00017 | C28: Zone substation property maintenance | D28: All zone substation properties | E28: Number of zone substation properties maintained | F28: 0.26 | G28: 0.27 | H28: 0.28 | I28: 0.28 | J28: 0.3 | K28: 1.355 | L28: 1.833 | M28: 1.379 | N28: 2.783 | O28: 0.173 | P28: 31 | Q28: 32 | R28: 32 | S28: 32 | T28: 33 | U28: 2 | V28: 2 | W28: ED_MAI282_00017 | X28: Zone substation property maintenance | Y28: All zone substation properties | Z28: 60.89668 | AA28: 38.73189 | AB28: 201.60907 | AC28: 207.99287 | AD28: =[5]Sheet5!E66 -> 215.3372435 | AE28: 3396.30075 | AF28: 3312.578 | AG28: 3355.15029 | AH28: 3164.17774 | AI28: =[5]Sheet5!F66 -> 3583.612656
A29: ED_MAI281_00018 | C29: Public lighting maintenance | D29: Minor roads | E29: Number of public lights maintained | F29: 206.56 | G29: 210.11 | H29: 213.26 | I29: 215.45 | J29: 217.61 | K29: 2.1204 | L29: 0.05904 | M29: 0.03528 | N29: 0.03456 | O29: 0 | P29: 12 | Q29: 12 | R29: 13 | S29: 13 | T29: 13 | U29: 0.12 | V29: 0.12 | W29: ED_MAI282_00018 | X29: Public lighting maintenance | Y29: Minor roads | Z29: 0 | AA29: 0 | AB29: 0 | AC29: 0 | AD29: =[5]Sheet5!E67 -> 0 | AE29: 5.024770986 | AF29: 31.32111402 | AG29: 16.61335858 | AH29: 0 | AI29: =[5]Sheet5!F67 -> 17.74461258
A30: ED_MAI281_00019 | D30: Major roads | E30: Number of public lights maintained | F30: 80.23 | G30: 82.32 | H30: 84.33 | I30: 85.98 | J30: 86.74 | K30: 0.8246 | L30: 0.02296 | M30: 0.01372 | N30: 0.01344 | O30: 0 | P30: 10 | Q30: 11 | R30: 11 | S30: 11 | T30: 12 | U30: 0.23 | V30: 0.23 | W30: ED_MAI282_00019 | Y30: Major roads | Z30: 0 | AA30: 0 | AB30: 0 | AC30: 0 | AD30: =[5]Sheet5!E68 -> 0 | AE30: 1.968679014 | AF30: 12.38539598 | AG30: 6.629921423 | AH30: 0 | AI30: =[5]Sheet5!F68 -> 7.081372894
A31: ED_MAI281_00020 | C31: SCADA & network control maintenance | D31: SCADA & network control maintenance | E31: Number of systems | F31: 6216 | G31: 7205 | H31: 8061 | I31: 8721 | J31: 9231 | K31: 231 | L31: 242 | M31: 294 | N31: 420 | O31: 648 | P31: 1.350225225 | Q31: 1.674392783 | R31: 2.07951867 | S31: 2.694071781 | T31: 3.489871087 | U31: 5 | V31: 5 | W31: ED_MAI282_00020 | X31: SCADA & network control maintenance | Y31: SCADA & network control maintenance | Z31: 271.25999 | AA31: 336.95012 | AB31: 615.91303 | AC31: 859.71906 | AD31: =[5]Sheet5!E69 -> 657.8524175 | AE31: 0 | AF31: 29.40272 | AG31: 0 | AH31: 8.11801 | AI31: =[5]Sheet5!F69 -> 0
A32: ED_MAI281_00021 | C32: Protection systems maintenance | D32: Protection systems maintenance | E32: Number of systems | F32: 14647 | G32: 15659 | H32: 16248 | I32: 17117 | J32: 18469 | K32: 1058 | L32: 962 | M32: 533 | N32: 734 | O32: 873 | P32: 10.45851836 | Q32: 10.57917879 | R32: 11.01995702 | S32: 11.54035005 | T32: 11.91836016 | U32: 1 | V32: 6 | W32: ED_MAI282_00021 | X32: Protection systems maintenance | Y32: Protection systems maintenance | Z32: 1311.21789 | AA32: 638.53514 | AB32: 1373.93945 | AC32: 1842.58309 | AD32: =[5]Sheet5!E70 -> 1467.495157 | AE32: 113.35275 | AF32: 160.13022 | AG32: 182.48888 | AH32: 252.1787 | AI32: =[5]Sheet5!F70 -> 194.9151017
A33: ED_MAI281_00022 | C33: Subtransmission asset maintenance - for DNSPs with dual function assets | D33: Subtransmission asset maintenance - for DNSPs with dual function assets | E33: DNSP to nominate | F33: 0 | G33: 0 | H33: 0 | I33: 0 | J33: 0 | K33: 0 | L33: 0 | M33: 0 | N33: 0 | O33: 0 | P33: 0 | Q33: 0 | R33: 0 | S33: 0 | T33: 0 | U33: 0 | V33: 0 | W33: ED_MAI282_00022 | X33: Subtransmission asset maintenance - for DNSPs with dual function assets | Y33: Subtransmission asset maintenance - for DNSPs with dual function assets | Z33: 0 | AA33: 0 | AB33: 0 | AC33: 0 | AD33: =[5]Sheet5!E71 -> 0 | AE33: 0 | AF33: 0 | AG33: 0 | AH33: 0 | AI33: =[5]Sheet5!F71 -> 0
A34: ED_MAI281_00023 | C34: Various assets | D34: includes rates, electricity, communications equip, metering | E34: Units not quoted as various UOM | W34: ED_MAI282_00023 | X34: Various assets | Y34: includes rates, electricity, communications equip, metering | Z34: 2337.90727 | AA34: 2772.50509 | AB34: 2217.68039 | AC34: 1870.24 | AD34: =[5]Sheet5!E72 -> 2368.688978 | AE34: 1478.53445 | AF34: 2041.09451 | AG34: 1916.27802 | AH34: 2513.19 | AI34: =[5]Sheet5!F72 -> 2046.763206
A35: ED_MAI281_00024 | C35: Ground clearance - access tracks | D35: Ground clearance - access tracks | E35: Units not quoted | W35: ED_MAI282_00024 | X35: Ground clearance - access tracks | Y35: Ground clearance - access tracks | Z35: 0 | AA35: 0 | AB35: 0 | AC35: 0 | AD35: =[5]Sheet5!E73 -> 0 | AE35: 1424.787 | AF35: 1682.767 | AG35: 661.962 | AH35: 620.26298 | AI35: =[5]Sheet5!F73 -> 707.0370016
A36: ED_MAI281_00025 | C36: Other | W36: ED_MAI282_00025 | X36: Other

Sheet 2.9 Emergency Response
C1: REGULATORY REPORTING STATEMENT
C2: =TradingName -> Energex
C3: =RCP_1to5 -> 2015-16 to 2019-20
C4: 2.9 EMERGENCY RESPONSE
C6: TABLE 2.9.1 - EMERGENCY RESPONSE EXPENDITURE (OPEX)
E8: EXPENDITURE ($000's)
E9: =PRCP_y5 -> 2009-10 | F9: =CRCP -> 2010-11 | G9: 2011-12 | H9: 2012-13 | I9: 2013-14
A10: ED_EME291_00001 | C10: (A) TOTAL EMERGENCY RESPONSE EXPENDITURE | D10: TOTAL EXPENDITURE | E10: 26886.748 | F10: 53445.643 | G10: 33077.38494 | H10: 44671.4 | I10: 36947.036
A11: ED_EME291_00002 | C11: (B) MAJOR EVENTS O&M EXPENDITURE | D11: Storms struck ENERGEX on 13 October 2009 | E11: 205.823
A12: ED_EME291_00003 | D12: Storms struck ENERGEX on 22 December 2009 | E12: 357.876
A13: ED_EME291_00004 | D13: Storms struck ENERGEX on 15 December 2010 | F13: 1703.133
A14: ED_EME291_00005 | D14: Storms struck ENERGEX on 16 December 2010 | F14: 1387.039
A15: ED_EME291_00006 | D15: Major flooding of Brisbane and Bremer Rivers 9-12 January 2011 | F15: 16722.743
A16: ED_EME291_00007 | D16: Storms struck Energex on 18 January 2011 | F16: 670.68
A17: ED_EME291_00008 | D17: Storms struck ENERGEX on 21 February 2011 | F17: 600.366
A18: ED_EME291_00009 | D18: Storms struck ENERGEX on 17 November 2012 | H18: 967.091
A19: ED_EME291_00010 | D19: Storms and Flooding Impacted Energex Network 26-29 January 2013 | H19: 11395.381
A20: ED_EME291_00011 | D20: Storms struck Energex 24 March 2013 | H20: 3371.182
A21: ED_EME291_00012 | D21: 10/11/2013 Storm | I21: 417.312
A22: ED_EME291_00013 | D22: 29/12/2013 Storm | I22: 353.178
A23: ED_EME291_00014 | D23: 06/01/2014 Storm | I23: 1211.254
A24: ED_EME291_00015 | D24: Major Storm (Enter name of storm)
A25: ED_EME291_00016 | D25: Major Storm (Enter name of storm)
A26: ED_EME291_00017 | D26: Major Storm (Enter name of storm)
A27: ED_EME291_00018 | D27: Major Storm (Enter name of storm)
A28: ED_EME291_00019 | D28: Major Storm (Enter name of storm)
A29: ED_EME291_00020 | D29: Major Storm (Enter name of storm)
A30: ED_EME291_00021 | D30: Major Storm (Enter name of storm)
A31: ED_EME291_00022 | D31: Major Storm (Enter name of storm)
A32: ED_EME291_00023 | D32: Major Storm (Enter name of storm)
A33: ED_EME291_00024 | D33: Major Storm (Enter name of storm)
A34: ED_EME291_00025 | D34: Major Storm (Enter name of storm)
A35: ED_EME291_00026 | D35: Major Storm (Enter name of storm)
A36: ED_EME291_00027 | D36: Major Storm (Enter name of storm)
A37: ED_EME291_00028 | D37: Major Storm (Enter name of storm)
A38: ED_EME291_00029 | D38: Major Storm (Enter name of storm)
A39: ED_EME291_00030 | D39: Major Storm (Enter name of storm)
A40: ED_EME291_00031 | D40: Major Storm (Enter name of storm)
A41: ED_EME291_00032 | D41: Major Storm (Enter name of storm)
A42: ED_EME291_00033 | D42: Major Storm (Enter name of storm)
A43: ED_EME291_00034 | D43: Major Storm (Enter name of storm)
A44: ED_EME291_00035 | D44: Major Storm (Enter name of storm)
A45: ED_EME291_00036 | D45: Major Storm (Enter name of storm)
A46: ED_EME291_00037 | D46: Major Storm (Enter name of storm)
A47: ED_EME291_00038 | D47: Major Storm (Enter name of storm)
A48: ED_EME291_00039 | D48: Major Storm (Enter name of storm)
A49: ED_EME291_00040 | D49: Major Storm (Enter name of storm)
A50: ED_EME291_00041 | D50: Major Storm (Enter name of storm)
A51: ED_EME291_00042 | D51: Major Storm (Enter name of storm)
A52: ED_EME291_00043 | D52: Major Storm (Enter name of storm)
A53: ED_EME291_00044 | D53: Major Storm (Enter name of storm)
A54: ED_EME291_00045 | D54: Major Storm (Enter name of storm)
A55: ED_EME291_00046 | D55: Major Storm (Enter name of storm)
A56: ED_EME291_00047 | D56: Major Storm (Enter name of storm)
A57: ED_EME291_00048 | D57: Major Storm (Enter name of storm)
A58: ED_EME291_00049 | D58: Major Storm (Enter name of storm)
A59: ED_EME291_00050 | D59: Major Storm (Enter name of storm)
A60: ED_EME291_00051 | D60: Major Storm (Enter name of storm)
A61: ED_EME291_00052 | C61: (C) MAJOR EVENT DAYS O&M EXPENDITURE | D61: 2009-07-01
A62: ED_EME291_00053 | D62: 2009-07-02
A63: ED_EME291_00054 | D63: 2009-07-03
A64: ED_EME291_00055 | D64: 2009-07-04
A65: ED_EME291_00056 | D65: 2009-07-05
A66: ED_EME291_00057 | D66: 2009-07-06
A67: ED_EME291_00058 | D67: 2009-07-07
A68: ED_EME291_00059 | D68: 2009-07-08
A69: ED_EME291_00060 | D69: 2009-07-09
A70: ED_EME291_00061 | D70: 2009-07-10
A71: ED_EME291_00062 | D71: 2009-07-11
A72: ED_EME291_00063 | D72: 2009-07-12
A73: ED_EME291_00064 | D73: 2009-07-13
A74: ED_EME291_00065 | D74: 2009-07-14
A75: ED_EME291_00066 | D75: 2009-07-15
A76: ED_EME291_00067 | D76: 2009-07-16
A77: ED_EME291_00068 | D77: 2009-07-17
A78: ED_EME291_00069 | D78: 2009-07-18
A79: ED_EME291_00070 | D79: 2009-07-19
A80: ED_EME291_00071 | D80: 2009-07-20
A81: ED_EME291_00072 | D81: 2009-07-21
A82: ED_EME291_00073 | D82: 2009-07-22
A83: ED_EME291_00074 | D83: 2009-07-23
A84: ED_EME291_00075 | D84: 2009-07-24
A85: ED_EME291_00076 | D85: 2009-07-25
A86: ED_EME291_00077 | D86: 2009-07-26
A87: ED_EME291_00078 | D87: 2009-07-27
A88: ED_EME291_00079 | D88: 2009-07-28
A89: ED_EME291_00080 | D89: 2009-07-29
A90: ED_EME291_00081 | D90: 2009-07-30
A91: ED_EME291_00082 | D91: 2009-07-31
A92: ED_EME291_00083 | D92: 2009-08-01
A93: ED_EME291_00084 | D93: 2009-08-02
A94: ED_EME291_00085 | D94: 2009-08-03
A95: ED_EME291_00086 | D95: 2009-08-04
A96: ED_EME291_00087 | D96: 2009-08-05
A97: ED_EME291_00088 | D97: 2009-08-06
A98: ED_EME291_00089 | D98: 2009-08-07
A99: ED_EME291_00090 | D99: 2009-08-08
A100: ED_EME291_00091 | D100: 2009-08-09
A101: ED_EME291_00092 | D101: 2009-08-10
A102: ED_EME291_00093 | D102: 2009-08-11
A103: ED_EME291_00094 | D103: 2009-08-12
A104: ED_EME291_00095 | D104: 2009-08-13
A105: ED_EME291_00096 | D105: 2009-08-14
A106: ED_EME291_00097 | D106: 2009-08-15
A107: ED_EME291_00098 | D107: 2009-08-16
A108: ED_EME291_00099 | D108: 2009-08-17
A109: ED_EME291_00100 | D109: 2009-08-18
A110: ED_EME291_00101 | D110: 2009-08-19
A111: ED_EME291_00102 | D111: 2009-08-20
A112: ED_EME291_00103 | D112: 2009-08-21
A113: ED_EME291_00104 | D113: 2009-08-22
A114: ED_EME291_00105 | D114: 2009-08-23
A115: ED_EME291_00106 | D115: 2009-08-24
A116: ED_EME291_00107 | D116: 2009-08-25
A117: ED_EME291_00108 | D117: 2009-08-26
A118: ED_EME291_00109 | D118: 2009-08-27
A119: ED_EME291_00110 | D119: 2009-08-28
A120: ED_EME291_00111 | D120: 2009-08-29
A121: ED_EME291_00112 | D121: 2009-08-30
A122: ED_EME291_00113 | D122: 2009-08-31
A123: ED_EME291_00114 | D123: 2009-09-01
A124: ED_EME291_00115 | D124: 2009-09-02
A125: ED_EME291_00116 | D125: 2009-09-03
A126: ED_EME291_00117 | D126: 2009-09-04
A127: ED_EME291_00118 | D127: 2009-09-05
A128: ED_EME291_00119 | D128: 2009-09-06
A129: ED_EME291_00120 | D129: 2009-09-07
A130: ED_EME291_00121 | D130: 2009-09-08
A131: ED_EME291_00122 | D131: 2009-09-09
A132: ED_EME291_00123 | D132: 2009-09-10
A133: ED_EME291_00124 | D133: 2009-09-11
A134: ED_EME291_00125 | D134: 2009-09-12
A135: ED_EME291_00126 | D135: 2009-09-13
A136: ED_EME291_00127 | D136: 2009-09-14
A137: ED_EME291_00128 | D137: 2009-09-15
A138: ED_EME291_00129 | D138: 2009-09-16
A139: ED_EME291_00130 | D139: 2009-09-17
A140: ED_EME291_00131 | D140: 2009-09-18
A141: ED_EME291_00132 | D141: 2009-09-19
A142: ED_EME291_00133 | D142: 2009-09-20
A143: ED_EME291_00134 | D143: 2009-09-21
A144: ED_EME291_00135 | D144: 2009-09-22
A145: ED_EME291_00136 | D145: 2009-09-23
A146: ED_EME291_00137 | D146: 2009-09-24
A147: ED_EME291_00138 | D147: 2009-09-25
A148: ED_EME291_00139 | D148: 2009-09-26
A149: ED_EME291_00140 | D149: 2009-09-27
A150: ED_EME291_00141 | D150: 2009-09-28
A151: ED_EME291_00142 | D151: 2009-09-29
A152: ED_EME291_00143 | D152: 2009-09-30
A153: ED_EME291_00144 | D153: 2009-10-01
A154: ED_EME291_00145 | D154: 2009-10-02
A155: ED_EME291_00146 | D155: 2009-10-03
A156: ED_EME291_00147 | D156: 2009-10-04
A157: ED_EME291_00148 | D157: 2009-10-05
A158: ED_EME291_00149 | D158: 2009-10-06
A159: ED_EME291_00150 | D159: 2009-10-07
A160: ED_EME291_00151 | D160: 2009-10-08
A161: ED_EME291_00152 | D161: 2009-10-09
A162: ED_EME291_00153 | D162: 2009-10-10
A163: ED_EME291_00154 | D163: 2009-10-11
A164: ED_EME291_00155 | D164: 2009-10-12
A165: ED_EME291_00156 | D165: 2009-10-13 | E165: 144.715
A166: ED_EME291_00157 | D166: 2009-10-14
A167: ED_EME291_00158 | D167: 2009-10-15
A168: ED_EME291_00159 | D168: 2009-10-16
A169: ED_EME291_00160 | D169: 2009-10-17
A170: ED_EME291_00161 | D170: 2009-10-18
A171: ED_EME291_00162 | D171: 2009-10-19
A172: ED_EME291_00163 | D172: 2009-10-20
A173: ED_EME291_00164 | D173: 2009-10-21
A174: ED_EME291_00165 | D174: 2009-10-22
A175: ED_EME291_00166 | D175: 2009-10-23
A176: ED_EME291_00167 | D176: 2009-10-24
A177: ED_EME291_00168 | D177: 2009-10-25
A178: ED_EME291_00169 | D178: 2009-10-26
A179: ED_EME291_00170 | D179: 2009-10-27
A180: ED_EME291_00171 | D180: 2009-10-28
A181: ED_EME291_00172 | D181: 2009-10-29
A182: ED_EME291_00173 | D182: 2009-10-30
A183: ED_EME291_00174 | D183: 2009-10-31
A184: ED_EME291_00175 | D184: 2009-11-01
A185: ED_EME291_00176 | D185: 2009-11-02
A186: ED_EME291_00177 | D186: 2009-11-03
A187: ED_EME291_00178 | D187: 2009-11-04
A188: ED_EME291_00179 | D188: 2009-11-05
A189: ED_EME291_00180 | D189: 2009-11-06
A190: ED_EME291_00181 | D190: 2009-11-07
A191: ED_EME291_00182 | D191: 2009-11-08
A192: ED_EME291_00183 | D192: 2009-11-09
A193: ED_EME291_00184 | D193: 2009-11-10 | I193: 184.41213
A194: ED_EME291_00185 | D194: 2009-11-11
A195: ED_EME291_00186 | D195: 2009-11-12
A196: ED_EME291_00187 | D196: 2009-11-13
A197: ED_EME291_00188 | D197: 2009-11-14
A198: ED_EME291_00189 | D198: 2009-11-15
A199: ED_EME291_00190 | D199: 2009-11-16
A200: ED_EME291_00191 | D200: 2009-11-17 | H200: 342.743
A201: ED_EME291_00192 | D201: 2009-11-18
A202: ED_EME291_00193 | D202: 2009-11-19
... 224 more rows

Sheet 2.10 Overheads
C1: REGULATORY REPORTING STATEMENT | E1: Worksheet navigation
C2: =TradingName -> Energex
C3: =RCP_1to5 -> 2015-16 to 2019-20
C4: 2.10 OVERHEADS
C8: TABLE 2.10.1 - NETWORK OVERHEADS EXPENDITURE
C9: <<<GROUP-ROW>>>
F11: EXPENDITURE ($000's) | H11: EXPENDITURE ($000's) Current Period | M11: EXPENDITURE ($000's) Forthcoming Period
A12: OVE2102 | F12: =PRCP_y4 -> 2008-09 | G12: =PRCP_y5 -> 2009-10 | H12: =CRCP -> 2010-11 | I12: 2011-12 | J12: 2012-13 | K12: 2013-14 | L12: 2014-15 | M12: =FRCP -> 2015-16 | N12: 2016-17 | O12: 2017-18 | P12: 2018-19 | Q12: 2019-20
A13: ED_OVE2102_00001 | C13: NETWORK OVERHEADS | D13: Total Overhead Expenditure - Standard Control Services | E13: Expenditure categories currently reported under annual RIN
A14: ED_OVE2102_00002 | E14: Network management | F14: 36716.9355 | G14: 42190.26123 | H14: 35847.31525 | I14: 39027.96448 | J14: 50794.96572 | K14: 40539.67704 | L14: 31575.64265 | M14: =+'[6]2.10 Overheads - Nominal'!T13 -> 31829.15296 | N14: =+'[6]2.10 Overheads - Nominal'!U13 -> 31021.24937 | O14: =+'[6]2.10 Overheads - Nominal'!V13 -> 30409.72144 | P14: =+'[6]2.10 Overheads - Nominal'!W13 -> 30400.81391 | Q14: =+'[6]2.10 Overheads - Nominal'!X13 -> 30608.39897
A15: ED_OVE2102_00003 | E15: Network planning | F15: 5130.257273 | G15: 5855.915705 | H15: 6789.319025 | I15: 7224.191593 | J15: 7437.865013 | K15: 5119.605407 | L15: 5408.910278 | M15: =+'[6]2.10 Overheads - Nominal'!T14 -> 5454.782511 | N15: =+'[6]2.10 Overheads - Nominal'!U14 -> 5324.392128 | O15: =+'[6]2.10 Overheads - Nominal'!V14 -> 5227.0982 | P15: =+'[6]2.10 Overheads - Nominal'!W14 -> 5233.180128 | Q15: =+'[6]2.10 Overheads - Nominal'!X14 -> 5276.527151
A16: ED_OVE2102_00004 | E16: Network control and operational switching | F16: 16539.23828 | G16: 18226.10633 | H16: 23789.7751 | I16: 25021.46172 | J16: 23092.35406 | K16: 26979.99204 | L16: 23171.08636 | M16: =+'[6]2.10 Overheads - Nominal'!T15 -> 23532.18603 | N16: =+'[6]2.10 Overheads - Nominal'!U15 -> 23722.16597 | O16: =+'[6]2.10 Overheads - Nominal'!V15 -> 23963.03413 | P16: =+'[6]2.10 Overheads - Nominal'!W15 -> 24300.79417 | Q16: =+'[6]2.10 Overheads - Nominal'!X15 -> 24692.6422
A17: ED_OVE2102_00005 | E17: Quality and standard functions | F17: 10171.54379 | G17: 8531.647376 | H17: 12410.25621 | I17: 13286.22573 | J17: 12556.86514 | K17: 19811.5365 | L17: 17565.31721 | M17: =+'[6]2.10 Overheads - Nominal'!T16 -> 17717.06558 | N17: =+'[6]2.10 Overheads - Nominal'!U16 -> 17291.77106 | O17: =+'[6]2.10 Overheads - Nominal'!V16 -> 16974.04902 | P17: =+'[6]2.10 Overheads - Nominal'!W16 -> 16992.07237 | Q17: =+'[6]2.10 Overheads - Nominal'!X16 -> 17131.0367
A18: ED_OVE2102_00006 | E18: Project governance and related functions | F18: 37669.34575 | G18: 42312.08926 | H18: 50134.21267 | I18: 60622.0457 | J18: 44834.94471 | K18: 38268.37391 | L18: 37791.25685 | M18: =+'[6]2.10 Overheads - Nominal'!T17 -> 38291.15544 | N18: =+'[6]2.10 Overheads - Nominal'!U17 -> 37313.57258 | O18: =+'[6]2.10 Overheads - Nominal'!V17 -> 36634.80459 | P18: =+'[6]2.10 Overheads - Nominal'!W17 -> 36561.29376 | Q18: =+'[6]2.10 Overheads - Nominal'!X17 -> 36938.52996
A19: ED_OVE2102_00007 | E19: Other - DNSP to nominate
A20: ED_OVE2102_00008 | E20: other expenditure categories currently reported under annual rin :
A21: ED_OVE2102_00009 | E21: TRAINING AND DEVELOPMENT | F21: 17047.38728 | G21: 16370.41548 | H21: 16313.27902 | I21: 17914.61772 | J21: 13578.96856 | K21: 11231.19611 | L21: 12941.45666 | M21: =+'[6]2.10 Overheads - Nominal'!T20 -> 13045.11892 | N21: =+'[6]2.10 Overheads - Nominal'!U20 -> 12718.32936 | O21: =+'[6]2.10 Overheads - Nominal'!V20 -> 12472.4058 | P21: =+'[6]2.10 Overheads - Nominal'!W20 -> 12473.51415 | Q21: =+'[6]2.10 Overheads - Nominal'!X20 -> 12563.44903
A22: ED_OVE2102_00010 | E22: OHS | F22: 2411.272393 | G22: 4364.37956 | H22: 4637.200998 | I22: 4752.273346 | J22: 4058.046412 | K22: 5088.466313 | L22: 3933.474761 | M22: =+'[6]2.10 Overheads - Nominal'!T21 -> 3966.803031 | N22: =+'[6]2.10 Overheads - Nominal'!U21 -> 3871.869832 | O22: =+'[6]2.10 Overheads - Nominal'!V21 -> 3801.011609 | P22: =+'[6]2.10 Overheads - Nominal'!W21 -> 3805.328535 | Q22: =+'[6]2.10 Overheads - Nominal'!X21 -> 3836.74295
A23: ED_OVE2102_00011 | E23: CUSTOMER SERVICE | F23: 12670.10411 | G23: 18044.80978 | H23: 16790.27236 | I23: 17366.83629 | J23: 15559.60732 | K23: 19797.676 | L23: 15917.355 | M23: =+'[6]2.10 Overheads - Nominal'!T22 -> 15960.07527 | N23: =+'[6]2.10 Overheads - Nominal'!U22 -> 15826.58605 | O23: =+'[6]2.10 Overheads - Nominal'!V22 -> 15735.17643 | P23: =+'[6]2.10 Overheads - Nominal'!W22 -> 15789.78476 | Q23: =+'[6]2.10 Overheads - Nominal'!X22 -> 15899.8043
A24: ED_OVE2102_00012 | E24: METER READING, NETWORK BILLING, & METERING SUPPORT | F24: 1790.86729 | G24: 4213.511934 | H24: 4147.304254 | I24: 4886.165281 | J24: 4877.99906 | K24: 4851.309158 | L24: 4314.134657 | M24: =+'[6]2.10 Overheads - Nominal'!T23 -> 4339.809853 | N24: =+'[6]2.10 Overheads - Nominal'!U23 -> 4239.991508 | O24: =+'[6]2.10 Overheads - Nominal'!V23 -> 4158.129862 | P24: =+'[6]2.10 Overheads - Nominal'!W23 -> 4160.73056 | Q24: =+'[6]2.10 Overheads - Nominal'!X23 -> 4196.723816
A25: ED_OVE2102_00013 | E25: DSM INITIATIVES | F25: 7159.40019 | G25: 6335.09937 | H25: 9963.76542 | I25: 14962.88308 | J25: 12516.39254 | K25: 9733.4532 | L25: 11690.23544 | M25: =+'[6]2.10 Overheads - Nominal'!T24 -> 12046.17007 | N25: =+'[6]2.10 Overheads - Nominal'!U24 -> 13103.76641 | O25: =+'[6]2.10 Overheads - Nominal'!V24 -> 13325.7187 | P25: =+'[6]2.10 Overheads - Nominal'!W24 -> 15281.61049 | Q25: =+'[6]2.10 Overheads - Nominal'!X24 -> 17165.85673
A26: ED_OVE2102_00014 | E26: LEVIES | F26: 7761 | G26: 8391 | H26: 8307.4 | I26: 8654.9 | J26: 9118.3 | K26: 8577.12 | L26: 8784.046233 | M26: =+'[6]2.10 Overheads - Nominal'!T25 -> 8805.963444 | N26: =+'[6]2.10 Overheads - Nominal'!U25 -> 8728.791501 | O26: =+'[6]2.10 Overheads - Nominal'!V25 -> 8652.948246 | P26: =+'[6]2.10 Overheads - Nominal'!W25 -> 8577.443977 | Q26: =+'[6]2.10 Overheads - Nominal'!X25 -> 8502.263477
A27: ED_OVE2102_00015 | E27: SOLAR
A28: ED_OVE2102_00016 | E28: NETWORK PROPERTY | F28: 4274.914603 | G28: 6995.269611 | H28: 7985.86683 | I28: 7983.608319 | J28: 6036.926426 | K28: 4390.11749 | L28: 6406.957972 | M28: =+'[6]2.10 Overheads - Nominal'!T27 -> 6488.090794 | N28: =+'[6]2.10 Overheads - Nominal'!U27 -> 6563.207047 | O28: =+'[6]2.10 Overheads - Nominal'!V27 -> 6452.434113 | P28: =+'[6]2.10 Overheads - Nominal'!W27 -> 6459.83463 | Q28: =+'[6]2.10 Overheads - Nominal'!X27 -> 6513.982818
A29: ED_OVE2102_00017
A30: ED_OVE2102_00018
A31: ED_OVE2102_00019
A32: ED_OVE2102_00020
A33: ED_OVE2102_00021
A34: ED_OVE2102_00022
A35: ED_OVE2102_00023
A36: ED_OVE2102_00024
A37: ED_OVE2102_00025
A38: ED_OVE2102_00026
A39: ED_OVE2102_00027
A40: ED_OVE2102_00028
A41: ED_OVE2102_00013 | C41: NETWORK OVERHEADS | D41: Total Overhead Expenditure - Alternative Control Services | E41: Expenditure categories currently reported under annual RIN
A42: ED_OVE2102_00014 | E42: Network management | F42: 4855.681688 | G42: 6438.440049 | H42: 4156.384393 | I42: 4358.530575 | J42: 4297.230107 | K42: 4685.683328 | L42: 4617.545067 | M42: =+'[6]2.10 Overheads - Nominal'!T41 -> 3716.568966 | N42: =+'[6]2.10 Overheads - Nominal'!U41 -> 3560.080174 | O42: =+'[6]2.10 Overheads - Nominal'!V41 -> 3764.026271 | P42: =+'[6]2.10 Overheads - Nominal'!W41 -> 3886.360586 | Q42: =+'[6]2.10 Overheads - Nominal'!X41 -> 3790.704566
A43: ED_OVE2102_00015 | E43: Network planning | F43: 678.4579365 | G43: 893.6413547 | H43: 787.2003646 | I43: 951.6703275 | J43: 919.286687 | K43: 688.2282934 | L43: 790.9858531 | M43: =+'[6]2.10 Overheads - Nominal'!T42 -> 636.9341705 | N43: =+'[6]2.10 Overheads - Nominal'!U42 -> 611.041238 | O43: =+'[6]2.10 Overheads - Nominal'!V42 -> 646.9949004 | P43: =+'[6]2.10 Overheads - Nominal'!W42 -> 668.9960603 | Q43: =+'[6]2.10 Overheads - Nominal'!X42 -> 653.472772
A44: ED_OVE2102_00016 | E44: Network control and operational switching | F44: 487.3435032 | G44: 757.9927063 | H44: 560.0412428 | I44: 851.6576049 | J44: 748.8368316 | K44: 849.798922 | L44: 858.7380975 | M44: =+'[6]2.10 Overheads - Nominal'!T43 -> 691.4390627 | N44: =+'[6]2.10 Overheads - Nominal'!U43 -> 663.2025994 | O44: =+'[6]2.10 Overheads - Nominal'!V43 -> 702.1004471 | P44: =+'[6]2.10 Overheads - Nominal'!W43 -> 725.8474851 | Q44: =+'[6]2.10 Overheads - Nominal'!X43 -> 708.8812047
A45: ED_OVE2102_00017 | E45: Quality and standard functions | F45: 1345.149812 | G45: 1301.971084 | H45: 1438.930499 | I45: 1750.245219 | J45: 1551.972096 | K45: 2663.26384 | L45: 2568.709168 | M45: =+'[6]2.10 Overheads - Nominal'!T44 -> 2068.754244 | N45: =+'[6]2.10 Overheads - Nominal'!U44 -> 1984.449105 | O45: =+'[6]2.10 Overheads - Nominal'!V44 -> 2100.998056 | P45: =+'[6]2.10 Overheads - Nominal'!W44 -> 2172.222089 | Q45: =+'[6]2.10 Overheads - Nominal'!X44 -> 2121.597353
A46: ED_OVE2102_00018 | E46: Project governance and related functions | F46: 4981.634492 | G46: 6457.031602 | H46: 5812.905587 | I46: 7985.973427 | J46: 5541.397661 | K46: 5144.415551 | L46: 5444.048787 | M46: =+'[6]2.10 Overheads - Nominal'!T45 -> 4130.416662 | N46: =+'[6]2.10 Overheads - Nominal'!U45 -> 4003.701727 | O46: =+'[6]2.10 Overheads - Nominal'!V45 -> 4228.090552 | P46: =+'[6]2.10 Overheads - Nominal'!W45 -> 4417.578045 | Q46: =+'[6]2.10 Overheads - Nominal'!X45 -> 4285.296682
A47: ED_OVE2102_00019 | E47: Other - DNSP to nominate
A48: ED_OVE2102_00020 | E48: other expenditure categories currently reported under annual rin :
A49: ED_OVE2102_00021 | E49: TRAINING AND DEVELOPMENT | F49: 2254.455202 | G49: 2498.205405 | H49: 1891.47382 | I49: 2359.960958 | J49: 1678.299484 | K49: 1509.80912 | L49: 1892.527073 | M49: =+'[6]2.10 Overheads - Nominal'!T48 -> 1523.228833 | N49: =+'[6]2.10 Overheads - Nominal'!U48 -> 1459.588912 | O49: =+'[6]2.10 Overheads - Nominal'!V48 -> 1543.797847 | P49: =+'[6]2.10 Overheads - Nominal'!W48 -> 1594.581424 | Q49: =+'[6]2.10 Overheads - Nominal'!X48 -> 1555.923362
A50: ED_OVE2102_00022 | E50: OHS | F50: 318.8820374 | G50: 666.0256498 | H50: 537.668992 | I50: 626.0351036 | J50: 501.5562981 | K50: 684.0422667 | L50: 575.2217599 | M50: =+'[6]2.10 Overheads - Nominal'!T49 -> 463.188476 | N50: =+'[6]2.10 Overheads - Nominal'!U49 -> 444.3459608 | O50: =+'[6]2.10 Overheads - Nominal'!V49 -> 470.4780804 | P50: =+'[6]2.10 Overheads - Nominal'!W49 -> 486.4632471 | Q50: =+'[6]2.10 Overheads - Nominal'!X49 -> 475.1623519
A51: ED_OVE2102_00023 | E51: CUSTOMER SERVICE | F51: 705.45906 | G51: 1777.588693 | H51: 1182.770828 | I51: 1212.097064 | J51: 951.4815099 | K51: 993.2461841 | L51: 1173.53854 | M51: =+'[6]2.10 Overheads - Nominal'!T50 -> 984.4159934 | N51: =+'[6]2.10 Overheads - Nominal'!U50 -> 937.8172994 | O51: =+'[6]2.10 Overheads - Nominal'!V50 -> 988.667202 | P51: =+'[6]2.10 Overheads - Nominal'!W50 -> 1019.373975 | Q51: =+'[6]2.10 Overheads - Nominal'!X50 -> 994.6921077
A52: ED_OVE2102_00024 | E52: METER READING, NETWORK BILLING, & METERING SUPPORT | F52: 9921.90741 | G52: 12893.01305 | H52: 10672.81248 | I52: 11278.20811 | J52: 10850.15783 | K52: 12278.66224 | L52: 11254.74261 | M52: =+'[6]2.10 Overheads - Nominal'!T51 -> 13356.05803 | N52: =+'[6]2.10 Overheads - Nominal'!U51 -> 13040.24098 | O52: =+'[6]2.10 Overheads - Nominal'!V51 -> 12903.9012 | P52: =+'[6]2.10 Overheads - Nominal'!W51 -> 12935.12101 | Q52: =+'[6]2.10 Overheads - Nominal'!X51 -> 12948.82697
A53: ED_OVE2102_00025 | E53: DSM INITIATIVES | F53: 0 | G53: 0 | H53: 0 | I53: 0 | J53: 0 | K53: 0
A54: ED_OVE2102_00026 | E54: LEVIES | F54: 0 | G54: 0 | H54: 0 | I54: 0 | J54: 0 | K54: 0
A55: ED_OVE2102_00027 | E55: SOLAR | F55: 0 | G55: 0 | H55: 0 | I55: 0 | J55: 0 | K55: 0
A56: ED_OVE2102_00028 | E56: NETWORK PROPERTY | F56: 565.3419674 | G56: 1067.512329 | H56: 925.9363504 | I56: 1051.711191 | J56: 746.136974 | K56: 590.1632701 | L56: 936.9379149 | M56: =+'[6]2.10 Overheads - Nominal'!T55 -> 757.5896417 | N56: =+'[6]2.10 Overheads - Nominal'!U55 -> 753.2108948 | O56: =+'[6]2.10 Overheads - Nominal'!V55 -> 798.6633896 | P56: =+'[6]2.10 Overheads - Nominal'!W55 -> 825.8083635 | Q56: =+'[6]2.10 Overheads - Nominal'!X55 -> 806.7257662
A57: ED_OVE2102_00029
A58: ED_OVE2102_00030
A59: ED_OVE2102_00031
A60: ED_OVE2102_00032
A61: ED_OVE2102_00033
A62: ED_OVE2102_00034
A63: ED_OVE2102_00035
A64: ED_OVE2102_00036
A65: ED_OVE2102_00037
A66: ED_OVE2102_00038
A67: ED_OVE2102_00039
A68: ED_OVE2102_00040
A69: ED_OVE2102_00041 | C69: NETWORK OVERHEADS | D69: Total Overhead Expenditure - Negotiated Services | E69: Total | F69: 0 | G69: 0 | H69: 0 | I69: 0 | J69: 0 | K69: 0
A70: ED_OVE2102_00042 | C70: NETWORK OVERHEADS | D70: Total Overhead Expenditure - Unregulated Services | E70: Total | F70: 1167.86493 | G70: 5364.242767 | H70: 6120.488775 | I70: 4907.483469 | J70: 3962.820092 | K70: 3268.2417 | L70: 1109.165336 | M70: =+'[6]2.10 Overheads - Nominal'!T70 -> 1113.166394 | N70: =+'[6]2.10 Overheads - Nominal'!U70 -> 1100.252324 | O70: =+'[6]2.10 Overheads - Nominal'!V70 -> 1076.154122 | P70: =+'[6]2.10 Overheads - Nominal'!W70 -> 1137.82035 | Q70: =+'[6]2.10 Overheads - Nominal'!X70 -> 1075.871002
A71: ED_OVE2102_00043 | C71: NETWORK OVERHEADS | D71: Capitalised Overheads - Standard Control Services | E71: Expenditure categories currently reported under annual RIN
A72: ED_OVE2102_00044 | E72: Network management | F72: 23118.53242 | G72: 28316.49276 | H72: 26782.47691 | I72: 24263.98465 | J72: 25330.2182 | K72: 24306.24086 | L72: 22413.33396 | M72: =+'[6]2.10 Overheads - Nominal'!T71 -> 21908.87211 | N72: =+'[6]2.10 Overheads - Nominal'!U71 -> 21684.08666 | O72: =+'[6]2.10 Overheads - Nominal'!V71 -> 20569.1352 | P72: =+'[6]2.10 Overheads - Nominal'!W71 -> 20173.08253 | Q72: =+'[6]2.10 Overheads - Nominal'!X71 -> 20534.99336
A73: ED_OVE2102_00045 | E73: Network planning | F73: 3230.226528 | G73: 3930.267076 | H73: 5072.479732 | I73: 5297.958524 | J73: 5418.777162 | K73: 3570.075375 | L73: 3839.405968 | M73: =+'[6]2.10 Overheads - Nominal'!T72 -> 3754.675188 | N73: =+'[6]2.10 Overheads - Nominal'!U72 -> 3721.790102 | O73: =+'[6]2.10 Overheads - Nominal'!V72 -> 3535.609113 | P73: =+'[6]2.10 Overheads - Nominal'!W72 -> 3472.583781 | Q73: =+'[6]2.10 Overheads - Nominal'!X72 -> 3539.990732
A74: ED_OVE2102_00046 | E74: Network control and operational switching | F74: 2320.30584 | G74: 3333.679402 | H74: 3608.735439 | I74: 4741.186666 | J74: 4414.052742 | K74: 4408.197446 | L74: 4168.27199 | M74: =+'[6]2.10 Overheads - Nominal'!T73 -> 4075.9771 | N74: =+'[6]2.10 Overheads - Nominal'!U73 -> 4039.499655 | O74: =+'[6]2.10 Overheads - Nominal'!V73 -> 3836.742356 | P74: =+'[6]2.10 Overheads - Nominal'!W73 -> 3767.684675 | Q74: =+'[6]2.10 Overheads - Nominal'!X73 -> 3840.149126
A75: ED_OVE2102_00047 | E75: Quality and standard functions | F75: 6404.433311 | G75: 5726.116029 | H75: 9272.030502 | I75: 9743.633176 | J75: 9148.170066 | K75: 13815.25977 | L75: 12468.38647 | M75: =+'[6]2.10 Overheads - Nominal'!T74 -> 12195.13819 | N75: =+'[6]2.10 Overheads - Nominal'!U74 -> 12087.07789 | O75: =+'[6]2.10 Overheads - Nominal'!V74 -> 11481.2464 | P75: =+'[6]2.10 Overheads - Nominal'!W74 -> 11275.43739 | Q75: =+'[6]2.10 Overheads - Nominal'!X74 -> 11493.11079
A76: ED_OVE2102_00048 | E76: Project governance and related functions | F76: 26549.58263 | G76: 30036.83796 | H76: 39197.91509 | I76: 46026.93494 | J76: 34086.96442 | K76: 28178.76374 | L76: 28636.76706 | M76: =+'[6]2.10 Overheads - Nominal'!T75 -> 28386.19131 | N76: =+'[6]2.10 Overheads - Nominal'!U75 -> 27962.46988 | O76: =+'[6]2.10 Overheads - Nominal'!V75 -> 26786.77338 | P76: =+'[6]2.10 Overheads - Nominal'!W75 -> 26286.54231 | Q76: =+'[6]2.10 Overheads - Nominal'!X75 -> 26832.88378
A77: ED_OVE2102_00049 | E77: Other - DNSP to nominate
A78: ED_OVE2102_00050 | E78: other expenditure categories currently reported under annual rin :
A79: ED_OVE2102_00051 | E79: TRAINING AND DEVELOPMENT | F79: 10733.7546 | G79: 10987.19794 | H79: 12188.08203 | I79: 13137.92698 | J79: 9892.812597 | K79: 7831.895915 | L79: 9186.232232 | M79: =+'[6]2.10 Overheads - Nominal'!T78 -> 8979.310221 | N79: =+'[6]2.10 Overheads - Nominal'!U78 -> 8890.207778 | O79: =+'[6]2.10 Overheads - Nominal'!V78 -> 8436.33502 | P79: =+'[6]2.10 Overheads - Nominal'!W78 -> 8277.055606 | Q79: =+'[6]2.10 Overheads - Nominal'!X78 -> 8428.743349
A80: ED_OVE2102_00052 | E80: OHS | F80: 1518.238879 | G80: 2929.204954 | H80: 3464.575458 | I80: 3485.143876 | J80: 2956.446397 | K80: 3548.361024 | L80: 2792.097797 | M80: =+'[6]2.10 Overheads - Nominal'!T79 -> 2730.458435 | N80: =+'[6]2.10 Overheads - Nominal'!U79 -> 2706.466104 | O80: =+'[6]2.10 Overheads - Nominal'!V79 -> 2571.004172 | P80: =+'[6]2.10 Overheads - Nominal'!W79 -> 2525.103632 | Q80: =+'[6]2.10 Overheads - Nominal'!X79 -> 2574.048061
A81: ED_OVE2102_00053 | E81: CUSTOMER SERVICE | F81: 3358.782391 | G81: 7817.899516 | H81: 2145.333271 | I81: 1746.503908 | J81: 1162.561468 | K81: 1549.293942 | L81: 1030.829782 | M81: =+'[6]2.10 Overheads - Nominal'!T80 -> 1007.467138 | N81: =+'[6]2.10 Overheads - Nominal'!U80 -> 998.5770277 | O81: =+'[6]2.10 Overheads - Nominal'!V80 -> 949.8305518 | P81: =+'[6]2.10 Overheads - Nominal'!W80 -> 932.740563 | Q81: =+'[6]2.10 Overheads - Nominal'!X80 -> 950.8799891
A82: ED_OVE2102_00054 | E82: METER READING, NETWORK BILLING, & METERING SUPPORT | F82: 1127.605638 | G82: 2638.187885 | H82: 844.0238384 | I82: 764.854177 | J82: 742.9481124 | K82: 1244.144668 | L82: 718.8573001 | M82: =+'[6]2.10 Overheads - Nominal'!T81 -> 702.9321752 | N82: =+'[6]2.10 Overheads - Nominal'!U81 -> 696.5828816 | O82: =+'[6]2.10 Overheads - Nominal'!V81 -> 661.5778058 | P82: =+'[6]2.10 Overheads - Nominal'!W81 -> 649.607816 | Q82: =+'[6]2.10 Overheads - Nominal'!X81 -> 662.0422316
A83: ED_OVE2102_00055 | E83: DSM INITIATIVES | F83: 0 | G83: 0 | H83: 0 | I83: 0 | J83: 0 | K83: 0
A84: ED_OVE2102_00056 | E84: LEVIES | F84: 0 | G84: 0 | H84: 0 | I84: 0 | J84: 0 | K84: 0
A85: ED_OVE2102_00057 | E85: SOLAR | F85: 0 | G85: 0 | H85: 0 | I85: 0 | J85: 0 | K85: 0
A86: ED_OVE2102_00058 | E86: NETWORK PROPERTY | F86: 2691.666679 | G86: 4694.957924 | H86: 5966.452229 | I86: 5854.887042 | J86: 4398.138309 | K86: 3061.378583 | L86: 4547.850012 | M86: =+'[6]2.10 Overheads - Nominal'!T85 -> 4465.929389 | N86: =+'[6]2.10 Overheads - Nominal'!U85 -> 4587.731037 | O86: =+'[6]2.10 Overheads - Nominal'!V85 -> 4364.426298 | P86: =+'[6]2.10 Overheads - Nominal'!W85 -> 4286.555481 | Q86: =+'[6]2.10 Overheads - Nominal'!X85 -> 4370.19239
A87: ED_OVE2102_00059
A88: ED_OVE2102_00060
A89: ED_OVE2102_00061
A90: ED_OVE2102_00062
A91: ED_OVE2102_00063
A92: ED_OVE2102_00064
A93: ED_OVE2102_00065
A94: ED_OVE2102_00066
A95: ED_OVE2102_00067
A96: ED_OVE2102_00068
A97: ED_OVE2102_00069
A98: ED_OVE2102_00070
C106: TABLE 2.10.2 - CORPORATE OVERHEADS EXPENDITURE
C107: <<<GROUP-ROW>>>
F109: EXPENDITURE ($000's) | H109: EXPENDITURE ($000's) Current Period | M109: EXPENDITURE ($000's) Forthcoming Period
A110: OVE2102 | F110: =PRCP_y4 -> 2008-09 | G110: =PRCP_y5 -> 2009-10 | H110: =CRCP -> 2010-11 | I110: 2011-12 | J110: 2012-13 | K110: 2013-14 | L110: 2014-15 | M110: =FRCP -> 2015-16 | N110: 2016-17 | O110: 2017-18 | P110: 2018-19 | Q110: 2019-20
A111: ED_OVE2102_00001 | C111: CORPORATE OVERHEADS | D111: Total Overhead Expenditure - Standard Control Services | E111: Expenditure categories currently reported under annual RIN
A112: ED_OVE2102_00002 | E112: Office of CEO | F112: 724.7185948 | G112: 611.5071171 | H112: 649.8279572 | I112: 642.8892443 | J112: 570.2326462 | K112: 536.8547055 | L112: 571.6597957 | M112: =+'[6]2.10 Overheads - Nominal'!T112 -> 585.5531031 | N112: 591.0525859 | O112: 590.1150556 | P112: 591.3495739 | Q112: 597.6379848
A113: ED_OVE2102_00003 | E113: Legal and Secretariat | F113: 2027.370852 | G113: 1942.28568 | H113: 2136.598591 | I113: 1888.883159 | J113: 1408.103166 | K113: 1514.24695 | L113: 1320.52229 | M113: =+'[6]2.10 Overheads - Nominal'!T113 -> 1324.6603 | N113: =+'[6]2.10 Overheads - Nominal'!U113 -> 1290.509719 | O113: =+'[6]2.10 Overheads - Nominal'!V113 -> 1263.32185 | P113: =+'[6]2.10 Overheads - Nominal'!W113 -> 1260.259889 | Q113: =+'[6]2.10 Overheads - Nominal'!X113 -> 1267.920071
A114: ED_OVE2102_00004 | E114: Audit | F114: 984.8280163 | G114: 1759.341839 | H114: 1965.506087 | I114: 2818.649472 | J114: 2384.295825 | K114: 1732.656658 | L114: 1883.648866 | M114: =+'[6]2.10 Overheads - Nominal'!T114 -> 1889.974055 | N114: =+'[6]2.10 Overheads - Nominal'!U114 -> 1841.080089 | O114: =+'[6]2.10 Overheads - Nominal'!V114 -> 1801.920047 | P114: =+'[6]2.10 Overheads - Nominal'!W114 -> 1797.181859 | Q114: =+'[6]2.10 Overheads - Nominal'!X114 -> 1807.733848
A115: ED_OVE2102_00005 | E115: Strategy and Regulation | F115: 5976.277007 | G115: 7838.742473 | H115: 7189.214556 | I115: 5943.600344 | J115: 5319.133945 | K115: 4736.430873 | L115: 5049.411343 | M115: =+'[6]2.10 Overheads - Nominal'!T115 -> 5072.718221 | N115: =+'[6]2.10 Overheads - Nominal'!U115 -> 4955.649385 | O115: =+'[6]2.10 Overheads - Nominal'!V115 -> 4862.529014 | P115: =+'[6]2.10 Overheads - Nominal'!W115 -> 4862.581724 | Q115: =+'[6]2.10 Overheads - Nominal'!X115 -> 4903.858922
A116: ED_OVE2102_00006 | E116: Human Resources | F116: 10985.35278 | G116: 11647.19337 | H116: 11649.09062 | I116: 11715.08474 | J116: 9963.154638 | K116: 8910.146798 | L116: 8752.558413 | M116: =+'[6]2.10 Overheads - Nominal'!T116 -> 8801.363884 | N116: =+'[6]2.10 Overheads - Nominal'!U116 -> 8589.166307 | O116: =+'[6]2.10 Overheads - Nominal'!V116 -> 8429.595877 | P116: =+'[6]2.10 Overheads - Nominal'!W116 -> 8428.064504 | Q116: =+'[6]2.10 Overheads - Nominal'!X116 -> 8494.083091
A117: ED_OVE2102_00007 | E117: Finance | F117: 11595.4873 | G117: 13374.76546 | H117: 12758.69671 | I117: 12277.52424 | J117: 10346.99513 | K117: 10413.6354 | L117: 10071.83019 | M117: =+'[6]2.10 Overheads - Nominal'!T117 -> 10115.24041 | N117: =+'[6]2.10 Overheads - Nominal'!U117 -> 9876.312581 | O117: =+'[6]2.10 Overheads - Nominal'!V117 -> 9686.728838 | P117: =+'[6]2.10 Overheads - Nominal'!W117 -> 9681.627408 | Q117: =+'[6]2.10 Overheads - Nominal'!X117 -> 9758.897831
A118: ED_OVE2102_00008 | E118: Business Support Services | F118: 19277.09756 | G118: 19183.5448 | H118: 19807.74684 | I118: 19270.14889 | J118: 16873.82043 | K118: 14966.88924 | L118: 15727.74829 | M118: =+'[6]2.10 Overheads - Nominal'!T118 -> 15822.14277 | N118: =+'[6]2.10 Overheads - Nominal'!U118 -> 15412.32825 | O118: =+'[6]2.10 Overheads - Nominal'!V118 -> 15107.41254 | P118: =+'[6]2.10 Overheads - Nominal'!W118 -> 15085.28571 | Q118: =+'[6]2.10 Overheads - Nominal'!X118 -> 15178.88405
A119: ED_OVE2102_00009 | E119: Business Operations and Performance | F119: 8091.66282 | G119: 17001.60609 | H119: 9167.696751 | I119: 8777.361999 | J119: 3131.981864 | K119: 3158.099386 | L119: 3005.004065 | M119: =+'[6]2.10 Overheads - Nominal'!T119 -> 3026.36465 | N119: =+'[6]2.10 Overheads - Nominal'!U119 -> 2954.04963 | O119: =+'[6]2.10 Overheads - Nominal'!V119 -> 2898.991126 | P119: =+'[6]2.10 Overheads - Nominal'!W119 -> 2900.595897 | Q119: =+'[6]2.10 Overheads - Nominal'!X119 -> 2924.137013
A120: ED_OVE2102_00010 | E120: Field Support Services | F120: 7834.586219 | G120: 9093.879792 | H120: 9801.362069 | I120: 9557.495142 | J120: 8938.386519 | K120: 8853.072858 | L120: 8657.509709 | M120: =+'[6]2.10 Overheads - Nominal'!T120 -> 8725.512112 | N120: =+'[6]2.10 Overheads - Nominal'!U120 -> 8507.872069 | O120: =+'[6]2.10 Overheads - Nominal'!V120 -> 8345.1114 | P120: =+'[6]2.10 Overheads - Nominal'!W120 -> 8347.596147 | Q120: =+'[6]2.10 Overheads - Nominal'!X120 -> 8409.514829
A121: ED_OVE2102_00011 | E121: Stakeholder Engagement and Management | F121: 6199.283033 | G121: 4961.329431 | H121: 7654.791579 | I121: 7809.839757 | J121: 6670.726088 | K121: 6354.742301 | L121: 6255.239167 | M121: =+'[6]2.10 Overheads - Nominal'!T121 -> 6275.480479 | N121: =+'[6]2.10 Overheads - Nominal'!U121 -> 6107.511754 | O121: =+'[6]2.10 Overheads - Nominal'!V121 -> 5971.826326 | P121: =+'[6]2.10 Overheads - Nominal'!W121 -> 5950.378461 | Q121: =+'[6]2.10 Overheads - Nominal'!X121 -> 5979.555067
A122: ED_OVE2102_00012 | E122: Other Operating | F122: 5193.451561 | G122: 3144.11636 | H122: 9709.152137 | I122: 7282.115462 | J122: 6998.975131 | K122: 8400.476634 | L122: 7903.318387 | M122: =+'[6]2.10 Overheads - Nominal'!T122 -> 2324.540404 | N122: =+'[6]2.10 Overheads - Nominal'!U122 -> 3010.517454 | O122: =+'[6]2.10 Overheads - Nominal'!V122 -> 2997.560735 | P122: =+'[6]2.10 Overheads - Nominal'!W122 -> 5834.249497 | Q122: =+'[6]2.10 Overheads - Nominal'!X122 -> 5865.806005
A123: ED_OVE2102_00013 | E123: Corporate Restructuring | F123: 0 | G123: 0 | H123: 0 | I123: 8532.67515 | J123: 45376.4989 | K123: 16180.01772 | L123: 8782.594767 | M123: =+'[6]2.10 Overheads - Nominal'!T123 -> 0.0001980913834 | N123: =+'[6]2.10 Overheads - Nominal'!U123 -> 0.0002006837246 | O123: =+'[6]2.10 Overheads - Nominal'!V123 -> 0.00020109432 | P123: =+'[6]2.10 Overheads - Nominal'!W123 -> 0.0002022436263 | Q123: =+'[6]2.10 Overheads - Nominal'!X123 -> 0.0002051287756
A124: ED_OVE2102_00014 | E124: IT and Communications | F124: 55326.98222 | G124: 54800.18095 | H124: 69266.65952 | I124: 83880.136 | J124: 93527.93914 | K124: 100195.5865 | L124: 99732.89637 | M124: =+'[6]2.10 Overheads - Nominal'!T124 -> 96364.94139 | N124: =+'[6]2.10 Overheads - Nominal'!U124 -> 94481.2113 | O124: =+'[6]2.10 Overheads - Nominal'!V124 -> 89929.72551 | P124: =+'[6]2.10 Overheads - Nominal'!W124 -> 92675.37662 | Q124: =+'[6]2.10 Overheads - Nominal'!X124 -> 91407.33643
A125: ED_OVE2102_00015 | E125: Property | F125: 24535.31773 | G125: 29073.7519 | H125: 42259.47197 | I125: 40127.7094 | J125: 44420.65563 | K125: 35242.4305 | L125: 34768.60152 | M125: =+'[6]2.10 Overheads - Nominal'!T125 -> 34966.12674 | N125: =+'[6]2.10 Overheads - Nominal'!U125 -> 33670.91216 | O125: =+'[6]2.10 Overheads - Nominal'!V125 -> 32796.99967 | P125: =+'[6]2.10 Overheads - Nominal'!W125 -> 32592.74514 | Q125: =+'[6]2.10 Overheads - Nominal'!X125 -> 32626.57869
A126: ED_OVE2102_00016 | E126: Fleet | F126: 20847.08331 | G126: 21323.32866 | H126: 21646.99098 | I126: 22100.01666 | J126: 20206.4242 | K126: 20817.86171 | L126: 21063.5367 | M126: =+'[6]2.10 Overheads - Nominal'!T126 -> 21390.02122 | N126: =+'[6]2.10 Overheads - Nominal'!U126 -> 20697.82438 | O126: =+'[6]2.10 Overheads - Nominal'!V126 -> 20364.61257 | P126: =+'[6]2.10 Overheads - Nominal'!W126 -> 20410.00444 | Q126: =+'[6]2.10 Overheads - Nominal'!X126 -> 20462.67561
A127: ED_OVE2102_00017 | E127: Debt Raising Costs | F127: 3136.14792 | G127: 3395.51049 | H127: 3436.83512 | I127: 3806.25888 | J127: 4481.05244 | K127: 4515.13086 | L127: 4600 | M127: =+'[6]2.10 Overheads - Nominal'!T127 -> 6548.180216 | N127: =+'[6]2.10 Overheads - Nominal'!U127 -> 6732.086815 | O127: =+'[6]2.10 Overheads - Nominal'!V127 -> 6907.582043 | P127: =+'[6]2.10 Overheads - Nominal'!W127 -> 7038.270548 | Q127: =+'[6]2.10 Overheads - Nominal'!X127 -> 7155.430636
A128: ED_OVE2102_00018
A129: ED_OVE2102_00019
A130: ED_OVE2102_00020
A131: ED_OVE2102_00021
A132: ED_OVE2102_00022 | C132: CORPORATE OVERHEADS | D132: Total Overhead Expenditure - Alternative Control Services | E132: Expenditure categories currently reported under annual RIN
A133: ED_OVE2102_00023 | E133: Office of CEO | F133: 95.84140837 | G133: 93.31897453 | H133: 75.34552477 | I133: 84.69025355 | J133: 70.47819222 | K133: 72.16935066 | L133: 96.71102807 | M133: =+'[6]2.10 Overheads - Nominal'!T133 -> 83.40438383 | N133: =+'[6]2.10 Overheads - Nominal'!U133 -> 81.9258261 | O133: =+'[6]2.10 Overheads - Nominal'!V133 -> 87.83013768 | P133: =+'[6]2.10 Overheads - Nominal'!W133 -> 90.63080419 | Q133: =+'[6]2.10 Overheads - Nominal'!X133 -> 88.55796941
A134: ED_OVE2102_00024 | E134: Legal and Secretariat | F134: 268.1124497 | G134: 296.4022868 | H134: 247.7319424 | I134: 248.8297868 | J134: 174.0352227 | K134: 203.5601402 | L134: 223.4004721 | M134: =+'[6]2.10 Overheads - Nominal'!T134 -> 188.6805407 | N134: =+'[6]2.10 Overheads - Nominal'!U134 -> 178.8776114 | O134: =+'[6]2.10 Overheads - Nominal'!V134 -> 188.0272855 | P134: =+'[6]2.10 Overheads - Nominal'!W134 -> 193.1486421 | Q134: =+'[6]2.10 Overheads - Nominal'!X134 -> 187.8803385
A135: ED_OVE2102_00025 | E135: Audit | F135: 130.2399369 | G135: 268.4841627 | H135: 227.8943003 | I135: 371.3114514 | J135: 294.688248 | K135: 232.9209461 | L135: 318.6678855 | M135: =+'[6]2.10 Overheads - Nominal'!T135 -> 269.2020941 | N135: =+'[6]2.10 Overheads - Nominal'!U135 -> 255.1921957 | O135: =+'[6]2.10 Overheads - Nominal'!V135 -> 268.1898797 | P135: =+'[6]2.10 Overheads - Nominal'!W135 -> 275.4378193 | Q135: =+'[6]2.10 Overheads - Nominal'!X135 -> 267.8699194
A136: ED_OVE2102_00026 | E136: Strategy and Regulation | F136: 790.3409809 | G136: 1196.23041 | H136: 833.567004 | I136: 782.9731553 | J136: 657.4210494 | K136: 636.7181605 | L136: 853.1735499 | M136: =+'[6]2.10 Overheads - Nominal'!T136 -> 721.3417558 | N136: =+'[6]2.10 Overheads - Nominal'!U136 -> 685.814595 | O136: =+'[6]2.10 Overheads - Nominal'!V136 -> 722.5936629 | P136: =+'[6]2.10 Overheads - Nominal'!W136 -> 744.1027073 | Q136: =+'[6]2.10 Overheads - Nominal'!X136 -> 725.5522927
A137: ED_OVE2102_00027 | E137: Human Resources | F137: 1452.773104 | G137: 1777.418629 | H137: 1350.675723 | I137: 1543.27282 | J137: 1231.401135 | K137: 1197.790579 | L137: 1397.307499 | M137: =+'[6]2.10 Overheads - Nominal'!T137 -> 1159.598361 | N137: =+'[6]2.10 Overheads - Nominal'!U137 -> 1105.325465 | O137: =+'[6]2.10 Overheads - Nominal'!V137 -> 1166.62708 | P137: =+'[6]2.10 Overheads - Nominal'!W137 -> 1202.347051 | Q137: =+'[6]2.10 Overheads - Nominal'!X137 -> 1172.446723
A138: ED_OVE2102_00028 | E138: Finance | F138: 1533.461182 | G138: 2041.054572 | H138: 1479.331088 | I138: 1617.365122 | J138: 1278.842095 | K138: 1399.904475 | L138: 1703.910367 | M138: =+'[6]2.10 Overheads - Nominal'!T138 -> 1440.783747 | N138: =+'[6]2.10 Overheads - Nominal'!U138 -> 1368.956141 | O138: =+'[6]2.10 Overheads - Nominal'!V138 -> 1441.730251 | P138: =+'[6]2.10 Overheads - Nominal'!W138 -> 1483.815524 | Q138: =+'[6]2.10 Overheads - Nominal'!X138 -> 1446.073037
A139: ED_OVE2102_00029 | E139: Business Support Services | F139: 2549.326308 | G139: 2927.502687 | H139: 2296.646464 | I139: 2538.530252 | J139: 2085.528367 | K139: 2011.998156 | L139: 2410.955317 | M139: =+'[6]2.10 Overheads - Nominal'!T139 -> 1972.206524 | N139: =+'[6]2.10 Overheads - Nominal'!U139 -> 1881.483803 | O139: =+'[6]2.10 Overheads - Nominal'!V139 -> 1985.613638 | P139: =+'[6]2.10 Overheads - Nominal'!W139 -> 2045.266548 | Q139: =+'[6]2.10 Overheads - Nominal'!X139 -> 1992.070001
A140: ED_OVE2102_00030 | E140: Business Operations and Performance | F140: 1070.09309 | G140: 2594.528178 | H140: 1062.965844 | I140: 1156.275392 | J140: 387.0988821 | K140: 424.5431392 | L140: 461.4646051 | M140: =+'[6]2.10 Overheads - Nominal'!T140 -> 378.1451871 | N140: =+'[6]2.10 Overheads - Nominal'!U140 -> 361.5031583 | O140: =+'[6]2.10 Overheads - Nominal'!V140 -> 382.0186103 | P140: =+'[6]2.10 Overheads - Nominal'!W140 -> 394.330382 | Q140: =+'[6]2.10 Overheads - Nominal'!X140 -> 384.850807
A141: ED_OVE2102_00031 | E141: Field Support Services | F141: 1036.095641 | G141: 1387.770498 | H141: 1136.437361 | I141: 1259.045308 | J141: 1104.744401 | K141: 1190.118132 | L141: 1265.873069 | M141: =+'[6]2.10 Overheads - Nominal'!T141 -> 1018.727111 | N141: =+'[6]2.10 Overheads - Nominal'!U141 -> 976.3568438 | O141: =+'[6]2.10 Overheads - Nominal'!V141 -> 1032.932028 | P141: =+'[6]2.10 Overheads - Nominal'!W141 -> 1067.151347 | Q141: =+'[6]2.10 Overheads - Nominal'!X141 -> 1041.521914
A142: ED_OVE2102_00032 | E142: Stakeholder Engagement and Management | F142: 819.8327199 | G142: 757.1231175 | H142: 887.5492078 | I142: 1028.819995 | J142: 824.4717636 | K142: 854.2676831 | L142: 1058.235362 | M142: =+'[6]2.10 Overheads - Nominal'!T142 -> 893.8601467 | N142: =+'[6]2.10 Overheads - Nominal'!U142 -> 846.5624849 | O142: =+'[6]2.10 Overheads - Nominal'!V142 -> 888.8204486 | P142: =+'[6]2.10 Overheads - Nominal'!W142 -> 911.9607233 | Q142: =+'[6]2.10 Overheads - Nominal'!X142 -> 886.0501979
A143: ED_OVE2102_00033 | E143: Other Operating | F143: 686.815152 | G143: 479.807522 | H143: 2519.0563 | I143: 2227.188626 | J143: 2202.616326 | K143: 2236.562658 | L143: 1337.050547 | M143: =+'[6]2.10 Overheads - Nominal'!T143 -> 331.1003831 | N143: =+'[6]2.10 Overheads - Nominal'!U143 -> 417.2879571 | O143: =+'[6]2.10 Overheads - Nominal'!V143 -> 446.1437918 | P143: =+'[6]2.10 Overheads - Nominal'!W143 -> 894.1626805 | Q143: =+'[6]2.10 Overheads - Nominal'!X143 -> 869.1948611
A144: ED_OVE2102_00034 | E144: Corporate Restructuring | F144: 0 | G144: 0 | H144: 0 | I144: 1124.04186 | J144: 5608.331324 | K144: 2175.078957 | L144: 1485.802877 | M144: =+'[6]2.10 Overheads - Nominal'!T144 -> 2.821552765e-05 | N144: =+'[6]2.10 Overheads - Nominal'!U144 -> 2.781678029e-05 | O144: =+'[6]2.10 Overheads - Nominal'!V144 -> 2.992999694e-05 | P144: =+'[6]2.10 Overheads - Nominal'!W144 -> 3.099605259e-05 | Q144: =+'[6]2.10 Overheads - Nominal'!X144 -> 3.039597264e-05
A145: ED_OVE2102_00035 | E145: IT and Communications | F145: 7316.792939 | G145: 8362.775425 | H145: 8031.253123 | I145: 11049.85042 | J145: 11559.63293 | K145: 13469.28758 | L145: 14582.62155 | M145: =+'[6]2.10 Overheads - Nominal'!T145 -> 11250.86723 | N145: =+'[6]2.10 Overheads - Nominal'!U145 -> 10842.59102 | O145: =+'[6]2.10 Overheads - Nominal'!V145 -> 11131.22273 | P145: =+'[6]2.10 Overheads - Nominal'!W145 -> 11847.56081 | Q145: =+'[6]2.10 Overheads - Nominal'!X145 -> 11320.83668
A146: ED_OVE2102_00036 | E146: Property | F146: 3244.706873 | G146: 4436.796625 | H146: 4899.853965 | I146: 5286.176295 | J146: 5490.193393 | K146: 4656.262749 | L146: 5083.752465 | M146: =+'[6]2.10 Overheads - Nominal'!T146 -> 4082.389756 | N146: =+'[6]2.10 Overheads - Nominal'!U146 -> 3864.047937 | O146: =+'[6]2.10 Overheads - Nominal'!V146 -> 4059.510983 | P146: =+'[6]2.10 Overheads - Nominal'!W146 -> 4166.635671 | Q146: =+'[6]2.10 Overheads - Nominal'!X146 -> 4040.815358
A147: ED_OVE2102_00037 | E147: Fleet | F147: 2756.951235 | G147: 3254.044161 | H147: 2509.901086 | I147: 2911.319533 | J147: 2497.423216 | K147: 2798.544087 | L147: 2861.741192 | M147: =+'[6]2.10 Overheads - Nominal'!T147 -> 2133.808048 | N147: =+'[6]2.10 Overheads - Nominal'!U147 -> 2132.6339 | O147: =+'[6]2.10 Overheads - Nominal'!V147 -> 2157.398335 | P147: =+'[6]2.10 Overheads - Nominal'!W147 -> 2164.375899 | Q147: =+'[6]2.10 Overheads - Nominal'!X147 -> 2168.519986
A148: ED_OVE2102_00038 | E148: Debt Raising Costs | F148: 0 | G148: 0 | H148: 0 | I148: 0 | J148: 0 | K148: 0 | M148: ='[7]3.2 Opex'!AE$28 -> 324.8435954 | N148: ='[7]3.2 Opex'!AF$28 -> 321.1916386 | O148: ='[7]3.2 Opex'!AG$28 -> 316.7472977 | P148: ='[7]3.2 Opex'!AH$28 -> 312.5683161 | Q148: ='[7]3.2 Opex'!AI$28 -> 308.2194927
A149: ED_OVE2102_00039
A150: ED_OVE2102_00040
A151: ED_OVE2102_00041
A152: ED_OVE2102_00042
A153: ED_OVE2102_00043 | C153: CORPORATE OVERHEADS | D153: Total Overhead Expenditure - Negotiated Services | E153: Total | F153: 0 | G153: 0 | H153: 0 | I153: 0 | J153: 0 | K153: 0
A154: ED_OVE2102_00044 | C154: CORPORATE OVERHEADS | D154: Total Overhead Expenditure - Unregulated Services | E154: Total | F154: 7809.442333 | G154: 7994.203473 | H154: 5470.138347 | I154: 5507.0072 | J154: 5346.87819 | K154: 5926.75571 | L154: 7963.055039 | M154: =+'[6]2.10 Overheads - Nominal'!T154 -> 7286.059334 | N154: =+'[6]2.10 Overheads - Nominal'!U154 -> 7193.334434 | O154: =+'[6]2.10 Overheads - Nominal'!V154 -> 6773.446642 | P154: =+'[6]2.10 Overheads - Nominal'!W154 -> 7009.589364 | Q154: =+'[6]2.10 Overheads - Nominal'!X154 -> 6965.272143
A155: ED_OVE2102_00045 | C155: CORPORATE OVERHEADS | D155: Capitalised Overheads - Standard Control Services | E155: Expenditure categories currently reported under annual RIN
A156: ED_OVE2102_00046 | E156: Office of CEO | F156: 0 | G156: 0 | H156: 0 | I156: 0 | J156: 0 | K156: 0
A157: ED_OVE2102_00047 | E157: Legal and Secretariat | F157: 0 | G157: 0 | H157: 0 | I157: 0 | J157: 0 | K157: 0
A158: ED_OVE2102_00048 | E158: Audit | F158: 0 | G158: 0 | H158: 0 | I158: 0 | J158: 0 | K158: 0
A159: ED_OVE2102_00049 | E159: Strategy and Regulation | F159: 2427.546188 | G159: 715.6913624 | H159: 570.7101132 | I159: 382.9242146 | J159: 362.2140126 | K159: 424.25975 | L159: 32.92312038 | M159: =+'[6]2.10 Overheads - Nominal'!T159 -> 32.17667381 | N159: =+'[6]2.10 Overheads - Nominal'!U159 -> 31.89228172 | O159: =+'[6]2.10 Overheads - Nominal'!V159 -> 30.33529316 | P159: =+'[6]2.10 Overheads - Nominal'!W159 -> 29.78938741 | Q159: =+'[6]2.10 Overheads - Nominal'!X159 -> 30.36857527
A160: ED_OVE2102_00050 | E160: Human Resources | F160: 3395.6363 | G160: 3755.483831 | H160: 4548.31743 | I160: 4084.662224 | J160: 2977.225518 | K160: 1810.438299 | L160: 2578.944682 | M160: =+'[6]2.10 Overheads - Nominal'!T160 -> 2520.27323 | N160: =+'[6]2.10 Overheads - Nominal'!U160 -> 2497.566342 | O160: =+'[6]2.10 Overheads - Nominal'!V160 -> 2375.268763 | P160: =+'[6]2.10 Overheads - Nominal'!W160 -> 2332.168322 | Q160: =+'[6]2.10 Overheads - Nominal'!X160 -> 2377.152966
A161: ED_OVE2102_00051 | E161: Finance | F161: 1860.74802 | G161: 0 | H161: 0 | I161: 0 | J161: 0 | K161: 169.8537074 | M161: =+'[6]2.10 Overheads - Nominal'!T161 -> 0 | N161: =+'[6]2.10 Overheads - Nominal'!U161 -> 0 | O161: =+'[6]2.10 Overheads - Nominal'!V161 -> 0 | P161: =+'[6]2.10 Overheads - Nominal'!W161 -> 0 | Q161: =+'[6]2.10 Overheads - Nominal'!X161 -> 0
A162: ED_OVE2102_00052 | E162: Business Support Services | F162: 9828.34068 | G162: 10547.7241 | H162: 11174.62267 | I162: 10808.58497 | J162: 9277.597888 | K162: 8161.491862 | L162: 7723.165694 | M162: =+'[6]2.10 Overheads - Nominal'!T162 -> 7542.818064 | N162: =+'[6]2.10 Overheads - Nominal'!U162 -> 7468.136654 | O162: =+'[6]2.10 Overheads - Nominal'!V162 -> 7096.556348 | P162: =+'[6]2.10 Overheads - Nominal'!W162 -> 6962.054479 | Q162: =+'[6]2.10 Overheads - Nominal'!X162 -> 7090.591848
A163: ED_OVE2102_00053 | E163: Business Operations and Performance | F163: 5094.852462 | G163: 9830.299199 | H163: 5339.663776 | I163: 4821.194311 | J163: 1535.725771 | K163: 1569.028592 | L163: 1450.320734 | M163: =+'[6]2.10 Overheads - Nominal'!T163 -> 1418.267673 | N163: =+'[6]2.10 Overheads - Nominal'!U163 -> 1405.524558 | O163: =+'[6]2.10 Overheads - Nominal'!V163 -> 1334.906383 | P163: =+'[6]2.10 Overheads - Nominal'!W163 -> 1310.813274 | Q163: =+'[6]2.10 Overheads - Nominal'!X163 -> 1335.9556
A164: ED_OVE2102_00054 | E164: Field Support Services | F164: 4932.986182 | G164: 6103.464964 | H164: 7322.856718 | I164: 7009.118212 | J164: 6511.966089 | K164: 6173.549502 | L164: 6145.408397 | M164: =+'[6]2.10 Overheads - Nominal'!T164 -> 6006.043132 | N164: =+'[6]2.10 Overheads - Nominal'!U164 -> 5947.075008 | O164: =+'[6]2.10 Overheads - Nominal'!V164 -> 5644.633618 | P164: =+'[6]2.10 Overheads - Nominal'!W164 -> 5539.212918 | Q164: =+'[6]2.10 Overheads - Nominal'!X164 -> 5641.879679
A165: ED_OVE2102_00055 | E165: Stakeholder Engagement and Management | F165: 0 | G165: 0 | H165: 0 | I165: 0 | J165: 0 | K165: 0 | M165: =+'[6]2.10 Overheads - Nominal'!T165 -> 0 | N165: =+'[6]2.10 Overheads - Nominal'!U165 -> 0 | O165: =+'[6]2.10 Overheads - Nominal'!V165 -> 0 | P165: =+'[6]2.10 Overheads - Nominal'!W165 -> 0 | Q165: =+'[6]2.10 Overheads - Nominal'!X165 -> 0
A166: ED_OVE2102_00056 | E166: Other Operating | F166: 0 | G166: 0 | H166: 46.40350472 | I166: 0 | J166: 0 | K166: 0 | M166: =+'[6]2.10 Overheads - Nominal'!T166 -> 0 | N166: =+'[6]2.10 Overheads - Nominal'!U166 -> 0 | O166: =+'[6]2.10 Overheads - Nominal'!V166 -> 0 | P166: =+'[6]2.10 Overheads - Nominal'!W166 -> 0 | Q166: =+'[6]2.10 Overheads - Nominal'!X166 -> 0
A167: ED_OVE2102_00057 | E167: Corporate Restructuring | F167: 0 | G167: 0 | H167: 0 | I167: 0 | J167: 0 | K167: 0 | M167: =+'[6]2.10 Overheads - Nominal'!T167 -> 0 | N167: =+'[6]2.10 Overheads - Nominal'!U167 -> 0 | O167: =+'[6]2.10 Overheads - Nominal'!V167 -> 0 | P167: =+'[6]2.10 Overheads - Nominal'!W167 -> 0 | Q167: =+'[6]2.10 Overheads - Nominal'!X167 -> 0
A168: ED_OVE2102_00058 | E168: IT and Communications | F168: 34836.20337 | G168: 36779.7895 | H168: 51750.95251 | I168: 61514.6312 | J168: 68138.78173 | K168: 69869.79812 | L168: 70793.95801 | M168: =+'[6]2.10 Overheads - Nominal'!T168 -> 66331.00579 | N168: =+'[6]2.10 Overheads - Nominal'!U168 -> 66043.17107 | O168: =+'[6]2.10 Overheads - Nominal'!V168 -> 60828.46921 | P168: =+'[6]2.10 Overheads - Nominal'!W168 -> 61496.58349 | Q168: =+'[6]2.10 Overheads - Nominal'!X168 -> 61324.48832
A169: ED_OVE2102_00059 | E169: Property | F169: 15448.47168 | G169: 19513.19241 | H169: 31573.16871 | I169: 29428.19793 | J169: 32362.19451 | K169: 24153.62626 | L169: 24679.99031 | M169: =+'[6]2.10 Overheads - Nominal'!T169 -> 24068.27962 | N169: =+'[6]2.10 Overheads - Nominal'!U169 -> 23536.25426 | O169: =+'[6]2.10 Overheads - Nominal'!V169 -> 22183.89163 | P169: =+'[6]2.10 Overheads - Nominal'!W169 -> 21627.5622 | Q169: =+'[6]2.10 Overheads - Nominal'!X169 -> 21888.92404
A170: ED_OVE2102_00060 | E170: Fleet | F170: 12954.26141 | G170: 13488.44459 | H170: 12998.97832 | I170: 14639.56731 | J170: 12324.82856 | K170: 12492.76144 | L170: 10627.30233 | M170: =+'[6]2.10 Overheads - Nominal'!T170 -> 10817.50477 | N170: =+'[6]2.10 Overheads - Nominal'!U170 -> 9953.333149 | O170: =+'[6]2.10 Overheads - Nominal'!V170 -> 9463.379178 | P170: =+'[6]2.10 Overheads - Nominal'!W170 -> 9267.803223 | Q170: =+'[6]2.10 Overheads - Nominal'!X170 -> 9121.312738
A171: ED_OVE2102_00061 | E171: Debt Raising Costs | F171: 0 | G171: 0 | H171: 0 | I171: 0 | J171: 0 | K171: 0
A172: ED_OVE2102_00062
A173: ED_OVE2102_00063
A174: ED_OVE2102_00064
A175: ED_OVE2102_00065

Sheet 2.11 Labour
C1: REGULATORY REPORTING STATEMENT
C2: =TradingName -> Energex
C3: =RCP_1to5 -> 2015-16 to 2019-20
C4: 2.11 LABOUR
C6: TABLE 2.11.1 - COST METRICS PER ANNUM | BC6: TABLE 2.11.2 - EXTRA DESCRIPTOR METRICS FOR CURRENT YEAR
C7: <<<GROUP-ROW>>>
F9: ASL (0's) | H9: ASL (0's) Current Period | M9: ASL (0's) Forthcoming Period | R9: TOTAL LABOUR COST ($000's) | T9: TOTAL LABOUR COST ($000's) Current Period | Y9: TOTAL LABOUR COST ($000's) Forthcoming Period | AD9: AVERAGE PRODUCTIVE WORK HOURS PER ASL (0's) | AF9: AVERAGE PRODUCTIVE WORK HOURS PER ASL (0's) Current Period | AK9: AVERAGE PRODUCTIVE WORK HOURS PER ASL (0's) Forthcoming Period | AP9: STAND-DOWN OCCURENCES PER ASL (0's) | AR9: STAND-DOWN OCCURENCES PER ASL (0's) Current Period | AW9: STAND-DOWN OCCURENCES PER ASL (0's) Forthcoming Period | BF9: AVERAGE PRODUCTIVE WORK HOURS ORDINARY TIME (0's) | BH9: AVERAGE PRODUCTIVE WORK HOURS OVERTIME (0's)
BF10: PER ASL | BG10: HOURLY RATE PER ASL | BH10: PER ASL | BI10: HOURLY RATE PER ASL
F11: =PRCP_y4 -> 2008-09 | G11: =PRCP_y5 -> 2009-10 | H11: =CRCP -> 2010-11 | I11: 2011-12 | J11: 2012-13 | K11: 2013-14 | L11: 2014-15 | M11: =FRCP -> 2015-16 | N11: 2016-17 | O11: 2017-18 | P11: 2018-19 | Q11: 2019-20 | R11: =PRCP_y4 -> 2008-09 | S11: =PRCP_y5 -> 2009-10 | T11: =CRCP -> 2010-11 | U11: 2011-12 | V11: 2012-13 | W11: 2013-14 | X11: 2014-15 | Y11: =FRCP -> 2015-16 | Z11: 2016-17 | AA11: 2017-18 | AB11: 2018-19 | AC11: 2019-20 | AD11: =PRCP_y4 -> 2008-09 | AE11: =PRCP_y5 -> 2009-10 | AF11: =CRCP -> 2010-11 | AG11: 2011-12 | AH11: 2012-13 | AI11: 2013-14 | AJ11: 2014-15 | AK11: =FRCP -> 2015-16 | AL11: 2016-17 | AM11: 2017-18 | AN11: 2018-19 | AO11: 2019-20 | AP11: =PRCP_y4 -> 2008-09 | AQ11: =PRCP_y5 -> 2009-10 | AR11: =CRCP -> 2010-11 | AS11: 2011-12 | AT11: 2012-13 | AU11: 2013-14 | AV11: 2014-15 | AW11: =FRCP -> 2015-16 | AX11: 2016-17 | AY11: 2017-18 | AZ11: 2018-19 | BA11: 2019-20 | BF11: =CRCP_y4 -> 2013-14 | BG11: =CRCP_y4 -> 2013-14 | BH11: =CRCP_y4 -> 2013-14 | BI11: =CRCP_y4 -> 2013-14
A12: ED_LAB2111_00001 | C12: CORPORATE OVERHEADS INTERNAL LABOUR COSTS | D12: LABOUR CLASSIFICATION LEVEL | E12: Executive manager | F12: 4 | G12: 4 | H12: 4 | I12: 4 | J12: 3 | K12: 3 | L12: 4 | M12: 4 | N12: 4 | O12: 4 | P12: 4 | Q12: 4 | R12: 1406.5515 | S12: 1509.9085 | T12: 1566.436 | U12: 1627.581 | V12: 1068.234 | W12: 1200.40874 | X12: 1184.332971 | Y12: 1148.918543 | Z12: 1119.54555 | AA12: 1107.953119 | AB12: 1113.228709 | AC12: 1118.529479 | AD12: 1587 | AE12: 1587 | AF12: 1587 | AG12: 1587 | AH12: 1587 | AI12: 1587 | AJ12: 1572.9 | AK12: 1572.9 | AL12: 1572.9 | AM12: 1572.9 | AN12: 1572.9 | AO12: 1572.9 | AP12: 0 | AQ12: 0 | AR12: 0 | AS12: 0 | AT12: 0 | AU12: 0 | AV12: 0 | AW12: 0 | AX12: 0 | AY12: 0 | AZ12: 0 | BA12: 0 | BB12: ED_LAB2112_00001 | BC12: CORPORATE OVERHEADS INTERNAL LABOUR COSTS | BD12: LABOUR CLASSIFICATION LEVEL | BE12: Executive manager | BF12: 1587 | BG12: 177.6003844 | BH12: 0 | BI12: 0
A13: ED_LAB2111_00002 | E13: Employee (optional) | F13: 4 | G13: 4 | H13: 4 | I13: 4 | J13: 3 | K13: 3 | L13: 4 | M13: 4 | N13: 4 | O13: 4 | P13: 4 | Q13: 4 | R13: 1406.5515 | S13: 1509.9085 | T13: 1566.436 | U13: 1627.581 | V13: 1068.234 | W13: 1200.40874 | X13: 1184.332971 | Y13: 1148.918543 | Z13: 1119.54555 | AA13: 1107.953119 | AB13: 1113.228709 | AC13: 1118.529479 | AD13: 0 | AE13: 0 | AF13: 0 | AG13: 0 | AH13: 0 | AI13: 1587 | AJ13: 1572.9 | AK13: 1572.9 | AL13: 1572.9 | AM13: 1572.9 | AN13: 1572.9 | AO13: 1572.9 | AP13: 0 | AQ13: 0 | AR13: 0 | AS13: 0 | AT13: 0 | AU13: 0 | AV13: 0 | AW13: 0 | AX13: 0 | AY13: 0 | AZ13: 0 | BA13: 0 | BB13: ED_LAB2112_00002 | BE13: Employee (optional) | BF13: 1587 | BG13: 177.6003844 | BH13: 0 | BI13: 0
A14: ED_LAB2111_00003 | E14: Labour hire (optional) | F14: 0 | G14: 0 | H14: 0 | I14: 0 | J14: 0 | K14: 0 | L14: 0 | M14: 0 | N14: 0 | O14: 0 | P14: 0 | Q14: 0 | R14: 0 | S14: 0 | T14: 0 | U14: 0 | V14: 0 | W14: 0 | X14: 0 | Y14: 0 | Z14: 0 | AA14: 0 | AB14: 0 | AC14: 0 | AD14: 0 | AE14: 0 | AF14: 0 | AG14: 0 | AH14: 0 | AI14: 0 | AJ14: 0 | AK14: 0 | AL14: 0 | AM14: 0 | AN14: 0 | AO14: 0 | AP14: 0 | AQ14: 0 | AR14: 0 | AS14: 0 | AT14: 0 | AU14: 0 | AV14: 0 | AW14: 0 | AX14: 0 | AY14: 0 | AZ14: 0 | BA14: 0 | BB14: ED_LAB2112_00003 | BE14: Labour hire (optional) | BF14: 0 | BG14: 0 | BH14: 0 | BI14: 0
A15: ED_LAB2111_00004 | E15: Senior manager | F15: 12.27090377 | G15: 13.19146188 | H15: 13.96702816 | I15: 17.31926636 | J15: 28.41197186 | K15: 17.05681872 | L15: 17.25552093 | M15: 16.95223891 | N15: 16.51886376 | O15: 16.34784316 | P15: 16.42569088 | Q15: 16.50391021 | R15: 4001.847087 | S15: 4218.044331 | T15: 4201.24748 | U15: 5673.316368 | V15: 8960.671496 | W15: 5185.771018 | X15: 5116.323623 | Y15: 4963.333139 | Z15: 4836.441679 | AA15: 4786.36233 | AB15: 4809.152902 | AC15: 4832.052248 | AD15: 1587 | AE15: 1587 | AF15: 1587 | AG15: 1587 | AH15: 1587 | AI15: 1587 | AJ15: 1572.9 | AK15: 1572.9 | AL15: 1572.9 | AM15: 1572.9 | AN15: 1572.9 | AO15: 1572.9 | AP15: 0 | AQ15: 0 | AR15: 0 | AS15: 0 | AT15: 0 | AU15: 0 | AV15: 0 | AW15: 0 | AX15: 0 | AY15: 0 | AZ15: 0 | BA15: 0 | BB15: ED_LAB2112_00004 | BE15: Senior manager | BF15: 1587 | BG15: 177.6003844 | BH15: 0 | BI15: 0
A16: ED_LAB2111_00005 | E16: Employee (optional) | F16: 12.27090377 | G16: 13.19146188 | H16: 13.96702816 | I16: 17.31926636 | J16: 28.41197186 | K16: 17.05681872 | L16: 17.25552093 | M16: 16.95223891 | N16: 16.51886376 | O16: 16.34784316 | P16: 16.42569088 | Q16: 16.50391021 | R16: 4001.847087 | S16: 4218.044331 | T16: 4201.24748 | U16: 5673.316368 | V16: 8960.671496 | W16: 5185.771018 | X16: 5116.323623 | Y16: 4963.333139 | Z16: 4836.441679 | AA16: 4786.36233 | AB16: 4809.152902 | AC16: 4832.052248 | AD16: 0 | AE16: 0 | AF16: 0 | AG16: 0 | AH16: 0 | AI16: 1587 | AJ16: 1572.9 | AK16: 1572.9 | AL16: 1572.9 | AM16: 1572.9 | AN16: 1572.9 | AO16: 1572.9 | AP16: 0 | AQ16: 0 | AR16: 0 | AS16: 0 | AT16: 0 | AU16: 0 | AV16: 0 | AW16: 0 | AX16: 0 | AY16: 0 | AZ16: 0 | BA16: 0 | BB16: ED_LAB2112_00005 | BE16: Employee (optional) | BF16: 1587 | BG16: 177.6003844 | BH16: 0 | BI16: 0
A17: ED_LAB2111_00006 | E17: Labour hire (optional) | F17: 0 | G17: 0 | H17: 0 | I17: 0 | J17: 0 | K17: 0 | L17: 0 | M17: 0 | N17: 0 | O17: 0 | P17: 0 | Q17: 0 | R17: 0 | S17: 0 | T17: 0 | U17: 0 | V17: 0 | W17: 0 | X17: 0 | Y17: 0 | Z17: 0 | AA17: 0 | AB17: 0 | AC17: 0 | AD17: 0 | AE17: 0 | AF17: 0 | AG17: 0 | AH17: 0 | AI17: 0 | AJ17: 0 | AK17: 0 | AL17: 0 | AM17: 0 | AN17: 0 | AO17: 0 | AP17: 0 | AQ17: 0 | AR17: 0 | AS17: 0 | AT17: 0 | AU17: 0 | AV17: 0 | AW17: 0 | AX17: 0 | AY17: 0 | AZ17: 0 | BA17: 0 | BB17: ED_LAB2112_00006 | BE17: Labour hire (optional) | BF17: 0 | BG17: 0 | BH17: 0 | BI17: 0
A18: ED_LAB2111_00007 | E18: Manager | F18: 44.53505418 | G18: 49.85985178 | H18: 48.7629225 | I18: 60.286476 | J18: 36.70102853 | K18: 29.45378728 | L18: 29.78683198 | M18: 29.26330037 | N18: 28.51519934 | O18: 28.21998011 | P18: 28.35436243 | Q18: 28.48938623 | R18: 8967.700218 | S18: 10185.22259 | T18: 9917.563852 | U18: 11661.23899 | V18: 7161.095345 | W18: 6992.778037 | X18: 6923.378198 | Y18: 6692.830603 | Z18: 6521.723199 | AA18: 6454.193457 | AB18: 6484.925516 | AC18: 6515.80425 | AD18: 1499.260943 | AE18: 1499.100767 | AF18: 1499.22074 | AG18: 1499 | AH18: 1499.542555 | AI18: 1499.042439 | AJ18: 1484.941965 | AK18: 1484.941965 | AL18: 1484.941965 | AM18: 1484.941965 | AN18: 1484.941965 | AO18: 1484.941965 | AP18: 0 | AQ18: 0 | AR18: 0 | AS18: 0 | AT18: 0 | AU18: 0 | AV18: 0 | AW18: 0 | AX18: 0 | AY18: 0 | AZ18: 0 | BA18: 0 | BB18: ED_LAB2112_00007 | BE18: Manager | BF18: 1499 | BG18: 146.8292195 | BH18: 0.04243936401 | BI18: 0
A19: ED_LAB2111_00008 | E19: Employee (optional) | F19: 44.53505418 | G19: 49.85985178 | H19: 48.7629225 | I19: 60.286476 | J19: 36.70102853 | K19: 29.45378728 | L19: 29.78683198 | M19: 29.26330037 | N19: 28.51519934 | O19: 28.21998011 | P19: 28.35436243 | Q19: 28.48938623 | R19: 8967.700218 | S19: 10185.22259 | T19: 9917.563852 | U19: 11661.23899 | V19: 7161.095345 | W19: 6992.778037 | X19: 6923.378198 | Y19: 6692.830603 | Z19: 6521.723199 | AA19: 6454.193457 | AB19: 6484.925516 | AC19: 6515.80425 | AD19: 0 | AE19: 0 | AF19: 0 | AG19: 0 | AH19: 0 | AI19: 1499.042439 | AJ19: 1484.941965 | AK19: 1484.941965 | AL19: 1484.941965 | AM19: 1484.941965 | AN19: 1484.941965 | AO19: 1484.941965 | AP19: 0 | AQ19: 0 | AR19: 0 | AS19: 0 | AT19: 0 | AU19: 0 | AV19: 0 | AW19: 0 | AX19: 0 | AY19: 0 | AZ19: 0 | BA19: 0 | BB19: ED_LAB2112_00008 | BE19: Employee (optional) | BF19: 1499 | BG19: 146.8292195 | BH19: 0.04243936401 | BI19: 0
A20: ED_LAB2111_00009 | E20: Labour hire (optional) | F20: 0 | G20: 0 | H20: 0 | I20: 0 | J20: 0 | K20: 0 | L20: 0 | M20: 0 | N20: 0 | O20: 0 | P20: 0 | Q20: 0 | R20: 0 | S20: 0 | T20: 0 | U20: 0 | V20: 0 | W20: 0 | X20: 0 | Y20: 0 | Z20: 0 | AA20: 0 | AB20: 0 | AC20: 0 | AD20: 0 | AE20: 0 | AF20: 0 | AG20: 0 | AH20: 0 | AI20: 0 | AJ20: 0 | AK20: 0 | AL20: 0 | AM20: 0 | AN20: 0 | AO20: 0 | AP20: 0 | AQ20: 0 | AR20: 0 | AS20: 0 | AT20: 0 | AU20: 0 | AV20: 0 | AW20: 0 | AX20: 0 | AY20: 0 | AZ20: 0 | BA20: 0 | BB20: ED_LAB2112_00009 | BE20: Labour hire (optional) | BF20: 0 | BG20: 0 | BH20: 0 | BI20: 0
A21: ED_LAB2111_00010 | E21: Professional | F21: 188.2723634 | G21: 192.6565966 | H21: 213.691202 | I21: 214.7816243 | J21: 194.7675126 | K21: 156.5820597 | L21: 157.1939634 | M21: 154.4499614 | N21: 150.5289168 | O21: 148.9815753 | P21: 149.6859174 | Q21: 150.3936217 | R21: 23530.85885 | S21: 24886.57909 | T21: 28257.21237 | U21: 28948.45651 | V21: 28199.23294 | W21: 26600.27159 | X21: 26500.8296 | Y21: 25467.71333 | Z21: 24822.32422 | AA21: 24568.58393 | AB21: 24686.393 | AC21: 24804.77238 | AD21: 1673.243571 | AE21: 1672.212329 | AF21: 1676.734288 | AG21: 1672.471805 | AH21: 1674.336465 | AI21: 1672.657687 | AJ21: 1655.439431 | AK21: 1655.439431 | AL21: 1655.439431 | AM21: 1655.439431 | AN21: 1655.439431 | AO21: 1655.439431 | AP21: 0 | AQ21: 0 | AR21: 0 | AS21: 0 | AT21: 0 | AU21: 0 | AV21: 0 | AW21: 0 | AX21: 0 | AY21: 0 | AZ21: 0 | BA21: 0 | BB21: ED_LAB2112_00010 | BE21: Professional | BF21: 1668 | BG21: 94.49580336 | BH21: 4.657686613 | BI21: 120.0856472
A22: ED_LAB2111_00011 | E22: Employee (optional) | F22: 187.6801634 | G22: 192.0643966 | H22: 213.099002 | I22: 214.1894243 | J22: 194.1753126 | K22: 155.5107203 | L22: 156.122624 | M22: 153.378622 | N22: 149.4575774 | O22: 147.9102359 | P22: 148.614578 | Q22: 149.3222824 | R22: 23455.66795 | S22: 24808.25523 | T22: 28175.62502 | U22: 28863.46969 | V22: 28110.705 | W22: 26440.11714 | X22: 26339.50602 | Y22: 25305.99773 | Z22: 24659.03028 | AA22: 24403.69624 | AB22: 24519.89601 | AC22: 24636.65037 | AD22: 1673.243571 | AE22: 1672.212329 | AF22: 1676.734288 | AG22: 1672.471805 | AH22: 1674.336465 | AI22: 1672.657687 | AJ22: 1655.439431 | AK22: 1655.439431 | AL22: 1655.439431 | AM22: 1655.439431 | AN22: 1655.439431 | AO22: 1655.439431 | AP22: 0 | AQ22: 0 | AR22: 0 | AS22: 0 | AT22: 0 | AU22: 0 | AV22: 0 | AW22: 0 | AX22: 0 | AY22: 0 | AZ22: 0 | BA22: 0 | BB22: ED_LAB2112_00011 | BE22: Employee (optional) | BF22: 1668 | BG22: 94.49580336 | BH22: 4.657686613 | BI22: 120.0856472
A23: ED_LAB2111_00012 | E23: Labour hire (optional) | F23: 0.5922000314 | G23: 0.5922000314 | H23: 0.5922000314 | I23: 0.5922000314 | J23: 0.5922000314 | K23: 1.07133938 | L23: 1.07133938 | M23: 1.07133938 | N23: 1.07133938 | O23: 1.07133938 | P23: 1.07133938 | Q23: 1.07133938 | R23: 75.1909047 | S23: 78.32385906 | T23: 81.58735319 | U23: 84.98682624 | V23: 88.527944 | W23: 160.154454 | X23: 161.3235815 | Y23: 161.7155978 | Z23: 163.2939421 | AA23: 164.8876909 | AB23: 166.4969948 | AC23: 168.1220055 | AD23: 1668 | AE23: 1668 | AF23: 1668 | AG23: 1668 | AH23: 1668 | AI23: 1692 | AJ23: 1692 | AK23: 1692 | AL23: 1692 | AM23: 1692 | AN23: 1692 | AO23: 1692 | AP23: 0 | AQ23: 0 | AR23: 0 | AS23: 0 | AT23: 0 | AU23: 0 | AV23: 0 | AW23: 0 | AX23: 0 | AY23: 0 | AZ23: 0 | BA23: 0 | BB23: ED_LAB2112_00012 | BE23: Labour hire (optional) | BF23: 1692 | BG23: 88.35102522 | BH23: 0 | BI23: 0
A24: ED_LAB2111_00013 | E24: Semi professional | F24: 30.2722562 | G24: 24.73474873 | H24: 32.54716031 | I24: 40.80375017 | J24: 39.19056026 | K24: 17.70809789 | L24: 17.89079405 | M24: 17.5763465 | N24: 17.12701636 | O24: 16.94969953 | P24: 17.03041327 | Q24: 17.11151229 | R24: 3206.368506 | S24: 2710.215584 | T24: 3712.552691 | U24: 4789.893476 | V24: 4975.822861 | W24: 2711.886667 | X24: 2708.551874 | Y24: 2595.563305 | Z24: 2529.205717 | AA24: 2503.01684 | AB24: 2514.935116 | AC24: 2526.910274 | AD24: 1568.8 | AE24: 1568.8 | AF24: 1568.8 | AG24: 1568.8 | AH24: 1568.8 | AI24: 1817.685754 | AJ24: 1800.944197 | AK24: 1800.944197 | AL24: 1800.944197 | AM24: 1800.944197 | AN24: 1800.944197 | AO24: 1800.944197 | AP24: 0 | AQ24: 0 | AR24: 0 | AS24: 0 | AT24: 0 | AU24: 0 | AV24: 0 | AW24: 0 | AX24: 0 | AY24: 0 | AZ24: 0 | BA24: 0 | BB24: ED_LAB2112_00013 | BE24: Semi professional | BF24: 1568.8 | BG24: 90.49770525 | BH24: 248.8857543 | BI24: 66.89390515
A25: ED_LAB2111_00014 | E25: Employee (optional) | F25: 30.2722562 | G25: 24.73474873 | H25: 32.54716031 | I25: 40.80375017 | J25: 39.19056026 | K25: 17.70809789 | L25: 17.89079405 | M25: 17.5763465 | N25: 17.12701636 | O25: 16.94969953 | P25: 17.03041327 | Q25: 17.11151229 | R25: 3206.368506 | S25: 2710.215584 | T25: 3712.552691 | U25: 4789.893476 | V25: 4975.822861 | W25: 2711.886667 | X25: 2708.551874 | Y25: 2595.563305 | Z25: 2529.205717 | AA25: 2503.01684 | AB25: 2514.935116 | AC25: 2526.910274 | AD25: 0 | AE25: 0 | AF25: 0 | AG25: 0 | AH25: 0 | AI25: 1817.685754 | AJ25: 1800.944197 | AK25: 1800.944197 | AL25: 1800.944197 | AM25: 1800.944197 | AN25: 1800.944197 | AO25: 1800.944197 | AP25: 0 | AQ25: 0 | AR25: 0 | AS25: 0 | AT25: 0 | AU25: 0 | AV25: 0 | AW25: 0 | AX25: 0 | AY25: 0 | AZ25: 0 | BA25: 0 | BB25: ED_LAB2112_00014 | BE25: Employee (optional) | BF25: 1568.8 | BG25: 90.49770525 | BH25: 248.8857543 | BI25: 66.89390515
A26: ED_LAB2111_00015 | E26: Labour hire (optional) | F26: 0 | G26: 0 | H26: 0 | I26: 0 | J26: 0 | K26: 0 | L26: 0 | M26: 0 | N26: 0 | O26: 0 | P26: 0 | Q26: 0 | R26: 0 | S26: 0 | T26: 0 | U26: 0 | V26: 0 | W26: 0 | X26: 0 | Y26: 0 | Z26: 0 | AA26: 0 | AB26: 0 | AC26: 0 | AD26: 0 | AE26: 0 | AF26: 0 | AG26: 0 | AH26: 0 | AI26: 0 | AJ26: 0 | AK26: 0 | AL26: 0 | AM26: 0 | AN26: 0 | AO26: 0 | AP26: 0 | AQ26: 0 | AR26: 0 | AS26: 0 | AT26: 0 | AU26: 0 | AV26: 0 | AW26: 0 | AX26: 0 | AY26: 0 | AZ26: 0 | BA26: 0 | BB26: ED_LAB2112_00015 | BE26: Labour hire (optional) | BF26: 0 | BG26: 0 | BH26: 0 | BI26: 0
A27: ED_LAB2111_00016 | E27: Support staff | F27: 288.8804984 | G27: 280.0697692 | H27: 259.0831854 | I27: 242.3521451 | J27: 223.321553 | K27: 182.228396 | L27: 183.7176352 | M27: 180.6037364 | N27: 176.1541275 | O27: 174.3982013 | P27: 175.1974901 | Q27: 176.0005944 | R27: 22654.1924 | S27: 23905.39522 | T27: 22691.0938 | U27: 22133.77339 | V27: 21080.64503 | W27: 20795.12931 | X27: 20939.45149 | Y27: 19936.86854 | Z27: 19450.01795 | AA27: 19261.75943 | AB27: 19356.77226 | AC27: 19452.27067 | AD27: 1681.738441 | AE27: 1680.563625 | AF27: 1688.654512 | AG27: 1683.47281 | AH27: 1682.720204 | AI27: 1674.920253 | AJ27: 1657.662083 | AK27: 1657.662083 | AL27: 1657.662083 | AM27: 1657.662083 | AN27: 1657.662083 | AO27: 1657.662083 | AP27: 0 | AQ27: 0 | AR27: 0 | AS27: 0 | AT27: 0 | AU27: 0 | AV27: 0 | AW27: 0 | AX27: 0 | AY27: 0 | AZ27: 0 | BA27: 0 | BB27: ED_LAB2112_00016 | BE27: Support staff | BF27: 1668 | BG27: 63.76199041 | BH27: 6.920252789 | BI27: 84.1486837
A28: ED_LAB2111_00017 | E28: Employee (optional) | F28: 285.2602235 | G28: 276.4494943 | H28: 255.4629105 | I28: 238.7318702 | J28: 219.701278 | K28: 175.6790159 | L28: 177.1682551 | M28: 174.0543563 | N28: 169.6047474 | O28: 167.8488212 | P28: 168.64811 | Q28: 169.4512143 | R28: 22353.42878 | S28: 23592.09978 | T28: 22364.74439 | U28: 21793.82609 | V28: 20726.53325 | W28: 20154.51149 | X28: 20294.15717 | Y28: 19290.00615 | Z28: 18796.84218 | AA28: 18602.20867 | AB28: 18690.78429 | AC28: 18779.78265 | AD28: 1681.738441 | AE28: 1680.563625 | AF28: 1688.654512 | AG28: 1683.47281 | AH28: 1682.720204 | AI28: 1674.920253 | AJ28: 1657.662083 | AK28: 1657.662083 | AL28: 1657.662083 | AM28: 1657.662083 | AN28: 1657.662083 | AO28: 1657.662083 | AP28: 0 | AQ28: 0 | AR28: 0 | AS28: 0 | AT28: 0 | AU28: 0 | AV28: 0 | AW28: 0 | AX28: 0 | AY28: 0 | AZ28: 0 | BA28: 0 | BB28: ED_LAB2112_00017 | BE28: Employee (optional) | BF28: 1668 | BG28: 63.76199041 | BH28: 6.920252789 | BI28: 84.1486837
A29: ED_LAB2111_00018 | E29: Labour hire (optional) | F29: 3.620274926 | G29: 3.620274926 | H29: 3.620274926 | I29: 3.620274926 | J29: 3.620274926 | K29: 6.549380092 | L29: 6.549380092 | M29: 6.549380092 | N29: 6.549380092 | O29: 6.549380092 | P29: 6.549380092 | Q29: 6.549380092 | R29: 300.7636188 | S29: 313.2954363 | T29: 326.3494128 | U29: 339.947305 | V29: 354.111776 | W29: 640.617816 | X29: 645.2943261 | Y29: 646.8623913 | Z29: 653.1757682 | AA29: 659.5507637 | AB29: 665.9879792 | AC29: 672.4880218 | AD29: 1668 | AE29: 1668 | AF29: 1668 | AG29: 1668 | AH29: 1668 | AI29: 1692 | AJ29: 1692 | AK29: 1692 | AL29: 1692 | AM29: 1692 | AN29: 1692 | AO29: 1692 | AP29: 0 | AQ29: 0 | AR29: 0 | AS29: 0 | AT29: 0 | AU29: 0 | AV29: 0 | AW29: 0 | AX29: 0 | AY29: 0 | AZ29: 0 | BA29: 0 | BB29: ED_LAB2112_00018 | BE29: Labour hire (optional) | BF29: 1692 | BG29: 57.80939954 | BH29: 0 | BI29: 0
A30: ED_LAB2111_00019 | E30: Intern, junior staff, apprentice | F30: 49.02051171 | G30: 51.07035835 | H30: 54.63906259 | I30: 50.74836578 | J30: 47.57004327 | K30: 38.20679769 | L30: 39.64879021 | M30: 38.95192541 | N30: 37.95613973 | O30: 37.56317798 | P30: 37.7420522 | Q30: 37.92178029 | R30: 4587.131694 | S30: 5010.051398 | T30: 5602.036724 | U30: 5427.098321 | V30: 5076.65725 | W30: 4261.985942 | X30: 4541.664528 | Y30: 4474.140489 | Z30: 4372.753851 | AA30: 4371.277609 | AB30: 4369.801866 | AC30: 4368.326621 | AD30: 2841.175418 | AE30: 2934.728036 | AF30: 3140.502762 | AG30: 2831.914741 | AH30: 1748 | AI30: 1689.237882 | AJ30: 1667.457175 | AK30: 1667.457175 | AL30: 1667.457175 | AM30: 1667.457175 | AN30: 1667.457175 | AO30: 1667.457175 | AP30: 0 | AQ30: 0 | AR30: 0 | AS30: 0 | AT30: 0 | AU30: 0 | AV30: 0 | AW30: 0 | AX30: 0 | AY30: 0 | AZ30: 0 | BA30: 0 | BB30: ED_LAB2112_00019 | BE30: Intern, junior staff, apprentice | BF30: 1480.8 | BG30: 73.90686656 | BH30: 208.4378823 | BI30: 89.99182922
A31: ED_LAB2111_00020 | E31: Employee (optional) | F31: 49.02051171 | G31: 51.07035835 | H31: 54.63906259 | I31: 50.74836578 | J31: 47.57004327 | K31: 38.20679769 | L31: 39.64879021 | M31: 38.95192541 | N31: 37.95613973 | O31: 37.56317798 | P31: 37.7420522 | Q31: 37.92178029 | R31: 4587.131694 | S31: 5010.051398 | T31: 5602.036724 | U31: 5427.098321 | V31: 5076.65725 | W31: 4261.985942 | X31: 4541.664528 | Y31: 4474.140489 | Z31: 4372.753851 | AA31: 4371.277609 | AB31: 4369.801866 | AC31: 4368.326621 | AD31: 0 | AE31: 0 | AF31: 0 | AG31: 0 | AH31: 0 | AI31: 1689.237882 | AJ31: 1667.457175 | AK31: 1667.457175 | AL31: 1667.457175 | AM31: 1667.457175 | AN31: 1667.457175 | AO31: 1667.457175 | AP31: 0 | AQ31: 0 | AR31: 0 | AS31: 0 | AT31: 0 | AU31: 0 | AV31: 0 | AW31: 0 | AX31: 0 | AY31: 0 | AZ31: 0 | BA31: 0 | BB31: ED_LAB2112_00020 | BE31: Employee (optional) | BF31: 1480.8 | BG31: 73.90686656 | BH31: 208.4378823 | BI31: 89.99182922
A32: ED_LAB2111_00021 | E32: Labour hire (optional) | F32: 0 | G32: 0 | H32: 0 | I32: 0 | J32: 0 | K32: 0 | L32: 0 | M32: 0 | N32: 0 | O32: 0 | P32: 0 | Q32: 0 | R32: 0 | S32: 0 | T32: 0 | U32: 0 | V32: 0 | W32: 0 | X32: 0 | Y32: 0 | Z32: 0 | AA32: 0 | AB32: 0 | AC32: 0 | AD32: 0 | AE32: 0 | AF32: 0 | AG32: 0 | AH32: 0 | AI32: 0 | AJ32: 0 | AK32: 0 | AL32: 0 | AM32: 0 | AN32: 0 | AO32: 0 | AP32: 0 | AQ32: 0 | AR32: 0 | AS32: 0 | AT32: 0 | AU32: 0 | AV32: 0 | AW32: 0 | AX32: 0 | AY32: 0 | AZ32: 0 | BA32: 0 | BB32: ED_LAB2112_00021 | BE32: Labour hire (optional) | BF32: 0 | BG32: 0 | BH32: 0 | BI32: 0
A33: ED_LAB2111_00022 | C33: NETWORK OVERHEADS INTERNAL LABOUR COSTS | D33: LABOUR CLASSIFICATION LEVEL | E33: Executive manager | F33: 4 | G33: 4 | H33: 4 | I33: 4 | J33: 4 | K33: 3 | L33: 3 | M33: 3 | N33: 3 | O33: 3 | P33: 3 | Q33: 3 | R33: 1406.5515 | S33: 1509.9085 | T33: 1566.436 | U33: 1627.581 | V33: 1424.312 | W33: 841.6313677 | X33: 794.258907 | Y33: 771.6683065 | Z33: 754.7368194 | AA33: 747.7670992 | AB33: 755.1566477 | AC33: 762.4713081 | AD33: 1587 | AE33: 1587 | AF33: 1587 | AG33: 1587 | AH33: 1587 | AI33: 1587.719742 | AJ33: 1572.9 | AK33: 1572.9 | AL33: 1572.9 | AM33: 1572.9 | AN33: 1572.9 | AO33: 1572.9 | AP33: 0 | AQ33: 0 | AR33: 0 | AS33: 0 | AT33: 0 | AU33: 0 | AV33: 0 | AW33: 0 | AX33: 0 | AY33: 0 | AZ33: 0 | BA33: 0 | BB33: ED_LAB2112_00022 | BC33: NETWORK OVERHEADS INTERNAL LABOUR COSTS | BD33: LABOUR CLASSIFICATION LEVEL | BE33: Executive manager | BF33: 1587 | BG33: 177.6003844 | BH33: 0 | BI33: 0
A34: ED_LAB2111_00023 | E34: Employee (optional) | F34: 4 | G34: 4 | H34: 4 | I34: 4 | J34: 4 | K34: 3 | L34: 3 | M34: 3 | N34: 3 | O34: 3 | P34: 3 | Q34: 3 | R34: 1406.5515 | S34: 1509.9085 | T34: 1566.436 | U34: 1627.581 | V34: 1424.312 | W34: 841.6313677 | X34: 794.258907 | Y34: 771.6683065 | Z34: 754.7368194 | AA34: 747.7670992 | AB34: 755.1566477 | AC34: 762.4713081 | AD34: 0 | AE34: 0 | AF34: 0 | AG34: 0 | AH34: 0 | AI34: 1587.719742 | AJ34: 1572.9 | AK34: 1572.9 | AL34: 1572.9 | AM34: 1572.9 | AN34: 1572.9 | AO34: 1572.9 | AP34: 0 | AQ34: 0 | AR34: 0 | AS34: 0 | AT34: 0 | AU34: 0 | AV34: 0 | AW34: 0 | AX34: 0 | AY34: 0 | AZ34: 0 | BA34: 0 | BB34: ED_LAB2112_00023 | BE34: Employee (optional) | BF34: 1587 | BG34: 177.6003844 | BH34: 0 | BI34: 0
